Workbook

Sheet A2_Budget_Look_Up (hidden)
A1: Select Crop by | C1: Enter | D1: cell Budget!A1 | F1: Budget | G1: cell Budget!A1 | H1: cell Budget!H1 | I1: cell Seed_Chemical!C3 | J1: cell Seed_Chemical!C4 | K1: cell ChemicalReport!A1 | L1: cell MachineReport!A1
A2: Entering 1 Next | C2: Budget | F2: Lookup
A3: to Appropriate | C3: Number | D3: =LOOKUP(C4,F3:F52,G3:G52) -> Table 24. 2021 Soybean Enterprise Budget, Conventional, Center Pivot Irrigation | F3: 1 | G3: Table 1. 2021 Corn Enterprise Budget, Stacked Gene, Furrow Irrigation | H3: Corn, Furrow | I3: thousand | J3: thousand | K3: Table 1. Details of Chemicals Applied, Corn,Furrow | L3: Table 1. Machinery Capital Recovery and Operating Costs, Corn, Furrow
A4: Crop Only. | C4: 35 | F4: =F3+1 -> 2 | G4: Table 2. 2021 Corn Enterprise Budget, Stacked Gene, Center Pivot Irrigation | H4: Corn, Pivot | I4: thousand | J4: thousand | K4: Table 2. Details of Chemicals Applied, Corn, Pivot | L4: Table 2. Machinery Capital Recovery and Operating Costs, Corn, Pivot
A5: All Other Crops | C5: Goto Budget Worksheet | F5: =F4+1 -> 3 | G5: Table 3. 2021 Corn Enterprise Budget, Stacked Gene, No Irrigation | H5: Corn, No Irrigation | I5: thousand | J5: thousand | K5: Table 3. Details of Chemicals Applied, Corn, No Irrigation | L5: Table 3. Machinery Capital Recovery and Operating Costs, Corn, No Irrigation
A6: Should be 0. | D6: cell Budget!H1 | F6: 4 | G6: Table 31. 2021 Cotton Enterprise Budget, B2XF, Furrow Irrigation | H6: B2XF Cotton, Furrow | I6: thousand | J6: thousand | K6: Table 31. Details of Chemicals Applied, B2XF Cotton, Furrow | L6: Table 31. Machinery Capital Recovery and Operating Costs, B2XF Cotton, Furrow
A7: Cotton | B7: 0 | D7: =LOOKUP(C4,F3:F52,H3:H52) -> Soybeans, Conventional, Pivot | F7: 5 | G7: Table 32. 2021 Cotton Enterprise Budget, B2XF, Center Pivot Irrigation | H7: B2XF Cotton, Pivot | I7: thousand | J7: thousand | K7: Table 32. Details of Chemicals Applied, B2XF Cotton, Pivot | L7: Table 32. Machinery Capital Recovery and Operating Costs, B2XF Cotton, Pivot
A8: Corn | B8: 0 | F8: 6 | G8: Table 33. 2021 Cotton Enterprise Budget, B2XF, No Irrigation | H8: B2XF Cotton, No Irrigation | I8: thousand | J8: thousand | K8: Table 33. Details of Chemicals Applied, B2XF Cotton, No Irrigation | L8: Table 33. Machinery Capital Recovery and Operating Costs, B2XF Cotton, No Irrigation
A9: Soybean | B9: 1 | D9: Unit Seeding Rate | E9: Unit Technology Fee | F9: 7 | G9: Table 34. 2021 Cotton Enterprise Budget, GLT/WRF, Furrow Irrigation | H9: GLT/WRF Cotton, Furrow | I9: thousand | J9: thousand | K9: Table 34. Details of Chemicals Applied, GLT/WRF Cotton, Furrow | L9: Table 34. Machinery Capital Recovery and Operating Costs, GLT/WRF Cotton, Furrow
A10: Rice | B10: 0 | D10: cell Seed_Chemical!C3 | E10: cell Seed_Chemical!C4 | F10: 8 | G10: Table 35. 2021 Cotton Enterprise Budget, GLT/WRF, Center Pivot Irrigation | H10: GLT/WRF Cotton, Pivot | I10: thousand | J10: thousand | K10: Table 35. Details of Chemicals Applied, GLT/WRF Cotton, Pivot | L10: Table 35. Machinery Capital Recovery and Operating Costs, GLT/WRF Cotton, Pivot
A11: Wheat | B11: 0 | D11: =LOOKUP(C4,F3:F52,I3:I52) -> thousand | E11: =LOOKUP(C4,F3:F52,J3:J52) -> thousand | F11: 9 | G11: Table 36. 2021 Cotton Enterprise Budget, GLT/WRF, No Irrigation | H11: GLT/WRF Cotton, No Irrigation | I11: thousand | J11: thousand | K11: Table 36. Details of Chemicals Applied, GLT/WRF Cotton, No Irrigation | L11: Table 36. Machinery Capital Recovery and Operating Costs, GLT/WRF Cotton, No Irrigation
A12: Sorghum | B12: 0 | F12: 10 | G12: Table 37. 2021 Cotton Enterprise Budget, Conventional, Furrow Irrigation | H12: Conventional Cotton, Furrow | I12: thousand | J12: thousand | K12: Table 37. Details of Chemicals Applied, Conventional Cotton, Furrow | L12: Table 37. Machinery Capital Recovery and Operating Costs, Conventional Cotton, Furrow
A13: Peanut | B13: 0 | D13: =LOOKUP(C4,F3:F52,K3:K52) -> Table 24. Details of Chemicals Applied, Conventional Soybeans, Pivot | F13: 11 | G13: Table 7. 2021 Grain Sorghum Enterprise Budget, Furrow Irrigation | H13: Grain Sorghum, Furrow | I13: pounds | J13: pounds | K13: Table 7. Details of Chemicals Applied, Grain Sorghum, Furrow | L13: Table 7. Machinery Capital Recovery and Operating Costs, Grain Sorghum, Furrow
A14: Other | B14: 0 | F14: 12 | G14: Table 8. 2021 Grain Sorghum Enterprise Budget, Center Pivot Irrigation | H14: Grain Sorghum, Pivot | I14: pounds | J14: pounds | K14: Table 8. Details of Chemicals Applied, Grain Sorghum, Pivot | L14: Table 8. Machinery Capital Recovery and Operating Costs, Grain Sorghum, Pivot
B15: ='C1_Messages_Indicators'!B6 ->  | D15: =LOOKUP(C4,F3:F52,L3:L52) -> Table 24. Machine Capital Recovery and Operating Costs, Conventional Soybeans, Pivot | F15: 13 | G15: Table 9. 2021 Grain Sorghum Enterprise Budget, No Irrigation | H15: Grain Sorghum, No Irrigation | I15: pounds | J15: pounds | K15: Table 9 Details of Chemicals Applied, Grain Sorghum, No Irrigation | L15: Table 9. Machinery Capital Recovery and Operating Costs, Grain Sorghum, No Irrigation
B16: ='C1_Messages_Indicators'!B7 ->  | F16: 14 | G16: Table 10. 2021 Rice Enterprise Budget, Conventional Seed | H16: Rice, Conventional Seed | I16: pounds | J16: pounds | K16: Table 10. Details of Chemicals Applied, Rice, Conventional Seed | L16: Table 10. Machinery Capital Recovery and Operating Costs, Rice, Conventional Seed
B17: ='C1_Messages_Indicators'!B8 ->  | F17: 15 | G17: Table 11. 2021 Rice Enterprise Budget, Clearfield Seed | H17: Rice, Clearfield Seed | I17: pounds | J17: pounds | K17: Table 11. Details of Chemicals Applied, Rice, Clearfield Seed | L17: Table 11. Machinery Capital Recovery and Operating Costs, Rice, Clearfield Seed
B18: =D3 -> Table 24. 2021 Soybean Enterprise Budget, Conventional, Center Pivot Irrigation | F18: 16 | G18: Table 12. 2021 Rice Enterprise Budget, Hybrid Seed | H18: Rice, Hybrid Seed | I18: pounds | J18: pounds | K18: Table 12. Details of Chemicals Applied, Rice, Hybrid Seed | L18: Table 12. Machinery Capital Recovery and Operating Costs, Rice, Hybrid Seed
B19: =Budget!F7 -> 0 | C19: Nitrogen | F19: 17 | G19: Table 13. 2021 Rice Enterprise Budget, FullPage Hybrid Seed | H19: Rice, FullPage Hybrid Seed | I19: pounds | J19: pounds | K19: Table 13. Details of Chemicals Applied, Rice, FullPage Hybrid Seed | L19: Table 13. Machinery Capital Recovery and Operating Costs, Rice, FullPage Hybrid Seed
B20: =Budget!F44 -> 305.4072426 | C20: Operating Expenses | F20: 18 | G20: Table 14. 2021 Rice Enterprise Budget, Conventional Seed, Water Seeded | H20: Rice, Water Seeded | I20: pounds | J20: pounds | K20: Table 14. Details of Chemicals Applied, Rice, Water Seeded | L20: Table 14. Machinery Capital Recovery and Operating Costs, Rice, Water Seeded
B21: =Budget!F47 -> 77.35516959 | C21: Machinery & Equipment | F21: 19 | G21: Table 15. 2021 Soybean Enterprise Budget, RR, Furrow Irrigation | H21: RR Soybeans, Furrow | I21: thousand | J21: thousand | K21: Table 15. Details of Chemicals Applied, RR Soybeans, Furrow | L21: Table 15. Machinery Capital Recovery and Operating Costs, RR Soybeans, Furrow
B22: =Budget!F50 -> 158.4848839 | C22: Total Fixed Costs | F22: 20 | G22: Table 16. 2021 Soybean Enterprise Budget, RR, Center Pivot Irrigation | H22: RR Soybeans, Pivot | I22: thousand | J22: thousand | K22: Table 16. Details of Chemicals Applied, RR Soybeans, Pivot | L22: Table 16. Machinery Capital Recovery and Operating Costs, RR Soybeans, Pivot
B23: =Budget!F52 -> 136.1078734 | C23: Net Returns | F23: 21 | G23: Table 17. 2021 Soybean Enterprise Budget, RR, No Irrigation | H23: RR Soybeans, No Irrigation | I23: thousand | J23: thousand | K23: Table 17. Details of Chemicals Applied, RR Soybeans, No Irrigation | L23: Table 17. Machinery Capital Recovery and Operating Costs, RR Soybeans, No Irrigation
F24: 22 | G24: Table 18. 2021 Soybean Enterprise Budget, RR, Flood Irrigation | H24: RR Soybeans, Flood | I24: thousand | J24: thousand | K24: Table 18. Details of Chemicals Applied, RR Soybeans, Flood | L24: Table 18. Machinery Capital Recovery and Operating Costs, RR Soybeans, Flood
F25: 23 | G25: Table 19. 2021 Soybean Enterprise Budget, LL, Furrow Irrigation | H25: LL Soybeans, Furrow | I25: thousand | J25: thousand | K25: Table 19. Details of Chemicals Applied, LL Soybeans, Furrow | L25: Table 19. Machinery Capital Recovery and Operating Costs, RR Soybeans, Furrow
F26: 24 | G26: Table 20. 2021 Soybean Enterprise Budget, LL, Center Pivot Irrigation | H26: LL Soybeans, Pivot | I26: thousand | J26: thousand | K26: Table 20. Details of Chemicals Applied, LL Soybeans, Pivot | L26: Table 20. Machinery Capital Recovery and Operating Costs, RR Soybeans, Pivot
F27: 25 | G27: Table 21. 2021 Soybean Enterprise Budget, LL, No Irrigation | H27: LL Soybeans, No Irrigation | I27: thousand | J27: thousand | K27: Table 21. Details of Chemicals Applied, LL Soybeans, No Irrigation | L27: Table 21. Machinery Capital Recovery and Operating Costs, RR Soybeans, No Irrigation
F28: 26 | G28: Table 22. 2021 Soybean Enterprise Budget, LL, Flood Irrigation | H28: LL Soybeans, Flood | I28: thousand | J28: thousand | K28: Table 22. Details of Chemicals Applied, LL Soybeans, Flood | L28: Table 22. Machinery Capital Recovery and Operating Costs, RR Soybeans, Flood
F29: 27 | G29: Table 23. 2021 Soybean Enterprise Budget, Conventional, Furrow Irrigation | H29: Soybeans, Conventional, Furrow | I29: thousand | J29: thousand | K29: Table 23. Details of Chemicals Applied, Conventional Soybeans, Furrow | L29: Table 23. Machinery Capital Recovery and Operating Costs, Conventional Soybeans, Furrow
F30: 28 | G30: Table 30. 2021 Wheat Enterprise Budget | H30: Wheat | I30: pounds | J30: pounds | K30: Table 30. Details of Chemicals Applied, Wheat | L30: Table 30. Machinery Capital Recovery and Operating Costs, Wheat
F31: 29 | G31: Table 27. 2021 Peanut Enterprise Budget, Furrow Irrigation | H31: Peanuts, Furrow | I31: pounds | J31: pounds | K31: Table 27. Details of Chemicals Applied, Peanuts, Furrow | L31: Table 27. Machinery Capital Recovery and Operating Costs, Peanuts, Furrow
F32: 30 | G32: Table 28. 2021 Peanut Enterprise Budget, Center Pivot Irrigation | H32: Peanuts, Pivot | I32: pounds | J32: pounds | K32: Table 28. Details of Chemicals Applied, Peanuts, Pivot | L32: Table 28. Machinery Capital Recovery and Operating Costs, Peanuts, Pivot
F33: 31 | G33: Table 29. 2021 Peanut Enterprise Budget, No Irrigation | H33: Peanuts, No Irrigation | I33: pounds | J33: pounds | K33: Table 29. Details of Chemicals Applied, Peanuts, No Irrigation | L33: Table 29. Machinery Capital Recovery and Operating Costs, Peanuts, No Irrigation
F34: 32 | G34: Table 4. 2021 Corn Enterprise Budget, Conventional, Furrow Irrigation | H34: Corn, Conventional, Furrow | I34: thousand | J34: thousand | K34: Table 4. Details of Chemicals Applied, Convenional Corn, Furrow | L34: Table 4. Machine Capital Recovery and Operating Costs, Convenional Corn, Furrow
F35: 33 | G35: Table 5. 2021 Corn Enterprise Budget, Conventional, Center Pivot Irrigation | H35: Corn, Conventional, Pivot | I35: thousand | J35: thousand | K35: Table 5. Details of Chemicals Applied, Conventional Corn, Pivot | L35: Table 5. Machine Capital Recovery and Operating Costs, Conventional Corn, Pivot
F36: 34 | G36: Table 6. 2021 Corn Enterprise Budget, Conventional, No Irrigation | H36: Corn, Conventional, No Irrigation | I36: thousand | J36: thousand | K36: Table 6. Details of Chemicals Applied, Conventional Corn, No Irrigation | L36: Table 6. Machine Capital Recovery and Operating Costs, Conventional Corn, No Irrigation
F37: 35 | G37: Table 24. 2021 Soybean Enterprise Budget, Conventional, Center Pivot Irrigation | H37: Soybeans, Conventional, Pivot | I37: thousand | J37: thousand | K37: Table 24. Details of Chemicals Applied, Conventional Soybeans, Pivot | L37: Table 24. Machine Capital Recovery and Operating Costs, Conventional Soybeans, Pivot
F38: 36 | G38: Table 25. 2021 Soybean Enterprise Budget, Conventional, No Irrigation | H38: Soybeans, Conventional, No Irrigation | I38: thousand | J38: thousand | K38: Table 25. Details of Chemicals Applied, Conventional Soybeans, No Irrigation | L38: Table 25. Machine Capital Recovery and Operating Costs, Conventional Soybeans, No Irrigation
F39: 37 | G39: Table 26. 2021 Soybean Enterprise Budget, Conventional, Flood Irrigation | H39: Soybeans, Conventional, Flood Irrigation | I39: thousand | J39: thousand | K39: Table 26. Details of Chemicals Applied, Conventional Soybeans, Flood Irrigaion | L39: Table 26. Machine Capital Recovery and Operating Costs, Conventional Soybeans, Flood Irrigaion
F40: 38 | G40: Table 38. 2021 Cotton Enterprise Budget, Conventional, Center Pivot Irrigation | H40: Conventional Cotton, Pivot | I40: thousand | J40: thousand | K40: Table 38. Details of Chemicals Applied, Conventional Cotton, Pivot | L40: Table 38. Machine Capital Recovery and Operating Costs, Conventional Cotton, Pivot
F41: 39 | G41: Table 39. 2021 Cotton Enterprise Budget, Conventional, No Irrigation | H41: Conventional Cotton, No Irrigation | I41: thousand | J41: thousand | K41: Table 39. Details of Chemicals Applied, Conventional Cotton, No Irrigation | L41: Table 39. Machine Capital Recovery and Operating Costs, Conventional Cotton, No Irrigation
F42: 40 | H42: Row Rice, Conventional Seed | I42: pounds | J42: pounds | K42: Table RR1. Details of Chemicals Applied, Row Rice, Conventional Seed | L42: Table RR1. Machine Capital Recovery and Operating Costs, Row Rice, Conventional Seed
F43: 41 | H43: Row Rice, Clearfield Seed | I43: pounds | J43: pounds | K43: Table RR2. Details of Chemicals Applied, Row Rice, Clearfield Seed | L43: Table RR2. Machine Capital Recovery and Operating Costs, Row Rice, Clearfield Seed
F44: 42 | H44: Row Rice, Hybrid Seed | I44: pounds | J44: pounds | K44: Table RR3. Details of Chemicals Applied, Row Rice, Hybrid Seed | L44: Table RR3. Machine Capital Recovery and Operating Costs, Row Rice, Hybrid Seed
F45: 43 | H45: Row Rice, Clearfield Hybrid Seed | I45: pounds | J45: pounds | K45: Table RR4. Details of Chemicals Applied, Row Rice, Clearfield Hybrid Seed | L45: Table RR4. Machine Capital Recovery and Operating Costs, Row Rice, Clearfield Hybrid Seed
F46: 44 | G46: Table 40. Other1 | H46: Other1
F47: 45 | G47: Table 41. Other2 | H47: Other2
F48: 46 | G48: Table 42. Other3 | H48: Other3
F49: 47 | G49: Table 43. Other4 | H49: Other4
F50: 48 | G50: Table 44. Other5 | H50: Other5
F51: 49 | G51: Table 45. Other6 | H51: Other6
F52: 50 | G52: Table 46. Other7 | H52: Other7

Sheet A3_Production_Look_Up (hidden)
B1: Budget No. | D1: 1 | E1: =D1+1 -> 2 | F1: =E1+1 -> 3 | G1: 4 | H1: 5 | I1: 6 | J1: 7 | K1: 8 | L1: 9 | M1: 10 | N1: 11 | O1: 12 | P1: 13 | Q1: 14 | R1: 15 | S1: 16 | T1: 17 | U1: 18 | V1: 19 | W1: 20 | X1: 21 | Y1: 22 | Z1: 23 | AA1: 24 | AB1: 25 | AC1: 26 | AD1: 27 | AE1: 28 | AF1: 29 | AG1: 30 | AH1: 31 | AI1: 32 | AJ1: 33 | AK1: 34 | AL1: 35 | AM1: 36 | AN1: 37 | AO1: 38 | AP1: 39 | AQ1: =AP1+1 -> 40 | AR1: 41 | AS1: 42 | AT1: 43 | AU1: 44 | AV1: 45 | AW1: 46 | AX1: 47 | AY1: 48 | AZ1: 49 | BA1: 50 | BC1: 1 | BD1: =BC1+1 -> 2 | BE1: =BD1+1 -> 3 | BF1: =BE1+1 -> 4 | BG1: =BF1+1 -> 5 | BH1: =BG1+1 -> 6 | BI1: =BH1+1 -> 7 | BJ1: =BI1+1 -> 8 | BK1: =BJ1+1 -> 9 | BL1: =BK1+1 -> 10 | BM1: =BL1+1 -> 11 | BN1: =BM1+1 -> 12 | BO1: =BN1+1 -> 13 | BP1: =BO1+1 -> 14 | BQ1: =BP1+1 -> 15 | BR1: =BQ1+1 -> 16 | BS1: =BR1+1 -> 17 | BT1: =BS1+1 -> 18 | BU1: =BT1+1 -> 19 | BV1: =BU1+1 -> 20 | BW1: =BV1+1 -> 21 | BX1: =BW1+1 -> 22 | BY1: =BX1+1 -> 23 | BZ1: =BY1+1 -> 24 | CA1: =BZ1+1 -> 25 | CB1: =CA1+1 -> 26 | CC1: =CB1+1 -> 27 | CD1: =CC1+1 -> 28 | CE1: =CD1+1 -> 29 | CF1: =CE1+1 -> 30 | CG1: =CF1+1 -> 31 | CH1: =CG1+1 -> 32 | CI1: =CH1+1 -> 33 | CJ1: =CI1+1 -> 34 | CK1: =CJ1+1 -> 35 | CL1: =CK1+1 -> 36 | CM1: =CL1+1 -> 37 | CN1: =CM1+1 -> 38 | CO1: =CN1+1 -> 39 | CP1: =CO1+1 -> 40 | CQ1: =CP1+1 -> 41 | CR1: =CQ1+1 -> 42 | CS1: =CR1+1 -> 43 | CT1: =CS1+1 -> 44 | CU1: =CT1+1 -> 45 | CV1: =CU1+1 -> 46 | CW1: =CV1+1 -> 47 | CX1: =CW1+1 -> 48 | CY1: =CX1+1 -> 49 | CZ1: =CY1+1 -> 50
A2: Indicator | B2: =IF(OR(SUM(D2:BA2)<1,SUM(D2:BA2)>1),"Error",1) -> 1 | D2: =IF(A2_Budget_Look_Up!$C$4=D121,1,0) -> 0 | E2: =IF(A2_Budget_Look_Up!$C$4=E121,1,0) -> 0 | F2: =IF(A2_Budget_Look_Up!$C$4=F121,1,0) -> 0 | G2: =IF(A2_Budget_Look_Up!$C$4=G121,1,0) -> 0 | H2: =IF(A2_Budget_Look_Up!$C$4=H121,1,0) -> 0 | I2: =IF(A2_Budget_Look_Up!$C$4=I121,1,0) -> 0 | J2: =IF(A2_Budget_Look_Up!$C$4=J121,1,0) -> 0 | K2: =IF(A2_Budget_Look_Up!$C$4=K121,1,0) -> 0 | L2: =IF(A2_Budget_Look_Up!$C$4=L121,1,0) -> 0 | M2: =IF(A2_Budget_Look_Up!$C$4=M121,1,0) -> 0 | N2: =IF(A2_Budget_Look_Up!$C$4=N121,1,0) -> 0 | O2: =IF(A2_Budget_Look_Up!$C$4=O121,1,0) -> 0 | P2: =IF(A2_Budget_Look_Up!$C$4=P121,1,0) -> 0 | Q2: =IF(A2_Budget_Look_Up!$C$4=Q121,1,0) -> 0 | R2: =IF(A2_Budget_Look_Up!$C$4=R121,1,0) -> 0 | S2: =IF(A2_Budget_Look_Up!$C$4=S121,1,0) -> 0 | T2: =IF(A2_Budget_Look_Up!$C$4=T121,1,0) -> 0 | U2: =IF(A2_Budget_Look_Up!$C$4=U121,1,0) -> 0 | V2: =IF(A2_Budget_Look_Up!$C$4=V121,1,0) -> 0 | W2: =IF(A2_Budget_Look_Up!$C$4=W121,1,0) -> 0 | X2: =IF(A2_Budget_Look_Up!$C$4=X121,1,0) -> 0 | Y2: =IF(A2_Budget_Look_Up!$C$4=Y121,1,0) -> 0 | Z2: =IF(A2_Budget_Look_Up!$C$4=Z121,1,0) -> 0 | AA2: =IF(A2_Budget_Look_Up!$C$4=AA121,1,0) -> 0 | AB2: =IF(A2_Budget_Look_Up!$C$4=AB121,1,0) -> 0 | AC2: =IF(A2_Budget_Look_Up!$C$4=AC121,1,0) -> 0 | AD2: =IF(A2_Budget_Look_Up!$C$4=AD121,1,0) -> 0 | AE2: =IF(A2_Budget_Look_Up!$C$4=AE121,1,0) -> 0 | AF2: =IF(A2_Budget_Look_Up!$C$4=AF121,1,0) -> 0 | AG2: =IF(A2_Budget_Look_Up!$C$4=AG121,1,0) -> 0 | AH2: =IF(A2_Budget_Look_Up!$C$4=AH121,1,0) -> 0 | AI2: =IF(A2_Budget_Look_Up!$C$4=AI121,1,0) -> 0 | AJ2: =IF(A2_Budget_Look_Up!$C$4=AJ121,1,0) -> 0 | AK2: =IF(A2_Budget_Look_Up!$C$4=AK121,1,0) -> 0 | AL2: =IF(A2_Budget_Look_Up!$C$4=AL121,1,0) -> 1 | AM2: =IF(A2_Budget_Look_Up!$C$4=AM121,1,0) -> 0 | AN2: =IF(A2_Budget_Look_Up!$C$4=AN121,1,0) -> 0 | AO2: =IF(A2_Budget_Look_Up!$C$4=AO121,1,0) -> 0 | AP2: =IF(A2_Budget_Look_Up!$C$4=AP121,1,0) -> 0 | AQ2: =IF(A2_Budget_Look_Up!$C$4=AQ121,1,0) -> 0 | AR2: =IF(A2_Budget_Look_Up!$C$4=AR121,1,0) -> 0 | AS2: =IF(A2_Budget_Look_Up!$C$4=AS121,1,0) -> 0 | AT2: =IF(A2_Budget_Look_Up!$C$4=AT121,1,0) -> 0 | AU2: =IF(A2_Budget_Look_Up!$C$4=AU121,1,0) -> 0 | AV2: =IF(A2_Budget_Look_Up!$C$4=AV121,1,0) -> 0 | AW2: =IF(A2_Budget_Look_Up!$C$4=AW121,1,0) -> 0 | AX2: =IF(A2_Budget_Look_Up!$C$4=AX121,1,0) -> 0 | AY2: =IF(A2_Budget_Look_Up!$C$4=AY121,1,0) -> 0 | AZ2: =IF(A2_Budget_Look_Up!$C$4=AZ121,1,0) -> 0 | BA2: =IF(A2_Budget_Look_Up!$C$4=BA121,1,0) -> 0 | BC2: =IF(D2>0,A2_Budget_Look_Up!$C$4," ") ->  | BD2: =IF(E2>0,A2_Budget_Look_Up!$C$4," ") ->  | BE2: =IF(F2>0,A2_Budget_Look_Up!$C$4," ") ->  | BF2: =IF(G2>0,A2_Budget_Look_Up!$C$4," ") ->  | BG2: =IF(H2>0,A2_Budget_Look_Up!$C$4," ") ->  | BH2: =IF(I2>0,A2_Budget_Look_Up!$C$4," ") ->  | BI2: =IF(J2>0,A2_Budget_Look_Up!$C$4," ") ->  | BJ2: =IF(K2>0,A2_Budget_Look_Up!$C$4," ") ->  | BK2: =IF(L2>0,A2_Budget_Look_Up!$C$4," ") ->  | BL2: =IF(M2>0,A2_Budget_Look_Up!$C$4," ") ->  | BM2: =IF(N2>0,A2_Budget_Look_Up!$C$4," ") ->  | BN2: =IF(O2>0,A2_Budget_Look_Up!$C$4," ") ->  | BO2: =IF(P2>0,A2_Budget_Look_Up!$C$4," ") ->  | BP2: =IF(Q2>0,A2_Budget_Look_Up!$C$4," ") ->  | BQ2: =IF(R2>0,A2_Budget_Look_Up!$C$4," ") ->  | BR2: =IF(S2>0,A2_Budget_Look_Up!$C$4," ") ->  | BS2: =IF(T2>0,A2_Budget_Look_Up!$C$4," ") ->  | BT2: =IF(U2>0,A2_Budget_Look_Up!$C$4," ") ->  | BU2: =IF(V2>0,A2_Budget_Look_Up!$C$4," ") ->  | BV2: =IF(W2>0,A2_Budget_Look_Up!$C$4," ") ->  | BW2: =IF(X2>0,A2_Budget_Look_Up!$C$4," ") ->  | BX2: =IF(Y2>0,A2_Budget_Look_Up!$C$4," ") ->  | BY2: =IF(Z2>0,A2_Budget_Look_Up!$C$4," ") ->  | BZ2: =IF(AA2>0,A2_Budget_Look_Up!$C$4," ") ->  | CA2: =IF(AB2>0,A2_Budget_Look_Up!$C$4," ") ->  | CB2: =IF(AC2>0,A2_Budget_Look_Up!$C$4," ") ->  | CC2: =IF(AD2>0,A2_Budget_Look_Up!$C$4," ") ->  | CD2: =IF(AE2>0,A2_Budget_Look_Up!$C$4," ") ->  | CE2: =IF(AF2>0,A2_Budget_Look_Up!$C$4," ") ->  | CF2: =IF(AG2>0,A2_Budget_Look_Up!$C$4," ") ->  | CG2: =IF(AH2>0,A2_Budget_Look_Up!$C$4," ") ->  | CH2: =IF(AI2>0,A2_Budget_Look_Up!$C$4," ") ->  | CI2: =IF(AJ2>0,A2_Budget_Look_Up!$C$4," ") ->  | CJ2: =IF(AK2>0,A2_Budget_Look_Up!$C$4," ") ->  | CK2: =IF(AL2>0,A2_Budget_Look_Up!$C$4," ") -> 35 | CL2: =IF(AM2>0,A2_Budget_Look_Up!$C$4," ") ->  | CM2: =IF(AN2>0,A2_Budget_Look_Up!$C$4," ") ->  | CN2: =IF(AO2>0,A2_Budget_Look_Up!$C$4," ") ->  | CO2: =IF(AP2>0,A2_Budget_Look_Up!$C$4," ") ->  | CP2: =IF(AQ2>0,A2_Budget_Look_Up!$C$4," ") ->  | CQ2: =IF(AR2>0,A2_Budget_Look_Up!$C$4," ") ->  | CR2: =IF(AS2>0,A2_Budget_Look_Up!$C$4," ") ->  | CS2: =IF(AT2>0,A2_Budget_Look_Up!$C$4," ") ->  | CT2: =IF(AU2>0,A2_Budget_Look_Up!$C$4," ") ->  | CU2: =IF(AV2>0,A2_Budget_Look_Up!$C$4," ") ->  | CV2: =IF(AW2>0,A2_Budget_Look_Up!$C$4," ") ->  | CW2: =IF(AX2>0,A2_Budget_Look_Up!$C$4," ") ->  | CX2: =IF(AY2>0,A2_Budget_Look_Up!$C$4," ") ->  | CY2: =IF(AZ2>0,A2_Budget_Look_Up!$C$4," ") ->  | CZ2: =IF(BA2>0,A2_Budget_Look_Up!$C$4," ") -> 
B3: Applied | D3: Corn, Furrow | E3: Corn, Pivot | F3: Corn, NonIrrigated | G3: Cotton B2XF, Furrow | H3: Cotton B2XF, Pivot | I3: Cotton B2XF, NonIrrigated | J3: Cotton GLT/WRF, Furrow | K3: Cotton GLT/WRF, Pivot | L3: Cotton GLT/WRF, NonIrrigated | M3: Convention. Cotton, Furrow | N3: Grain Sorghum, Furrow | O3: Grain Sorghum, Pivot | P3: Grain Sorghum, NonIrrigated | Q3: Rice, Convent. | R3: Rice, Clearfield | S3: Rice, Hybrid | T3: Rice, Clearfield Hybrid | U3: Rice, Water Seeded | V3: Soybeans RR, Furrow | W3: Soybeans RR, Pivot | X3: Soybeans RR, Nonirrigated | Y3: Soybeans RR, Flood | Z3: Soybeans LL, Furrow | AA3: Soybeans LL, Pivot | AB3: Soybeans LL, Nonirrigated | AC3: Soybeans LL, Flood | AD3: Convention. Soybeans, Furrow | AE3: Wheat | AF3: Peanuts, Furrow | AG3: Peanuts, Pivot | AH3: Peanuts, Nonirrigated | AI3: Convention. Corn, Furrow | AJ3: Convention. Corn, Pivot | AK3: Convention. Corn, NonIrrigated | AL3: Convention. Soybeans, Pivot | AM3: Convention. Soybeans, Nonirrigated | AN3: Convention. Soybeans, Flood | AO3: Convention. Cotton, Pivot | AP3: Convention. Cotton, NonIrrigated | AQ3: Row Rice, Convent. | AR3: Row Rice, Clearfield | AS3: Row Rice, Hybrid | AT3: Row Rice, Clearfield Hybrid | AU3: Other 1 | AV3: Other 2 | AW3: Other 3 | AX3: Other 4 | AY3: Other 5 | AZ3: Other 6 | BA3: Other 7 | BC3: =D3 -> Corn, Furrow | BD3: Corn, Pivot | BE3: Corn, NonIrrigated | BF3: Cotton B2XF, Furrow | BG3: Cotton B2XF, Pivot | BH3: Cotton B2XF, NonIrrigated | BI3: Cotton GLT/WRF, Furrow | BJ3: Cotton GLT/WRF, Pivot | BK3: Cotton GLT/WRF, NonIrrigated | BL3: Convention. Cotton, Furrow | BM3: =N3 -> Grain Sorghum, Furrow | BN3: Grain Sorghum, Pivot | BO3: Grain Sorghum, NonIrrigated | BP3: Rice, Convent. | BQ3: Rice, Clearfield | BR3: Rice, Hybrid | BS3: Rice, Clearfield Hybrid | BT3: Rice, Water Seeded | BU3: Soybeans RR, Furrow | BV3: Soybeans RR, Pivot | BW3: Soybeans RR, Nonirrigated | BX3: Soybeans RR, Flood | BY3: Soybeans LL, Furrow | BZ3: Soybeans LL, Pivot | CA3: Soybeans LL, Nonirrigated | CB3: Soybeans LL, Flood | CC3: Convention. Soybeans, Furrow | CD3: Wheat | CE3: Peanuts, Furrow | CF3: Peanuts, Pivot | CG3: Peanuts, Nonirrigated | CH3: Convention. Corn, Furrow | CI3: Convention. Corn, Pivot | CJ3: Convention. Corn, NonIrrigated | CK3: Convention. Soybeans, Pivot | CL3: Convention. Soybeans, Nonirrigated | CM3: Convention. Soybeans, Flood | CN3: Convention. Cotton, Pivot | CO3: Convention. Cotton, NonIrrigated | CP3: =AQ3 -> Row Rice, Convent. | CQ3: Row Rice, Clearfield | CR3: Row Rice, Hybrid | CS3: Row Rice, Clearfield Hybrid | CT3: Other 1 | CU3: Other 2 | CV3: Other 3 | CW3: Other 4 | CX3: Other 5 | CY3: Other 6 | CZ3: Other 7
A4: Yield | B4: =IF(B$2=1,SUM(BC4:CZ4),"Error") -> 60 | D4: 215 | E4: 215 | F4: 125 | G4: 1200 | H4: 1200 | I4: 800 | J4: 1200 | K4: 1200 | L4: 800 | M4: 1200 | N4: 105 | O4: 105 | P4: 65 | Q4: 170 | R4: 170 | S4: 190 | T4: 190 | U4: 170 | V4: 60 | W4: 60 | X4: 34 | Y4: 60 | Z4: 60 | AA4: 60 | AB4: 34 | AC4: 60 | AD4: 60 | AE4: 70 | AF4: 2.25 | AG4: 2.25 | AH4: 1.5 | AI4: 215 | AJ4: 215 | AK4: 125 | AL4: 60 | AM4: 34 | AN4: 60 | AO4: 1200 | AP4: 800 | AQ4: 170 | AR4: 170 | AS4: 190 | AT4: 190 | BC4: =IF(D$2=1,D4,0) -> 0 | BD4: 0 | BE4: 0 | BF4: 0 | BG4: 0 | BH4: 0 | BI4: 0 | BJ4: 0 | BK4: 0 | BL4: 0 | BM4: =IF(N$2=1,N4,0) -> 0 | BN4: 0 | BO4: 0 | BP4: 0 | BQ4: 0 | BR4: 0 | BS4: 0 | BT4: 0 | BU4: 0 | BV4: 0 | BW4: =IF(X$2=1,X4,0) -> 0 | BX4: 0 | BY4: 0 | BZ4: 0 | CA4: 0 | CB4: 0 | CC4: 0 | CD4: 0 | CE4: 0 | CF4: 0 | CG4: =IF(AH$2=1,AH4,0) -> 0 | CH4: 0 | CI4: 0 | CJ4: 0 | CK4: 60 | CL4: 0 | CM4: 0 | CN4: 0 | CO4: 0 | CP4: =IF(AQ$2=1,AQ4,0) -> 0 | CQ4: =IF(AR$2=1,AR4,0) -> 0 | CR4: =IF(AS$2=1,AS4,0) -> 0 | CS4: =IF(AT$2=1,AT4,0) -> 0 | CT4: =IF(AU$2=1,AU4,0) -> 0 | CU4: =IF(AV$2=1,AV4,0) -> 0 | CV4: =IF(AW$2=1,AW4,0) -> 0 | CW4: =IF(AX$2=1,AX4,0) -> 0 | CX4: =IF(AY$2=1,AY4,0) -> 0 | CY4: =IF(AZ$2=1,AZ4,0) -> 0 | CZ4: =IF(BA$2=1,BA4,0) -> 0
A5: Price | B5: =IF(B$2=1,SUM(BC5:CZ5),"Error") -> 10 | D5: 3.8 | E5: 3.8 | F5: 3.8 | G5: 0.6 | H5: 0.6 | I5: 0.6 | J5: 0.6 | K5: 0.6 | L5: 0.6 | M5: 0.6 | N5: 3.82 | O5: 3.82 | P5: 3.82 | Q5: 5.7 | R5: 5.7 | S5: 5.7 | T5: 5.7 | U5: 5.7 | V5: 10 | W5: 10 | X5: 10 | Y5: 10 | Z5: 10 | AA5: 10 | AB5: 10 | AC5: 10 | AD5: 10 | AE5: 5.5 | AF5: 420 | AG5: 420 | AH5: 420 | AI5: 3.8 | AJ5: 3.8 | AK5: 3.8 | AL5: 10 | AM5: 10 | AN5: 10 | AO5: 0.6 | AP5: 0.6 | AQ5: 0.43 | AR5: 1.03 | AS5: 7.93 | AT5: 6.67 | BC5: 0 | BD5: 0 | BE5: 0 | BF5: 0 | BG5: 0 | BH5: 0 | BI5: 0 | BJ5: 0 | BK5: 0 | BL5: 0 | BM5: 0 | BN5: 0 | BO5: 0 | BP5: 0 | BQ5: 0 | BR5: 0 | BS5: 0 | BT5: 0 | BU5: 0 | BV5: 0 | BW5: 0 | BX5: 0 | BY5: 0 | BZ5: 0 | CA5: 0 | CB5: 0 | CC5: 0 | CD5: 0 | CE5: 0 | CF5: 0 | CG5: 0 | CH5: 0 | CI5: 0 | CJ5: 0 | CK5: 10 | CL5: 0 | CM5: 0 | CN5: 0 | CO5: 0 | CP5: 0 | CQ5: 0 | CR5: 0 | CS5: 0 | CT5: 0 | CU5: 0 | CV5: 0 | CW5: 0 | CX5: 0 | CY5: 0 | CZ5: 0
A6: Cottonseed Price | B6: =IF(B$2=1,SUM(BC6:CZ6),"Error") -> 0 | D6: 0 | E6: 0 | F6: 0 | G6: 0 | H6: 0 | I6: 0 | J6: 0 | K6: 0 | L6: 0 | M6: 0 | N6: 0 | O6: 0 | P6: 0 | Q6: 0 | R6: 0 | S6: 0 | T6: 0 | U6: 0 | V6: 0 | W6: 0 | X6: 0 | Y6: 0 | Z6: 0 | AA6: 0 | AB6: 0 | AC6: 0 | AD6: 0 | AE6: 0 | AF6: 0 | AG6: 0 | AH6: 0 | AI6: 0 | AJ6: 0 | AK6: 0 | AL6: 0 | AM6: 0 | AN6: 0 | AO6: 0 | AP6: 0 | AQ6: 0 | AR6: 0 | AS6: 0 | AT6: 0 | BC6: 0 | BD6: 0 | BE6: 0 | BF6: 0 | BG6: 0 | BH6: 0 | BI6: 0 | BJ6: 0 | BK6: 0 | BL6: 0 | BM6: 0 | BN6: 0 | BO6: 0 | BP6: 0 | BQ6: 0 | BR6: 0 | BS6: 0 | BT6: 0 | BU6: 0 | BV6: 0 | BW6: 0 | BX6: 0 | BY6: 0 | BZ6: 0 | CA6: 0 | CB6: 0 | CC6: 0 | CD6: 0 | CE6: 0 | CF6: 0 | CG6: 0 | CH6: 0 | CI6: 0 | CJ6: 0 | CK6: 0 | CL6: 0 | CM6: 0 | CN6: 0 | CO6: 0 | CP6: 0 | CQ6: 0 | CR6: 0 | CS6: 0 | CT6: 0 | CU6: 0 | CV6: 0 | CW6: 0 | CX6: 0 | CY6: 0 | CZ6: 0
A8: Fertilizers
A9: Urea | B9: =IF(B$2=1,SUM(BC9:CZ9),"Error") -> 0 | D9: 435 | E9: 435 | F9: 300 | G9: 175 | H9: 175 | I9: 150 | J9: 175 | K9: 175 | L9: 150 | M9: 175 | N9: 350 | O9: 350 | P9: 240 | Q9: 330 | R9: 330 | S9: 330 | T9: 330 | U9: 330 | V9: 0 | W9: 0 | X9: 0 | Y9: 0 | Z9: 0 | AA9: 0 | AB9: 0 | AC9: 0 | AD9: 0 | AE9: =140+100 -> 240 | AF9: 0 | AG9: 0 | AH9: 0 | AI9: 435 | AJ9: 435 | AK9: 300 | AL9: 0 | AM9: 0 | AN9: 0 | AO9: 175 | AQ9: =230+100+100 -> 430 | AR9: =230+100+100 -> 430 | AS9: =260+100+70 -> 430 | AT9: =260+100+70 -> 430 | BC9: =IF(D$2=1,D9,0) -> 0 | BD9: =IF(E$2=1,E9,0) -> 0 | BE9: =IF(F$2=1,F9,0) -> 0 | BF9: =IF(G$2=1,G9,0) -> 0 | BG9: =IF(H$2=1,H9,0) -> 0 | BH9: =IF(I$2=1,I9,0) -> 0 | BI9: =IF(J$2=1,J9,0) -> 0 | BJ9: =IF(K$2=1,K9,0) -> 0 | BK9: =IF(L$2=1,L9,0) -> 0 | BL9: =IF(M$2=1,M9,0) -> 0 | BM9: =IF(N$2=1,N9,0) -> 0 | BN9: =IF(O$2=1,O9,0) -> 0 | BO9: =IF(P$2=1,P9,0) -> 0 | BP9: =IF(Q$2=1,Q9,0) -> 0 | BQ9: =IF(R$2=1,R9,0) -> 0 | BR9: =IF(S$2=1,S9,0) -> 0 | BS9: =IF(T$2=1,T9,0) -> 0 | BT9: =IF(U$2=1,U9,0) -> 0 | BU9: =IF(V$2=1,V9,0) -> 0 | BV9: =IF(W$2=1,W9,0) -> 0 | BW9: =IF(X$2=1,X9,0) -> 0 | BX9: =IF(Y$2=1,Y9,0) -> 0 | BY9: =IF(Z$2=1,Z9,0) -> 0 | BZ9: =IF(AA$2=1,AA9,0) -> 0 | CA9: =IF(AB$2=1,AB9,0) -> 0 | CB9: =IF(AC$2=1,AC9,0) -> 0 | CC9: =IF(AD$2=1,AD9,0) -> 0 | CD9: =IF(AE$2=1,AE9,0) -> 0 | CE9: =IF(AF$2=1,AF9,0) -> 0 | CF9: =IF(AG$2=1,AG9,0) -> 0 | CG9: =IF(AH$2=1,AH9,0) -> 0 | CH9: =IF(AI$2=1,AI9,0) -> 0 | CI9: =IF(AJ$2=1,AJ9,0) -> 0 | CJ9: =IF(AK$2=1,AK9,0) -> 0 | CK9: =IF(AL$2=1,AL9,0) -> 0 | CL9: =IF(AM$2=1,AM9,0) -> 0 | CM9: =IF(AN$2=1,AN9,0) -> 0 | CN9: 0 | CO9: 0 | CP9: =IF(AQ$2=1,AQ9,0) -> 0 | CQ9: =IF(AR$2=1,AR9,0) -> 0 | CR9: =IF(AS$2=1,AS9,0) -> 0 | CS9: =IF(AT$2=1,AT9,0) -> 0 | CT9: =IF(AU$2=1,AU9,0) -> 0 | CU9: =IF(AV$2=1,AV9,0) -> 0 | CV9: =IF(AW$2=1,AW9,0) -> 0 | CW9: =IF(AX$2=1,AX9,0) -> 0 | CX9: =IF(AY$2=1,AY9,0) -> 0 | CY9: =IF(AZ$2=1,AZ9,0) -> 0 | CZ9: =IF(BA$2=1,BA9,0) -> 0
A10: 0.32 | B10: 0 | D10: 0 | E10: 0 | F10: 0 | G10: 0 | H10: 0 | I10: 0 | J10: 0 | K10: 0 | L10: 0 | M10: 0 | N10: 0 | O10: 0 | P10: 0 | Q10: 0 | R10: 0 | S10: 0 | T10: 0 | U10: 0 | V10: 0 | W10: 0 | X10: 0 | Y10: 0 | Z10: 0 | AA10: 0 | AB10: 0 | AC10: 0 | AD10: 0 | AE10: 0 | AF10: 0 | AG10: 0 | AH10: 0 | AI10: 0 | AJ10: 0 | AK10: 0 | AL10: 0 | AM10: 0 | AN10: 0 | AO10: 0 | AQ10: 0 | AR10: 0 | AS10: 0 | AT10: 0 | BC10: 0 | BD10: 0 | BE10: 0 | BF10: 0 | BG10: 0 | BH10: 0 | BI10: 0 | BJ10: 0 | BK10: 0 | BL10: 0 | BM10: 0 | BN10: 0 | BO10: 0 | BP10: 0 | BQ10: 0 | BR10: 0 | BS10: 0 | BT10: 0 | BU10: 0 | BV10: 0 | BW10: 0 | BX10: 0 | BY10: 0 | BZ10: 0 | CA10: 0 | CB10: 0 | CC10: 0 | CD10: 0 | CE10: 0 | CF10: 0 | CG10: 0 | CH10: 0 | CI10: 0 | CJ10: 0 | CK10: 0 | CL10: 0 | CM10: 0 | CN10: 0 | CO10: 0 | CP10: 0 | CQ10: 0 | CR10: 0 | CS10: 0 | CT10: 0 | CU10: 0 | CV10: 0 | CW10: 0 | CX10: 0 | CY10: 0 | CZ10: 0
A11: 0.3 | B11: 0 | D11: 0 | E11: 0 | F11: 0 | G11: 0 | H11: 0 | I11: 0 | J11: 0 | K11: 0 | L11: 0 | M11: 0 | N11: 0 | O11: 0 | P11: 0 | Q11: 0 | R11: 0 | S11: 0 | T11: 0 | U11: 0 | V11: 0 | W11: 0 | X11: 0 | Y11: 0 | Z11: 0 | AA11: 0 | AB11: 0 | AC11: 0 | AD11: 0 | AE11: 0 | AF11: 0 | AG11: 0 | AH11: 0 | AI11: 0 | AJ11: 0 | AK11: 0 | AL11: 0 | AM11: 0 | AN11: 0 | AO11: 0 | AQ11: 0 | AR11: 0 | AS11: 0 | AT11: 0 | BC11: 0 | BD11: 0 | BE11: 0 | BF11: 0 | BG11: 0 | BH11: 0 | BI11: 0 | BJ11: 0 | BK11: 0 | BL11: 0 | BM11: 0 | BN11: 0 | BO11: 0 | BP11: 0 | BQ11: 0 | BR11: 0 | BS11: 0 | BT11: 0 | BU11: 0 | BV11: 0 | BW11: 0 | BX11: 0 | BY11: 0 | BZ11: 0 | CA11: 0 | CB11: 0 | CC11: 0 | CD11: 0 | CE11: 0 | CF11: 0 | CG11: 0 | CH11: 0 | CI11: 0 | CJ11: 0 | CK11: 0 | CL11: 0 | CM11: 0 | CN11: 0 | CO11: 0 | CP11: 0 | CQ11: 0 | CR11: 0 | CS11: 0 | CT11: 0 | CU11: 0 | CV11: 0 | CW11: 0 | CX11: 0 | CY11: 0 | CZ11: 0
A12: 0.28 | B12: 0 | D12: 0 | E12: 0 | F12: 0 | G12: 0 | H12: 0 | I12: 0 | J12: 0 | K12: 0 | L12: 0 | M12: 0 | N12: 0 | O12: 0 | P12: 0 | Q12: 0 | R12: 0 | S12: 0 | T12: 0 | U12: 0 | V12: 0 | W12: 0 | X12: 0 | Y12: 0 | Z12: 0 | AA12: 0 | AB12: 0 | AC12: 0 | AD12: 0 | AE12: 0 | AF12: 0 | AG12: 0 | AH12: 0 | AI12: 0 | AJ12: 0 | AK12: 0 | AL12: 0 | AM12: 0 | AN12: 0 | AO12: 0 | AQ12: 0 | AR12: 0 | AS12: 0 | AT12: 0 | BC12: 0 | BD12: 0 | BE12: 0 | BF12: 0 | BG12: 0 | BH12: 0 | BI12: 0 | BJ12: 0 | BK12: 0 | BL12: 0 | BM12: 0 | BN12: 0 | BO12: 0 | BP12: 0 | BQ12: 0 | BR12: 0 | BS12: 0 | BT12: 0 | BU12: 0 | BV12: 0 | BW12: 0 | BX12: 0 | BY12: 0 | BZ12: 0 | CA12: 0 | CB12: 0 | CC12: 0 | CD12: 0 | CE12: 0 | CF12: 0 | CG12: 0 | CH12: 0 | CI12: 0 | CJ12: 0 | CK12: 0 | CL12: 0 | CM12: 0 | CN12: 0 | CO12: 0 | CP12: 0 | CQ12: 0 | CR12: 0 | CS12: 0 | CT12: 0 | CU12: 0 | CV12: 0 | CW12: 0 | CX12: 0 | CY12: 0 | CZ12: 0
A13: Other Nitrogen | B13: 0 | D13: 0 | E13: 0 | F13: 0 | G13: 0 | H13: 0 | I13: 0 | J13: 0 | K13: 0 | L13: 0 | M13: 0 | N13: 0 | O13: 0 | P13: 0 | Q13: 0 | R13: 0 | S13: 0 | T13: 0 | U13: 0 | V13: 0 | W13: 0 | X13: 0 | Y13: 0 | Z13: 0 | AA13: 0 | AB13: 0 | AC13: 0 | AD13: 0 | AE13: 0 | AF13: 0 | AG13: 0 | AH13: 0 | AI13: 0 | AJ13: 0 | AK13: 0 | AL13: 0 | AM13: 0 | AN13: 0 | AO13: 0 | AQ13: 0 | AR13: 0 | AS13: 0 | AT13: 0 | BC13: 0 | BD13: 0 | BE13: 0 | BF13: 0 | BG13: 0 | BH13: 0 | BI13: 0 | BJ13: 0 | BK13: 0 | BL13: 0 | BM13: 0 | BN13: 0 | BO13: 0 | BP13: 0 | BQ13: 0 | BR13: 0 | BS13: 0 | BT13: 0 | BU13: 0 | BV13: 0 | BW13: 0 | BX13: 0 | BY13: 0 | BZ13: 0 | CA13: 0 | CB13: 0 | CC13: 0 | CD13: 0 | CE13: 0 | CF13: 0 | CG13: 0 | CH13: 0 | CI13: 0 | CJ13: 0 | CK13: 0 | CL13: 0 | CM13: 0 | CN13: 0 | CO13: 0 | CP13: 0 | CQ13: 0 | CR13: 0 | CS13: 0 | CT13: 0 | CU13: 0 | CV13: 0 | CW13: 0 | CX13: 0 | CY13: 0 | CZ13: 0
A14: =Program_Variables!C7 -> Phosphate (0-46-0) | B14: 90 | D14: 175 | E14: 175 | F14: 150 | G14: 0 | H14: 0 | I14: 0 | J14: 0 | K14: 0 | L14: 0 | M14: 0 | N14: 150 | O14: 150 | P14: 110 | Q14: 87 | R14: 87 | S14: 87 | T14: 87 | U14: 0 | V14: 90 | W14: 90 | X14: 90 | Y14: 90 | Z14: 90 | AA14: 90 | AB14: 90 | AC14: 90 | AD14: 90 | AE14: 110 | AF14: 65 | AG14: 65 | AH14: 65 | AI14: 175 | AJ14: 175 | AK14: 150 | AL14: 90 | AM14: 90 | AN14: 90 | AO14: 0 | AQ14: 40 | AR14: 40 | AS14: 40 | AT14: 40 | BC14: 0 | BD14: 0 | BE14: 0 | BF14: 0 | BG14: 0 | BH14: 0 | BI14: 0 | BJ14: 0 | BK14: 0 | BL14: 0 | BM14: 0 | BN14: 0 | BO14: 0 | BP14: 0 | BQ14: 0 | BR14: 0 | BS14: 0 | BT14: 0 | BU14: 0 | BV14: 0 | BW14: 0 | BX14: 0 | BY14: 0 | BZ14: 0 | CA14: 0 | CB14: 0 | CC14: 0 | CD14: 0 | CE14: 0 | CF14: 0 | CG14: 0 | CH14: 0 | CI14: 0 | CJ14: 0 | CK14: 90 | CL14: 0 | CM14: 0 | CN14: 0 | CO14: 0 | CP14: 0 | CQ14: 0 | CR14: 0 | CS14: 0 | CT14: 0 | CU14: 0 | CV14: 0 | CW14: 0 | CX14: 0 | CY14: 0 | CZ14: 0
A15: =Program_Variables!C8 -> Potash (0-0-60) | B15: 100 | D15: 130 | E15: 130 | F15: 120 | G15: 100 | H15: 100 | I15: 75 | J15: 100 | K15: 100 | L15: 75 | M15: 100 | N15: 120 | O15: 120 | P15: 100 | Q15: 100 | R15: 100 | S15: 100 | T15: 100 | U15: 0 | V15: 100 | W15: 100 | X15: 100 | Y15: 100 | Z15: 100 | AA15: 100 | AB15: 100 | AC15: 100 | AD15: 100 | AE15: 100 | AF15: 85 | AG15: 85 | AH15: 85 | AI15: 130 | AJ15: 130 | AK15: 120 | AL15: 100 | AM15: 100 | AN15: 100 | AO15: 100 | AQ15: 60 | AR15: 60 | AS15: 60 | AT15: 60 | BC15: 0 | BD15: 0 | BE15: 0 | BF15: 0 | BG15: 0 | BH15: 0 | BI15: 0 | BJ15: 0 | BK15: 0 | BL15: 0 | BM15: 0 | BN15: 0 | BO15: 0 | BP15: 0 | BQ15: 0 | BR15: 0 | BS15: 0 | BT15: 0 | BU15: 0 | BV15: 0 | BW15: 0 | BX15: 0 | BY15: 0 | BZ15: 0 | CA15: 0 | CB15: 0 | CC15: 0 | CD15: 0 | CE15: 0 | CF15: 0 | CG15: 0 | CH15: 0 | CI15: 0 | CJ15: 0 | CK15: 100 | CL15: 0 | CM15: 0 | CN15: 0 | CO15: 0 | CP15: 0 | CQ15: 0 | CR15: 0 | CS15: 0 | CT15: 0 | CU15: 0 | CV15: 0 | CW15: 0 | CX15: 0 | CY15: 0 | CZ15: 0
A16: =Program_Variables!C9 -> Ammonium Sulfate (21-0-0-24) | B16: 0 | D16: 100 | E16: 100 | F16: 100 | G16: 50 | H16: 50 | I16: 0 | J16: 50 | K16: 50 | L16: 0 | M16: 50 | N16: 0 | O16: 0 | P16: 0 | Q16: 0 | R16: 0 | S16: 0 | T16: 0 | U16: 0 | V16: 0 | W16: 0 | X16: 0 | Y16: 0 | Z16: 0 | AA16: 0 | AB16: 0 | AC16: 0 | AD16: 0 | AE16: 50 | AF16: 0 | AG16: 0 | AH16: 0 | AI16: 100 | AJ16: 100 | AK16: 100 | AL16: 0 | AM16: 0 | AN16: 0 | AO16: 50 | AQ16: 0 | AR16: 0 | AS16: 0 | AT16: 0 | BC16: 0 | BD16: 0 | BE16: 0 | BF16: 0 | BG16: 0 | BH16: 0 | BI16: 0 | BJ16: 0 | BK16: 0 | BL16: 0 | BM16: 0 | BN16: 0 | BO16: 0 | BP16: 0 | BQ16: 0 | BR16: 0 | BS16: 0 | BT16: 0 | BU16: 0 | BV16: 0 | BW16: 0 | BX16: 0 | BY16: 0 | BZ16: 0 | CA16: 0 | CB16: 0 | CC16: 0 | CD16: 0 | CE16: 0 | CF16: 0 | CG16: 0 | CH16: 0 | CI16: 0 | CJ16: 0 | CK16: 0 | CL16: 0 | CM16: 0 | CN16: 0 | CO16: 0 | CP16: 0 | CQ16: 0 | CR16: 0 | CS16: 0 | CT16: 0 | CU16: 0 | CV16: 0 | CW16: 0 | CX16: 0 | CY16: 0 | CZ16: 0
A17: =Program_Variables!C10 -> Boron 15% | B17: 0 | D17: 29 | E17: 29 | F17: 29 | G17: 1 | H17: 1 | I17: 1 | J17: 1 | K17: 1 | L17: 1 | M17: 1 | N17: 0 | O17: 0 | P17: 0 | Q17: 0 | R17: 0 | S17: 0 | T17: 0 | U17: 0 | V17: 0 | W17: 0 | X17: 0 | Y17: 0 | Z17: 0 | AA17: 0 | AB17: 0 | AC17: 0 | AD17: 0 | AE17: 0 | AF17: 0 | AG17: 0 | AH17: 0 | AI17: 29 | AJ17: 29 | AK17: 29 | AL17: 0 | AM17: 0 | AN17: 0 | AO17: 1 | AQ17: 0 | AR17: 0 | AS17: 0 | AT17: 0 | BC17: 0 | BD17: 0 | BE17: 0 | BF17: 0 | BG17: 0 | BH17: 0 | BI17: 0 | BJ17: 0 | BK17: 0 | BL17: 0 | BM17: 0 | BN17: 0 | BO17: 0 | BP17: 0 | BQ17: 0 | BR17: 0 | BS17: 0 | BT17: 0 | BU17: 0 | BV17: 0 | BW17: 0 | BX17: 0 | BY17: 0 | BZ17: 0 | CA17: 0 | CB17: 0 | CC17: 0 | CD17: 0 | CE17: 0 | CF17: 0 | CG17: 0 | CH17: 0 | CI17: 0 | CJ17: 0 | CK17: 0 | CL17: 0 | CM17: 0 | CN17: 0 | CO17: 0 | CP17: 0 | CQ17: 0 | CR17: 0 | CS17: 0 | CT17: 0 | CU17: 0 | CV17: 0 | CW17: 0 | CX17: 0 | CY17: 0 | CZ17: 0
A18: =Program_Variables!C11 -> Other Nutrients, Including Poultry Litter | B18: 0 | D18: 0 | E18: 0 | F18: 0 | G18: 0 | H18: 0 | I18: 0 | J18: 0 | K18: 0 | L18: 0 | M18: 0 | N18: 0 | O18: 0 | P18: 0 | Q18: 0.46 | R18: 0.46 | S18: 0.52 | T18: 0.52 | U18: 0 | V18: 0 | W18: 0 | X18: 0 | Y18: 0 | Z18: 0 | AA18: 0 | AB18: 0 | AC18: 0 | AD18: 0 | AE18: 0 | AF18: 0 | AG18: 0 | AH18: 0 | AI18: 0 | AJ18: 0 | AK18: 0 | AL18: 0 | AM18: 0 | AN18: 0 | AO18: 0 | AQ18: =0.46+0.2 -> 0.66 | AR18: =0.46+0.2 -> 0.66 | AS18: =0.52+0.2 -> 0.72 | AT18: =0.52+0.2 -> 0.72 | BC18: 0 | BD18: 0 | BE18: 0 | BF18: 0 | BG18: 0 | BH18: 0 | BI18: 0 | BJ18: 0 | BK18: 0 | BL18: 0 | BM18: 0 | BN18: 0 | BO18: 0 | BP18: 0 | BQ18: 0 | BR18: 0 | BS18: 0 | BT18: 0 | BU18: 0 | BV18: 0 | BW18: 0 | BX18: 0 | BY18: 0 | BZ18: 0 | CA18: 0 | CB18: 0 | CC18: 0 | CD18: 0 | CE18: 0 | CF18: 0 | CG18: 0 | CH18: 0 | CI18: 0 | CJ18: 0 | CK18: 0 | CL18: 0 | CM18: 0 | CN18: 0 | CO18: 0 | CP18: 0 | CQ18: 0 | CR18: 0 | CS18: 0 | CT18: 0 | CU18: 0 | CV18: 0 | CW18: 0 | CX18: 0 | CY18: 0 | CZ18: 0
A19: =IF(A2_Budget_Look_Up!B10>0,"Agrotain Price","Other Nutrients Price") -> Other Nutrients Price | B19: 0 | D19: 0 | E19: 0 | F19: 0 | G19: 0 | H19: 0 | I19: 0 | J19: 0 | K19: 0 | L19: 0 | M19: 0 | N19: 0 | O19: 0 | P19: 0 | Q19: =79/4 -> 19.75 | R19: =79/4 -> 19.75 | S19: =79/4 -> 19.75 | T19: =79/4 -> 19.75 | U19: =79/4 -> 19.75 | V19: 0 | W19: 0 | X19: 0 | Y19: 0 | Z19: 0 | AA19: 0 | AB19: 0 | AC19: 0 | AD19: 0 | AE19: 0 | AF19: 0 | AG19: 0 | AH19: 0 | AI19: 0 | AJ19: 0 | AK19: 0 | AL19: 0 | AM19: 0 | AN19: 0 | AO19: 0 | AQ19: 18.25 | AR19: 18.25 | AS19: 18.25 | AT19: 18.25 | BC19: 0 | BD19: 0 | BE19: 0 | BF19: 0 | BG19: 0 | BH19: 0 | BI19: 0 | BJ19: 0 | BK19: 0 | BL19: 0 | BM19: 0 | BN19: 0 | BO19: 0 | BP19: 0 | BQ19: 0 | BR19: 0 | BS19: 0 | BT19: 0 | BU19: 0 | BV19: 0 | BW19: 0 | BX19: 0 | BY19: 0 | BZ19: 0 | CA19: 0 | CB19: 0 | CC19: 0 | CD19: 0 | CE19: 0 | CF19: 0 | CG19: 0 | CH19: 0 | CI19: 0 | CJ19: 0 | CK19: 0 | CL19: 0 | CM19: 0 | CN19: 0 | CO19: 0 | CP19: 0 | CQ19: 0 | CR19: 0 | CS19: 0 | CT19: 0 | CU19: 0 | CV19: 0 | CW19: 0 | CX19: 0 | CY19: 0 | CZ19: 0
A21: Custom Applications
A22: =Budget!A19 -> Ground Application: Fertilizer & Chemical | B22: =IF(B$2=1,SUM(BC22:CZ22),"Error") -> 0 | D22: 0 | E22: 0 | F22: 0 | G22: 0 | H22: 0 | I22: 0 | J22: 0 | K22: 0 | L22: 0 | M22: 0 | N22: 0 | O22: 0 | P22: 0 | Q22: 0 | R22: 0 | S22: 0 | T22: 0 | U22: 0 | V22: 0 | W22: 0 | X22: 0 | Y22: 0 | Z22: 0 | AA22: 0 | AB22: 0 | AC22: 0 | AD22: 0 | AE22: 1 | AF22: 0 | AG22: 0 | AH22: 0 | AI22: 0 | AJ22: 0 | AK22: 0 | AL22: 0 | AM22: 0 | AN22: 0 | AO22: 0 | AQ22: 0 | AR22: 0 | AS22: 0 | AT22: 0 | BC22: =IF(D$2=1,D22,0) -> 0 | BD22: 0 | BE22: 0 | BF22: 0 | BG22: 0 | BH22: 0 | BI22: 0 | BJ22: 0 | BK22: 0 | BL22: 0 | BM22: =IF(N$2=1,N22,0) -> 0 | BN22: 0 | BO22: 0 | BP22: 0 | BQ22: 0 | BR22: 0 | BS22: 0 | BT22: 0 | BU22: 0 | BV22: 0 | BW22: =IF(X$2=1,X22,0) -> 0 | BX22: 0 | BY22: 0 | BZ22: 0 | CA22: 0 | CB22: 0 | CC22: 0 | CD22: 0 | CE22: 0 | CF22: 0 | CG22: =IF(AH$2=1,AH22,0) -> 0 | CH22: 0 | CI22: 0 | CJ22: 0 | CK22: 0 | CL22: 0 | CM22: 0 | CN22: 0 | CO22: 0 | CP22: =IF(AQ$2=1,AQ22,0) -> 0 | CQ22: =IF(AR$2=1,AR22,0) -> 0 | CR22: =IF(AS$2=1,AS22,0) -> 0 | CS22: =IF(AT$2=1,AT22,0) -> 0 | CT22: =IF(AU$2=1,AU22,0) -> 0 | CU22: =IF(AV$2=1,AV22,0) -> 0 | CV22: =IF(AW$2=1,AW22,0) -> 0 | CW22: =IF(AX$2=1,AX22,0) -> 0 | CX22: =IF(AY$2=1,AY22,0) -> 0 | CY22: =IF(AZ$2=1,AZ22,0) -> 0 | CZ22: =IF(BA$2=1,BA22,0) -> 0
A23: =Budget!A20 -> Air Application: Fertilizer & Chemical | B23: =IF(B$2=1,SUM(BC23:CZ23),"Error") -> 2 | D23: 0 | E23: 0 | F23: 0 | G23: 2 | H23: 2 | I23: 0 | J23: 2 | K23: 2 | L23: 0 | M23: 2 | N23: 1 | O23: 1 | P23: 0 | Q23: 3 | R23: 4 | S23: 3 | T23: 4 | U23: 6 | V23: 2 | W23: 2 | X23: 2 | Y23: 2 | Z23: 2 | AA23: 2 | AB23: 2 | AC23: 2 | AD23: 2 | AE23: 1 | AF23: 0 | AG23: 0 | AH23: 0 | AI23: 1 | AJ23: 1 | AK23: 1 | AL23: 2 | AM23: 2 | AN23: 2 | AO23: 2 | AQ23: =5-2 -> 3 | AR23: =5-2 -> 3 | AS23: =4-2 -> 2 | AT23: =4-2 -> 2 | BC23: 0 | BD23: 0 | BE23: 0 | BF23: 0 | BG23: 0 | BH23: 0 | BI23: 0 | BJ23: 0 | BK23: 0 | BL23: 0 | BM23: 0 | BN23: 0 | BO23: 0 | BP23: 0 | BQ23: 0 | BR23: 0 | BS23: 0 | BT23: 0 | BU23: 0 | BV23: 0 | BW23: 0 | BX23: 0 | BY23: 0 | BZ23: 0 | CA23: 0 | CB23: 0 | CC23: 0 | CD23: 0 | CE23: 0 | CF23: 0 | CG23: 0 | CH23: 0 | CI23: 0 | CJ23: 0 | CK23: 2 | CL23: 0 | CM23: 0 | CN23: 0 | CO23: 0 | CP23: 0 | CQ23: 0 | CR23: 0 | CS23: 0 | CT23: 0 | CU23: 0 | CV23: 0 | CW23: 0 | CX23: 0 | CY23: 0 | CZ23: 0
A24: =Budget!A21 -> Air Application: Lbs. | B24: =IF(B$2=1,SUM(BC24:CZ24),"Error") -> 0 | D24: 100 | E24: 100 | F24: 0 | G24: 0 | H24: 0 | I24: 0 | J24: 0 | K24: 0 | L24: 0 | M24: 0 | N24: 0 | O24: 0 | P24: 0 | Q24: 330 | R24: 330 | S24: 260 | T24: 260 | U24: 330 | V24: 0 | W24: 0 | X24: 0 | Y24: 0 | Z24: 0 | AA24: 0 | AB24: 0 | AC24: 0 | AD24: 0 | AE24: 100 | AF24: 0 | AG24: 0 | AH24: 0 | AI24: 100 | AJ24: 100 | AK24: 0 | AL24: 0 | AM24: 0 | AN24: 0 | AO24: 0 | AQ24: =230+100+100 -> 430 | AR24: =230+100+100 -> 430 | AS24: =260+100 -> 360 | AT24: =260+100 -> 360 | BC24: 0 | BD24: 0 | BE24: 0 | BF24: 0 | BG24: 0 | BH24: 0 | BI24: 0 | BJ24: 0 | BK24: 0 | BL24: 0 | BM24: 0 | BN24: 0 | BO24: 0 | BP24: 0 | BQ24: 0 | BR24: 0 | BS24: 0 | BT24: 0 | BU24: 0 | BV24: 0 | BW24: 0 | BX24: 0 | BY24: 0 | BZ24: 0 | CA24: 0 | CB24: 0 | CC24: 0 | CD24: 0 | CE24: 0 | CF24: 0 | CG24: 0 | CH24: 0 | CI24: 0 | CJ24: 0 | CK24: 0 | CL24: 0 | CM24: 0 | CN24: 0 | CO24: 0 | CP24: 0 | CQ24: 0 | CR24: 0 | CS24: 0 | CT24: 0 | CU24: 0 | CV24: 0 | CW24: 0 | CX24: 0 | CY24: 0 | CZ24: 0
A25: =Budget!A22 -> Other Custom Hire, Air Seeding | B25: =IF(B$2=1,SUM(BC25:CZ25),"Error") -> 0 | D25: 0 | E25: 0 | F25: 0 | G25: 0 | H25: 0 | I25: 0 | J25: 0 | K25: 0 | L25: 0 | M25: 0 | N25: 0 | O25: 0 | P25: 0 | Q25: 0 | R25: 0 | S25: 0 | T25: 0 | U25: 1 | V25: 0 | W25: 0 | X25: 0 | Y25: 0 | Z25: 0 | AA25: 0 | AB25: 0 | AC25: 0 | AD25: 0 | AE25: 0 | AF25: 0 | AG25: 0 | AH25: 0 | AI25: 0 | AJ25: 0 | AK25: 0 | AL25: 0 | AM25: 0 | AN25: 0 | AO25: 0 | AQ25: 0 | AR25: 0 | AS25: 0 | AT25: 0 | BC25: 0 | BD25: 0 | BE25: 0 | BF25: 0 | BG25: 0 | BH25: 0 | BI25: 0 | BJ25: 0 | BK25: 0 | BL25: 0 | BM25: 0 | BN25: 0 | BO25: 0 | BP25: 0 | BQ25: 0 | BR25: 0 | BS25: 0 | BT25: 0 | BU25: 0 | BV25: 0 | BW25: 0 | BX25: 0 | BY25: 0 | BZ25: 0 | CA25: 0 | CB25: 0 | CC25: 0 | CD25: 0 | CE25: 0 | CF25: 0 | CG25: 0 | CH25: 0 | CI25: 0 | CJ25: 0 | CK25: 0 | CL25: 0 | CM25: 0 | CN25: 0 | CO25: 0 | CP25: 0 | CQ25: 0 | CR25: 0 | CS25: 0 | CT25: 0 | CU25: 0 | CV25: 0 | CW25: 0 | CX25: 0 | CY25: 0 | CZ25: 0
A27: Irrigation Inches | B27: =IF(B$2=1,SUM(BC27:CZ27),"Error") -> 12 | D27: 14 | E27: 14 | F27: 0 | G27: 12 | H27: 12 | I27: 0 | J27: 12 | K27: 12 | L27: 0 | M27: 12 | N27: 10 | O27: 10 | P27: 0 | Q27: 30 | R27: 30 | S27: 30 | T27: 30 | U27: 24 | V27: 12 | W27: 12 | X27: 0 | Y27: 12 | Z27: 12 | AA27: 12 | AB27: 0 | AC27: 12 | AD27: 12 | AE27: 0 | AF27: 12 | AG27: 12 | AH27: 0 | AI27: 14 | AJ27: 14 | AK27: 0 | AL27: 12 | AM27: 0 | AN27: 12 | AO27: 12 | AQ27: 30 | AR27: 30 | AS27: 30 | AT27: 30 | BC27: =IF(D$2=1,D27,0) -> 0 | BD27: 0 | BE27: 0 | BF27: 0 | BG27: 0 | BH27: 0 | BI27: 0 | BJ27: 0 | BK27: 0 | BL27: 0 | BM27: =IF(N$2=1,N27,0) -> 0 | BN27: 0 | BO27: 0 | BP27: 0 | BQ27: 0 | BR27: 0 | BS27: 0 | BT27: 0 | BU27: 0 | BV27: 0 | BW27: 0 | BX27: 0 | BY27: 0 | BZ27: 0 | CA27: 0 | CB27: 0 | CC27: 0 | CD27: 0 | CE27: 0 | CF27: 0 | CG27: 0 | CH27: 0 | CI27: 0 | CJ27: 0 | CK27: 12 | CL27: 0 | CM27: 0 | CN27: 0 | CO27: 0 | CP27: =IF(AQ$2=1,AQ27,0) -> 0 | CQ27: =IF(AR$2=1,AR27,0) -> 0 | CR27: =IF(AS$2=1,AS27,0) -> 0 | CS27: =IF(AT$2=1,AT27,0) -> 0 | CT27: =IF(AU$2=1,AU27,0) -> 0 | CU27: =IF(AV$2=1,AV27,0) -> 0 | CV27: =IF(AW$2=1,AW27,0) -> 0 | CW27: =IF(AX$2=1,AX27,0) -> 0 | CX27: =IF(AY$2=1,AY27,0) -> 0 | CY27: =IF(AZ$2=1,AZ27,0) -> 0 | CZ27: =IF(BA$2=1,BA27,0) -> 0
A29: =Budget!A30 -> Supplies (ex. polypipe) | B29: =IF(B$2=1,SUM(BC29:CZ29),"Error") -> 0 | D29: 3.88 | E29: 0 | F29: 0 | G29: 3.88 | H29: 0 | I29: 0 | J29: 3.88 | K29: 0 | L29: 0 | M29: 3.88 | N29: 3.88 | O29: 0 | P29: 0 | Q29: 0 | R29: 0 | S29: 0 | T29: 0 | U29: 0 | V29: 3.88 | W29: 0 | X29: 0 | Y29: 0 | Z29: 3.88 | AA29: 0 | AB29: 0 | AC29: 0 | AD29: 3.88 | AE29: 0 | AF29: 3.88 | AG29: 0 | AH29: 0 | AI29: 3.88 | AJ29: 0 | AK29: 0 | AL29: 0 | AM29: 0 | AN29: 0 | AO29: 0 | AQ29: 3.88 | AR29: 3.88 | AS29: 3.88 | AT29: 3.88 | BC29: =IF(D$2=1,D29,0) -> 0 | BD29: 0 | BE29: 0 | BF29: 0 | BG29: 0 | BH29: 0 | BI29: 0 | BJ29: 0 | BK29: 0 | BL29: 0 | BM29: =IF(N$2=1,N29,0) -> 0 | BN29: 0 | BO29: 0 | BP29: 0 | BQ29: 0 | BR29: 0 | BS29: 0 | BT29: 0 | BU29: 0 | BV29: 0 | BW29: =IF(X$2=1,X29,0) -> 0 | BX29: 0 | BY29: 0 | BZ29: 0 | CA29: 0 | CB29: 0 | CC29: 0 | CD29: 0 | CE29: 0 | CF29: 0 | CG29: =IF(AH$2=1,AH29,0) -> 0 | CH29: 0 | CI29: 0 | CJ29: 0 | CK29: 0 | CL29: 0 | CM29: 0 | CN29: 0 | CO29: 0 | CP29: =IF(AQ$2=1,AQ29,0) -> 0 | CQ29: =IF(AR$2=1,AR29,0) -> 0 | CR29: =IF(AS$2=1,AS29,0) -> 0 | CS29: =IF(AT$2=1,AT29,0) -> 0 | CT29: =IF(AU$2=1,AU29,0) -> 0 | CU29: =IF(AV$2=1,AV29,0) -> 0 | CV29: =IF(AW$2=1,AW29,0) -> 0 | CW29: =IF(AX$2=1,AX29,0) -> 0 | CX29: =IF(AY$2=1,AY29,0) -> 0 | CY29: =IF(AZ$2=1,AZ29,0) -> 0 | CZ29: =IF(BA$2=1,BA29,0) -> 0
A30: =Budget!A31 -> Levee Gates | B30: =IF(B$2=1,SUM(BC30:CZ30),"Error") -> 0 | D30: 0 | E30: 0 | F30: 0 | G30: =IF(AND([1]Machine!$B$67=1,[1]Machine!$J$67=1),8.33*(G4/500),0) -> 0 | H30: =IF(AND([1]Machine!$B$67=1,[1]Machine!$J$67=1),8.33*(H4/500),0) -> 0 | I30: =IF(AND([1]Machine!$B$67=1,[1]Machine!$J$67=1),8.33*(I4/500),0) -> 0 | J30: =IF(AND([1]Machine!$B$67=1,[1]Machine!$J$67=1),8.33*(J4/500),0) -> 0 | K30: =IF(AND([1]Machine!$B$67=1,[1]Machine!$J$67=1),8.33*(K4/500),0) -> 0 | L30: =IF(AND([1]Machine!$B$67=1,[1]Machine!$J$67=1),8.33*(L4/500),0) -> 0 | M30: =IF(AND([1]Machine!$B$67=1,[1]Machine!$J$67=1),8.33*(M4/500),0) -> 0 | N30: 0 | O30: 0 | P30: 0 | Q30: 0.7 | R30: 0.7 | S30: 0.7 | T30: 0.7 | U30: 0 | V30: 0 | W30: 0 | X30: 0 | Y30: 0.7 | Z30: 0 | AA30: 0 | AB30: 0 | AC30: 0.7 | AD30: 0 | AE30: 0 | AF30: 0 | AG30: 0 | AH30: 0 | AI30: 0 | AJ30: 0 | AK30: 0 | AL30: 0 | AM30: 0 | AN30: 0.7 | AO30: =IF(AND([1]Machine!$B$67=1,[1]Machine!$J$67=1),8.33*(AO4/500),0) -> 0 | AQ30: 0 | AR30: 0 | AS30: 0 | AT30: 0 | BC30: 0 | BD30: 0 | BE30: 0 | BF30: 0 | BG30: 0 | BH30: 0 | BI30: 0 | BJ30: 0 | BK30: 0 | BL30: 0 | BM30: 0 | BN30: 0 | BO30: 0 | BP30: 0 | BQ30: 0 | BR30: 0 | BS30: 0 | BT30: 0 | BU30: 0 | BV30: 0 | BW30: 0 | BX30: 0 | BY30: 0 | BZ30: 0 | CA30: 0 | CB30: 0 | CC30: 0 | CD30: 0 | CE30: 0 | CF30: 0 | CG30: 0 | CH30: 0 | CI30: 0 | CJ30: 0 | CK30: 0 | CL30: 0 | CM30: 0 | CN30: 0 | CO30: 0 | CP30: 0 | CQ30: 0 | CR30: 0 | CS30: 0 | CT30: 0 | CU30: 0 | CV30: 0 | CW30: 0 | CX30: 0 | CY30: 0 | CZ30: 0
A32: =Budget!A33 -> Scouting/Consultant Fee | B32: =IF(B$2=1,SUM(BC32:CZ32),"Error") -> 6.5 | D32: 6 | E32: 6 | F32: 6 | G32: 8 | H32: 8 | I32: 8 | J32: 8 | K32: 8 | L32: 8 | M32: 8 | N32: 6 | O32: 6 | P32: 6 | Q32: 8 | R32: 8 | S32: 8 | T32: 8 | U32: 8 | V32: 6.5 | W32: 6.5 | X32: 6.5 | Y32: 6.5 | Z32: 6.5 | AA32: 6.5 | AB32: 6.5 | AC32: 6.5 | AD32: 6.5 | AE32: 0 | AF32: 9.25 | AG32: 9.25 | AH32: 9.25 | AI32: 6 | AJ32: 6 | AK32: 6 | AL32: 6.5 | AM32: 6.5 | AN32: 6.5 | AO32: 8 | AQ32: 8 | AR32: 8 | AS32: 8 | AT32: 8 | BC32: =IF(D$2=1,D32,0) -> 0 | BD32: 0 | BE32: 0 | BF32: 0 | BG32: 0 | BH32: 0 | BI32: 0 | BJ32: 0 | BK32: 0 | BL32: 0 | BM32: =IF(N$2=1,N32,0) -> 0 | BN32: 0 | BO32: 0 | BP32: 0 | BQ32: 0 | BR32: 0 | BS32: 0 | BT32: 0 | BU32: 0 | BV32: 0 | BW32: =IF(X$2=1,X32,0) -> 0 | BX32: 0 | BY32: 0 | BZ32: 0 | CA32: 0 | CB32: 0 | CC32: 0 | CD32: 0 | CE32: 0 | CF32: 0 | CG32: =IF(AH$2=1,AH32,0) -> 0 | CH32: 0 | CI32: 0 | CJ32: 0 | CK32: 6.5 | CL32: 0 | CM32: 0 | CN32: 0 | CO32: 0 | CP32: =IF(AQ$2=1,AQ32,0) -> 0 | CQ32: =IF(AR$2=1,AR32,0) -> 0 | CR32: =IF(AS$2=1,AS32,0) -> 0 | CS32: =IF(AT$2=1,AT32,0) -> 0 | CT32: =IF(AU$2=1,AU32,0) -> 0 | CU32: =IF(AV$2=1,AV32,0) -> 0 | CV32: =IF(AW$2=1,AW32,0) -> 0 | CW32: =IF(AX$2=1,AX32,0) -> 0 | CX32: =IF(AY$2=1,AY32,0) -> 0 | CY32: =IF(AZ$2=1,AZ32,0) -> 0 | CZ32: =IF(BA$2=1,BA32,0) -> 0
A33: =Budget!A34 -> Other Expenses | B33: =IF(B$2=1,SUM(BC33:CZ33),"Error") -> 0 | D33: 0 | E33: 0 | F33: 0 | G33: 3 | H33: 3 | I33: 3 | J33: 3 | K33: 3 | L33: 3 | M33: 3 | N33: 0 | O33: 0 | P33: 0 | Q33: 0 | R33: 0 | S33: 0 | T33: 0 | U33: 0 | V33: 0 | W33: 0 | X33: 0 | Y33: 0 | Z33: 0 | AA33: 0 | AB33: 0 | AC33: 0 | AD33: 0 | AE33: 0 | AF33: 0 | AG33: 0 | AH33: 0 | AI33: 0 | AJ33: 0 | AK33: 0 | AL33: 0 | AM33: 0 | AN33: 0 | AO33: 3 | AQ33: 0 | AR33: 0 | AS33: 0 | AT33: 0 | BC33: 0 | BD33: 0 | BE33: 0 | BF33: 0 | BG33: 0 | BH33: 0 | BI33: 0 | BJ33: 0 | BK33: 0 | BL33: 0 | BM33: 0 | BN33: 0 | BO33: 0 | BP33: 0 | BQ33: 0 | BR33: 0 | BS33: 0 | BT33: 0 | BU33: 0 | BV33: 0 | BW33: 0 | BX33: 0 | BY33: 0 | BZ33: 0 | CA33: 0 | CB33: 0 | CC33: 0 | CD33: 0 | CE33: 0 | CF33: 0 | CG33: 0 | CH33: 0 | CI33: 0 | CJ33: 0 | CK33: 0 | CL33: 0 | CM33: 0 | CN33: 0 | CO33: 0 | CP33: 0 | CQ33: 0 | CR33: 0 | CS33: 0 | CT33: 0 | CU33: 0 | CV33: 0 | CW33: 0 | CX33: 0 | CY33: 0 | CZ33: 0
A34: Crop Insurance | B34: =IF(B$2=1,SUM(BC34:CZ34),"Error") -> 4.8 | D34: 16.15 | E34: 16.15 | F34: 20.11 | G34: 10.5 | H34: 10.5 | I34: 10.5 | J34: 10.5 | K34: 10.5 | L34: 10.5 | M34: 10.5 | N34: 12.01 | O34: 12.01 | P34: 16.73 | Q34: 10.29 | R34: 10.29 | S34: 10.29 | T34: 10.29 | U34: 10.29 | V34: 4.8 | W34: 4.8 | X34: 7.83 | Y34: 4.8 | Z34: 4.8 | AA34: 4.8 | AB34: 7.83 | AC34: 4.8 | AD34: 4.8 | AE34: 8.22 | AF34: 6.61 | AG34: 6.61 | AH34: 6.26 | AI34: 16.15 | AJ34: 16.15 | AK34: 20.11 | AL34: 4.8 | AM34: 7.83 | AN34: 4.8 | AO34: 10.5 | AQ34: 10 | AR34: 10 | AS34: 10 | AT34: 10 | BC34: 0 | BD34: 0 | BE34: 0 | BF34: 0 | BG34: 0 | BH34: 0 | BI34: 0 | BJ34: 0 | BK34: 0 | BL34: 0 | BM34: 0 | BN34: 0 | BO34: 0 | BP34: 0 | BQ34: 0 | BR34: 0 | BS34: 0 | BT34: 0 | BU34: 0 | BV34: 0 | BW34: 0 | BX34: 0 | BY34: 0 | BZ34: 0 | CA34: 0 | CB34: 0 | CC34: 0 | CD34: 0 | CE34: 0 | CF34: 0 | CG34: 0 | CH34: 0 | CI34: 0 | CJ34: 0 | CK34: 4.8 | CL34: 0 | CM34: 0 | CN34: 0 | CO34: 0 | CP34: 0 | CQ34: 0 | CR34: 0 | CS34: 0 | CT34: 0 | CU34: 0 | CV34: 0 | CW34: 0 | CX34: 0 | CY34: 0 | CZ34: 0
A36: Post Harvest 1 | B36: =IF(B$2=1,SUM(BC36:CZ36),"Error") -> 0 | D36: 0.19 | E36: 0.19 | F36: 0.19 | G36: 0.1 | H36: 0.1 | I36: 0.1 | J36: 0.1 | K36: 0.1 | L36: 0.1 | M36: 0.1 | N36: =0*((0.25/100)*56) -> 0 | O36: =0*((0.25/100)*56) -> 0 | P36: =0*((0.25/100)*56) -> 0 | Q36: 0.4 | R36: 0.4 | S36: 0.4 | T36: 0.4 | U36: 0.4 | V36: 0 | W36: 0 | X36: 0 | Y36: 0 | Z36: 0 | AA36: 0 | AB36: 0 | AC36: 0 | AD36: 0 | AE36: 0 | AF36: 10 | AG36: 10 | AH36: 10 | AI36: 0.19 | AJ36: 0.19 | AK36: 0.19 | AL36: 0 | AM36: 0 | AN36: 0 | AO36: 0.1 | AQ36: 0.4 | AR36: 0.4 | AS36: 0.4 | AT36: 0.4 | BC36: =IF(D$2=1,D36,0) -> 0 | BD36: 0 | BE36: 0 | BF36: 0 | BG36: 0 | BH36: 0 | BI36: 0 | BJ36: 0 | BK36: 0 | BL36: 0 | BM36: =IF(N$2=1,N36,0) -> 0 | BN36: 0 | BO36: 0 | BP36: 0 | BQ36: 0 | BR36: 0 | BS36: 0 | BT36: 0 | BU36: 0 | BV36: 0 | BW36: =IF(X$2=1,X36,0) -> 0 | BX36: 0 | BY36: 0 | BZ36: 0 | CA36: 0 | CB36: 0 | CC36: 0 | CD36: 0 | CE36: 0 | CF36: 0 | CG36: =IF(AH$2=1,AH36,0) -> 0 | CH36: 0 | CI36: 0 | CJ36: 0 | CK36: 0 | CL36: 0 | CM36: 0 | CN36: 0 | CO36: 0 | CP36: =IF(AQ$2=1,AQ36,0) -> 0 | CQ36: =IF(AR$2=1,AR36,0) -> 0 | CR36: =IF(AS$2=1,AS36,0) -> 0 | CS36: =IF(AT$2=1,AT36,0) -> 0 | CT36: =IF(AU$2=1,AU36,0) -> 0 | CU36: =IF(AV$2=1,AV36,0) -> 0 | CV36: =IF(AW$2=1,AW36,0) -> 0 | CW36: =IF(AX$2=1,AX36,0) -> 0 | CX36: =IF(AY$2=1,AY36,0) -> 0 | CY36: =IF(AZ$2=1,AZ36,0) -> 0 | CZ36: =IF(BA$2=1,BA36,0) -> 0
A37: Post Harvest 2 | B37: =IF(B$2=1,SUM(BC37:CZ37),"Error") -> 0.27 | D37: 0.25 | E37: 0.25 | F37: 0.25 | G37: 20 | H37: 20 | I37: 20 | J37: 20 | K37: 20 | L37: 20 | M37: 20 | N37: 0.25 | O37: 0.25 | P37: 0.25 | Q37: 0.19 | R37: 0.19 | S37: 0.19 | T37: 0.19 | U37: 0.19 | V37: 0.27 | W37: 0.27 | X37: 0.27 | Y37: 0.27 | Z37: 0.27 | AA37: 0.27 | AB37: 0.27 | AC37: 0.27 | AD37: 0.27 | AE37: 0.27 | AF37: 20 | AG37: 20 | AH37: 20 | AI37: 0.25 | AJ37: 0.25 | AK37: 0.25 | AL37: 0.27 | AM37: 0.27 | AN37: 0.27 | AO37: 20 | AQ37: 0.19 | AR37: 0.19 | AS37: 0.19 | AT37: 0.19 | BC37: 0 | BD37: 0 | BE37: 0 | BF37: 0 | BG37: 0 | BH37: 0 | BI37: 0 | BJ37: 0 | BK37: 0 | BL37: 0 | BM37: 0 | BN37: 0 | BO37: 0 | BP37: 0 | BQ37: 0 | BR37: 0 | BS37: 0 | BT37: 0 | BU37: 0 | BV37: 0 | BW37: 0 | BX37: 0 | BY37: 0 | BZ37: 0 | CA37: 0 | CB37: 0 | CC37: 0 | CD37: 0 | CE37: 0 | CF37: 0 | CG37: 0 | CH37: 0 | CI37: 0 | CJ37: 0 | CK37: 0.27 | CL37: 0 | CM37: 0 | CN37: 0 | CO37: 0 | CP37: 0 | CQ37: 0 | CR37: 0 | CS37: 0 | CT37: 0 | CU37: 0 | CV37: 0 | CW37: 0 | CX37: 0 | CY37: 0 | CZ37: 0
A38: Post Harvest 3 | B38: =IF(B$2=1,SUM(BC38:CZ38),"Error") -> 0.019 | D38: 0.01 | E38: 0.01 | F38: 0.01 | G38: =(1+2.2)+(0.005*500*[1]Budget!$E$3) -> 12.7 | H38: =(1+2.2)+(0.005*500*[1]Budget!$E$3) -> 12.7 | I38: =(1+2.2)+(0.005*500*[1]Budget!$E$3) -> 12.7 | J38: =(1+2.2)+(0.005*500*[1]Budget!$E$3) -> 12.7 | K38: =(1+2.2)+(0.005*500*[1]Budget!$E$3) -> 12.7 | L38: =(1+2.2)+(0.005*500*[1]Budget!$E$3) -> 12.7 | M38: =(1+2.2)+(0.005*500*[1]Budget!$E$3) -> 12.7 | N38: 0.01 | O38: 0.01 | P38: 0.01 | Q38: 0.0135 | R38: 0.0135 | S38: 0.0135 | T38: 0.0135 | U38: 0.0135 | V38: =([1]Budget!$E$3*(0.01/2)) -> 0.019 | W38: =([1]Budget!$E$3*(0.01/2)) -> 0.019 | X38: =([1]Budget!$E$3*(0.01/2)) -> 0.019 | Y38: =([1]Budget!$E$3*(0.01/2)) -> 0.019 | Z38: =([1]Budget!$E$3*(0.01/2)) -> 0.019 | AA38: =([1]Budget!$E$3*(0.01/2)) -> 0.019 | AB38: =([1]Budget!$E$3*(0.01/2)) -> 0.019 | AC38: =([1]Budget!$E$3*(0.01/2)) -> 0.019 | AD38: =([1]Budget!$E$3*(0.01/2)) -> 0.019 | AE38: 0.01 | AF38: 2.5 | AG38: 2.5 | AH38: 2.5 | AI38: 0.01 | AJ38: 0.01 | AK38: 0.01 | AL38: =([1]Budget!$E$3*(0.01/2)) -> 0.019 | AM38: =([1]Budget!$E$3*(0.01/2)) -> 0.019 | AN38: =([1]Budget!$E$3*(0.01/2)) -> 0.019 | AO38: =(1+2.2)+(0.005*500*[1]Budget!$E$3) -> 12.7 | AQ38: 0.0135 | AR38: 0.0135 | AS38: 0.0135 | AT38: 0.0135 | BC38: 0 | BD38: 0 | BE38: 0 | BF38: 0 | BG38: 0 | BH38: 0 | BI38: 0 | BJ38: 0 | BK38: 0 | BL38: 0 | BM38: 0 | BN38: 0 | BO38: 0 | BP38: 0 | BQ38: 0 | BR38: 0 | BS38: 0 | BT38: 0 | BU38: 0 | BV38: 0 | BW38: 0 | BX38: 0 | BY38: 0 | BZ38: 0 | CA38: 0 | CB38: 0 | CC38: 0 | CD38: 0 | CE38: 0 | CF38: 0 | CG38: 0 | CH38: 0 | CI38: 0 | CJ38: 0 | CK38: 0.019 | CL38: 0 | CM38: 0 | CN38: 0 | CO38: 0 | CP38: 0 | CQ38: 0 | CR38: 0 | CS38: 0 | CT38: 0 | CU38: 0 | CV38: 0 | CW38: 0 | CX38: 0 | CY38: 0 | CZ38: 0
A39: Post Harvest 4; see Program_Variables | B39: =IF(B$2=1,SUM(BC39:CZ39),"Error") -> 0
A41: Seed | BC41: =IF(D$2=1,D41,0) -> 0 | BD41: 0 | BE41: 0 | BF41: 0 | BG41: 0 | BH41: 0 | BI41: 0 | BJ41: 0 | BK41: 0 | BL41: 0 | BM41: =IF(N$2=1,N41,0) -> 0 | BN41: 0 | BO41: 0 | BP41: 0 | BQ41: 0 | BR41: 0 | BS41: 0 | BT41: 0 | BU41: 0 | BV41: 0 | BW41: =IF(X$2=1,X41,0) -> 0 | BX41: 0 | BY41: 0 | BZ41: 0 | CA41: 0 | CB41: 0 | CC41: 0 | CD41: 0 | CE41: 0 | CF41: 0 | CG41: =IF(AH$2=1,AH41,0) -> 0 | CH41: 0 | CI41: 0 | CJ41: 0 | CK41: 0 | CL41: 0 | CM41: 0 | CN41: 0 | CO41: 0 | CP41: =IF(AQ$2=1,AQ41,0) -> 0 | CQ41: =IF(AR$2=1,AR41,0) -> 0 | CR41: =IF(AS$2=1,AS41,0) -> 0 | CS41: =IF(AT$2=1,AT41,0) -> 0 | CT41: =IF(AU$2=1,AU41,0) -> 0 | CU41: =IF(AV$2=1,AV41,0) -> 0 | CV41: =IF(AW$2=1,AW41,0) -> 0 | CW41: =IF(AX$2=1,AX41,0) -> 0 | CX41: =IF(AY$2=1,AY41,0) -> 0 | CY41: =IF(AZ$2=1,AZ41,0) -> 0 | CZ41: =IF(BA$2=1,BA41,0) -> 0
A42: Seed & Treatments - price | B42: =IF(B$2=1,SUM(BC42:CZ42),"Error") -> 0.31 | D42: 3.5 | E42: 3.5 | F42: 3.5 | G42: 2.4 | H42: 2.4 | I42: 2.4 | J42: 2.4 | K42: 2.4 | L42: 2.4 | M42: 2.28 | N42: 3.96 | O42: 3.96 | P42: 3.96 | Q42: 0.57 | R42: 1.29 | S42: 5.87 | T42: 7.065 | U42: 0.557 | V42: 0.4964 | W42: 0.4964 | X42: 0.4964 | Y42: 0.4964 | Z42: 0.4536 | AA42: 0.4536 | AB42: 0.4536 | AC42: 0.4536 | AD42: 0.31 | AE42: 0.24 | AF42: 0.84 | AG42: 0.84 | AH42: 0.84 | AI42: 2.66 | AJ42: 2.66 | AK42: 2.66 | AL42: 0.31 | AM42: 0.31 | AN42: 0.31 | AO42: 2.26 | AQ42: 0.43 | AR42: 1.03 | AS42: 7.93 | AT42: 6.67 | BC42: 0 | BD42: 0 | BE42: 0 | BF42: 0 | BG42: 0 | BH42: 0 | BI42: 0 | BJ42: 0 | BK42: 0 | BL42: 0 | BM42: 0 | BN42: 0 | BO42: 0 | BP42: 0 | BQ42: 0 | BR42: 0 | BS42: 0 | BT42: 0 | BU42: 0 | BV42: 0 | BW42: 0 | BX42: 0 | BY42: 0 | BZ42: 0 | CA42: 0 | CB42: 0 | CC42: 0 | CD42: 0 | CE42: 0 | CF42: 0 | CG42: 0 | CH42: 0 | CI42: 0 | CJ42: 0 | CK42: 0.31 | CL42: 0 | CM42: 0 | CN42: 0 | CO42: 0 | CP42: 0 | CQ42: 0 | CR42: 0 | CS42: 0 | CT42: 0 | CU42: 0 | CV42: 0 | CW42: 0 | CX42: 0 | CY42: 0 | CZ42: 0
A43: Technology Fee - price | B43: =IF(B$2=1,SUM(BC43:CZ43),"Error") -> 0 | D43: 0 | E43: 0 | F43: 0 | G43: 0 | H43: 0 | I43: 0 | J43: 0 | K43: 0 | L43: 0 | M43: 0 | N43: 0 | O43: 0 | P43: 0 | Q43: 0 | R43: 0 | S43: 0 | T43: 0 | U43: 0 | V43: 0 | W43: 0 | X43: 0 | Y43: 0 | Z43: 0 | AA43: 0 | AB43: 0 | AC43: 0 | AD43: 0 | AE43: 0 | AF43: 0 | AG43: 0 | AH43: 0 | AI43: 0 | AJ43: 0 | AK43: 0 | AL43: 0 | AM43: 0 | AN43: 0 | AO43: 0 | AQ43: 0 | AR43: 0 | AS43: 0 | AT43: 0 | BC43: 0 | BD43: 0 | BE43: 0 | BF43: 0 | BG43: 0 | BH43: 0 | BI43: 0 | BJ43: 0 | BK43: 0 | BL43: 0 | BM43: 0 | BN43: 0 | BO43: 0 | BP43: 0 | BQ43: 0 | BR43: 0 | BS43: 0 | BT43: 0 | BU43: 0 | BV43: 0 | BW43: 0 | BX43: 0 | BY43: 0 | BZ43: 0 | CA43: 0 | CB43: 0 | CC43: 0 | CD43: 0 | CE43: 0 | CF43: 0 | CG43: 0 | CH43: 0 | CI43: 0 | CJ43: 0 | CK43: 0 | CL43: 0 | CM43: 0 | CN43: 0 | CO43: 0 | CP43: 0 | CQ43: 0 | CR43: 0 | CS43: 0 | CT43: 0 | CU43: 0 | CV43: 0 | CW43: 0 | CX43: 0 | CY43: 0 | CZ43: 0
A44: Seed & Treatments - quantity | B44: =IF(B$2=1,SUM(BC44:CZ44),"Error") -> 140 | D44: 32 | E44: 32 | F44: 28 | G44: 47.5 | H44: 47.5 | I44: 47.5 | J44: 47.5 | K44: 47.5 | L44: 47.5 | M44: 47.5 | N44: 6.5 | O44: 6.5 | P44: 4.5 | Q44: 72 | R44: 72 | S44: 23 | T44: 23 | U44: 120 | V44: 140 | W44: 140 | X44: 140 | Y44: 140 | Z44: 140 | AA44: 140 | AB44: 140 | AC44: 140 | AD44: 140 | AE44: 100 | AF44: 115 | AG44: 115 | AH44: 115 | AI44: 32 | AJ44: 32 | AK44: 28 | AL44: 140 | AM44: 140 | AN44: 140 | AO44: 47.5 | AQ44: 79 | AR44: 79 | AS44: 25 | AT44: 25 | BC44: 0 | BD44: 0 | BE44: 0 | BF44: 0 | BG44: 0 | BH44: 0 | BI44: 0 | BJ44: 0 | BK44: 0 | BL44: 0 | BM44: 0 | BN44: 0 | BO44: 0 | BP44: 0 | BQ44: 0 | BR44: 0 | BS44: 0 | BT44: 0 | BU44: 0 | BV44: 0 | BW44: 0 | BX44: 0 | BY44: 0 | BZ44: 0 | CA44: 0 | CB44: 0 | CC44: 0 | CD44: 0 | CE44: 0 | CF44: 0 | CG44: 0 | CH44: 0 | CI44: 0 | CJ44: 0 | CK44: 140 | CL44: 0 | CM44: 0 | CN44: 0 | CO44: 0 | CP44: 0 | CQ44: 0 | CR44: 0 | CS44: 0 | CT44: 0 | CU44: 0 | CV44: 0 | CW44: 0 | CX44: 0 | CY44: 0 | CZ44: 0
A45: Technology Fee - quantity | B45: =IF(B$2=1,SUM(BC45:CZ45),"Error") -> 0 | D45: 0 | E45: 0 | F45: 0 | G45: 0 | H45: 0 | I45: 0 | J45: 0 | K45: 0 | L45: 0 | M45: 0 | N45: 0 | O45: 0 | P45: 0 | Q45: 0 | R45: 0 | S45: 0 | T45: 0 | U45: 0 | V45: 0 | W45: 0 | X45: 0 | Y45: 0 | Z45: 0 | AA45: 0 | AB45: 0 | AC45: 0 | AD45: 0 | AE45: 0 | AF45: 0 | AG45: 0 | AH45: 0 | AI45: 0 | AJ45: 0 | AK45: 0 | AL45: 0 | AM45: 0 | AN45: 0 | AO45: 0 | AQ45: 0 | AR45: 0 | AS45: 0 | AT45: 0 | BC45: 0 | BD45: 0 | BE45: 0 | BF45: 0 | BG45: 0 | BH45: 0 | BI45: 0 | BJ45: 0 | BK45: 0 | BL45: 0 | BM45: 0 | BN45: 0 | BO45: 0 | BP45: 0 | BQ45: 0 | BR45: 0 | BS45: 0 | BT45: 0 | BU45: 0 | BV45: 0 | BW45: 0 | BX45: 0 | BY45: 0 | BZ45: 0 | CA45: 0 | CB45: 0 | CC45: 0 | CD45: 0 | CE45: 0 | CF45: 0 | CG45: 0 | CH45: 0 | CI45: 0 | CJ45: 0 | CK45: 0 | CL45: 0 | CM45: 0 | CN45: 0 | CO45: 0 | CP45: 0 | CQ45: 0 | CR45: 0 | CS45: 0 | CT45: 0 | CU45: 0 | CV45: 0 | CW45: 0 | CX45: 0 | CY45: 0 | CZ45: 0
A47: Irrigation: 1=Surface 2=Pivot, 3=None | B47: =IF(B$2=1,SUM(BC47:CZ47),"Error") -> 2 | D47: 1 | E47: 2 | F47: 3 | G47: 1 | H47: 2 | I47: 3 | J47: 1 | K47: 2 | L47: 3 | M47: 1 | N47: 1 | O47: 2 | P47: 3 | Q47: 1 | R47: 1 | S47: 1 | T47: 1 | U47: 1 | V47: 1 | W47: 2 | X47: 3 | Y47: 1 | Z47: 1 | AA47: 2 | AB47: 3 | AC47: 1 | AD47: 1 | AE47: 3 | AF47: 1 | AG47: 2 | AH47: 3 | AI47: 1 | AJ47: 2 | AK47: 3 | AL47: 2 | AM47: 3 | AN47: 1 | AO47: 2 | AP47: 3 | AQ47: 1 | AR47: 1 | AS47: 1 | AT47: 1 | BC47: =IF(D$2=1,D47,0) -> 0 | BD47: 0 | BE47: 0 | BF47: 0 | BG47: 0 | BH47: 0 | BI47: 0 | BJ47: 0 | BK47: 0 | BL47: 0 | BM47: =IF(N$2=1,N47,0) -> 0 | BN47: 0 | BO47: 0 | BP47: 0 | BQ47: 0 | BR47: 0 | BS47: 0 | BT47: 0 | BU47: 0 | BV47: 0 | BW47: 0 | BX47: 0 | BY47: 0 | BZ47: 0 | CA47: 0 | CB47: 0 | CC47: 0 | CD47: 0 | CE47: 0 | CF47: 0 | CG47: 0 | CH47: 0 | CI47: 0 | CJ47: 0 | CK47: 2 | CL47: 0 | CM47: 0 | CN47: 0 | CO47: 0 | CP47: =IF(AQ$2=1,AQ47,0) -> 0 | CQ47: =IF(AR$2=1,AR47,0) -> 0 | CR47: =IF(AS$2=1,AS47,0) -> 0 | CS47: =IF(AT$2=1,AT47,0) -> 0 | CT47: =IF(AU$2=1,AU47,0) -> 0 | CU47: =IF(AV$2=1,AV47,0) -> 0 | CV47: =IF(AW$2=1,AW47,0) -> 0 | CW47: =IF(AX$2=1,AX47,0) -> 0 | CX47: =IF(AY$2=1,AY47,0) -> 0 | CY47: =IF(AZ$2=1,AZ47,0) -> 0 | CZ47: =IF(BA$2=1,BA47,0) -> 0
A49: Implement | B49: Machine | D49: Machine | E49: Machine | F49: Machine | G49: Machine | H49: Machine | I49: Machine | J49: Machine | K49: Machine | L49: Machine | M49: Machine | N49: Machine | O49: Machine | P49: Machine | Q49: Machine | R49: Machine | S49: Machine | T49: Machine | U49: Machine | V49: Machine | W49: Machine | X49: Machine | Y49: Machine | Z49: Machine | AA49: Machine | AB49: Machine | AC49: Machine | AD49: Machine | AE49: Machine | AF49: Machine | AG49: Machine | AH49: Machine | AI49: Machine | AJ49: Machine | AK49: Machine | AL49: Machine | AM49: Machine | AN49: Machine | AO49: Machine | AP49: Machine | AQ49: Machine | AR49: Machine | AS49: Machine | AT49: Machine | BC49: Machine | BD49: Machine | BE49: Machine | BF49: Machine | BG49: Machine | BH49: Machine | BI49: Machine | BJ49: Machine | BK49: Machine | BL49: Machine | BM49: Machine | BN49: Machine | BO49: Machine | BP49: Machine | BQ49: Machine | BR49: Machine | BS49: Machine | BT49: Machine | BU49: Machine | BV49: Machine | BW49: Machine | BX49: Machine | BY49: Machine | BZ49: Machine | CA49: Machine | CB49: Machine | CC49: Machine | CD49: Machine | CE49: Machine | CF49: Machine | CG49: Machine | CH49: Machine | CI49: Machine | CJ49: Machine | CK49: Machine | CL49: Machine | CM49: Machine | CN49: Machine | CO49: Machine | CP49: Machine | CQ49: Machine | CR49: Machine | CS49: Machine | CT49: Machine | CU49: Machine | CV49: Machine | CW49: Machine | CX49: Machine | CY49: Machine | CZ49: Machine
A50: =Machine!A14 -> Paratill | B50: =IF(B$2=1,SUM(BC50:CZ50),"Error") -> 0 | D50: 0 | E50: 0 | F50: 0 | G50: 0 | H50: 0 | I50: 0 | J50: 0 | K50: 0 | L50: 0 | M50: 0 | N50: 0 | O50: 0 | P50: 0 | Q50: 0 | R50: 0 | S50: 0 | T50: 0 | U50: 0 | V50: 0 | W50: 0 | X50: 0 | Y50: 0 | Z50: 0 | AA50: 0 | AB50: 0 | AC50: 0 | AD50: 0 | AE50: 0 | AF50: 0 | AG50: 0 | AH50: 0 | AI50: 0 | AJ50: 0 | AK50: 0 | AL50: 0 | AM50: 0 | AN50: 0 | AO50: 0 | AQ50: 0 | AR50: 0 | AS50: 0 | AT50: 0 | BC50: =IF(D$2=1,D50,0) -> 0 | BD50: =IF(E$2=1,E50,0) -> 0 | BE50: =IF(F$2=1,F50,0) -> 0 | BF50: =IF(G$2=1,G50,0) -> 0 | BG50: =IF(H$2=1,H50,0) -> 0 | BH50: =IF(I$2=1,I50,0) -> 0 | BI50: =IF(J$2=1,J50,0) -> 0 | BJ50: =IF(K$2=1,K50,0) -> 0 | BK50: =IF(L$2=1,L50,0) -> 0 | BL50: =IF(M$2=1,M50,0) -> 0 | BM50: =IF(N$2=1,N50,0) -> 0 | BN50: =IF(O$2=1,O50,0) -> 0 | BO50: =IF(P$2=1,P50,0) -> 0 | BP50: =IF(Q$2=1,Q50,0) -> 0 | BQ50: =IF(R$2=1,R50,0) -> 0 | BR50: =IF(S$2=1,S50,0) -> 0 | BS50: =IF(T$2=1,T50,0) -> 0 | BT50: =IF(U$2=1,U50,0) -> 0 | BU50: =IF(V$2=1,V50,0) -> 0 | BV50: =IF(W$2=1,W50,0) -> 0 | BW50: =IF(X$2=1,X50,0) -> 0 | BX50: =IF(Y$2=1,Y50,0) -> 0 | BY50: =IF(Z$2=1,Z50,0) -> 0 | BZ50: =IF(AA$2=1,AA50,0) -> 0 | CA50: =IF(AB$2=1,AB50,0) -> 0 | CB50: =IF(AC$2=1,AC50,0) -> 0 | CC50: =IF(AD$2=1,AD50,0) -> 0 | CD50: =IF(AE$2=1,AE50,0) -> 0 | CE50: =IF(AF$2=1,AF50,0) -> 0 | CF50: =IF(AG$2=1,AG50,0) -> 0 | CG50: =IF(AH$2=1,AH50,0) -> 0 | CH50: =IF(AI$2=1,AI50,0) -> 0 | CI50: =IF(AJ$2=1,AJ50,0) -> 0 | CJ50: =IF(AK$2=1,AK50,0) -> 0 | CK50: =IF(AL$2=1,AL50,0) -> 0 | CL50: =IF(AM$2=1,AM50,0) -> 0 | CM50: =IF(AN$2=1,AN50,0) -> 0 | CN50: 0 | CO50: 0 | CP50: =IF(AQ$2=1,AQ50,0) -> 0 | CQ50: =IF(AR$2=1,AR50,0) -> 0 | CR50: =IF(AS$2=1,AS50,0) -> 0 | CS50: =IF(AT$2=1,AT50,0) -> 0 | CT50: =IF(AU$2=1,AU50,0) -> 0 | CU50: =IF(AV$2=1,AV50,0) -> 0 | CV50: =IF(AW$2=1,AW50,0) -> 0 | CW50: =IF(AX$2=1,AX50,0) -> 0 | CX50: =IF(AY$2=1,AY50,0) -> 0 | CY50: =IF(AZ$2=1,AZ50,0) -> 0 | CZ50: =IF(BA$2=1,BA50,0) -> 0
A51: =Machine!A15 -> Subsoiler, 25 ft. | B51: 0 | D51: 0 | E51: 0 | F51: 0 | G51: 0 | H51: 0 | I51: 0 | J51: 0 | K51: 0 | L51: 0 | M51: 0 | N51: 0 | O51: 0 | P51: 0 | Q51: 0 | R51: 0 | S51: 0 | T51: 0 | U51: 0 | V51: 0 | W51: 0 | X51: 0 | Y51: 0 | Z51: 0 | AA51: 0 | AB51: 0 | AC51: 0 | AD51: 0 | AE51: 0 | AF51: 0 | AG51: 0 | AH51: 0 | AI51: 0 | AJ51: 0 | AK51: 0 | AL51: 0 | AM51: 0 | AN51: 0 | AO51: 0 | AQ51: 0 | AR51: 0 | AS51: 0 | AT51: 0 | BC51: 0 | BD51: 0 | BE51: 0 | BF51: 0 | BG51: 0 | BH51: 0 | BI51: 0 | BJ51: 0 | BK51: 0 | BL51: 0 | BM51: 0 | BN51: 0 | BO51: 0 | BP51: 0 | BQ51: 0 | BR51: 0 | BS51: 0 | BT51: 0 | BU51: 0 | BV51: 0 | BW51: 0 | BX51: 0 | BY51: 0 | BZ51: 0 | CA51: 0 | CB51: 0 | CC51: 0 | CD51: 0 | CE51: 0 | CF51: 0 | CG51: 0 | CH51: 0 | CI51: 0 | CJ51: 0 | CK51: 0 | CL51: 0 | CM51: 0 | CN51: 0 | CO51: 0 | CP51: 0 | CQ51: 0 | CR51: 0 | CS51: 0 | CT51: 0 | CU51: 0 | CV51: 0 | CW51: 0 | CX51: 0 | CY51: 0 | CZ51: 0
A52: =Machine!A16 -> Subsoiler, 5 shank | B52: 0 | D52: 0 | E52: 0 | F52: 0 | G52: 0 | H52: 0 | I52: 0 | J52: 0 | K52: 0 | L52: 0 | M52: 0 | N52: 0 | O52: 0 | P52: 0 | Q52: 0 | R52: 0 | S52: 0 | T52: 0 | U52: 0 | V52: 0 | W52: 0 | X52: 0 | Y52: 0 | Z52: 0 | AA52: 0 | AB52: 0 | AC52: 0 | AD52: 0 | AE52: 0 | AF52: 0 | AG52: 0 | AH52: 0 | AI52: 0 | AJ52: 0 | AK52: 0 | AL52: 0 | AM52: 0 | AN52: 0 | AO52: 0 | AQ52: 0 | AR52: 0 | AS52: 0 | AT52: 0 | BC52: 0 | BD52: 0 | BE52: 0 | BF52: 0 | BG52: 0 | BH52: 0 | BI52: 0 | BJ52: 0 | BK52: 0 | BL52: 0 | BM52: 0 | BN52: 0 | BO52: 0 | BP52: 0 | BQ52: 0 | BR52: 0 | BS52: 0 | BT52: 0 | BU52: 0 | BV52: 0 | BW52: 0 | BX52: 0 | BY52: 0 | BZ52: 0 | CA52: 0 | CB52: 0 | CC52: 0 | CD52: 0 | CE52: 0 | CF52: 0 | CG52: 0 | CH52: 0 | CI52: 0 | CJ52: 0 | CK52: 0 | CL52: 0 | CM52: 0 | CN52: 0 | CO52: 0 | CP52: 0 | CQ52: 0 | CR52: 0 | CS52: 0 | CT52: 0 | CU52: 0 | CV52: 0 | CW52: 0 | CX52: 0 | CY52: 0 | CZ52: 0
A53: =Machine!A17 -> Bedder, Rip/Disk | B53: 0 | D53: 0 | E53: 0 | F53: 0 | G53: 0 | H53: 0 | I53: 0 | J53: 0 | K53: 0 | L53: 0 | M53: 0 | N53: 0 | O53: 0 | P53: 0 | Q53: 0 | R53: 0 | S53: 0 | T53: 0 | U53: 0 | V53: 0 | W53: 0 | X53: 0 | Y53: 0 | Z53: 0 | AA53: 0 | AB53: 0 | AC53: 0 | AD53: 0 | AE53: 0 | AF53: 0 | AG53: 0 | AH53: 0 | AI53: 0 | AJ53: 0 | AK53: 0 | AL53: 0 | AM53: 0 | AN53: 0 | AO53: 0 | AQ53: 0 | AR53: 0 | AS53: 0 | AT53: 0 | BC53: 0 | BD53: 0 | BE53: 0 | BF53: 0 | BG53: 0 | BH53: 0 | BI53: 0 | BJ53: 0 | BK53: 0 | BL53: 0 | BM53: 0 | BN53: 0 | BO53: 0 | BP53: 0 | BQ53: 0 | BR53: 0 | BS53: 0 | BT53: 0 | BU53: 0 | BV53: 0 | BW53: 0 | BX53: 0 | BY53: 0 | BZ53: 0 | CA53: 0 | CB53: 0 | CC53: 0 | CD53: 0 | CE53: 0 | CF53: 0 | CG53: 0 | CH53: 0 | CI53: 0 | CJ53: 0 | CK53: 0 | CL53: 0 | CM53: 0 | CN53: 0 | CO53: 0 | CP53: 0 | CQ53: 0 | CR53: 0 | CS53: 0 | CT53: 0 | CU53: 0 | CV53: 0 | CW53: 0 | CX53: 0 | CY53: 0 | CZ53: 0
A54: =Machine!A18 -> Bedder, Lister | B54: 0 | D54: 0 | E54: 0 | F54: 0 | G54: 0 | H54: 0 | I54: 0 | J54: 0 | K54: 0 | L54: 0 | M54: 0 | N54: 0 | O54: 0 | P54: 0 | Q54: 0 | R54: 0 | S54: 0 | T54: 0 | U54: 0 | V54: 0 | W54: 0 | X54: 0 | Y54: 0 | Z54: 0 | AA54: 0 | AB54: 0 | AC54: 0 | AD54: 0 | AE54: 0 | AF54: 0 | AG54: 0 | AH54: 0 | AI54: 0 | AJ54: 0 | AK54: 0 | AL54: 0 | AM54: 0 | AN54: 0 | AO54: 0 | AQ54: 0 | AR54: 0 | AS54: 0 | AT54: 0 | BC54: 0 | BD54: 0 | BE54: 0 | BF54: 0 | BG54: 0 | BH54: 0 | BI54: 0 | BJ54: 0 | BK54: 0 | BL54: 0 | BM54: 0 | BN54: 0 | BO54: 0 | BP54: 0 | BQ54: 0 | BR54: 0 | BS54: 0 | BT54: 0 | BU54: 0 | BV54: 0 | BW54: 0 | BX54: 0 | BY54: 0 | BZ54: 0 | CA54: 0 | CB54: 0 | CC54: 0 | CD54: 0 | CE54: 0 | CF54: 0 | CG54: 0 | CH54: 0 | CI54: 0 | CJ54: 0 | CK54: 0 | CL54: 0 | CM54: 0 | CN54: 0 | CO54: 0 | CP54: 0 | CQ54: 0 | CR54: 0 | CS54: 0 | CT54: 0 | CU54: 0 | CV54: 0 | CW54: 0 | CX54: 0 | CY54: 0 | CZ54: 0
A55: =Machine!A19 -> Disk | B55: 1 | D55: 1 | E55: 1 | F55: 1 | G55: 1 | H55: 1 | I55: 1 | J55: 1 | K55: 1 | L55: 1 | M55: 1 | N55: 0 | O55: 0 | P55: 0 | Q55: 1 | R55: 1 | S55: 1 | T55: 1 | U55: 0 | V55: 1 | W55: 1 | X55: 1 | Y55: 1 | Z55: 1 | AA55: 1 | AB55: 1 | AC55: 1 | AD55: 1 | AE55: 1 | AF55: 1 | AG55: 1 | AH55: 1 | AI55: 0 | AJ55: 0 | AK55: 0 | AL55: 1 | AM55: 1 | AN55: 1 | AO55: 1 | AQ55: 2 | AR55: 2 | AS55: 2 | AT55: 2 | BC55: 0 | BD55: 0 | BE55: 0 | BF55: 0 | BG55: 0 | BH55: 0 | BI55: 0 | BJ55: 0 | BK55: 0 | BL55: 0 | BM55: 0 | BN55: 0 | BO55: 0 | BP55: 0 | BQ55: 0 | BR55: 0 | BS55: 0 | BT55: 0 | BU55: 0 | BV55: 0 | BW55: 0 | BX55: 0 | BY55: 0 | BZ55: 0 | CA55: 0 | CB55: 0 | CC55: 0 | CD55: 0 | CE55: 0 | CF55: 0 | CG55: 0 | CH55: 0 | CI55: 0 | CJ55: 0 | CK55: 1 | CL55: 0 | CM55: 0 | CN55: 0 | CO55: 0 | CP55: 0 | CQ55: 0 | CR55: 0 | CS55: 0 | CT55: 0 | CU55: 0 | CV55: 0 | CW55: 0 | CX55: 0 | CY55: 0 | CZ55: 0
A56: =Machine!A20 -> Bedder, Hipper | B56: 2 | D56: 1 | E56: 1 | F56: 1 | G56: 1 | H56: 1 | I56: 1 | J56: 1 | K56: 1 | L56: 1 | M56: 1 | N56: 2 | O56: 2 | P56: 2 | Q56: 0 | R56: 0 | S56: 0 | T56: 0 | U56: 0 | V56: 2 | W56: 2 | X56: 2 | Y56: 0 | Z56: 2 | AA56: 2 | AB56: 2 | AC56: 0 | AD56: 2 | AE56: 0 | AF56: 1 | AG56: 1 | AH56: 1 | AI56: 2 | AJ56: 2 | AK56: 2 | AL56: 2 | AM56: 2 | AN56: 0 | AO56: 1 | AQ56: 1 | AR56: 1 | AS56: 1 | AT56: 1 | BC56: 0 | BD56: 0 | BE56: 0 | BF56: 0 | BG56: 0 | BH56: 0 | BI56: 0 | BJ56: 0 | BK56: 0 | BL56: 0 | BM56: 0 | BN56: 0 | BO56: 0 | BP56: 0 | BQ56: 0 | BR56: 0 | BS56: 0 | BT56: 0 | BU56: 0 | BV56: 0 | BW56: 0 | BX56: 0 | BY56: 0 | BZ56: 0 | CA56: 0 | CB56: 0 | CC56: 0 | CD56: 0 | CE56: 0 | CF56: 0 | CG56: 0 | CH56: 0 | CI56: 0 | CJ56: 0 | CK56: 2 | CL56: 0 | CM56: 0 | CN56: 0 | CO56: 0 | CP56: 0 | CQ56: 0 | CR56: 0 | CS56: 0 | CT56: 0 | CU56: 0 | CV56: 0 | CW56: 0 | CX56: 0 | CY56: 0 | CZ56: 0
A57: =Machine!A21 -> Chisel Plow | B57: 0 | D57: 0 | E57: 0 | F57: 0 | G57: 1 | H57: 1 | I57: 1 | J57: 1 | K57: 1 | L57: 1 | M57: 1 | N57: 0 | O57: 0 | P57: 0 | Q57: 0 | R57: 0 | S57: 0 | T57: 0 | U57: 0 | V57: 0 | W57: 0 | X57: 0 | Y57: 0 | Z57: 0 | AA57: 0 | AB57: 0 | AC57: 0 | AD57: 0 | AE57: 0 | AF57: 0 | AG57: 0 | AH57: 0 | AI57: 0 | AJ57: 0 | AK57: 0 | AL57: 0 | AM57: 0 | AN57: 0 | AO57: 1 | AQ57: 0 | AR57: 0 | AS57: 0 | AT57: 0 | BC57: 0 | BD57: 0 | BE57: 0 | BF57: 0 | BG57: 0 | BH57: 0 | BI57: 0 | BJ57: 0 | BK57: 0 | BL57: 0 | BM57: 0 | BN57: 0 | BO57: 0 | BP57: 0 | BQ57: 0 | BR57: 0 | BS57: 0 | BT57: 0 | BU57: 0 | BV57: 0 | BW57: 0 | BX57: 0 | BY57: 0 | BZ57: 0 | CA57: 0 | CB57: 0 | CC57: 0 | CD57: 0 | CE57: 0 | CF57: 0 | CG57: 0 | CH57: 0 | CI57: 0 | CJ57: 0 | CK57: 0 | CL57: 0 | CM57: 0 | CN57: 0 | CO57: 0 | CP57: 0 | CQ57: 0 | CR57: 0 | CS57: 0 | CT57: 0 | CU57: 0 | CV57: 0 | CW57: 0 | CX57: 0 | CY57: 0 | CZ57: 0
A58: =Machine!A22 -> Harrow | B58: 0 | D58: 0 | E58: 0 | F58: 0 | G58: 0 | H58: 0 | I58: 0 | J58: 0 | K58: 0 | L58: 0 | M58: 0 | N58: 0 | O58: 0 | P58: 0 | Q58: 0 | R58: 0 | S58: 0 | T58: 0 | U58: 0 | V58: 0 | W58: 0 | X58: 0 | Y58: 0 | Z58: 0 | AA58: 0 | AB58: 0 | AC58: 0 | AD58: 0 | AE58: 0 | AF58: 0 | AG58: 0 | AH58: 0 | AI58: 0 | AJ58: 0 | AK58: 0 | AL58: 0 | AM58: 0 | AN58: 0 | AO58: 0 | AQ58: 0 | AR58: 0 | AS58: 0 | AT58: 0 | BC58: 0 | BD58: 0 | BE58: 0 | BF58: 0 | BG58: 0 | BH58: 0 | BI58: 0 | BJ58: 0 | BK58: 0 | BL58: 0 | BM58: 0 | BN58: 0 | BO58: 0 | BP58: 0 | BQ58: 0 | BR58: 0 | BS58: 0 | BT58: 0 | BU58: 0 | BV58: 0 | BW58: 0 | BX58: 0 | BY58: 0 | BZ58: 0 | CA58: 0 | CB58: 0 | CC58: 0 | CD58: 0 | CE58: 0 | CF58: 0 | CG58: 0 | CH58: 0 | CI58: 0 | CJ58: 0 | CK58: 0 | CL58: 0 | CM58: 0 | CN58: 0 | CO58: 0 | CP58: 0 | CQ58: 0 | CR58: 0 | CS58: 0 | CT58: 0 | CU58: 0 | CV58: 0 | CW58: 0 | CX58: 0 | CY58: 0 | CZ58: 0
A59: =Machine!A23 -> Roller | B59: 0 | D59: 0 | E59: 0 | F59: 0 | G59: 0 | H59: 0 | I59: 0 | J59: 0 | K59: 0 | L59: 0 | M59: 0 | N59: 0 | O59: 0 | P59: 0 | Q59: 1 | R59: 1 | S59: 1 | T59: 1 | U59: 0 | V59: 0 | W59: 0 | X59: 0 | Y59: 0 | Z59: 0 | AA59: 0 | AB59: 0 | AC59: 0 | AD59: 0 | AE59: 0 | AF59: 0 | AG59: 0 | AH59: 0 | AI59: 0 | AJ59: 0 | AK59: 0 | AL59: 0 | AM59: 0 | AN59: 0 | AO59: 0 | AQ59: 0 | AR59: 0 | AS59: 0 | AT59: 0 | BC59: 0 | BD59: 0 | BE59: 0 | BF59: 0 | BG59: 0 | BH59: 0 | BI59: 0 | BJ59: 0 | BK59: 0 | BL59: 0 | BM59: 0 | BN59: 0 | BO59: 0 | BP59: 0 | BQ59: 0 | BR59: 0 | BS59: 0 | BT59: 0 | BU59: 0 | BV59: 0 | BW59: 0 | BX59: 0 | BY59: 0 | BZ59: 0 | CA59: 0 | CB59: 0 | CC59: 0 | CD59: 0 | CE59: 0 | CF59: 0 | CG59: 0 | CH59: 0 | CI59: 0 | CJ59: 0 | CK59: 0 | CL59: 0 | CM59: 0 | CN59: 0 | CO59: 0 | CP59: 0 | CQ59: 0 | CR59: 0 | CS59: 0 | CT59: 0 | CU59: 0 | CV59: 0 | CW59: 0 | CX59: 0 | CY59: 0 | CZ59: 0
A60: =Machine!A24 -> Bedder-Roller | B60: 0 | D60: 0 | E60: 0 | F60: 0 | G60: 0 | H60: 0 | I60: 0 | J60: 0 | K60: 0 | L60: 0 | M60: 0 | N60: 0 | O60: 0 | P60: 0 | Q60: 0 | R60: 0 | S60: 0 | T60: 0 | U60: 0 | V60: 0 | W60: 0 | X60: 0 | Y60: 0 | Z60: 0 | AA60: 0 | AB60: 0 | AC60: 0 | AD60: 0 | AE60: 0 | AF60: 0 | AG60: 0 | AH60: 0 | AI60: 0 | AJ60: 0 | AK60: 0 | AL60: 0 | AM60: 0 | AN60: 0 | AO60: 0 | AQ60: 0 | AR60: 0 | AS60: 0 | AT60: 0 | BC60: 0 | BD60: 0 | BE60: 0 | BF60: 0 | BG60: 0 | BH60: 0 | BI60: 0 | BJ60: 0 | BK60: 0 | BL60: 0 | BM60: 0 | BN60: 0 | BO60: 0 | BP60: 0 | BQ60: 0 | BR60: 0 | BS60: 0 | BT60: 0 | BU60: 0 | BV60: 0 | BW60: 0 | BX60: 0 | BY60: 0 | BZ60: 0 | CA60: 0 | CB60: 0 | CC60: 0 | CD60: 0 | CE60: 0 | CF60: 0 | CG60: 0 | CH60: 0 | CI60: 0 | CJ60: 0 | CK60: 0 | CL60: 0 | CM60: 0 | CN60: 0 | CO60: 0 | CP60: 0 | CQ60: 0 | CR60: 0 | CS60: 0 | CT60: 0 | CU60: 0 | CV60: 0 | CW60: 0 | CX60: 0 | CY60: 0 | CZ60: 0
A61: =Machine!A25 -> Ditcher | B61: 0 | D61: 0 | E61: 0 | F61: 0 | G61: 0 | H61: 0 | I61: 0 | J61: 0 | K61: 0 | L61: 0 | M61: 0 | N61: 0 | O61: 0 | P61: 0 | Q61: 1 | R61: 1 | S61: 1 | T61: 1 | U61: 1 | V61: 0 | W61: 0 | X61: 0 | Y61: 1 | Z61: 0 | AA61: 0 | AB61: 0 | AC61: 1 | AD61: 0 | AE61: 1 | AF61: 0 | AG61: 0 | AH61: 0 | AI61: 0 | AJ61: 0 | AK61: 0 | AL61: 0 | AM61: 0 | AN61: 1 | AO61: 0 | AQ61: 0 | AR61: 0 | AS61: 0 | AT61: 0 | BC61: 0 | BD61: 0 | BE61: 0 | BF61: 0 | BG61: 0 | BH61: 0 | BI61: 0 | BJ61: 0 | BK61: 0 | BL61: 0 | BM61: 0 | BN61: 0 | BO61: 0 | BP61: 0 | BQ61: 0 | BR61: 0 | BS61: 0 | BT61: 0 | BU61: 0 | BV61: 0 | BW61: 0 | BX61: 0 | BY61: 0 | BZ61: 0 | CA61: 0 | CB61: 0 | CC61: 0 | CD61: 0 | CE61: 0 | CF61: 0 | CG61: 0 | CH61: 0 | CI61: 0 | CJ61: 0 | CK61: 0 | CL61: 0 | CM61: 0 | CN61: 0 | CO61: 0 | CP61: 0 | CQ61: 0 | CR61: 0 | CS61: 0 | CT61: 0 | CU61: 0 | CV61: 0 | CW61: 0 | CX61: 0 | CY61: 0 | CZ61: 0
A62: =Machine!A26 -> Turbo Tiller | B62: 0 | D62: 0 | E62: 0 | F62: 0 | G62: 0 | H62: 0 | I62: 0 | J62: 0 | K62: 0 | L62: 0 | M62: 0 | N62: 0 | O62: 0 | P62: 0 | Q62: 0 | R62: 0 | S62: 0 | T62: 0 | U62: 0 | V62: 0 | W62: 0 | X62: 0 | Y62: 0 | Z62: 0 | AA62: 0 | AB62: 0 | AC62: 0 | AD62: 0 | AE62: 0 | AF62: 0 | AG62: 0 | AH62: 0 | AI62: 0 | AJ62: 0 | AK62: 0 | AL62: 0 | AM62: 0 | AN62: 0 | AO62: 0 | AQ62: 0 | AR62: 0 | AS62: 0 | AT62: 0 | BC62: 0 | BD62: 0 | BE62: 0 | BF62: 0 | BG62: 0 | BH62: 0 | BI62: 0 | BJ62: 0 | BK62: 0 | BL62: 0 | BM62: 0 | BN62: 0 | BO62: 0 | BP62: 0 | BQ62: 0 | BR62: 0 | BS62: 0 | BT62: 0 | BU62: 0 | BV62: 0 | BW62: 0 | BX62: 0 | BY62: 0 | BZ62: 0 | CA62: 0 | CB62: 0 | CC62: 0 | CD62: 0 | CE62: 0 | CF62: 0 | CG62: 0 | CH62: 0 | CI62: 0 | CJ62: 0 | CK62: 0 | CL62: 0 | CM62: 0 | CN62: 0 | CO62: 0 | CP62: 0 | CQ62: 0 | CR62: 0 | CS62: 0 | CT62: 0 | CU62: 0 | CV62: 0 | CW62: 0 | CX62: 0 | CY62: 0 | CZ62: 0
A63: =Machine!A27 -> Rotary Harrow (ex. Phillips) | B63: 0 | D63: 0 | E63: 0 | F63: 0 | G63: 0 | H63: 0 | I63: 0 | J63: 0 | K63: 0 | L63: 0 | M63: 0 | N63: 0 | O63: 0 | P63: 0 | Q63: 0 | R63: 0 | S63: 0 | T63: 0 | U63: 0 | V63: 0 | W63: 0 | X63: 0 | Y63: 0 | Z63: 0 | AA63: 0 | AB63: 0 | AC63: 0 | AD63: 0 | AE63: 0 | AF63: 0 | AG63: 0 | AH63: 0 | AI63: 0 | AJ63: 0 | AK63: 0 | AL63: 0 | AM63: 0 | AN63: 0 | AO63: 0 | AQ63: 0 | AR63: 0 | AS63: 0 | AT63: 0 | BC63: 0 | BD63: 0 | BE63: 0 | BF63: 0 | BG63: 0 | BH63: 0 | BI63: 0 | BJ63: 0 | BK63: 0 | BL63: 0 | BM63: 0 | BN63: 0 | BO63: 0 | BP63: 0 | BQ63: 0 | BR63: 0 | BS63: 0 | BT63: 0 | BU63: 0 | BV63: 0 | BW63: 0 | BX63: 0 | BY63: 0 | BZ63: 0 | CA63: 0 | CB63: 0 | CC63: 0 | CD63: 0 | CE63: 0 | CF63: 0 | CG63: 0 | CH63: 0 | CI63: 0 | CJ63: 0 | CK63: 0 | CL63: 0 | CM63: 0 | CN63: 0 | CO63: 0 | CP63: 0 | CQ63: 0 | CR63: 0 | CS63: 0 | CT63: 0 | CU63: 0 | CV63: 0 | CW63: 0 | CX63: 0 | CY63: 0 | CZ63: 0
A64: =Machine!A28 -> Field Cultivator | B64: 0 | D64: 1 | E64: 1 | F64: 1 | G64: 0 | H64: 0 | I64: 0 | J64: 0 | K64: 0 | L64: 0 | M64: 0 | N64: 0 | O64: 0 | P64: 0 | Q64: 1 | R64: 1 | S64: 1 | T64: 1 | U64: 0 | V64: 0 | W64: 0 | X64: 0 | Y64: 2 | Z64: 0 | AA64: 0 | AB64: 0 | AC64: 2 | AD64: 0 | AE64: 1 | AF64: 1 | AG64: 1 | AH64: 1 | AI64: 0 | AJ64: 0 | AK64: 0 | AL64: 0 | AM64: 0 | AN64: 2 | AO64: 0 | AQ64: 1 | AR64: 1 | AS64: 1 | AT64: 1 | BC64: 0 | BD64: 0 | BE64: 0 | BF64: 0 | BG64: 0 | BH64: 0 | BI64: 0 | BJ64: 0 | BK64: 0 | BL64: 0 | BM64: 0 | BN64: 0 | BO64: 0 | BP64: 0 | BQ64: 0 | BR64: 0 | BS64: 0 | BT64: 0 | BU64: 0 | BV64: 0 | BW64: 0 | BX64: 0 | BY64: 0 | BZ64: 0 | CA64: 0 | CB64: 0 | CC64: 0 | CD64: 0 | CE64: 0 | CF64: 0 | CG64: 0 | CH64: 0 | CI64: 0 | CJ64: 0 | CK64: 0 | CL64: 0 | CM64: 0 | CN64: 0 | CO64: 0 | CP64: 0 | CQ64: 0 | CR64: 0 | CS64: 0 | CT64: 0 | CU64: 0 | CV64: 0 | CW64: 0 | CX64: 0 | CY64: 0 | CZ64: 0
A65: =Machine!A29 -> Row Crop Cultivator, Irrigation Middles | B65: 0 | D65: 0 | E65: 0 | F65: 0 | G65: 1 | H65: 0 | I65: 0 | J65: 1 | K65: 0 | L65: 0 | M65: 1 | N65: 0 | O65: 0 | P65: 0 | Q65: 0 | R65: 0 | S65: 0 | T65: 0 | U65: 0 | V65: 0 | W65: 0 | X65: 0 | Y65: 0 | Z65: 1 | AA65: 0 | AB65: 0 | AC65: 0 | AD65: 1 | AE65: 0 | AF65: 1 | AG65: 0 | AH65: 0 | AI65: 1 | AJ65: 0 | AK65: 0 | AL65: 0 | AM65: 0 | AN65: 0 | AO65: 1 | AQ65: 1 | AR65: 1 | AS65: 1 | AT65: 1 | BC65: 0 | BD65: 0 | BE65: 0 | BF65: 0 | BG65: 0 | BH65: 0 | BI65: 0 | BJ65: 0 | BK65: 0 | BL65: 0 | BM65: 0 | BN65: 0 | BO65: 0 | BP65: 0 | BQ65: 0 | BR65: 0 | BS65: 0 | BT65: 0 | BU65: 0 | BV65: 0 | BW65: 0 | BX65: 0 | BY65: 0 | BZ65: 0 | CA65: 0 | CB65: 0 | CC65: 0 | CD65: 0 | CE65: 0 | CF65: 0 | CG65: 0 | CH65: 0 | CI65: 0 | CJ65: 0 | CK65: 0 | CL65: 0 | CM65: 0 | CN65: 0 | CO65: 0 | CP65: 0 | CQ65: 0 | CR65: 0 | CS65: 0 | CT65: 0 | CU65: 0 | CV65: 0 | CW65: 0 | CX65: 0 | CY65: 0 | CZ65: 0
A66: =Machine!A30 -> Sprayer, Tractor Mounted (ft) | B66: 0 | D66: 0 | E66: 0 | F66: 0 | G66: 0 | H66: 0 | I66: 0 | J66: 0 | K66: 0 | L66: 0 | M66: 0 | N66: 0 | O66: 0 | P66: 0 | Q66: 0 | R66: 0 | S66: 0 | T66: 0 | U66: 0 | V66: 0 | W66: 0 | X66: 0 | Y66: 0 | Z66: 0 | AA66: 0 | AB66: 0 | AC66: 0 | AD66: 0 | AE66: 0 | AF66: 0 | AG66: 0 | AH66: 0 | AI66: 0 | AJ66: 0 | AK66: 0 | AL66: 0 | AM66: 0 | AN66: 0 | AO66: 0 | AQ66: 0 | AR66: 0 | AS66: 0 | AT66: 0 | BC66: 0 | BD66: 0 | BE66: 0 | BF66: 0 | BG66: 0 | BH66: 0 | BI66: 0 | BJ66: 0 | BK66: 0 | BL66: 0 | BM66: 0 | BN66: 0 | BO66: 0 | BP66: 0 | BQ66: 0 | BR66: 0 | BS66: 0 | BT66: 0 | BU66: 0 | BV66: 0 | BW66: 0 | BX66: 0 | BY66: 0 | BZ66: 0 | CA66: 0 | CB66: 0 | CC66: 0 | CD66: 0 | CE66: 0 | CF66: 0 | CG66: 0 | CH66: 0 | CI66: 0 | CJ66: 0 | CK66: 0 | CL66: 0 | CM66: 0 | CN66: 0 | CO66: 0 | CP66: 0 | CQ66: 0 | CR66: 0 | CS66: 0 | CT66: 0 | CU66: 0 | CV66: 0 | CW66: 0 | CX66: 0 | CY66: 0 | CZ66: 0
A67: =Machine!A31 -> Sprayer, Tractor Mounted (row) | B67: 0 | D67: 0 | E67: 0 | F67: 0 | G67: 0 | H67: 0 | I67: 0 | J67: 0 | K67: 0 | L67: 0 | M67: 0 | N67: 0 | O67: 0 | P67: 0 | Q67: 0 | R67: 0 | S67: 0 | T67: 0 | U67: 0 | V67: 0 | W67: 0 | X67: 0 | Y67: 0 | Z67: 0 | AA67: 0 | AB67: 0 | AC67: 0 | AD67: 0 | AE67: 0 | AF67: 0 | AG67: 0 | AH67: 0 | AI67: 0 | AJ67: 0 | AK67: 0 | AL67: 0 | AM67: 0 | AN67: 0 | AO67: 0 | AQ67: 0 | AR67: 0 | AS67: 0 | AT67: 0 | BC67: 0 | BD67: 0 | BE67: 0 | BF67: 0 | BG67: 0 | BH67: 0 | BI67: 0 | BJ67: 0 | BK67: 0 | BL67: 0 | BM67: 0 | BN67: 0 | BO67: 0 | BP67: 0 | BQ67: 0 | BR67: 0 | BS67: 0 | BT67: 0 | BU67: 0 | BV67: 0 | BW67: 0 | BX67: 0 | BY67: 0 | BZ67: 0 | CA67: 0 | CB67: 0 | CC67: 0 | CD67: 0 | CE67: 0 | CF67: 0 | CG67: 0 | CH67: 0 | CI67: 0 | CJ67: 0 | CK67: 0 | CL67: 0 | CM67: 0 | CN67: 0 | CO67: 0 | CP67: 0 | CQ67: 0 | CR67: 0 | CS67: 0 | CT67: 0 | CU67: 0 | CV67: 0 | CW67: 0 | CX67: 0 | CY67: 0 | CZ67: 0
A68: =Machine!A32 -> Land Plane | B68: 0 | D68: 0 | E68: 0 | F68: 0 | G68: 0 | H68: 0 | I68: 0 | J68: 0 | K68: 0 | L68: 0 | M68: 0 | N68: 0 | O68: 0 | P68: 0 | Q68: 1 | R68: 1 | S68: 1 | T68: 1 | U68: 0 | V68: 0 | W68: 0 | X68: 0 | Y68: 1 | Z68: 0 | AA68: 0 | AB68: 0 | AC68: 1 | AD68: 0 | AE68: 1 | AF68: 0 | AG68: 0 | AH68: 0 | AI68: 0 | AJ68: 0 | AK68: 0 | AL68: 0 | AM68: 0 | AN68: 1 | AO68: 0 | AQ68: 0 | AR68: 0 | AS68: 0 | AT68: 0 | BC68: 0 | BD68: 0 | BE68: 0 | BF68: 0 | BG68: 0 | BH68: 0 | BI68: 0 | BJ68: 0 | BK68: 0 | BL68: 0 | BM68: 0 | BN68: 0 | BO68: 0 | BP68: 0 | BQ68: 0 | BR68: 0 | BS68: 0 | BT68: 0 | BU68: 0 | BV68: 0 | BW68: 0 | BX68: 0 | BY68: 0 | BZ68: 0 | CA68: 0 | CB68: 0 | CC68: 0 | CD68: 0 | CE68: 0 | CF68: 0 | CG68: 0 | CH68: 0 | CI68: 0 | CJ68: 0 | CK68: 0 | CL68: 0 | CM68: 0 | CN68: 0 | CO68: 0 | CP68: 0 | CQ68: 0 | CR68: 0 | CS68: 0 | CT68: 0 | CU68: 0 | CV68: 0 | CW68: 0 | CX68: 0 | CY68: 0 | CZ68: 0
A69: =Machine!A33 -> Fertilizer, Broadcast Spreader | B69: 1 | D69: 1 | E69: 1 | F69: 1 | G69: 1 | H69: 1 | I69: 1 | J69: 1 | K69: 1 | L69: 1 | M69: 1 | N69: 2 | O69: 2 | P69: 2 | Q69: 1 | R69: 1 | S69: 1 | T69: 1 | U69: 0 | V69: 1 | W69: 1 | X69: 1 | Y69: 1 | Z69: 1 | AA69: 1 | AB69: 1 | AC69: 1 | AD69: 1 | AE69: 2 | AF69: 1 | AG69: 1 | AH69: 1 | AI69: 1 | AJ69: 1 | AK69: 1 | AL69: 1 | AM69: 1 | AN69: 1 | AO69: 1 | AQ69: 1 | AR69: 1 | AS69: 1 | AT69: 1 | BC69: 0 | BD69: 0 | BE69: 0 | BF69: 0 | BG69: 0 | BH69: 0 | BI69: 0 | BJ69: 0 | BK69: 0 | BL69: 0 | BM69: 0 | BN69: 0 | BO69: 0 | BP69: 0 | BQ69: 0 | BR69: 0 | BS69: 0 | BT69: 0 | BU69: 0 | BV69: 0 | BW69: 0 | BX69: 0 | BY69: 0 | BZ69: 0 | CA69: 0 | CB69: 0 | CC69: 0 | CD69: 0 | CE69: 0 | CF69: 0 | CG69: 0 | CH69: 0 | CI69: 0 | CJ69: 0 | CK69: 1 | CL69: 0 | CM69: 0 | CN69: 0 | CO69: 0 | CP69: 0 | CQ69: 0 | CR69: 0 | CS69: 0 | CT69: 0 | CU69: 0 | CV69: 0 | CW69: 0 | CX69: 0 | CY69: 0 | CZ69: 0
A70: =Machine!A34 -> Do All, Seedbed Finisher | B70: 1 | D70: 1 | E70: 1 | F70: 1 | G70: 1 | H70: 1 | I70: 1 | J70: 1 | K70: 1 | L70: 1 | M70: 1 | N70: 1 | O70: 1 | P70: 1 | Q70: 0 | R70: 0 | S70: 0 | T70: 0 | U70: 0 | V70: 1 | W70: 1 | X70: 1 | Y70: 0 | Z70: 1 | AA70: 1 | AB70: 1 | AC70: 0 | AD70: 1 | AE70: 0 | AF70: 1 | AG70: 1 | AH70: 1 | AI70: 1 | AJ70: 1 | AK70: 1 | AL70: 1 | AM70: 1 | AN70: 0 | AO70: 1 | AQ70: 1 | AR70: 1 | AS70: 1 | AT70: 1 | BC70: 0 | BD70: 0 | BE70: 0 | BF70: 0 | BG70: 0 | BH70: 0 | BI70: 0 | BJ70: 0 | BK70: 0 | BL70: 0 | BM70: 0 | BN70: 0 | BO70: 0 | BP70: 0 | BQ70: 0 | BR70: 0 | BS70: 0 | BT70: 0 | BU70: 0 | BV70: 0 | BW70: 0 | BX70: 0 | BY70: 0 | BZ70: 0 | CA70: 0 | CB70: 0 | CC70: 0 | CD70: 0 | CE70: 0 | CF70: 0 | CG70: 0 | CH70: 0 | CI70: 0 | CJ70: 0 | CK70: 1 | CL70: 0 | CM70: 0 | CN70: 0 | CO70: 0 | CP70: 0 | CQ70: 0 | CR70: 0 | CS70: 0 | CT70: 0 | CU70: 0 | CV70: 0 | CW70: 0 | CX70: 0 | CY70: 0 | CZ70: 0
A71: =Machine!A35 -> Planter | B71: 0 | D71: 1 | E71: 1 | F71: 1 | G71: 1 | H71: 1 | I71: 1 | J71: 1 | K71: 1 | L71: 1 | M71: 1 | N71: 1 | O71: 1 | P71: 1 | Q71: 0 | R71: 0 | S71: 0 | T71: 0 | U71: 0 | V71: 0 | W71: 0 | X71: 0 | Y71: 0 | Z71: 0 | AA71: 0 | AB71: 0 | AC71: 0 | AD71: 0 | AE71: 0 | AF71: 1 | AG71: 1 | AH71: 1 | AI71: 1 | AJ71: 1 | AK71: 1 | AL71: 0 | AM71: 0 | AN71: 0 | AO71: 1 | AQ71: 0 | AR71: 0 | AS71: 0 | AT71: 0 | BC71: 0 | BD71: 0 | BE71: 0 | BF71: 0 | BG71: 0 | BH71: 0 | BI71: 0 | BJ71: 0 | BK71: 0 | BL71: 0 | BM71: 0 | BN71: 0 | BO71: 0 | BP71: 0 | BQ71: 0 | BR71: 0 | BS71: 0 | BT71: 0 | BU71: 0 | BV71: 0 | BW71: 0 | BX71: 0 | BY71: 0 | BZ71: 0 | CA71: 0 | CB71: 0 | CC71: 0 | CD71: 0 | CE71: 0 | CF71: 0 | CG71: 0 | CH71: 0 | CI71: 0 | CJ71: 0 | CK71: 0 | CL71: 0 | CM71: 0 | CN71: 0 | CO71: 0 | CP71: 0 | CQ71: 0 | CR71: 0 | CS71: 0 | CT71: 0 | CU71: 0 | CV71: 0 | CW71: 0 | CX71: 0 | CY71: 0 | CZ71: 0
A72: =Machine!A36 -> Planter Twin Row | B72: 1 | D72: 0 | E72: 0 | F72: 0 | G72: 0 | H72: 0 | I72: 0 | J72: 0 | K72: 0 | L72: 0 | M72: 0 | N72: 0 | O72: 0 | P72: 0 | Q72: 0 | R72: 0 | S72: 0 | T72: 0 | U72: 0 | V72: 1 | W72: 1 | X72: 1 | Y72: 0 | Z72: 1 | AA72: 1 | AB72: 1 | AC72: 0 | AD72: 1 | AE72: 0 | AF72: 0 | AG72: 0 | AH72: 0 | AI72: 0 | AJ72: 0 | AK72: 0 | AL72: 1 | AM72: 1 | AN72: 0 | AO72: 0 | AQ72: 0 | AR72: 0 | AS72: 0 | AT72: 0 | BC72: 0 | BD72: 0 | BE72: 0 | BF72: 0 | BG72: 0 | BH72: 0 | BI72: 0 | BJ72: 0 | BK72: 0 | BL72: 0 | BM72: 0 | BN72: 0 | BO72: 0 | BP72: 0 | BQ72: 0 | BR72: 0 | BS72: 0 | BT72: 0 | BU72: 0 | BV72: 0 | BW72: 0 | BX72: 0 | BY72: 0 | BZ72: 0 | CA72: 0 | CB72: 0 | CC72: 0 | CD72: 0 | CE72: 0 | CF72: 0 | CG72: 0 | CH72: 0 | CI72: 0 | CJ72: 0 | CK72: 1 | CL72: 0 | CM72: 0 | CN72: 0 | CO72: 0 | CP72: 0 | CQ72: 0 | CR72: 0 | CS72: 0 | CT72: 0 | CU72: 0 | CV72: 0 | CW72: 0 | CX72: 0 | CY72: 0 | CZ72: 0
A73: =Machine!A37 -> Plant Grain Drill | B73: 0 | D73: 0 | E73: 0 | F73: 0 | G73: 0 | H73: 0 | I73: 0 | J73: 0 | K73: 0 | L73: 0 | M73: 0 | N73: 0 | O73: 0 | P73: 0 | Q73: 1 | R73: 1 | S73: 1 | T73: 1 | U73: 0 | V73: 0 | W73: 0 | X73: 0 | Y73: 1 | Z73: 0 | AA73: 0 | AB73: 0 | AC73: 1 | AD73: 0 | AE73: 1 | AF73: 0 | AG73: 0 | AH73: 0 | AI73: 0 | AJ73: 0 | AK73: 0 | AL73: 0 | AM73: 0 | AN73: 1 | AO73: 0 | AQ73: 1 | AR73: 1 | AS73: 1 | AT73: 1 | BC73: 0 | BD73: 0 | BE73: 0 | BF73: 0 | BG73: 0 | BH73: 0 | BI73: 0 | BJ73: 0 | BK73: 0 | BL73: 0 | BM73: 0 | BN73: 0 | BO73: 0 | BP73: 0 | BQ73: 0 | BR73: 0 | BS73: 0 | BT73: 0 | BU73: 0 | BV73: 0 | BW73: 0 | BX73: 0 | BY73: 0 | BZ73: 0 | CA73: 0 | CB73: 0 | CC73: 0 | CD73: 0 | CE73: 0 | CF73: 0 | CG73: 0 | CH73: 0 | CI73: 0 | CJ73: 0 | CK73: 0 | CL73: 0 | CM73: 0 | CN73: 0 | CO73: 0 | CP73: 0 | CQ73: 0 | CR73: 0 | CS73: 0 | CT73: 0 | CU73: 0 | CV73: 0 | CW73: 0 | CX73: 0 | CY73: 0 | CZ73: 0
A74: =Machine!A38 -> Plant No-Till Air Drill | B74: 0 | D74: 0 | E74: 0 | F74: 0 | G74: 0 | H74: 0 | I74: 0 | J74: 0 | K74: 0 | L74: 0 | M74: 0 | N74: 0 | O74: 0 | P74: 0 | Q74: 0 | R74: 0 | S74: 0 | T74: 0 | U74: 0 | V74: 0 | W74: 0 | X74: 0 | Y74: 0 | Z74: 0 | AA74: 0 | AB74: 0 | AC74: 0 | AD74: 0 | AE74: 0 | AF74: 0 | AG74: 0 | AH74: 0 | AI74: 0 | AJ74: 0 | AK74: 0 | AL74: 0 | AM74: 0 | AN74: 0 | AO74: 0 | AQ74: 0 | AR74: 0 | AS74: 0 | AT74: 0 | BC74: 0 | BD74: 0 | BE74: 0 | BF74: 0 | BG74: 0 | BH74: 0 | BI74: 0 | BJ74: 0 | BK74: 0 | BL74: 0 | BM74: 0 | BN74: 0 | BO74: 0 | BP74: 0 | BQ74: 0 | BR74: 0 | BS74: 0 | BT74: 0 | BU74: 0 | BV74: 0 | BW74: 0 | BX74: 0 | BY74: 0 | BZ74: 0 | CA74: 0 | CB74: 0 | CC74: 0 | CD74: 0 | CE74: 0 | CF74: 0 | CG74: 0 | CH74: 0 | CI74: 0 | CJ74: 0 | CK74: 0 | CL74: 0 | CM74: 0 | CN74: 0 | CO74: 0 | CP74: 0 | CQ74: 0 | CR74: 0 | CS74: 0 | CT74: 0 | CU74: 0 | CV74: 0 | CW74: 0 | CX74: 0 | CY74: 0 | CZ74: 0
A75: =Machine!A39 -> Liquid Fertilizer Applicator | B75: 0 | D75: 0 | E75: 0 | F75: 0 | G75: 0 | H75: 0 | I75: 0 | J75: 0 | K75: 0 | L75: 0 | M75: 0 | N75: 0 | O75: 0 | P75: 0 | Q75: 0 | R75: 0 | S75: 0 | T75: 0 | U75: 0 | V75: 0 | W75: 0 | X75: 0 | Y75: 0 | Z75: 0 | AA75: 0 | AB75: 0 | AC75: 0 | AD75: 0 | AE75: 0 | AF75: 0 | AG75: 0 | AH75: 0 | AI75: 0 | AJ75: 0 | AK75: 0 | AL75: 0 | AM75: 0 | AN75: 0 | AO75: 0 | AQ75: 0 | AR75: 0 | AS75: 0 | AT75: 0 | BC75: 0 | BD75: 0 | BE75: 0 | BF75: 0 | BG75: 0 | BH75: 0 | BI75: 0 | BJ75: 0 | BK75: 0 | BL75: 0 | BM75: 0 | BN75: 0 | BO75: 0 | BP75: 0 | BQ75: 0 | BR75: 0 | BS75: 0 | BT75: 0 | BU75: 0 | BV75: 0 | BW75: 0 | BX75: 0 | BY75: 0 | BZ75: 0 | CA75: 0 | CB75: 0 | CC75: 0 | CD75: 0 | CE75: 0 | CF75: 0 | CG75: 0 | CH75: 0 | CI75: 0 | CJ75: 0 | CK75: 0 | CL75: 0 | CM75: 0 | CN75: 0 | CO75: 0 | CP75: 0 | CQ75: 0 | CR75: 0 | CS75: 0 | CT75: 0 | CU75: 0 | CV75: 0 | CW75: 0 | CX75: 0 | CY75: 0 | CZ75: 0
A76: =Machine!A40 -> Fertilizer, Knife Rig 12 Row | B76: 0 | D76: 1 | E76: 1 | F76: 1 | G76: 1 | H76: 1 | I76: 1 | J76: 1 | K76: 1 | L76: 1 | M76: 1 | N76: 0 | O76: 0 | P76: 0 | Q76: 0 | R76: 0 | S76: 0 | T76: 0 | U76: 0 | V76: 0 | W76: 0 | X76: 0 | Y76: 0 | Z76: 0 | AA76: 0 | AB76: 0 | AC76: 0 | AD76: 0 | AE76: 0 | AF76: 0 | AG76: 0 | AH76: 0 | AI76: 1 | AJ76: 1 | AK76: 1 | AL76: 0 | AM76: 0 | AN76: 0 | AO76: 1 | AQ76: 0 | AR76: 0 | AS76: 0 | AT76: 0 | BC76: 0 | BD76: 0 | BE76: 0 | BF76: 0 | BG76: 0 | BH76: 0 | BI76: 0 | BJ76: 0 | BK76: 0 | BL76: 0 | BM76: 0 | BN76: 0 | BO76: 0 | BP76: 0 | BQ76: 0 | BR76: 0 | BS76: 0 | BT76: 0 | BU76: 0 | BV76: 0 | BW76: 0 | BX76: 0 | BY76: 0 | BZ76: 0 | CA76: 0 | CB76: 0 | CC76: 0 | CD76: 0 | CE76: 0 | CF76: 0 | CG76: 0 | CH76: 0 | CI76: 0 | CJ76: 0 | CK76: 0 | CL76: 0 | CM76: 0 | CN76: 0 | CO76: 0 | CP76: 0 | CQ76: 0 | CR76: 0 | CS76: 0 | CT76: 0 | CU76: 0 | CV76: 0 | CW76: 0 | CX76: 0 | CY76: 0 | CZ76: 0
A77: =Machine!A41 -> Polypipe; Roll Out, Punch, Take Up | B77: 0 | D77: 1 | E77: 0 | F77: 0 | G77: 1 | H77: 0 | I77: 0 | J77: 1 | K77: 0 | L77: 0 | M77: 1 | N77: 1 | O77: 0 | P77: 0 | Q77: 0 | R77: 0 | S77: 0 | T77: 0 | U77: 0 | V77: 1 | W77: 0 | X77: 0 | Y77: 0 | Z77: 1 | AA77: 0 | AB77: 0 | AC77: 0 | AD77: 1 | AE77: 0 | AF77: 1 | AG77: 0 | AH77: 0 | AI77: 1 | AJ77: 0 | AK77: 0 | AL77: 0 | AM77: 0 | AN77: 0 | AO77: 1 | AQ77: 1 | AR77: 1 | AS77: 1 | AT77: 1 | BC77: 0 | BD77: 0 | BE77: 0 | BF77: 0 | BG77: 0 | BH77: 0 | BI77: 0 | BJ77: 0 | BK77: 0 | BL77: 0 | BM77: 0 | BN77: 0 | BO77: 0 | BP77: 0 | BQ77: 0 | BR77: 0 | BS77: 0 | BT77: 0 | BU77: 0 | BV77: 0 | BW77: 0 | BX77: 0 | BY77: 0 | BZ77: 0 | CA77: 0 | CB77: 0 | CC77: 0 | CD77: 0 | CE77: 0 | CF77: 0 | CG77: 0 | CH77: 0 | CI77: 0 | CJ77: 0 | CK77: 0 | CL77: 0 | CM77: 0 | CN77: 0 | CO77: 0 | CP77: 0 | CQ77: 0 | CR77: 0 | CS77: 0 | CT77: 0 | CU77: 0 | CV77: 0 | CW77: 0 | CX77: 0 | CY77: 0 | CZ77: 0
A78: =Machine!A42 -> Hooded Sprayer | B78: 0 | D78: 0 | E78: 0 | F78: 0 | G78: 1 | H78: 1 | I78: 1 | J78: 1 | K78: 1 | L78: 1 | M78: 1 | N78: 0 | O78: 0 | P78: 0 | Q78: 0 | R78: 0 | S78: 0 | T78: 0 | U78: 0 | V78: 0 | W78: 0 | X78: 0 | Y78: 0 | Z78: 0 | AA78: 0 | AB78: 0 | AC78: 0 | AD78: 0 | AE78: 0 | AF78: 0 | AG78: 0 | AH78: 0 | AI78: 0 | AJ78: 0 | AK78: 0 | AL78: 0 | AM78: 0 | AN78: 0 | AO78: 1 | AQ78: 0 | AR78: 0 | AS78: 0 | AT78: 0 | BC78: 0 | BD78: 0 | BE78: 0 | BF78: 0 | BG78: 0 | BH78: 0 | BI78: 0 | BJ78: 0 | BK78: 0 | BL78: 0 | BM78: 0 | BN78: 0 | BO78: 0 | BP78: 0 | BQ78: 0 | BR78: 0 | BS78: 0 | BT78: 0 | BU78: 0 | BV78: 0 | BW78: 0 | BX78: 0 | BY78: 0 | BZ78: 0 | CA78: 0 | CB78: 0 | CC78: 0 | CD78: 0 | CE78: 0 | CF78: 0 | CG78: 0 | CH78: 0 | CI78: 0 | CJ78: 0 | CK78: 0 | CL78: 0 | CM78: 0 | CN78: 0 | CO78: 0 | CP78: 0 | CQ78: 0 | CR78: 0 | CS78: 0 | CT78: 0 | CU78: 0 | CV78: 0 | CW78: 0 | CX78: 0 | CY78: 0 | CZ78: 0
A79: =Machine!A43 -> Levee Pull | B79: 0 | D79: 0 | E79: 0 | F79: 0 | G79: 0 | H79: 0 | I79: 0 | J79: 0 | K79: 0 | L79: 0 | M79: 0 | N79: 0 | O79: 0 | P79: 0 | Q79: 3 | R79: 3 | S79: 3 | T79: 3 | U79: 0 | V79: 0 | W79: 0 | X79: 0 | Y79: 2 | Z79: 0 | AA79: 0 | AB79: 0 | AC79: 2 | AD79: 0 | AE79: 0 | AF79: 0 | AG79: 0 | AH79: 0 | AI79: 0 | AJ79: 0 | AK79: 0 | AL79: 0 | AM79: 0 | AN79: 2 | AO79: 0 | AQ79: 3 | AR79: 3 | AS79: 3 | AT79: 3 | BC79: 0 | BD79: 0 | BE79: 0 | BF79: 0 | BG79: 0 | BH79: 0 | BI79: 0 | BJ79: 0 | BK79: 0 | BL79: 0 | BM79: 0 | BN79: 0 | BO79: 0 | BP79: 0 | BQ79: 0 | BR79: 0 | BS79: 0 | BT79: 0 | BU79: 0 | BV79: 0 | BW79: 0 | BX79: 0 | BY79: 0 | BZ79: 0 | CA79: 0 | CB79: 0 | CC79: 0 | CD79: 0 | CE79: 0 | CF79: 0 | CG79: 0 | CH79: 0 | CI79: 0 | CJ79: 0 | CK79: 0 | CL79: 0 | CM79: 0 | CN79: 0 | CO79: 0 | CP79: 0 | CQ79: 0 | CR79: 0 | CS79: 0 | CT79: 0 | CU79: 0 | CV79: 0 | CW79: 0 | CX79: 0 | CY79: 0 | CZ79: 0
A80: =Machine!A44 -> Levee Pull, Planter/Incorporate | B80: 0 | D80: 0 | E80: 0 | F80: 0 | G80: 0 | H80: 0 | I80: 0 | J80: 0 | K80: 0 | L80: 0 | M80: 0 | N80: 0 | O80: 0 | P80: 0 | Q80: 0 | R80: 0 | S80: 0 | T80: 0 | U80: 0 | V80: 0 | W80: 0 | X80: 0 | Y80: 0 | Z80: 0 | AA80: 0 | AB80: 0 | AC80: 0 | AD80: 0 | AE80: 0 | AF80: 0 | AG80: 0 | AH80: 0 | AI80: 0 | AJ80: 0 | AK80: 0 | AL80: 0 | AM80: 0 | AN80: 0 | AO80: 0 | AQ80: 0 | AR80: 0 | AS80: 0 | AT80: 0 | BC80: 0 | BD80: 0 | BE80: 0 | BF80: 0 | BG80: 0 | BH80: 0 | BI80: 0 | BJ80: 0 | BK80: 0 | BL80: 0 | BM80: 0 | BN80: 0 | BO80: 0 | BP80: 0 | BQ80: 0 | BR80: 0 | BS80: 0 | BT80: 0 | BU80: 0 | BV80: 0 | BW80: 0 | BX80: 0 | BY80: 0 | BZ80: 0 | CA80: 0 | CB80: 0 | CC80: 0 | CD80: 0 | CE80: 0 | CF80: 0 | CG80: 0 | CH80: 0 | CI80: 0 | CJ80: 0 | CK80: 0 | CL80: 0 | CM80: 0 | CN80: 0 | CO80: 0 | CP80: 0 | CQ80: 0 | CR80: 0 | CS80: 0 | CT80: 0 | CU80: 0 | CV80: 0 | CW80: 0 | CX80: 0 | CY80: 0 | CZ80: 0
A81: =Machine!A45 -> Levee Roller-Packer-Shaper | B81: 0 | D81: 0 | E81: 0 | F81: 0 | G81: 0 | H81: 0 | I81: 0 | J81: 0 | K81: 0 | L81: 0 | M81: 0 | N81: 0 | O81: 0 | P81: 0 | Q81: 0 | R81: 0 | S81: 0 | T81: 0 | U81: 0 | V81: 0 | W81: 0 | X81: 0 | Y81: 0 | Z81: 0 | AA81: 0 | AB81: 0 | AC81: 0 | AD81: 0 | AE81: 0 | AF81: 0 | AG81: 0 | AH81: 0 | AI81: 0 | AJ81: 0 | AK81: 0 | AL81: 0 | AM81: 0 | AN81: 0 | AO81: 0 | AQ81: 0 | AR81: 0 | AS81: 0 | AT81: 0 | BC81: 0 | BD81: 0 | BE81: 0 | BF81: 0 | BG81: 0 | BH81: 0 | BI81: 0 | BJ81: 0 | BK81: 0 | BL81: 0 | BM81: 0 | BN81: 0 | BO81: 0 | BP81: 0 | BQ81: 0 | BR81: 0 | BS81: 0 | BT81: 0 | BU81: 0 | BV81: 0 | BW81: 0 | BX81: 0 | BY81: 0 | BZ81: 0 | CA81: 0 | CB81: 0 | CC81: 0 | CD81: 0 | CE81: 0 | CF81: 0 | CG81: 0 | CH81: 0 | CI81: 0 | CJ81: 0 | CK81: 0 | CL81: 0 | CM81: 0 | CN81: 0 | CO81: 0 | CP81: 0 | CQ81: 0 | CR81: 0 | CS81: 0 | CT81: 0 | CU81: 0 | CV81: 0 | CW81: 0 | CX81: 0 | CY81: 0 | CZ81: 0
A82: =Machine!A46 -> Install Gates & Remove | B82: 0 | D82: 0 | E82: 0 | F82: 0 | G82: 0 | H82: 0 | I82: 0 | J82: 0 | K82: 0 | L82: 0 | M82: 0 | N82: 0 | O82: 0 | P82: 0 | Q82: 1 | R82: 1 | S82: 1 | T82: 1 | U82: 0 | V82: 0 | W82: 0 | X82: 0 | Y82: 2 | Z82: 0 | AA82: 0 | AB82: 0 | AC82: 2 | AD82: 0 | AE82: 0 | AF82: 0 | AG82: 0 | AH82: 0 | AI82: 0 | AJ82: 0 | AK82: 0 | AL82: 0 | AM82: 0 | AN82: 2 | AO82: 0 | AQ82: 0 | AR82: 0 | AS82: 0 | AT82: 0 | BC82: 0 | BD82: 0 | BE82: 0 | BF82: 0 | BG82: 0 | BH82: 0 | BI82: 0 | BJ82: 0 | BK82: 0 | BL82: 0 | BM82: 0 | BN82: 0 | BO82: 0 | BP82: 0 | BQ82: 0 | BR82: 0 | BS82: 0 | BT82: 0 | BU82: 0 | BV82: 0 | BW82: 0 | BX82: 0 | BY82: 0 | BZ82: 0 | CA82: 0 | CB82: 0 | CC82: 0 | CD82: 0 | CE82: 0 | CF82: 0 | CG82: 0 | CH82: 0 | CI82: 0 | CJ82: 0 | CK82: 0 | CL82: 0 | CM82: 0 | CN82: 0 | CO82: 0 | CP82: 0 | CQ82: 0 | CR82: 0 | CS82: 0 | CT82: 0 | CU82: 0 | CV82: 0 | CW82: 0 | CX82: 0 | CY82: 0 | CZ82: 0
A83: =Machine!A47 -> Take Down Levees
A84: =Machine!A48 -> Peanut Digger/Inverter | B84: =IF(B$2=1,SUM(BC84:CZ84),"Error") -> 0 | D84: 0 | E84: 0 | F84: 0 | G84: 0 | H84: 0 | I84: 0 | J84: 0 | K84: 0 | L84: 0 | M84: 0 | N84: 0 | O84: 0 | P84: 0 | Q84: 0 | R84: 0 | S84: 0 | T84: 0 | U84: 0 | V84: 0 | W84: 0 | X84: 0 | Y84: 0 | Z84: 0 | AA84: 0 | AB84: 0 | AC84: 0 | AD84: 0 | AE84: 0 | AF84: 1 | AG84: 1 | AH84: 1 | AI84: 0 | AJ84: 0 | AK84: 0 | AL84: 0 | AM84: 0 | AN84: 0 | AO84: 0 | AQ84: 0 | AR84: 0 | AS84: 0 | AT84: 0 | BC84: =IF(D$2=1,D84,0) -> 0 | BD84: 0 | BE84: 0 | BF84: 0 | BG84: 0 | BH84: 0 | BI84: 0 | BJ84: 0 | BK84: 0 | BL84: 0 | BM84: =IF(N$2=1,N84,0) -> 0 | BN84: 0 | BO84: 0 | BP84: 0 | BQ84: 0 | BR84: 0 | BS84: 0 | BT84: 0 | BU84: 0 | BV84: 0 | BW84: =IF(X$2=1,X84,0) -> 0 | BX84: 0 | BY84: 0 | BZ84: 0 | CA84: 0 | CB84: 0 | CC84: 0 | CD84: 0 | CE84: 0 | CF84: 0 | CG84: =IF(AH$2=1,AH84,0) -> 0 | CH84: 0 | CI84: 0 | CJ84: 0 | CK84: 0 | CL84: 0 | CM84: 0 | CN84: 0 | CO84: 0 | CP84: =IF(AQ$2=1,AQ84,0) -> 0 | CQ84: =IF(AR$2=1,AR84,0) -> 0 | CR84: =IF(AS$2=1,AS84,0) -> 0 | CS84: =IF(AT$2=1,AT84,0) -> 0 | CT84: =IF(AU$2=1,AU84,0) -> 0 | CU84: =IF(AV$2=1,AV84,0) -> 0 | CV84: =IF(AW$2=1,AW84,0) -> 0 | CW84: =IF(AX$2=1,AX84,0) -> 0 | CX84: =IF(AY$2=1,AY84,0) -> 0 | CY84: =IF(AZ$2=1,AZ84,0) -> 0 | CZ84: =IF(BA$2=1,BA84,0) -> 0
A85: =Machine!A49 -> Peanut Conditioner | B85: 0 | D85: 0 | E85: 0 | F85: 0 | G85: 0 | H85: 0 | I85: 0 | J85: 0 | K85: 0 | L85: 0 | M85: 0 | N85: 0 | O85: 0 | P85: 0 | Q85: 0 | R85: 0 | S85: 0 | T85: 0 | U85: 0 | V85: 0 | W85: 0 | X85: 0 | Y85: 0 | Z85: 0 | AA85: 0 | AB85: 0 | AC85: 0 | AD85: 0 | AE85: 0 | AF85: 1 | AG85: 1 | AH85: 1 | AI85: 0 | AJ85: 0 | AK85: 0 | AL85: 0 | AM85: 0 | AN85: 0 | AO85: 0 | AQ85: 0 | AR85: 0 | AS85: 0 | AT85: 0 | BC85: 0 | BD85: 0 | BE85: 0 | BF85: 0 | BG85: 0 | BH85: 0 | BI85: 0 | BJ85: 0 | BK85: 0 | BL85: 0 | BM85: 0 | BN85: 0 | BO85: 0 | BP85: 0 | BQ85: 0 | BR85: 0 | BS85: 0 | BT85: 0 | BU85: 0 | BV85: 0 | BW85: 0 | BX85: 0 | BY85: 0 | BZ85: 0 | CA85: 0 | CB85: 0 | CC85: 0 | CD85: 0 | CE85: 0 | CF85: 0 | CG85: 0 | CH85: 0 | CI85: 0 | CJ85: 0 | CK85: 0 | CL85: 0 | CM85: 0 | CN85: 0 | CO85: 0 | CP85: 0 | CQ85: 0 | CR85: 0 | CS85: 0 | CT85: 0 | CU85: 0 | CV85: 0 | CW85: 0 | CX85: 0 | CY85: 0 | CZ85: 0
A86: =Machine!A50 -> Peanut Conditioner & Lifter | B86: 0 | D86: 0 | E86: 0 | F86: 0 | G86: 0 | H86: 0 | I86: 0 | J86: 0 | K86: 0 | L86: 0 | M86: 0 | N86: 0 | O86: 0 | P86: 0 | Q86: 0 | R86: 0 | S86: 0 | T86: 0 | U86: 0 | V86: 0 | W86: 0 | X86: 0 | Y86: 0 | Z86: 0 | AA86: 0 | AB86: 0 | AC86: 0 | AD86: 0 | AE86: 0 | AF86: 0 | AG86: 0 | AH86: 0 | AI86: 0 | AJ86: 0 | AK86: 0 | AL86: 0 | AM86: 0 | AN86: 0 | AO86: 0 | AQ86: 0 | AR86: 0 | AS86: 0 | AT86: 0 | BC86: 0 | BD86: 0 | BE86: 0 | BF86: 0 | BG86: 0 | BH86: 0 | BI86: 0 | BJ86: 0 | BK86: 0 | BL86: 0 | BM86: 0 | BN86: 0 | BO86: 0 | BP86: 0 | BQ86: 0 | BR86: 0 | BS86: 0 | BT86: 0 | BU86: 0 | BV86: 0 | BW86: 0 | BX86: 0 | BY86: 0 | BZ86: 0 | CA86: 0 | CB86: 0 | CC86: 0 | CD86: 0 | CE86: 0 | CF86: 0 | CG86: 0 | CH86: 0 | CI86: 0 | CJ86: 0 | CK86: 0 | CL86: 0 | CM86: 0 | CN86: 0 | CO86: 0 | CP86: 0 | CQ86: 0 | CR86: 0 | CS86: 0 | CT86: 0 | CU86: 0 | CV86: 0 | CW86: 0 | CX86: 0 | CY86: 0 | CZ86: 0
A87: =Machine!A51 -> Mower, Stalk Shredder | B87: 0 | D87: 0 | E87: 0 | F87: 0 | G87: 1 | H87: 1 | I87: 1 | J87: 1 | K87: 1 | L87: 1 | M87: 1 | N87: 0 | O87: 0 | P87: 0 | Q87: 0 | R87: 0 | S87: 0 | T87: 0 | U87: 0 | V87: 0 | W87: 0 | X87: 0 | Y87: 0 | Z87: 0 | AA87: 0 | AB87: 0 | AC87: 0 | AD87: 0 | AE87: 0 | AF87: 0 | AG87: 0 | AH87: 0 | AI87: 0 | AJ87: 0 | AK87: 0 | AL87: 0 | AM87: 0 | AN87: 0 | AO87: 1 | AQ87: 0 | AR87: 0 | AS87: 0 | AT87: 0 | BC87: 0 | BD87: 0 | BE87: 0 | BF87: 0 | BG87: 0 | BH87: 0 | BI87: 0 | BJ87: 0 | BK87: 0 | BL87: 0 | BM87: 0 | BN87: 0 | BO87: 0 | BP87: 0 | BQ87: 0 | BR87: 0 | BS87: 0 | BT87: 0 | BU87: 0 | BV87: 0 | BW87: 0 | BX87: 0 | BY87: 0 | BZ87: 0 | CA87: 0 | CB87: 0 | CC87: 0 | CD87: 0 | CE87: 0 | CF87: 0 | CG87: 0 | CH87: 0 | CI87: 0 | CJ87: 0 | CK87: 0 | CL87: 0 | CM87: 0 | CN87: 0 | CO87: 0 | CP87: 0 | CQ87: 0 | CR87: 0 | CS87: 0 | CT87: 0 | CU87: 0 | CV87: 0 | CW87: 0 | CX87: 0 | CY87: 0 | CZ87: 0
A88: =Machine!A52 -> Stubble Roller | B88: 0 | D88: 0 | E88: 0 | F88: 0 | G88: 0 | H88: 0 | I88: 0 | J88: 0 | K88: 0 | L88: 0 | M88: 0 | N88: 0 | O88: 0 | P88: 0 | Q88: 1 | R88: 1 | S88: 1 | T88: 1 | U88: 0 | V88: 0 | W88: 0 | X88: 0 | Y88: 0 | Z88: 0 | AA88: 0 | AB88: 0 | AC88: 0 | AD88: 0 | AE88: 0 | AF88: 0 | AG88: 0 | AH88: 0 | AI88: 0 | AJ88: 0 | AK88: 0 | AL88: 0 | AM88: 0 | AN88: 0 | AO88: 0 | AQ88: 0 | AR88: 0 | AS88: 0 | AT88: 0 | BC88: 0 | BD88: 0 | BE88: 0 | BF88: 0 | BG88: 0 | BH88: 0 | BI88: 0 | BJ88: 0 | BK88: 0 | BL88: 0 | BM88: 0 | BN88: 0 | BO88: 0 | BP88: 0 | BQ88: 0 | BR88: 0 | BS88: 0 | BT88: 0 | BU88: 0 | BV88: 0 | BW88: 0 | BX88: 0 | BY88: 0 | BZ88: 0 | CA88: 0 | CB88: 0 | CC88: 0 | CD88: 0 | CE88: 0 | CF88: 0 | CG88: 0 | CH88: 0 | CI88: 0 | CJ88: 0 | CK88: 0 | CL88: 0 | CM88: 0 | CN88: 0 | CO88: 0 | CP88: 0 | CQ88: 0 | CR88: 0 | CS88: 0 | CT88: 0 | CU88: 0 | CV88: 0 | CW88: 0 | CX88: 0 | CY88: 0 | CZ88: 0
A89: =Machine!A53 -> Other Equipment | B89: 0 | D89: 0 | E89: 0 | F89: 0 | G89: 0 | H89: 0 | I89: 0 | J89: 0 | K89: 0 | L89: 0 | M89: 0 | N89: 0 | O89: 0 | P89: 0 | Q89: 0 | R89: 0 | S89: 0 | T89: 0 | U89: 0 | V89: 0 | W89: 0 | X89: 0 | Y89: 0 | Z89: 0 | AA89: 0 | AB89: 0 | AC89: 0 | AD89: 0 | AE89: 0 | AF89: 0 | AG89: 0 | AH89: 0 | AI89: 0 | AJ89: 0 | AK89: 0 | AL89: 0 | AM89: 0 | AN89: 0 | AO89: 0 | AQ89: 0 | AR89: 0 | AS89: 0 | AT89: 0 | BC89: 0 | BD89: 0 | BE89: 0 | BF89: 0 | BG89: 0 | BH89: 0 | BI89: 0 | BJ89: 0 | BK89: 0 | BL89: 0 | BM89: 0 | BN89: 0 | BO89: 0 | BP89: 0 | BQ89: 0 | BR89: 0 | BS89: 0 | BT89: 0 | BU89: 0 | BV89: 0 | BW89: 0 | BX89: 0 | BY89: 0 | BZ89: 0 | CA89: 0 | CB89: 0 | CC89: 0 | CD89: 0 | CE89: 0 | CF89: 0 | CG89: 0 | CH89: 0 | CI89: 0 | CJ89: 0 | CK89: 0 | CL89: 0 | CM89: 0 | CN89: 0 | CO89: 0 | CP89: 0 | CQ89: 0 | CR89: 0 | CS89: 0 | CT89: 0 | CU89: 0 | CV89: 0 | CW89: 0 | CX89: 0 | CY89: 0 | CZ89: 0
A90: =Machine!A54 -> Other Equipment | B90: 0 | D90: 0 | E90: 0 | F90: 0 | G90: 0 | H90: 0 | I90: 0 | J90: 0 | K90: 0 | L90: 0 | M90: 0 | N90: 0 | O90: 0 | P90: 0 | Q90: 0 | R90: 0 | S90: 0 | T90: 0 | U90: 0 | V90: 0 | W90: 0 | X90: 0 | Y90: 0 | Z90: 0 | AA90: 0 | AB90: 0 | AC90: 0 | AD90: 0 | AE90: 0 | AF90: 0 | AG90: 0 | AH90: 0 | AI90: 0 | AJ90: 0 | AK90: 0 | AL90: 0 | AM90: 0 | AN90: 0 | AO90: 0 | AQ90: 0 | AR90: 0 | AS90: 0 | AT90: 0 | BC90: 0 | BD90: 0 | BE90: 0 | BF90: 0 | BG90: 0 | BH90: 0 | BI90: 0 | BJ90: 0 | BK90: 0 | BL90: 0 | BM90: 0 | BN90: 0 | BO90: 0 | BP90: 0 | BQ90: 0 | BR90: 0 | BS90: 0 | BT90: 0 | BU90: 0 | BV90: 0 | BW90: 0 | BX90: 0 | BY90: 0 | BZ90: 0 | CA90: 0 | CB90: 0 | CC90: 0 | CD90: 0 | CE90: 0 | CF90: 0 | CG90: 0 | CH90: 0 | CI90: 0 | CJ90: 0 | CK90: 0 | CL90: 0 | CM90: 0 | CN90: 0 | CO90: 0 | CP90: 0 | CQ90: 0 | CR90: 0 | CS90: 0 | CT90: 0 | CU90: 0 | CV90: 0 | CW90: 0 | CX90: 0 | CY90: 0 | CZ90: 0
A93: =Machine!A57 -> Self-Propelled Pre-Harvest
A94: =Machine!A58 -> Self-Propelled Sprayer | B94: =IF(B$2=1,SUM(BC94:CZ94),"Error") -> 4 | D94: 3 | E94: 3 | F94: 3 | G94: 7 | H94: 7 | I94: 9 | J94: 7 | K94: 7 | L94: 9 | M94: 7 | N94: 4 | O94: 4 | P94: 5 | Q94: 1 | R94: 1 | S94: 1 | T94: 1 | U94: 1 | V94: 4 | W94: 4 | X94: 4 | Y94: 4 | Z94: 4 | AA94: 4 | AB94: 4 | AC94: 4 | AD94: 4 | AE94: 1 | AF94: 5 | AG94: 6 | AH94: 6 | AI94: 3 | AJ94: 3 | AK94: 3 | AL94: 4 | AM94: 4 | AN94: 4 | AO94: 7 | AQ94: =1+2 -> 3 | AR94: =1+2 -> 3 | AS94: 3 | AT94: 3 | BC94: =IF(D$2=1,D94,0) -> 0 | BD94: 0 | BE94: 0 | BF94: 0 | BG94: 0 | BH94: 0 | BI94: 0 | BJ94: 0 | BK94: 0 | BL94: 0 | BM94: =IF(N$2=1,N94,0) -> 0 | BN94: 0 | BO94: 0 | BP94: 0 | BQ94: 0 | BR94: 0 | BS94: 0 | BT94: 0 | BU94: 0 | BV94: 0 | BW94: =IF(X$2=1,X94,0) -> 0 | BX94: 0 | BY94: 0 | BZ94: 0 | CA94: 0 | CB94: 0 | CC94: 0 | CD94: 0 | CE94: 0 | CF94: 0 | CG94: =IF(AH$2=1,AH94,0) -> 0 | CH94: 0 | CI94: 0 | CJ94: 0 | CK94: 4 | CL94: 0 | CM94: 0 | CN94: 0 | CO94: 0 | CP94: =IF(AQ$2=1,AQ94,0) -> 0 | CQ94: =IF(AR$2=1,AR94,0) -> 0 | CR94: =IF(AS$2=1,AS94,0) -> 0 | CS94: =IF(AT$2=1,AT94,0) -> 0 | CT94: =IF(AU$2=1,AU94,0) -> 0 | CU94: =IF(AV$2=1,AV94,0) -> 0 | CV94: =IF(AW$2=1,AW94,0) -> 0 | CW94: =IF(AX$2=1,AX94,0) -> 0 | CX94: =IF(AY$2=1,AY94,0) -> 0 | CY94: =IF(AZ$2=1,AZ94,0) -> 0 | CZ94: =IF(BA$2=1,BA94,0) -> 0
A95: =Machine!A59 -> ATV with Spot, Levee Sprayer | B95: =IF(B$2=1,SUM(BC95:CZ95),"Error") -> 0 | D95: 0 | E95: 0 | F95: 0 | G95: 0 | H95: 0 | I95: 0 | J95: 0 | K95: 0 | L95: 0 | M95: 0 | N95: 0 | O95: 0 | P95: 0 | Q95: 0 | R95: 0 | S95: 0 | T95: 0 | U95: 0 | V95: 0 | W95: 0 | X95: 0 | Y95: 0 | Z95: 0 | AA95: 0 | AB95: 0 | AC95: 0 | AD95: 0 | AE95: 0 | AF95: 0 | AG95: 0 | AH95: 0 | AI95: 0 | AJ95: 0 | AK95: 0 | AL95: 0 | AM95: 0 | AN95: 0 | AO95: 0 | AQ95: 0 | AR95: 0 | AS95: 0 | AT95: 0 | BC95: 0 | BD95: 0 | BE95: 0 | BF95: 0 | BG95: 0 | BH95: 0 | BI95: 0 | BJ95: 0 | BK95: 0 | BL95: 0 | BM95: 0 | BN95: 0 | BO95: 0 | BP95: 0 | BQ95: 0 | BR95: 0 | BS95: 0 | BT95: 0 | BU95: 0 | BV95: 0 | BW95: 0 | BX95: 0 | BY95: 0 | BZ95: 0 | CA95: 0 | CB95: 0 | CC95: 0 | CD95: 0 | CE95: 0 | CF95: 0 | CG95: 0 | CH95: 0 | CI95: 0 | CJ95: 0 | CK95: 0 | CL95: 0 | CM95: 0 | CN95: 0 | CO95: 0 | CP95: 0 | CQ95: 0 | CR95: 0 | CS95: 0 | CT95: 0 | CU95: 0 | CV95: 0 | CW95: 0 | CX95: 0 | CY95: 0 | CZ95: 0
A96: =Machine!A60 -> Dry Box Spreader | B96: =IF(B$2=1,SUM(BC96:CZ96),"Error") -> 0 | D96: 0 | E96: 0 | F96: 0 | G96: 0 | H96: 0 | I96: 0 | J96: 0 | K96: 0 | L96: 0 | M96: 0 | N96: 0 | O96: 0 | P96: 0 | Q96: 0 | R96: 0 | S96: 0 | T96: 0 | U96: 0 | V96: 0 | W96: 0 | X96: 0 | Y96: 0 | Z96: 0 | AA96: 0 | AB96: 0 | AC96: 0 | AD96: 0 | AE96: 0 | AF96: 0 | AG96: 0 | AH96: 0 | AI96: 0 | AJ96: 0 | AK96: 0 | AL96: 0 | AM96: 0 | AN96: 0 | AO96: 0 | AQ96: 0 | AR96: 0 | AS96: 0 | AT96: 0 | BC96: 0 | BD96: 0 | BE96: 0 | BF96: 0 | BG96: 0 | BH96: 0 | BI96: 0 | BJ96: 0 | BK96: 0 | BL96: 0 | BM96: 0 | BN96: 0 | BO96: 0 | BP96: 0 | BQ96: 0 | BR96: 0 | BS96: 0 | BT96: 0 | BU96: 0 | BV96: 0 | BW96: 0 | BX96: 0 | BY96: 0 | BZ96: 0 | CA96: 0 | CB96: 0 | CC96: 0 | CD96: 0 | CE96: 0 | CF96: 0 | CG96: 0 | CH96: 0 | CI96: 0 | CJ96: 0 | CK96: 0 | CL96: 0 | CM96: 0 | CN96: 0 | CO96: 0 | CP96: 0 | CQ96: 0 | CR96: 0 | CS96: 0 | CT96: 0 | CU96: 0 | CV96: 0 | CW96: 0 | CX96: 0 | CY96: 0 | CZ96: 0
A99: =Machine!A63 -> Self-Propelled and Other Harvest
A100: =Machine!A64 -> Cotton Picker | B100: =IF(B$2=1,SUM(BC100:CZ100),"Error") -> 0 | D100: 0 | E100: 0 | F100: 0 | G100: 1 | H100: 1 | I100: 1 | J100: 1 | K100: 1 | L100: 1 | M100: 1 | N100: 0 | O100: 0 | P100: 0 | Q100: 0 | R100: 0 | S100: 0 | T100: 0 | U100: 0 | V100: 0 | W100: 0 | X100: 0 | Y100: 0 | Z100: 0 | AA100: 0 | AB100: 0 | AC100: 0 | AD100: 0 | AE100: 0 | AF100: 0 | AG100: 0 | AH100: 0 | AI100: 0 | AJ100: 0 | AK100: 0 | AL100: 0 | AM100: 0 | AN100: 0 | AO100: 1 | AQ100: 0 | AR100: 0 | AS100: 0 | AT100: 0 | BC100: =IF(D$2=1,D100,0) -> 0 | BD100: =IF(E$2=1,E100,0) -> 0 | BE100: =IF(F$2=1,F100,0) -> 0 | BF100: =IF(G$2=1,G100,0) -> 0 | BG100: =IF(H$2=1,H100,0) -> 0 | BH100: =IF(I$2=1,I100,0) -> 0 | BI100: =IF(J$2=1,J100,0) -> 0 | BJ100: =IF(K$2=1,K100,0) -> 0 | BK100: =IF(L$2=1,L100,0) -> 0 | BL100: =IF(M$2=1,M100,0) -> 0 | BM100: =IF(N$2=1,N100,0) -> 0 | BN100: =IF(O$2=1,O100,0) -> 0 | BO100: =IF(P$2=1,P100,0) -> 0 | BP100: =IF(Q$2=1,Q100,0) -> 0 | BQ100: =IF(R$2=1,R100,0) -> 0 | BR100: =IF(S$2=1,S100,0) -> 0 | BS100: =IF(T$2=1,T100,0) -> 0 | BT100: =IF(U$2=1,U100,0) -> 0 | BU100: =IF(V$2=1,V100,0) -> 0 | BV100: =IF(W$2=1,W100,0) -> 0 | BW100: =IF(X$2=1,X100,0) -> 0 | BX100: =IF(Y$2=1,Y100,0) -> 0 | BY100: =IF(Z$2=1,Z100,0) -> 0 | BZ100: =IF(AA$2=1,AA100,0) -> 0 | CA100: =IF(AB$2=1,AB100,0) -> 0 | CB100: =IF(AC$2=1,AC100,0) -> 0 | CC100: =IF(AD$2=1,AD100,0) -> 0 | CD100: =IF(AE$2=1,AE100,0) -> 0 | CE100: =IF(AF$2=1,AF100,0) -> 0 | CF100: =IF(AG$2=1,AG100,0) -> 0 | CG100: =IF(AH$2=1,AH100,0) -> 0 | CH100: =IF(AI$2=1,AI100,0) -> 0 | CI100: =IF(AJ$2=1,AJ100,0) -> 0 | CJ100: =IF(AK$2=1,AK100,0) -> 0 | CK100: =IF(AL$2=1,AL100,0) -> 0 | CL100: =IF(AM$2=1,AM100,0) -> 0 | CM100: =IF(AN$2=1,AN100,0) -> 0 | CN100: 0 | CO100: 0 | CP100: =IF(AQ$2=1,AQ100,0) -> 0 | CQ100: =IF(AR$2=1,AR100,0) -> 0 | CR100: =IF(AS$2=1,AS100,0) -> 0 | CS100: =IF(AT$2=1,AT100,0) -> 0 | CT100: =IF(AU$2=1,AU100,0) -> 0 | CU100: =IF(AV$2=1,AV100,0) -> 0 | CV100: =IF(AW$2=1,AW100,0) -> 0 | CW100: =IF(AX$2=1,AX100,0) -> 0 | CX100: =IF(AY$2=1,AY100,0) -> 0 | CY100: =IF(AZ$2=1,AZ100,0) -> 0 | CZ100: =IF(BA$2=1,BA100,0) -> 0
A101: =Machine!A65 -> Boll Buggy with Tractor | B101: 0 | D101: 0 | E101: 0 | F101: 0 | G101: 1 | H101: 1 | I101: 1 | J101: 1 | K101: 1 | L101: 1 | M101: 1 | N101: 0 | O101: 0 | P101: 0 | Q101: 0 | R101: 0 | S101: 0 | T101: 0 | U101: 0 | V101: 0 | W101: 0 | X101: 0 | Y101: 0 | Z101: 0 | AA101: 0 | AB101: 0 | AC101: 0 | AD101: 0 | AE101: 0 | AF101: 0 | AG101: 0 | AH101: 0 | AI101: 0 | AJ101: 0 | AK101: 0 | AL101: 0 | AM101: 0 | AN101: 0 | AO101: 1 | AQ101: 0 | AR101: 0 | AS101: 0 | AT101: 0 | BC101: 0 | BD101: 0 | BE101: 0 | BF101: 0 | BG101: 0 | BH101: 0 | BI101: 0 | BJ101: 0 | BK101: 0 | BL101: 0 | BM101: 0 | BN101: 0 | BO101: 0 | BP101: 0 | BQ101: 0 | BR101: 0 | BS101: 0 | BT101: 0 | BU101: 0 | BV101: 0 | BW101: 0 | BX101: 0 | BY101: 0 | BZ101: 0 | CA101: 0 | CB101: 0 | CC101: 0 | CD101: 0 | CE101: 0 | CF101: 0 | CG101: 0 | CH101: 0 | CI101: 0 | CJ101: 0 | CK101: 0 | CL101: 0 | CM101: 0 | CN101: 0 | CO101: 0 | CP101: 0 | CQ101: 0 | CR101: 0 | CS101: 0 | CT101: 0 | CU101: 0 | CV101: 0 | CW101: 0 | CX101: 0 | CY101: 0 | CZ101: 0
A102: =Machine!A66 -> Module Builder with Tractor | B102: 0 | D102: 0 | E102: 0 | F102: 0 | G102: 1 | H102: 1 | I102: 1 | J102: 1 | K102: 1 | L102: 1 | M102: 1 | N102: 0 | O102: 0 | P102: 0 | Q102: 0 | R102: 0 | S102: 0 | T102: 0 | U102: 0 | V102: 0 | W102: 0 | X102: 0 | Y102: 0 | Z102: 0 | AA102: 0 | AB102: 0 | AC102: 0 | AD102: 0 | AE102: 0 | AF102: 0 | AG102: 0 | AH102: 0 | AI102: 0 | AJ102: 0 | AK102: 0 | AL102: 0 | AM102: 0 | AN102: 0 | AO102: 1 | AQ102: 0 | AR102: 0 | AS102: 0 | AT102: 0 | BC102: 0 | BD102: 0 | BE102: 0 | BF102: 0 | BG102: 0 | BH102: 0 | BI102: 0 | BJ102: 0 | BK102: 0 | BL102: 0 | BM102: 0 | BN102: 0 | BO102: 0 | BP102: 0 | BQ102: 0 | BR102: 0 | BS102: 0 | BT102: 0 | BU102: 0 | BV102: 0 | BW102: 0 | BX102: 0 | BY102: 0 | BZ102: 0 | CA102: 0 | CB102: 0 | CC102: 0 | CD102: 0 | CE102: 0 | CF102: 0 | CG102: 0 | CH102: 0 | CI102: 0 | CJ102: 0 | CK102: 0 | CL102: 0 | CM102: 0 | CN102: 0 | CO102: 0 | CP102: 0 | CQ102: 0 | CR102: 0 | CS102: 0 | CT102: 0 | CU102: 0 | CV102: 0 | CW102: 0 | CX102: 0 | CY102: 0 | CZ102: 0
A103: =Machine!A67 -> Cotton Picker: Module-Building | B103: 0 | D103: 0 | E103: 0 | F103: 0 | G103: 0 | H103: 0 | I103: 0 | J103: 0 | K103: 0 | L103: 0 | M103: 0 | N103: 0 | O103: 0 | P103: 0 | Q103: 0 | R103: 0 | S103: 0 | T103: 0 | U103: 0 | V103: 0 | W103: 0 | X103: 0 | Y103: 0 | Z103: 0 | AA103: 0 | AB103: 0 | AC103: 0 | AD103: 0 | AE103: 0 | AF103: 0 | AG103: 0 | AH103: 0 | AI103: 0 | AJ103: 0 | AK103: 0 | AL103: 0 | AM103: 0 | AN103: 0 | AO103: 0 | AQ103: 0 | AR103: 0 | AS103: 0 | AT103: 0 | BC103: 0 | BD103: 0 | BE103: 0 | BF103: 0 | BG103: 0 | BH103: 0 | BI103: 0 | BJ103: 0 | BK103: 0 | BL103: 0 | BM103: 0 | BN103: 0 | BO103: 0 | BP103: 0 | BQ103: 0 | BR103: 0 | BS103: 0 | BT103: 0 | BU103: 0 | BV103: 0 | BW103: 0 | BX103: 0 | BY103: 0 | BZ103: 0 | CA103: 0 | CB103: 0 | CC103: 0 | CD103: 0 | CE103: 0 | CF103: 0 | CG103: 0 | CH103: 0 | CI103: 0 | CJ103: 0 | CK103: 0 | CL103: 0 | CM103: 0 | CN103: 0 | CO103: 0 | CP103: 0 | CQ103: 0 | CR103: 0 | CS103: 0 | CT103: 0 | CU103: 0 | CV103: 0 | CW103: 0 | CX103: 0 | CY103: 0 | CZ103: 0
A104: =Machine!A68 -> Module Handler with Tractor | B104: 0 | D104: 0 | E104: 0 | F104: 0 | G104: 0 | H104: 0 | I104: 0 | J104: 0 | K104: 0 | L104: 0 | M104: 0 | N104: 0 | O104: 0 | P104: 0 | Q104: 0 | R104: 0 | S104: 0 | T104: 0 | U104: 0 | V104: 0 | W104: 0 | X104: 0 | Y104: 0 | Z104: 0 | AA104: 0 | AB104: 0 | AC104: 0 | AD104: 0 | AE104: 0 | AF104: 0 | AG104: 0 | AH104: 0 | AI104: 0 | AJ104: 0 | AK104: 0 | AL104: 0 | AM104: 0 | AN104: 0 | AO104: 0 | AQ104: 0 | AR104: 0 | AS104: 0 | AT104: 0 | BC104: 0 | BD104: 0 | BE104: 0 | BF104: 0 | BG104: 0 | BH104: 0 | BI104: 0 | BJ104: 0 | BK104: 0 | BL104: 0 | BM104: 0 | BN104: 0 | BO104: 0 | BP104: 0 | BQ104: 0 | BR104: 0 | BS104: 0 | BT104: 0 | BU104: 0 | BV104: 0 | BW104: 0 | BX104: 0 | BY104: 0 | BZ104: 0 | CA104: 0 | CB104: 0 | CC104: 0 | CD104: 0 | CE104: 0 | CF104: 0 | CG104: 0 | CH104: 0 | CI104: 0 | CJ104: 0 | CK104: 0 | CL104: 0 | CM104: 0 | CN104: 0 | CO104: 0 | CP104: 0 | CQ104: 0 | CR104: 0 | CS104: 0 | CT104: 0 | CU104: 0 | CV104: 0 | CW104: 0 | CX104: 0 | CY104: 0 | CZ104: 0
A105: =Machine!A69 -> Combine | B105: 1 | D105: 1 | E105: 1 | F105: 1 | G105: 0 | H105: 0 | I105: 0 | J105: 0 | K105: 0 | L105: 0 | M105: 0 | N105: 1 | O105: 1 | P105: 1 | Q105: 1 | R105: 1 | S105: 1 | T105: 1 | U105: 1 | V105: 1 | W105: 1 | X105: 1 | Y105: 1 | Z105: 1 | AA105: 1 | AB105: 1 | AC105: 1 | AD105: 1 | AE105: 1 | AF105: 0 | AG105: 0 | AH105: 0 | AI105: 1 | AJ105: 1 | AK105: 1 | AL105: 1 | AM105: 1 | AN105: 1 | AO105: 0 | AQ105: 1 | AR105: 1 | AS105: 1 | AT105: 1 | BC105: 0 | BD105: 0 | BE105: 0 | BF105: 0 | BG105: 0 | BH105: 0 | BI105: 0 | BJ105: 0 | BK105: 0 | BL105: 0 | BM105: 0 | BN105: 0 | BO105: 0 | BP105: 0 | BQ105: 0 | BR105: 0 | BS105: 0 | BT105: 0 | BU105: 0 | BV105: 0 | BW105: 0 | BX105: 0 | BY105: 0 | BZ105: 0 | CA105: 0 | CB105: 0 | CC105: 0 | CD105: 0 | CE105: 0 | CF105: 0 | CG105: 0 | CH105: 0 | CI105: 0 | CJ105: 0 | CK105: 1 | CL105: 0 | CM105: 0 | CN105: 0 | CO105: 0 | CP105: 0 | CQ105: 0 | CR105: 0 | CS105: 0 | CT105: 0 | CU105: 0 | CV105: 0 | CW105: 0 | CX105: 0 | CY105: 0 | CZ105: 0
A106: =Machine!A70 -> Corn Head | B106: 0 | D106: 1 | E106: 1 | F106: 1 | G106: 0 | H106: 0 | I106: 0 | J106: 0 | K106: 0 | L106: 0 | M106: 0 | N106: 0 | O106: 0 | P106: 0 | Q106: 0 | R106: 0 | S106: 0 | T106: 0 | U106: 0 | V106: 0 | W106: 0 | X106: 0 | Y106: 0 | Z106: 0 | AA106: 0 | AB106: 0 | AC106: 0 | AD106: 0 | AE106: 0 | AF106: 0 | AG106: 0 | AH106: 0 | AI106: 1 | AJ106: 1 | AK106: 1 | AL106: 0 | AM106: 0 | AN106: 0 | AO106: 0 | AQ106: 0 | AR106: 0 | AS106: 0 | AT106: 0 | BC106: 0 | BD106: 0 | BE106: 0 | BF106: 0 | BG106: 0 | BH106: 0 | BI106: 0 | BJ106: 0 | BK106: 0 | BL106: 0 | BM106: 0 | BN106: 0 | BO106: 0 | BP106: 0 | BQ106: 0 | BR106: 0 | BS106: 0 | BT106: 0 | BU106: 0 | BV106: 0 | BW106: 0 | BX106: 0 | BY106: 0 | BZ106: 0 | CA106: 0 | CB106: 0 | CC106: 0 | CD106: 0 | CE106: 0 | CF106: 0 | CG106: 0 | CH106: 0 | CI106: 0 | CJ106: 0 | CK106: 0 | CL106: 0 | CM106: 0 | CN106: 0 | CO106: 0 | CP106: 0 | CQ106: 0 | CR106: 0 | CS106: 0 | CT106: 0 | CU106: 0 | CV106: 0 | CW106: 0 | CX106: 0 | CY106: 0 | CZ106: 0
A107: =Machine!A71 -> Soybean Head | B107: 1 | D107: 0 | E107: 0 | F107: 0 | G107: 0 | H107: 0 | I107: 0 | J107: 0 | K107: 0 | L107: 0 | M107: 0 | N107: 0 | O107: 0 | P107: 0 | Q107: 0 | R107: 0 | S107: 0 | T107: 0 | U107: 0 | V107: 1 | W107: 1 | X107: 1 | Y107: 1 | Z107: 1 | AA107: 1 | AB107: 1 | AC107: 1 | AD107: 1 | AE107: 0 | AF107: 0 | AG107: 0 | AH107: 0 | AI107: 0 | AJ107: 0 | AK107: 0 | AL107: 1 | AM107: 1 | AN107: 1 | AO107: 0 | AQ107: 0 | AR107: 0 | AS107: 0 | AT107: 0 | BC107: 0 | BD107: 0 | BE107: 0 | BF107: 0 | BG107: 0 | BH107: 0 | BI107: 0 | BJ107: 0 | BK107: 0 | BL107: 0 | BM107: 0 | BN107: 0 | BO107: 0 | BP107: 0 | BQ107: 0 | BR107: 0 | BS107: 0 | BT107: 0 | BU107: 0 | BV107: 0 | BW107: 0 | BX107: 0 | BY107: 0 | BZ107: 0 | CA107: 0 | CB107: 0 | CC107: 0 | CD107: 0 | CE107: 0 | CF107: 0 | CG107: 0 | CH107: 0 | CI107: 0 | CJ107: 0 | CK107: 1 | CL107: 0 | CM107: 0 | CN107: 0 | CO107: 0 | CP107: 0 | CQ107: 0 | CR107: 0 | CS107: 0 | CT107: 0 | CU107: 0 | CV107: 0 | CW107: 0 | CX107: 0 | CY107: 0 | CZ107: 0
A108: =Machine!A72 -> Rice Head | B108: 0 | D108: 0 | E108: 0 | F108: 0 | G108: 0 | H108: 0 | I108: 0 | J108: 0 | K108: 0 | L108: 0 | M108: 0 | N108: 0 | O108: 0 | P108: 0 | Q108: 1 | R108: 1 | S108: 1 | T108: 1 | U108: 1 | V108: 0 | W108: 0 | X108: 0 | Y108: 0 | Z108: 0 | AA108: 0 | AB108: 0 | AC108: 0 | AD108: 0 | AE108: 0 | AF108: 0 | AG108: 0 | AH108: 0 | AI108: 0 | AJ108: 0 | AK108: 0 | AL108: 0 | AM108: 0 | AN108: 0 | AO108: 0 | AQ108: 1 | AR108: 1 | AS108: 1 | AT108: 1 | BC108: 0 | BD108: 0 | BE108: 0 | BF108: 0 | BG108: 0 | BH108: 0 | BI108: 0 | BJ108: 0 | BK108: 0 | BL108: 0 | BM108: 0 | BN108: 0 | BO108: 0 | BP108: 0 | BQ108: 0 | BR108: 0 | BS108: 0 | BT108: 0 | BU108: 0 | BV108: 0 | BW108: 0 | BX108: 0 | BY108: 0 | BZ108: 0 | CA108: 0 | CB108: 0 | CC108: 0 | CD108: 0 | CE108: 0 | CF108: 0 | CG108: 0 | CH108: 0 | CI108: 0 | CJ108: 0 | CK108: 0 | CL108: 0 | CM108: 0 | CN108: 0 | CO108: 0 | CP108: 0 | CQ108: 0 | CR108: 0 | CS108: 0 | CT108: 0 | CU108: 0 | CV108: 0 | CW108: 0 | CX108: 0 | CY108: 0 | CZ108: 0
A109: =Machine!A73 -> Wheat/Sorghum Head | B109: 0 | D109: 0 | E109: 0 | F109: 0 | G109: 0 | H109: 0 | I109: 0 | J109: 0 | K109: 0 | L109: 0 | M109: 0 | N109: 1 | O109: 1 | P109: 1 | Q109: 0 | R109: 0 | S109: 0 | T109: 0 | U109: 0 | V109: 0 | W109: 0 | X109: 0 | Y109: 0 | Z109: 0 | AA109: 0 | AB109: 0 | AC109: 0 | AD109: 0 | AE109: 1 | AF109: 0 | AG109: 0 | AH109: 0 | AI109: 0 | AJ109: 0 | AK109: 0 | AL109: 0 | AM109: 0 | AN109: 0 | AO109: 0 | AQ109: 0 | AR109: 0 | AS109: 0 | AT109: 0 | BC109: 0 | BD109: 0 | BE109: 0 | BF109: 0 | BG109: 0 | BH109: 0 | BI109: 0 | BJ109: 0 | BK109: 0 | BL109: 0 | BM109: 0 | BN109: 0 | BO109: 0 | BP109: 0 | BQ109: 0 | BR109: 0 | BS109: 0 | BT109: 0 | BU109: 0 | BV109: 0 | BW109: 0 | BX109: 0 | BY109: 0 | BZ109: 0 | CA109: 0 | CB109: 0 | CC109: 0 | CD109: 0 | CE109: 0 | CF109: 0 | CG109: 0 | CH109: 0 | CI109: 0 | CJ109: 0 | CK109: 0 | CL109: 0 | CM109: 0 | CN109: 0 | CO109: 0 | CP109: 0 | CQ109: 0 | CR109: 0 | CS109: 0 | CT109: 0 | CU109: 0 | CV109: 0 | CW109: 0 | CX109: 0 | CY109: 0 | CZ109: 0
A110: =Machine!A74 -> Grain Cart with Tractor | B110: 1 | D110: 1 | E110: 1 | F110: 1 | G110: 0 | H110: 0 | I110: 0 | J110: 0 | K110: 0 | L110: 0 | M110: 0 | N110: 1 | O110: 1 | P110: 1 | Q110: 1 | R110: 1 | S110: 1 | T110: 1 | U110: 1 | V110: 1 | W110: 1 | X110: 1 | Y110: 1 | Z110: 1 | AA110: 1 | AB110: 1 | AC110: 1 | AD110: 1 | AE110: 1 | AF110: 0 | AG110: 0 | AH110: 0 | AI110: 1 | AJ110: 1 | AK110: 1 | AL110: 1 | AM110: 1 | AN110: 1 | AO110: 0 | AQ110: 1 | AR110: 1 | AS110: 1 | AT110: 1 | BC110: 0 | BD110: 0 | BE110: 0 | BF110: 0 | BG110: 0 | BH110: 0 | BI110: 0 | BJ110: 0 | BK110: 0 | BL110: 0 | BM110: 0 | BN110: 0 | BO110: 0 | BP110: 0 | BQ110: 0 | BR110: 0 | BS110: 0 | BT110: 0 | BU110: 0 | BV110: 0 | BW110: 0 | BX110: 0 | BY110: 0 | BZ110: 0 | CA110: 0 | CB110: 0 | CC110: 0 | CD110: 0 | CE110: 0 | CF110: 0 | CG110: 0 | CH110: 0 | CI110: 0 | CJ110: 0 | CK110: 1 | CL110: 0 | CM110: 0 | CN110: 0 | CO110: 0 | CP110: 0 | CQ110: 0 | CR110: 0 | CS110: 0 | CT110: 0 | CU110: 0 | CV110: 0 | CW110: 0 | CX110: 0 | CY110: 0 | CZ110: 0
A111: =Machine!A75 -> Other Harvest | B111: 0 | D111: 0 | E111: 0 | F111: 0 | G111: 0 | H111: 0 | I111: 0 | J111: 0 | K111: 0 | L111: 0 | M111: 0 | N111: 0 | O111: 0 | P111: 0 | Q111: 0 | R111: 0 | S111: 0 | T111: 0 | U111: 0 | V111: 0 | W111: 0 | X111: 0 | Y111: 0 | Z111: 0 | AA111: 0 | AB111: 0 | AC111: 0 | AD111: 0 | AE111: 0 | AF111: 0 | AG111: 0 | AH111: 0 | AI111: 0 | AJ111: 0 | AK111: 0 | AL111: 0 | AM111: 0 | AN111: 0 | AO111: 0 | AQ111: 0 | AR111: 0 | AS111: 0 | AT111: 0 | BC111: 0 | BD111: 0 | BE111: 0 | BF111: 0 | BG111: 0 | BH111: 0 | BI111: 0 | BJ111: 0 | BK111: 0 | BL111: 0 | BM111: 0 | BN111: 0 | BO111: 0 | BP111: 0 | BQ111: 0 | BR111: 0 | BS111: 0 | BT111: 0 | BU111: 0 | BV111: 0 | BW111: 0 | BX111: 0 | BY111: 0 | BZ111: 0 | CA111: 0 | CB111: 0 | CC111: 0 | CD111: 0 | CE111: 0 | CF111: 0 | CG111: 0 | CH111: 0 | CI111: 0 | CJ111: 0 | CK111: 0 | CL111: 0 | CM111: 0 | CN111: 0 | CO111: 0 | CP111: 0 | CQ111: 0 | CR111: 0 | CS111: 0 | CT111: 0 | CU111: 0 | CV111: 0 | CW111: 0 | CX111: 0 | CY111: 0 | CZ111: 0
A112: =Machine!A76 -> Peanut Harvester, with Tractor | B112: 0 | D112: 0 | E112: 0 | F112: 0 | G112: 0 | H112: 0 | I112: 0 | J112: 0 | K112: 0 | L112: 0 | M112: 0 | N112: 0 | O112: 0 | P112: 0 | Q112: 0 | R112: 0 | S112: 0 | T112: 0 | U112: 0 | V112: 0 | W112: 0 | X112: 0 | Y112: 0 | Z112: 0 | AA112: 0 | AB112: 0 | AC112: 0 | AD112: 0 | AE112: 0 | AF112: 1 | AG112: 1 | AH112: 1 | AI112: 0 | AJ112: 0 | AK112: 0 | AL112: 0 | AM112: 0 | AN112: 0 | AO112: 0 | AQ112: 0 | AR112: 0 | AS112: 0 | AT112: 0 | BC112: 0 | BD112: 0 | BE112: 0 | BF112: 0 | BG112: 0 | BH112: 0 | BI112: 0 | BJ112: 0 | BK112: 0 | BL112: 0 | BM112: 0 | BN112: 0 | BO112: 0 | BP112: 0 | BQ112: 0 | BR112: 0 | BS112: 0 | BT112: 0 | BU112: 0 | BV112: 0 | BW112: 0 | BX112: 0 | BY112: 0 | BZ112: 0 | CA112: 0 | CB112: 0 | CC112: 0 | CD112: 0 | CE112: 0 | CF112: 0 | CG112: 0 | CH112: 0 | CI112: 0 | CJ112: 0 | CK112: 0 | CL112: 0 | CM112: 0 | CN112: 0 | CO112: 0 | CP112: 0 | CQ112: 0 | CR112: 0 | CS112: 0 | CT112: 0 | CU112: 0 | CV112: 0 | CW112: 0 | CX112: 0 | CY112: 0 | CZ112: 0
A113: =Machine!A77 -> Peanut Dump Cart with Tractor | B113: 0 | D113: 0 | E113: 0 | F113: 0 | G113: 0 | H113: 0 | I113: 0 | J113: 0 | K113: 0 | L113: 0 | M113: 0 | N113: 0 | O113: 0 | P113: 0 | Q113: 0 | R113: 0 | S113: 0 | T113: 0 | U113: 0 | V113: 0 | W113: 0 | X113: 0 | Y113: 0 | Z113: 0 | AA113: 0 | AB113: 0 | AC113: 0 | AD113: 0 | AE113: 0 | AF113: 1 | AG113: 1 | AH113: 1 | AI113: 0 | AJ113: 0 | AK113: 0 | AL113: 0 | AM113: 0 | AN113: 0 | AO113: 0 | AQ113: 0 | AR113: 0 | AS113: 0 | AT113: 0 | BC113: 0 | BD113: 0 | BE113: 0 | BF113: 0 | BG113: 0 | BH113: 0 | BI113: 0 | BJ113: 0 | BK113: 0 | BL113: 0 | BM113: 0 | BN113: 0 | BO113: 0 | BP113: 0 | BQ113: 0 | BR113: 0 | BS113: 0 | BT113: 0 | BU113: 0 | BV113: 0 | BW113: 0 | BX113: 0 | BY113: 0 | BZ113: 0 | CA113: 0 | CB113: 0 | CC113: 0 | CD113: 0 | CE113: 0 | CF113: 0 | CG113: 0 | CH113: 0 | CI113: 0 | CJ113: 0 | CK113: 0 | CL113: 0 | CM113: 0 | CN113: 0 | CO113: 0 | CP113: 0 | CQ113: 0 | CR113: 0 | CS113: 0 | CT113: 0 | CU113: 0 | CV113: 0 | CW113: 0 | CX113: 0 | CY113: 0 | CZ113: 0
A114: =Machine!A78 -> Peanut Wagon, 28 ft., with Tractor | B114: 0 | D114: 0 | E114: 0 | F114: 0 | G114: 0 | H114: 0 | I114: 0 | J114: 0 | K114: 0 | L114: 0 | M114: 0 | N114: 0 | O114: 0 | P114: 0 | Q114: 0 | R114: 0 | S114: 0 | T114: 0 | U114: 0 | V114: 0 | W114: 0 | X114: 0 | Y114: 0 | Z114: 0 | AA114: 0 | AB114: 0 | AC114: 0 | AD114: 0 | AE114: 0 | AF114: 0 | AG114: 0 | AH114: 0 | AI114: 0 | AJ114: 0 | AK114: 0 | AL114: 0 | AM114: 0 | AN114: 0 | AO114: 0 | AQ114: 0 | AR114: 0 | AS114: 0 | AT114: 0 | BC114: 0 | BD114: 0 | BE114: 0 | BF114: 0 | BG114: 0 | BH114: 0 | BI114: 0 | BJ114: 0 | BK114: 0 | BL114: 0 | BM114: 0 | BN114: 0 | BO114: 0 | BP114: 0 | BQ114: 0 | BR114: 0 | BS114: 0 | BT114: 0 | BU114: 0 | BV114: 0 | BW114: 0 | BX114: 0 | BY114: 0 | BZ114: 0 | CA114: 0 | CB114: 0 | CC114: 0 | CD114: 0 | CE114: 0 | CF114: 0 | CG114: 0 | CH114: 0 | CI114: 0 | CJ114: 0 | CK114: 0 | CL114: 0 | CM114: 0 | CN114: 0 | CO114: 0 | CP114: 0 | CQ114: 0 | CR114: 0 | CS114: 0 | CT114: 0 | CU114: 0 | CV114: 0 | CW114: 0 | CX114: 0 | CY114: 0 | CZ114: 0
A115: =Machine!A79 -> Other Harvest | B115: 0 | D115: 0 | E115: 0 | F115: 0 | G115: 0 | H115: 0 | I115: 0 | J115: 0 | K115: 0 | L115: 0 | M115: 0 | N115: 0 | O115: 0 | P115: 0 | Q115: 0 | R115: 0 | S115: 0 | T115: 0 | U115: 0 | V115: 0 | W115: 0 | X115: 0 | Y115: 0 | Z115: 0 | AA115: 0 | AB115: 0 | AC115: 0 | AD115: 0 | AE115: 0 | AF115: 0 | AG115: 0 | AH115: 0 | AI115: 0 | AJ115: 0 | AK115: 0 | AL115: 0 | AM115: 0 | AN115: 0 | AO115: 0 | AQ115: 0 | AR115: 0 | AS115: 0 | AT115: 0 | BC115: 0 | BD115: 0 | BE115: 0 | BF115: 0 | BG115: 0 | BH115: 0 | BI115: 0 | BJ115: 0 | BK115: 0 | BL115: 0 | BM115: 0 | BN115: 0 | BO115: 0 | BP115: 0 | BQ115: 0 | BR115: 0 | BS115: 0 | BT115: 0 | BU115: 0 | BV115: 0 | BW115: 0 | BX115: 0 | BY115: 0 | BZ115: 0 | CA115: 0 | CB115: 0 | CC115: 0 | CD115: 0 | CE115: 0 | CF115: 0 | CG115: 0 | CH115: 0 | CI115: 0 | CJ115: 0 | CK115: 0 | CL115: 0 | CM115: 0 | CN115: 0 | CO115: 0 | CP115: 0 | CQ115: 0 | CR115: 0 | CS115: 0 | CT115: 0 | CU115: 0 | CV115: 0 | CW115: 0 | CX115: 0 | CY115: 0 | CZ115: 0
A116: =Machine!A80 -> Other Harvest | B116: 0 | D116: 0 | E116: 0 | F116: 0 | G116: 0 | H116: 0 | I116: 0 | J116: 0 | K116: 0 | L116: 0 | M116: 0 | N116: 0 | O116: 0 | P116: 0 | Q116: 0 | R116: 0 | S116: 0 | T116: 0 | U116: 0 | V116: 0 | W116: 0 | X116: 0 | Y116: 0 | Z116: 0 | AA116: 0 | AB116: 0 | AC116: 0 | AD116: 0 | AE116: 0 | AF116: 0 | AG116: 0 | AH116: 0 | AI116: 0 | AJ116: 0 | AK116: 0 | AL116: 0 | AM116: 0 | AN116: 0 | AO116: 0 | AQ116: 0 | AR116: 0 | AS116: 0 | AT116: 0 | BC116: 0 | BD116: 0 | BE116: 0 | BF116: 0 | BG116: 0 | BH116: 0 | BI116: 0 | BJ116: 0 | BK116: 0 | BL116: 0 | BM116: 0 | BN116: 0 | BO116: 0 | BP116: 0 | BQ116: 0 | BR116: 0 | BS116: 0 | BT116: 0 | BU116: 0 | BV116: 0 | BW116: 0 | BX116: 0 | BY116: 0 | BZ116: 0 | CA116: 0 | CB116: 0 | CC116: 0 | CD116: 0 | CE116: 0 | CF116: 0 | CG116: 0 | CH116: 0 | CI116: 0 | CJ116: 0 | CK116: 0 | CL116: 0 | CM116: 0 | CN116: 0 | CO116: 0 | CP116: 0 | CQ116: 0 | CR116: 0 | CS116: 0 | CT116: 0 | CU116: 0 | CV116: 0 | CW116: 0 | CX116: 0 | CY116: 0 | CZ116: 0
A117: =Machine!A81 -> Other Harvest | B117: 0 | D117: 0 | E117: 0 | F117: 0 | G117: 0 | H117: 0 | I117: 0 | J117: 0 | K117: 0 | L117: 0 | M117: 0 | N117: 0 | O117: 0 | P117: 0 | Q117: 0 | R117: 0 | S117: 0 | T117: 0 | U117: 0 | V117: 0 | W117: 0 | X117: 0 | Y117: 0 | Z117: 0 | AA117: 0 | AB117: 0 | AC117: 0 | AD117: 0 | AE117: 0 | AF117: 0 | AG117: 0 | AH117: 0 | AI117: 0 | AJ117: 0 | AK117: 0 | AL117: 0 | AM117: 0 | AN117: 0 | AO117: 0 | AQ117: 0 | AR117: 0 | AS117: 0 | AT117: 0 | BC117: 0 | BD117: 0 | BE117: 0 | BF117: 0 | BG117: 0 | BH117: 0 | BI117: 0 | BJ117: 0 | BK117: 0 | BL117: 0 | BM117: 0 | BN117: 0 | BO117: 0 | BP117: 0 | BQ117: 0 | BR117: 0 | BS117: 0 | BT117: 0 | BU117: 0 | BV117: 0 | BW117: 0 | BX117: 0 | BY117: 0 | BZ117: 0 | CA117: 0 | CB117: 0 | CC117: 0 | CD117: 0 | CE117: 0 | CF117: 0 | CG117: 0 | CH117: 0 | CI117: 0 | CJ117: 0 | CK117: 0 | CL117: 0 | CM117: 0 | CN117: 0 | CO117: 0 | CP117: 0 | CQ117: 0 | CR117: 0 | CS117: 0 | CT117: 0 | CU117: 0 | CV117: 0 | CW117: 0 | CX117: 0 | CY117: 0 | CZ117: 0
D121: 1 | E121: =D121+1 -> 2 | F121: =E121+1 -> 3 | G121: 4 | H121: 5 | I121: 6 | J121: 7 | K121: 8 | L121: 9 | M121: 10 | N121: =M121+1 -> 11 | O121: 12 | P121: 13 | Q121: 14 | R121: 15 | S121: 16 | T121: 17 | U121: 18 | V121: 19 | W121: 20 | X121: 21 | Y121: 22 | Z121: 23 | AA121: 24 | AB121: 25 | AC121: 26 | AD121: 27 | AE121: 28 | AF121: 29 | AG121: 30 | AH121: 31 | AI121: 32 | AJ121: 33 | AK121: 34 | AL121: 35 | AM121: =AL121+1 -> 36 | AN121: =AM121+1 -> 37 | AO121: =AN121+1 -> 38 | AP121: =AO121+1 -> 39 | AQ121: =AP121+1 -> 40 | AR121: =AQ121+1 -> 41 | AS121: =AR121+1 -> 42 | AT121: =AS121+1 -> 43 | AU121: =AT121+1 -> 44 | AV121: =AU121+1 -> 45 | AW121: =AV121+1 -> 46 | AX121: =AW121+1 -> 47 | AY121: =AX121+1 -> 48 | AZ121: =AY121+1 -> 49 | BA121: =AZ121+1 -> 50

Sheet A4_Chem_Prices (hidden)
A1: Crop | B1: Corn | C1: unit | D1: price | E1: Cotton | F1: unit | G1: price | H1: Rice | I1: unit | J1: price | K1: Sorghum | L1: unit | M1: price | N1: Soybean | O1: unit | P1: price | Q1: Wheat | R1: unit | S1: price | T1: Peanut | U1: unit | V1: price
A2: Herbicide | B2: Glyphosate | C2: pt | D2: =19.75/8 -> 2.46875 | E2: Glyphosate | F2: pt | G2: =D2 -> 2.46875 | H2: Command | I2: oz | J2: =93.75/128 -> 0.732421875 | K2: Glyphosate | L2: pt | M2: =D2 -> 2.46875 | N2: Glyphosate | O2: oz | P2: =D2/16 -> 0.154296875 | Q2: Axial XL | R2: oz | S2: =(363/2.56)/128 -> 1.107788086 | T2: Prowl H2O | U2: pt | V2: 5.3
B3: Atrazine | C3: qt | D3: =12.5/4 -> 3.125 | E3: Dicamba | F3: oz | G3: =48.5/128 -> 0.37890625 | H3: Newpath | I3: oz | J3: =425/128 -> 3.3203125 | K3: Metolachlor | L3: pt | M3: =D4 -> 5 | N3: 2,4-D | O3: oz | P3: =D7/32 -> 0.087890625 | Q3: Harmony Extra SG | R3: oz | S3: =396/48 -> 8.25 | T3: Valor SX | U3: oz | V3: =(252/5)/16 -> 3.15
B4: Metolachlor | C4: pt | D4: 5 | E4: Fomesafen | F4: pt | G4: =54/8 -> 6.75 | H4: Surfactant | I4: oz | J4: =5.31/16 -> 0.331875 | K4: Atrazine | L4: qt | M4: =D3 -> 3.125 | N4: Prefix | O4: oz | P4: =45/128 -> 0.3515625 | Q4: Surfactant | R4: oz | S4: =J4 -> 0.331875 | T4: Select Max | U4: oz | V4: =P8 -> 0.734375
B5: Accent Q | C5: oz | D5: 19 | E5: Cotoran | F5: pt | G5: =47.5/8 -> 5.9375 | H5: Aim | I5: oz | J5: =350/128 -> 2.734375 | K5: 2,4-D | L5: pt | M5: =D7/2 -> 1.40625 | N5: Storm | O5: oz | P5: =11.58/16 -> 0.72375 | Q5: Metribuzin | R5: oz | S5: =(182/10)/16 -> 1.1375 | T5: Metolachlor | U5: pt | V5: =D4 -> 5
B6: Halex GT | C6: pt | D6: =49/8 -> 6.125 | E6: Gramoxone | F6: oz | G6: =18.5/128 -> 0.14453125 | H6: Grandstand R | I6: pt | J6: =152/8 -> 19 | N6: Liberty | O6: oz | P6: =G10 -> 0.26953125 | Q6: Zidua SC | R6: oz | S6: =D8 -> 4.765625 | T6: Ultra Blazer | U6: pt | V6: =P9 -> 6.25
B7: 2,4-D | C7: qt | D7: =11.25/4 -> 2.8125 | E7: Metolachlor | F7: pt | G7: =D4 -> 5 | H7: Facet L | I7: oz | J7: =75/128 -> 0.5859375 | N7: Authority MAXX | O7: oz | P7: =49.72/16 -> 3.1075 | T7: 2,4-DB | U7: pt | V7: =31/8 -> 3.875
B8: Zidua SC | C8: oz | D8: =610/128 -> 4.765625 | E8: Direx | F8: pt | G8: =21/8 -> 2.625 | H8: Crop Oil | I8: oz | J8: =3/16 -> 0.1875 | N8: Select Max | O8: oz | P8: =94/128 -> 0.734375 | T8: Zidua SC | U8: oz | V8: =D8 -> 4.765625
E9: MSMA 6 | F9: qt | G9: =3.97*2 -> 7.94 | H9: Glyphosate | I9: pt | J9: =D2 -> 2.46875 | N9: Ultra Blazer | O9: pt | P9: =50/8 -> 6.25
E10: Glufosinate | F10: oz | G10: =34.5/128 -> 0.26953125 | H10: Duet | I10: gal | J10: 37 | N10: Boundary | O10: qt | P10: =69/4 -> 17.25
E11: Staple | F11: oz | G11: 7.5 | H11: Regiment | I11: oz | J11: =292/8 -> 36.5 | N11: Gramoxone | O11: oz | P11: =G6 -> 0.14453125 | Q11: Metribuzin | R11: oz | S11: =S5 -> 1.1375
E12: Envoke | F12: oz | G12: 104 | H12: 2,4 D | I12: pt | J12: =D7/2 -> 1.40625 | N12: Zidua SC | O12: oz | P12: =D8 -> 4.765625 | Q12: Tavium | R12: oz | S12: =53.5/128 -> 0.41796875
E13: Caparol | F13: pt | G13: =38/8 -> 4.75 | H13: Propanil | I13: gal | J13: 25 | N13: s-Metolachlor | O13: pt | P13: =46/8 -> 5.75 | Q13: Outlook | R13: oz | S13: =G17 -> 0.984375
E14: Assure II | F14: oz | G14: =(258.95/2.5)/128 -> 0.80921875 | H14: Bolero | I14: pt | J14: =51.5/8 -> 6.4375 | K14: Beyond | L14: oz | M14: =434.5/128 -> 3.39453125 | N14: Xtendimax | O14: oz | P14: =G16 -> 0.515625 | Q14: Flexstar | R14: oz | S14: =58/128 -> 0.453125
E15: 2,4-D | F15: pt | G15: =D7/2 -> 1.40625 | H15: Ricestar HT | I15: oz | J15: =169/128 -> 1.3203125 | K15: RiceBeaux | L15: qt | M15: =38/4 -> 9.5 | N15: Enlist Duo | O15: pt | P15: =31/8 -> 3.875 | Q15: First Rate | R15: oz | S15: 40.12
B16: Brake | C16: pt | D16: =188/8 -> 23.5 | E16: Xtendimax | F16: oz | G16: =66/128 -> 0.515625 | H16: Clearpath | I16: lb | J16: 57.57 | K16: Basagran | L16: pt | M16: =24/8 -> 3 | N16: Enlist One | O16: pt | P16: =40/8 -> 5 | Q16: Python | R16: oz | S16: =(227/2.5)/16 -> 5.675
E17: Outlook | F17: oz | G17: =126/128 -> 0.984375 | H17: Permit | I17: oz | J17: =362/20 -> 18.1 | K17: Clincher | L17: oz | M17: =262/128 -> 2.046875 | N17: Moccasin | O17: pt | P17: =69/8 -> 8.625 | Q17: Anthem Maxx | R17: oz | S17: 4.9
A18: Insecticide | B18: Chlorantraniliprole | C18: oz | D18: 1.12 | E18: Thiamethoxam | F18: oz | G18: 6.28 | H18: Lambda-cyhalothrin | I18: oz | J18: 2.57 | K18: Transform | L18: oz | M18: =G20 -> 7.38 | N18: Belt | O18: oz | P18: 7.5 | T18: Admire Pro, furrow | U18: oz | V18: 1.33
E19: Diamond | F19: oz | G19: 1.31 | K19: Blackhawk | L19: oz | M19: 7.1 | N19: Besiege | O19: oz | P19: 1.93
E20: Transform | F20: oz | G20: 7.38 | K20: Sivanto Prime | L20: oz | M20: 2.54
E21: Chlorantraniliprole | F21: oz | G21: =D18 -> 1.12 | K21: Chlorantraniliprole | L21: oz | M21: =D18 -> 1.12
E22: Bidrin | F22: oz | G22: 1.28 | K22: =H18 -> Lambda-cyhalothrin | L22: oz | M22: =J18 -> 2.57
E23: Bifenthrin | F23: oz | G23: 0.82
E24: Acephate | F24: lb | G24: 7.59
A26: Growth Regulator | E26: Mepiquat Chloride | F26: oz | G26: 0.1
A28: Defoliant | E28: Dropp | F28: oz | G28: 1.18
E29: Folex | F29: oz | G29: =8.61/16 -> 0.538125
E30: Prep | F30: oz | G30: =2.9/16 -> 0.18125
A32: Fungicide | H32: Quadris | I32: oz | J32: 1.63 | N32: Quadris Top | O32: oz | P32: 2.33 | Q32: Quilt | R32: oz | S32: =17.06/16 -> 1.06625 | T32: Musle ADV | U32: pt | V32: =40/8 -> 5
H33: Quilt Xcel | I33: pt | J33: 23.43 | T33: Convoy | U33: pt | V33: =115/8 -> 14.375
H34: Tilt 3.6 EC | I34: oz | J34: 0.72
A36: Nematicide
A38: Innoculant | T38: Optimize for Peanuts | U38: oz | V38: 0.51

Sheet A5_Chem_Look_Up (hidden)
A1: =A2_Budget_Look_Up!C4 -> 35 | B1: ='C1_Messages_Indicators'!B59 -> Lookup OK | J1: Enter chemicals for each budget in these sections.
J2: =A2_Budget_Look_Up!H3 -> Corn, Furrow | L2: =A2_Budget_Look_Up!F3 -> 1
A4: Herbicide Detail | J4: Herbicide Detail
A5: Name, Brand | B5: Information | C5: Unit | D5: Price | E5: Quantity/Ac | F5: Costs | G5: Ounces | J5: Name, Brand | K5: Information | L5: Unit | M5: Price | N5: Quantity/Ac | O5: Costs | P5: Ounces
A6: =VLOOKUP(1,$I$6:$J$3099,2,FALSE) -> Glyphosate | B6: =VLOOKUP(1,$I$6:$P$3099,3,FALSE) ->  | C6: =VLOOKUP(1,$I$6:$P$3099,4,FALSE) -> oz | D6: =VLOOKUP(1,$I$6:$P$3099,5,FALSE) -> 0.154296875 | E6: =VLOOKUP(1,$I$6:$P$3099,6,FALSE) -> 32 | F6: =D6*E6 -> 4.9375 | G6: =VLOOKUP(1,$I$6:$P$3099,8,FALSE) -> 32 | H6: =VLOOKUP(1,$I$6:$Q$3099,9,FALSE) -> 35 | I6: =IF($A$1=1,1,0) -> 0 | J6: =A4_Chem_Prices!B$2 -> Glyphosate | L6: =A4_Chem_Prices!C$2 -> pt | M6: =A4_Chem_Prices!D$2 -> 2.46875 | N6: 2 | O6: =M6*N6 -> 4.9375 | P6: =N6*16 -> 32 | Q6: =IF(SUM(I6:I61)=820,L2,0) -> 0
A7: =VLOOKUP(2,$I$6:$J$3099,2,FALSE) -> 2,4-D | B7: =VLOOKUP(2,$I$6:$P$3099,3,FALSE) ->  | C7: =VLOOKUP(2,$I$6:$P$3099,4,FALSE) -> oz | D7: =VLOOKUP(2,$I$6:$P$3099,5,FALSE) -> 0.087890625 | E7: =VLOOKUP(2,$I$6:$P$3099,6,FALSE) -> 32 | F7: 2.8125 | G7: =VLOOKUP(2,$I$6:$P$3099,8,FALSE) -> 32 | H7: =VLOOKUP(2,$I$6:$Q$3099,9,FALSE) -> 35 | I7: =IF($A$1=1,I6+1,0) -> 0 | J7: =A4_Chem_Prices!B$4 -> Metolachlor | L7: =A4_Chem_Prices!C$4 -> pt | M7: =A4_Chem_Prices!D$4 -> 5 | N7: 1.3 | O7: 6.5 | P7: =N7*16 -> 20.8 | Q7: =Q6 -> 0
A8: =VLOOKUP(3,$I$6:$J$3099,2,FALSE) -> Boundary | B8: =VLOOKUP(3,$I$6:$P$3099,3,FALSE) ->  | C8: =VLOOKUP(3,$I$6:$P$3099,4,FALSE) -> qt | D8: =VLOOKUP(3,$I$6:$P$3099,5,FALSE) -> 17.25 | E8: =VLOOKUP(3,$I$6:$P$3099,6,FALSE) -> 1 | F8: =D8*E8 -> 17.25 | G8: =VLOOKUP(3,$I$6:$P$3099,8,FALSE) -> 32 | H8: =VLOOKUP(3,$I$6:$Q$3099,9,FALSE) -> 35 | I8: 0 | J8: =A4_Chem_Prices!B$6 -> Halex GT | L8: =A4_Chem_Prices!C$6 -> pt | M8: =A4_Chem_Prices!D$6 -> 6.125 | N8: 3.6 | O8: =M8*N8 -> 22.05 | P8: 57.6 | Q8: =Q7 -> 0
A9: =VLOOKUP(4,$I$6:$J$3099,2,FALSE) -> Select Max | B9: =VLOOKUP(4,$I$6:$P$3099,3,FALSE) ->  | C9: =VLOOKUP(4,$I$6:$P$3099,4,FALSE) -> pt | D9: =VLOOKUP(4,$I$6:$P$3099,5,FALSE) -> 0.734375 | E9: =VLOOKUP(4,$I$6:$P$3099,6,FALSE) -> 1 | F9: 0.734375 | G9: =VLOOKUP(4,$I$6:$P$3099,8,FALSE) -> 16 | H9: =VLOOKUP(4,$I$6:$Q$3099,9,FALSE) -> 35 | I9: 0 | J9: =A4_Chem_Prices!B$3 -> Atrazine | L9: =A4_Chem_Prices!C$3 -> qt | M9: =A4_Chem_Prices!D$3 -> 3.125 | N9: 2 | O9: =M9*N9 -> 6.25 | P9: =N9*32 -> 64 | Q9: 0
A10: =VLOOKUP(5,$I$6:$J$3099,2,FALSE) -> Zidua SC | B10: =VLOOKUP(5,$I$6:$P$3099,3,FALSE) ->  | C10: =VLOOKUP(5,$I$6:$P$3099,4,FALSE) -> oz | D10: =VLOOKUP(5,$I$6:$P$3099,5,FALSE) -> 4.765625 | E10: =VLOOKUP(5,$I$6:$P$3099,6,FALSE) -> 3.5 | F10: 16.6796875 | G10: =VLOOKUP(5,$I$6:$P$3099,8,FALSE) -> 56 | H10: =VLOOKUP(5,$I$6:$Q$3099,9,FALSE) -> 35 | I10: 0 | J10: Other | M10: 0 | N10: 0 | O10: =M10*N10 -> 0 | Q10: 0
A11: =VLOOKUP(6,$I$6:$J$3099,2,FALSE) -> Storm | B11: =VLOOKUP(6,$I$6:$P$3099,3,FALSE) ->  | C11: =VLOOKUP(6,$I$6:$P$3099,4,FALSE) -> oz | D11: =VLOOKUP(6,$I$6:$P$3099,5,FALSE) -> 0.72375 | E11: =VLOOKUP(6,$I$6:$P$3099,6,FALSE) -> 1.5 | F11: 1.085625 | G11: =VLOOKUP(6,$I$6:$P$3099,8,FALSE) -> 1.5 | H11: =VLOOKUP(6,$I$6:$Q$3099,9,FALSE) -> 35 | I11: 0 | J11: Other | M11: 0 | N11: 0 | O11: 0 | Q11: 0
A12: =VLOOKUP(7,$I$6:$J$3099,2,FALSE) -> Outlook | B12: =VLOOKUP(7,$I$6:$P$3099,3,FALSE) ->  | C12: =VLOOKUP(7,$I$6:$P$3099,4,FALSE) -> oz | D12: =VLOOKUP(7,$I$6:$P$3099,5,FALSE) -> 0.984375 | E12: =VLOOKUP(7,$I$6:$P$3099,6,FALSE) -> 12.8 | F12: 12.6 | G12: =VLOOKUP(7,$I$6:$P$3099,8,FALSE) -> 12.8 | H12: =VLOOKUP(7,$I$6:$Q$3099,9,FALSE) -> 35 | I12: 0 | J12: Other | M12: 0 | N12: 0 | O12: 0 | Q12: 0
A13: =VLOOKUP(8,$I$6:$J$3099,2,FALSE) -> Gramoxone | B13: =VLOOKUP(8,$I$6:$P$3099,3,FALSE) ->  | C13: =VLOOKUP(8,$I$6:$P$3099,4,FALSE) -> oz | D13: =VLOOKUP(8,$I$6:$P$3099,5,FALSE) -> 0.14453125 | E13: =VLOOKUP(8,$I$6:$P$3099,6,FALSE) -> 32 | F13: 4.625 | G13: =VLOOKUP(8,$I$6:$P$3099,8,FALSE) -> 0 | H13: =VLOOKUP(8,$I$6:$Q$3099,9,FALSE) -> 35 | I13: 0 | J13: Other | M13: 0 | N13: 0 | O13: 0 | Q13: 0
A14: =VLOOKUP(9,$I$6:$J$3099,2,FALSE) -> Python | B14: =VLOOKUP(9,$I$6:$P$3099,3,FALSE) ->  | C14: =VLOOKUP(9,$I$6:$P$3099,4,FALSE) -> oz | D14: =VLOOKUP(9,$I$6:$P$3099,5,FALSE) -> 5.675 | E14: =VLOOKUP(9,$I$6:$P$3099,6,FALSE) -> 0.3 | F14: 1.7025 | G14: =VLOOKUP(9,$I$6:$P$3099,8,FALSE) -> 0 | H14: =VLOOKUP(9,$I$6:$Q$3099,9,FALSE) -> 35 | I14: 0 | J14: Other | M14: 0 | N14: 0 | O14: 0 | Q14: 0
A15: =VLOOKUP(10,$I$6:$J$3099,2,FALSE) -> Anthem Maxx | B15: =VLOOKUP(10,$I$6:$P$3099,3,FALSE) ->  | C15: =VLOOKUP(10,$I$6:$P$3099,4,FALSE) -> oz | D15: =VLOOKUP(10,$I$6:$P$3099,5,FALSE) -> 4.9 | E15: =VLOOKUP(10,$I$6:$P$3099,6,FALSE) -> 0.125 | F15: 0.6125 | G15: =VLOOKUP(10,$I$6:$P$3099,8,FALSE) -> 0 | H15: =VLOOKUP(10,$I$6:$Q$3099,9,FALSE) -> 35 | I15: 0 | J15: Other | M15: 0 | N15: 0 | O15: 0 | Q15: 0
A16: =VLOOKUP(11,$I$6:$J$3099,2,FALSE) -> Other | B16: =VLOOKUP(11,$I$6:$P$3099,3,FALSE) ->  | C16: =VLOOKUP(11,$I$6:$P$3099,4,FALSE) -> 0 | D16: =VLOOKUP(11,$I$6:$P$3099,5,FALSE) -> 0 | E16: =VLOOKUP(11,$I$6:$P$3099,6,FALSE) -> 0 | F16: 0 | G16: =VLOOKUP(11,$I$6:$P$3099,8,FALSE) -> 0 | H16: =VLOOKUP(11,$I$6:$Q$3099,9,FALSE) -> 35 | I16: 0 | J16: Other | M16: 0 | N16: 0 | O16: 0 | Q16: 0
A17: =VLOOKUP(12,$I$6:$J$3099,2,FALSE) -> Other | B17: =VLOOKUP(12,$I$6:$P$3099,3,FALSE) ->  | C17: =VLOOKUP(12,$I$6:$P$3099,4,FALSE) -> 0 | D17: =VLOOKUP(12,$I$6:$P$3099,5,FALSE) -> 0 | E17: =VLOOKUP(12,$I$6:$P$3099,6,FALSE) -> 0 | F17: 0 | G17: =VLOOKUP(12,$I$6:$P$3099,8,FALSE) -> 0 | H17: =VLOOKUP(12,$I$6:$Q$3099,9,FALSE) -> 35 | I17: 0 | J17: Other | M17: 0 | N17: 0 | O17: 0 | Q17: 0
A18: =VLOOKUP(13,$I$6:$J$3099,2,FALSE) -> Other | B18: =VLOOKUP(13,$I$6:$P$3099,3,FALSE) ->  | C18: =VLOOKUP(13,$I$6:$P$3099,4,FALSE) -> 0 | D18: =VLOOKUP(13,$I$6:$P$3099,5,FALSE) -> 0 | E18: =VLOOKUP(13,$I$6:$P$3099,6,FALSE) -> 0 | F18: 0 | G18: =VLOOKUP(13,$I$6:$P$3099,8,FALSE) -> 0 | H18: =VLOOKUP(13,$I$6:$Q$3099,9,FALSE) -> 35 | I18: 0 | J18: Other | M18: 0 | N18: 0 | O18: 0 | Q18: 0
A19: =VLOOKUP(14,$I$6:$J$3099,2,FALSE) -> Other | B19: =VLOOKUP(14,$I$6:$P$3099,3,FALSE) ->  | C19: =VLOOKUP(14,$I$6:$P$3099,4,FALSE) -> 0 | D19: =VLOOKUP(14,$I$6:$P$3099,5,FALSE) -> 0 | E19: =VLOOKUP(14,$I$6:$P$3099,6,FALSE) -> 0 | F19: 0 | G19: =VLOOKUP(14,$I$6:$P$3099,8,FALSE) -> 0 | H19: =VLOOKUP(14,$I$6:$Q$3099,9,FALSE) -> 35 | I19: 0 | J19: Other | M19: 0 | N19: 0 | O19: 0 | Q19: 0
A20: Total | F20: =SUM(F6:F19) -> 63.0396875 | J20: Total | O20: =SUM(O6:O19) -> 39.7375
A22: Insecticide Detail | J22: Insecticide Detail
A23: Name, Brand | B23: Information | C23: Unit | D23: Price | E23: Quantity/Ac | F23: Costs | G23: Ounces | J23: Name, Brand | K23: Information | L23: Unit | M23: Price | N23: Quantity/Ac | O23: Costs | P23: Ounces
A24: =VLOOKUP(15,$I$6:$J$3099,2,FALSE) -> Besiege | B24: =VLOOKUP(15,$I$6:$P$3099,3,FALSE) ->  | C24: =VLOOKUP(15,$I$6:$P$3099,4,FALSE) -> oz | D24: =VLOOKUP(15,$I$6:$P$3099,5,FALSE) -> 1.93 | E24: =VLOOKUP(15,$I$6:$P$3099,6,FALSE) -> 9 | F24: =D24*E24 -> 17.37 | G24: =VLOOKUP(15,$I$6:$P$3099,8,FALSE) -> 9 | H24: =VLOOKUP(15,$I$6:$Q$3099,9,FALSE) -> 35 | I24: =IF($A$1=1,I19+1,0) -> 0 | J24: Other | M24: 0 | N24: 0 | O24: =M24*N24 -> 0 | Q24: =Q6 -> 0
A25: =VLOOKUP(16,$I$6:$J$3099,2,FALSE) -> Other | B25: =VLOOKUP(16,$I$6:$P$3099,3,FALSE) ->  | C25: =VLOOKUP(16,$I$6:$P$3099,4,FALSE) -> 0 | D25: =VLOOKUP(16,$I$6:$P$3099,5,FALSE) -> 0 | E25: =VLOOKUP(16,$I$6:$P$3099,6,FALSE) -> 0 | F25: 0 | G25: =VLOOKUP(16,$I$6:$P$3099,8,FALSE) -> 0 | H25: =VLOOKUP(16,$I$6:$Q$3099,9,FALSE) -> 35 | I25: =IF($A$1=1,I24+1,0) -> 0 | J25: Other | M25: 0 | N25: 0 | O25: 0 | Q25: =Q24 -> 0
A26: =VLOOKUP(17,$I$6:$J$3099,2,FALSE) -> Other | B26: =VLOOKUP(17,$I$6:$P$3099,3,FALSE) ->  | C26: =VLOOKUP(17,$I$6:$P$3099,4,FALSE) -> 0 | D26: =VLOOKUP(17,$I$6:$P$3099,5,FALSE) -> 0 | E26: =VLOOKUP(17,$I$6:$P$3099,6,FALSE) -> 0 | F26: 0 | G26: =VLOOKUP(17,$I$6:$P$3099,8,FALSE) -> 0 | H26: =VLOOKUP(17,$I$6:$Q$3099,9,FALSE) -> 35 | I26: 0 | J26: Other | M26: 0 | N26: 0 | O26: 0 | Q26: =Q25 -> 0
A27: =VLOOKUP(18,$I$6:$J$3099,2,FALSE) -> Other | B27: =VLOOKUP(18,$I$6:$P$3099,3,FALSE) ->  | C27: =VLOOKUP(18,$I$6:$P$3099,4,FALSE) -> 0 | D27: =VLOOKUP(18,$I$6:$P$3099,5,FALSE) -> 0 | E27: =VLOOKUP(18,$I$6:$P$3099,6,FALSE) -> 0 | F27: 0 | G27: =VLOOKUP(18,$I$6:$P$3099,8,FALSE) -> 0 | H27: =VLOOKUP(18,$I$6:$Q$3099,9,FALSE) -> 35 | I27: 0 | J27: Other | M27: 0 | N27: 0 | O27: 0 | Q27: 0
A28: =VLOOKUP(19,$I$6:$J$3099,2,FALSE) -> Other | B28: =VLOOKUP(19,$I$6:$P$3099,3,FALSE) ->  | C28: =VLOOKUP(19,$I$6:$P$3099,4,FALSE) -> 0 | D28: =VLOOKUP(19,$I$6:$P$3099,5,FALSE) -> 0 | E28: =VLOOKUP(19,$I$6:$P$3099,6,FALSE) -> 0 | F28: 0 | G28: =VLOOKUP(19,$I$6:$P$3099,8,FALSE) -> 0 | H28: =VLOOKUP(19,$I$6:$Q$3099,9,FALSE) -> 35 | I28: 0 | J28: Other | M28: 0 | N28: 0 | O28: 0 | Q28: 0
A29: =VLOOKUP(20,$I$6:$J$3099,2,FALSE) -> Other | B29: =VLOOKUP(20,$I$6:$P$3099,3,FALSE) ->  | C29: =VLOOKUP(20,$I$6:$P$3099,4,FALSE) -> 0 | D29: =VLOOKUP(20,$I$6:$P$3099,5,FALSE) -> 0 | E29: =VLOOKUP(20,$I$6:$P$3099,6,FALSE) -> 0 | F29: 0 | G29: =VLOOKUP(20,$I$6:$P$3099,8,FALSE) -> 0 | H29: =VLOOKUP(20,$I$6:$Q$3099,9,FALSE) -> 35 | I29: 0 | J29: Other | M29: 0 | N29: 0 | O29: 0 | Q29: 0
A30: =VLOOKUP(21,$I$6:$J$3099,2,FALSE) -> Other | B30: =VLOOKUP(21,$I$6:$P$3099,3,FALSE) ->  | C30: =VLOOKUP(21,$I$6:$P$3099,4,FALSE) -> 0 | D30: =VLOOKUP(21,$I$6:$P$3099,5,FALSE) -> 0 | E30: =VLOOKUP(21,$I$6:$P$3099,6,FALSE) -> 0 | F30: 0 | G30: =VLOOKUP(21,$I$6:$P$3099,8,FALSE) -> 0 | H30: =VLOOKUP(21,$I$6:$Q$3099,9,FALSE) -> 35 | I30: 0 | J30: Other | M30: 0 | N30: 0 | O30: 0 | Q30: 0
A31: =VLOOKUP(22,$I$6:$J$3099,2,FALSE) -> Other | B31: =VLOOKUP(22,$I$6:$P$3099,3,FALSE) ->  | C31: =VLOOKUP(22,$I$6:$P$3099,4,FALSE) -> 0 | D31: =VLOOKUP(22,$I$6:$P$3099,5,FALSE) -> 0 | E31: =VLOOKUP(22,$I$6:$P$3099,6,FALSE) -> 0 | F31: 0 | G31: =VLOOKUP(22,$I$6:$P$3099,8,FALSE) -> 0 | H31: =VLOOKUP(22,$I$6:$Q$3099,9,FALSE) -> 35 | I31: 0 | J31: Other | M31: 0 | N31: 0 | O31: 0 | Q31: 0
A32: =VLOOKUP(23,$I$6:$J$3099,2,FALSE) -> Other | B32: =VLOOKUP(23,$I$6:$P$3099,3,FALSE) ->  | C32: =VLOOKUP(23,$I$6:$P$3099,4,FALSE) -> 0 | D32: =VLOOKUP(23,$I$6:$P$3099,5,FALSE) -> 0 | E32: =VLOOKUP(23,$I$6:$P$3099,6,FALSE) -> 0 | F32: 0 | G32: =VLOOKUP(23,$I$6:$P$3099,8,FALSE) -> 0 | H32: =VLOOKUP(23,$I$6:$Q$3099,9,FALSE) -> 35 | I32: 0 | J32: Other | M32: 0 | N32: 0 | O32: 0 | Q32: 0
A33: =VLOOKUP(24,$I$6:$J$3099,2,FALSE) -> Other | B33: =VLOOKUP(24,$I$6:$P$3099,3,FALSE) ->  | C33: =VLOOKUP(24,$I$6:$P$3099,4,FALSE) -> 0 | D33: =VLOOKUP(24,$I$6:$P$3099,5,FALSE) -> 0 | E33: =VLOOKUP(24,$I$6:$P$3099,6,FALSE) -> 0 | F33: 0 | G33: =VLOOKUP(24,$I$6:$P$3099,8,FALSE) -> 0 | H33: =VLOOKUP(24,$I$6:$Q$3099,9,FALSE) -> 35 | I33: 0 | J33: Other | M33: 0 | N33: 0 | O33: 0 | Q33: 0
A34: Total | F34: =SUM(F24:F33) -> 17.37 | J34: Total | O34: =SUM(O24:O33) -> 0
A36: =IF(OR(A2_Budget_Look_Up!$B$7=1,A2_Budget_Look_Up!$B$13=1),"Nematicide Detail", "Fungicide Detail") -> Fungicide Detail | J36: =IF(OR(A2_Budget_Look_Up!$B$7=1,A2_Budget_Look_Up!$B$13=1),"Nematicide Detail", "Fungicide Detail") -> Fungicide Detail
A37: Name, Brand | B37: Information | C37: Unit | D37: Price | E37: Quantity/Ac | F37: Costs | G37: Ounces | J37: Name, Brand | K37: Information | L37: Unit | M37: Price | N37: Quantity/Ac | O37: Costs | P37: Ounces
A38: =VLOOKUP(25,$I$6:$J$3099,2,FALSE) -> Quadris Top | B38: =VLOOKUP(25,$I$6:$P$3099,3,FALSE) ->  | C38: =VLOOKUP(25,$I$6:$P$3099,4,FALSE) -> oz | D38: =VLOOKUP(25,$I$6:$P$3099,5,FALSE) -> 2.33 | E38: =VLOOKUP(25,$I$6:$P$3099,6,FALSE) -> 7 | F38: =D38*E38 -> 16.31 | G38: =VLOOKUP(25,$I$6:$P$3099,8,FALSE) -> 7 | H38: =VLOOKUP(25,$I$6:$Q$3099,9,FALSE) -> 35 | I38: =IF($A$1=1,I33+1,0) -> 0 | J38: Other | M38: 0 | N38: 0 | O38: =M38*N38 -> 0 | Q38: =Q33 -> 0
A39: =VLOOKUP(26,$I$6:$J$3099,2,FALSE) -> Other | B39: =VLOOKUP(26,$I$6:$P$3099,3,FALSE) ->  | C39: =VLOOKUP(26,$I$6:$P$3099,4,FALSE) -> 0 | D39: =VLOOKUP(26,$I$6:$P$3099,5,FALSE) -> 0 | E39: =VLOOKUP(26,$I$6:$P$3099,6,FALSE) -> 0 | F39: 0 | G39: =VLOOKUP(26,$I$6:$P$3099,8,FALSE) -> 0 | H39: =VLOOKUP(26,$I$6:$Q$3099,9,FALSE) -> 35 | I39: =IF($A$1=1,I38+1,0) -> 0 | J39: Other | M39: 0 | N39: 0 | O39: =M39*N39 -> 0 | Q39: =Q38 -> 0
A40: Total | F40: =SUM(F38:F39) -> 16.31 | J40: Total | O40: =SUM(O38:O39) -> 0
A42: =IF(A2_Budget_Look_Up!$B$7=1,"Growth Regulator Detail", IF(A2_Budget_Look_Up!$B$13=1,"Fungicide Detail","Other Chemical Detail")) -> Other Chemical Detail | J42: =IF(A2_Budget_Look_Up!$B$7=1,"Growth Regulator Detail", IF(A2_Budget_Look_Up!$B$13=1,"Fungicide Detail","Other Chemical Detail")) -> Other Chemical Detail
A43: Name, Brand | B43: Information | C43: Unit | D43: Price | E43: Quantity/Ac | F43: Costs | G43: Ounces | J43: Name, Brand | K43: Information | L43: Unit | M43: Price | N43: Quantity/Ac | O43: Costs | P43: Ounces
A44: =VLOOKUP(27,$I$6:$J$3099,2,FALSE) -> Other | B44: =VLOOKUP(27,$I$6:$P$3099,3,FALSE) ->  | C44: =VLOOKUP(27,$I$6:$P$3099,4,FALSE) -> 0 | D44: =VLOOKUP(27,$I$6:$P$3099,5,FALSE) -> 0 | E44: =VLOOKUP(27,$I$6:$P$3099,6,FALSE) -> 0 | F44: =D44*E44 -> 0 | G44: =VLOOKUP(27,$I$6:$P$3099,8,FALSE) -> 0 | H44: =VLOOKUP(27,$I$6:$Q$3099,9,FALSE) -> 35 | I44: =IF($A$1=1,I39+1,0) -> 0 | J44: Other | M44: 0 | N44: 0 | O44: =M44*N44 -> 0 | Q44: =Q39 -> 0
A45: =VLOOKUP(28,$I$6:$J$3099,2,FALSE) -> Other | B45: =VLOOKUP(28,$I$6:$P$3099,3,FALSE) ->  | C45: =VLOOKUP(28,$I$6:$P$3099,4,FALSE) -> 0 | D45: =VLOOKUP(28,$I$6:$P$3099,5,FALSE) -> 0 | E45: =VLOOKUP(28,$I$6:$P$3099,6,FALSE) -> 0 | F45: 0 | G45: =VLOOKUP(28,$I$6:$P$3099,8,FALSE) -> 0 | H45: =VLOOKUP(28,$I$6:$Q$3099,9,FALSE) -> 35 | I45: =IF($A$1=1,I44+1,0) -> 0 | J45: Other | M45: 0 | N45: 0 | O45: 0 | Q45: =Q44 -> 0
A46: =VLOOKUP(29,$I$6:$J$3099,2,FALSE) -> Other | B46: =VLOOKUP(29,$I$6:$P$3099,3,FALSE) ->  | C46: =VLOOKUP(29,$I$6:$P$3099,4,FALSE) -> 0 | D46: =VLOOKUP(29,$I$6:$P$3099,5,FALSE) -> 0 | E46: =VLOOKUP(29,$I$6:$P$3099,6,FALSE) -> 0 | F46: 0 | G46: =VLOOKUP(29,$I$6:$P$3099,8,FALSE) -> 0 | H46: =VLOOKUP(29,$I$6:$Q$3099,9,FALSE) -> 35 | I46: 0 | J46: Other | M46: 0 | N46: 0 | O46: 0 | Q46: =Q45 -> 0
A47: =VLOOKUP(30,$I$6:$J$3099,2,FALSE) -> Other | B47: =VLOOKUP(30,$I$6:$P$3099,3,FALSE) ->  | C47: =VLOOKUP(30,$I$6:$P$3099,4,FALSE) -> 0 | D47: =VLOOKUP(30,$I$6:$P$3099,5,FALSE) -> 0 | E47: =VLOOKUP(30,$I$6:$P$3099,6,FALSE) -> 0 | F47: 0 | G47: =VLOOKUP(30,$I$6:$P$3099,8,FALSE) -> 0 | H47: =VLOOKUP(30,$I$6:$Q$3099,9,FALSE) -> 35 | I47: 0 | J47: Other | M47: 0 | N47: 0 | O47: 0 | Q47: 0
A48: =VLOOKUP(31,$I$6:$J$3099,2,FALSE) -> Other | B48: =VLOOKUP(31,$I$6:$P$3099,3,FALSE) ->  | C48: =VLOOKUP(31,$I$6:$P$3099,4,FALSE) -> 0 | D48: =VLOOKUP(31,$I$6:$P$3099,5,FALSE) -> 0 | E48: =VLOOKUP(31,$I$6:$P$3099,6,FALSE) -> 0 | F48: 0 | G48: =VLOOKUP(31,$I$6:$P$3099,8,FALSE) -> 0 | H48: =VLOOKUP(31,$I$6:$Q$3099,9,FALSE) -> 35 | I48: 0 | J48: Other | M48: 0 | N48: 0 | O48: 0 | Q48: 0
A49: =VLOOKUP(32,$I$6:$J$3099,2,FALSE) -> Other | B49: =VLOOKUP(32,$I$6:$P$3099,3,FALSE) ->  | C49: =VLOOKUP(32,$I$6:$P$3099,4,FALSE) -> 0 | D49: =VLOOKUP(32,$I$6:$P$3099,5,FALSE) -> 0 | E49: =VLOOKUP(32,$I$6:$P$3099,6,FALSE) -> 0 | F49: 0 | G49: =VLOOKUP(32,$I$6:$P$3099,8,FALSE) -> 0 | H49: =VLOOKUP(32,$I$6:$Q$3099,9,FALSE) -> 35 | I49: 0 | J49: Other | M49: 0 | N49: 0 | O49: 0 | Q49: 0
A50: =VLOOKUP(33,$I$6:$J$3099,2,FALSE) -> Other | B50: =VLOOKUP(33,$I$6:$P$3099,3,FALSE) ->  | C50: =VLOOKUP(33,$I$6:$P$3099,4,FALSE) -> 0 | D50: =VLOOKUP(33,$I$6:$P$3099,5,FALSE) -> 0 | E50: =VLOOKUP(33,$I$6:$P$3099,6,FALSE) -> 0 | F50: 0 | G50: =VLOOKUP(33,$I$6:$P$3099,8,FALSE) -> 0 | H50: =VLOOKUP(33,$I$6:$Q$3099,9,FALSE) -> 35 | I50: 0 | J50: Other | M50: 0 | N50: 0 | O50: 0 | Q50: 0
A51: Total | F51: =SUM(F44:F50) -> 0 | J51: Total | O51: =SUM(O44:O50) -> 0
A53: =IF(A2_Budget_Look_Up!$B$7=1,"Defoliant Detail", "Other Chemical Detail") -> Other Chemical Detail | J53: =IF(A2_Budget_Look_Up!$B$7=1,"Defoliant Detail", "Other Chemical Detail") -> Other Chemical Detail
A54: Name, Brand | B54: Information | C54: Unit | D54: Price | E54: Quantity/Ac | F54: Costs | G54: Ounces | J54: Name, Brand | K54: Information | L54: Unit | M54: Price | N54: Quantity/Ac | O54: Costs | P54: Ounces
A55: =VLOOKUP(34,$I$6:$J$3099,2,FALSE) -> Other | B55: =VLOOKUP(34,$I$6:$P$3099,3,FALSE) ->  | C55: =VLOOKUP(34,$I$6:$P$3099,4,FALSE) -> 0 | D55: =VLOOKUP(34,$I$6:$P$3099,5,FALSE) -> 0 | E55: =VLOOKUP(34,$I$6:$P$3099,6,FALSE) -> 0 | F55: =D55*E55 -> 0 | G55: =VLOOKUP(34,$I$6:$P$3099,8,FALSE) -> 0 | H55: =VLOOKUP(34,$I$6:$Q$3099,9,FALSE) -> 35 | I55: =IF($A$1=1,I50+1,0) -> 0 | J55: Other | M55: 0 | N55: 0 | O55: =M55*N55 -> 0 | Q55: =Q50 -> 0
A56: =VLOOKUP(35,$I$6:$J$3099,2,FALSE) -> Other | B56: =VLOOKUP(35,$I$6:$P$3099,3,FALSE) ->  | C56: =VLOOKUP(35,$I$6:$P$3099,4,FALSE) -> 0 | D56: =VLOOKUP(35,$I$6:$P$3099,5,FALSE) -> 0 | E56: =VLOOKUP(35,$I$6:$P$3099,6,FALSE) -> 0 | F56: 0 | G56: =VLOOKUP(35,$I$6:$P$3099,8,FALSE) -> 0 | H56: =VLOOKUP(35,$I$6:$Q$3099,9,FALSE) -> 35 | I56: =IF($A$1=1,I55+1,0) -> 0 | J56: Other | M56: 0 | N56: 0 | O56: 0 | Q56: =Q55 -> 0
A57: =VLOOKUP(36,$I$6:$J$3099,2,FALSE) -> Other | B57: =VLOOKUP(36,$I$6:$P$3099,3,FALSE) ->  | C57: =VLOOKUP(36,$I$6:$P$3099,4,FALSE) -> 0 | D57: =VLOOKUP(36,$I$6:$P$3099,5,FALSE) -> 0 | E57: =VLOOKUP(36,$I$6:$P$3099,6,FALSE) -> 0 | F57: 0 | G57: =VLOOKUP(36,$I$6:$P$3099,8,FALSE) -> 0 | H57: =VLOOKUP(36,$I$6:$Q$3099,9,FALSE) -> 35 | I57: 0 | J57: Other | M57: 0 | N57: 0 | O57: 0 | Q57: =Q56 -> 0
A58: =VLOOKUP(37,$I$6:$J$3099,2,FALSE) -> Other | B58: =VLOOKUP(37,$I$6:$P$3099,3,FALSE) ->  | C58: =VLOOKUP(37,$I$6:$P$3099,4,FALSE) -> 0 | D58: =VLOOKUP(37,$I$6:$P$3099,5,FALSE) -> 0 | E58: =VLOOKUP(37,$I$6:$P$3099,6,FALSE) -> 0 | F58: 0 | G58: =VLOOKUP(37,$I$6:$P$3099,8,FALSE) -> 0 | H58: =VLOOKUP(37,$I$6:$Q$3099,9,FALSE) -> 35 | I58: 0 | J58: Other | M58: 0 | N58: 0 | O58: 0 | Q58: 0
A59: =VLOOKUP(38,$I$6:$J$3099,2,FALSE) -> Other | B59: =VLOOKUP(38,$I$6:$P$3099,3,FALSE) ->  | C59: =VLOOKUP(38,$I$6:$P$3099,4,FALSE) -> 0 | D59: =VLOOKUP(38,$I$6:$P$3099,5,FALSE) -> 0 | E59: =VLOOKUP(38,$I$6:$P$3099,6,FALSE) -> 0 | F59: 0 | G59: =VLOOKUP(38,$I$6:$P$3099,8,FALSE) -> 0 | H59: =VLOOKUP(38,$I$6:$Q$3099,9,FALSE) -> 35 | I59: 0 | J59: Other | M59: 0 | N59: 0 | O59: 0 | Q59: 0
A60: =VLOOKUP(39,$I$6:$J$3099,2,FALSE) -> Other | B60: =VLOOKUP(39,$I$6:$P$3099,3,FALSE) ->  | C60: =VLOOKUP(39,$I$6:$P$3099,4,FALSE) -> 0 | D60: =VLOOKUP(39,$I$6:$P$3099,5,FALSE) -> 0 | E60: =VLOOKUP(39,$I$6:$P$3099,6,FALSE) -> 0 | F60: 0 | G60: =VLOOKUP(39,$I$6:$P$3099,8,FALSE) -> 0 | H60: =VLOOKUP(39,$I$6:$Q$3099,9,FALSE) -> 35 | I60: 0 | J60: Other | M60: 0 | N60: 0 | O60: 0 | Q60: 0
A61: =VLOOKUP(40,$I$6:$J$3099,2,FALSE) -> Other | B61: =VLOOKUP(40,$I$6:$P$3099,3,FALSE) ->  | C61: =VLOOKUP(40,$I$6:$P$3099,4,FALSE) -> 0 | D61: =VLOOKUP(40,$I$6:$P$3099,5,FALSE) -> 0 | E61: =VLOOKUP(40,$I$6:$P$3099,6,FALSE) -> 0 | F61: 0 | G61: =VLOOKUP(40,$I$6:$P$3099,8,FALSE) -> 0 | H61: =VLOOKUP(40,$I$6:$Q$3099,9,FALSE) -> 35 | I61: 0 | J61: Other | M61: 0 | N61: 0 | O61: 0 | Q61: 0
A62: Total | F62: =SUM(F55:F61) -> 0 | J62: Total | O62: =SUM(O55:O61) -> 0
J64: =A2_Budget_Look_Up!H4 -> Corn, Pivot | L64: =A2_Budget_Look_Up!F4 -> 2
J66: Herbicide Detail
J67: Name, Brand | K67: Information | L67: Unit | M67: Price | N67: Quantity/Ac | O67: Costs | P67: Ounces
I68: =IF($A$1=2,1,0) -> 0 | J68: =A4_Chem_Prices!B$2 -> Glyphosate | L68: =A4_Chem_Prices!C$2 -> pt | M68: =A4_Chem_Prices!D$2 -> 2.46875 | N68: 2 | O68: =M68*N68 -> 4.9375 | P68: =N68*16 -> 32 | Q68: =IF(SUM(I68:I123)=820,L64,0) -> 0
I69: =IF($A$1=2,I68+1,0) -> 0 | J69: =A4_Chem_Prices!B$4 -> Metolachlor | L69: =A4_Chem_Prices!C$4 -> pt | M69: =A4_Chem_Prices!D$4 -> 5 | N69: 1.3 | O69: 6.5 | P69: =N69*16 -> 20.8 | Q69: =Q68 -> 0
I70: 0 | J70: =A4_Chem_Prices!B$6 -> Halex GT | L70: =A4_Chem_Prices!C$6 -> pt | M70: =A4_Chem_Prices!D$6 -> 6.125 | N70: 3.6 | O70: 22.05 | P70: 57.6 | Q70: =Q69 -> 0
I71: 0 | J71: =A4_Chem_Prices!B$3 -> Atrazine | L71: =A4_Chem_Prices!C$3 -> qt | M71: =A4_Chem_Prices!D$3 -> 3.125 | N71: 2 | O71: 6.25 | P71: =N71*32 -> 64 | Q71: 0
I72: 0 | J72: Other | M72: 0 | N72: 0 | O72: 0 | Q72: 0
I73: 0 | J73: Other | M73: 0 | N73: 0 | O73: 0 | Q73: 0
I74: 0 | J74: Other | M74: 0 | N74: 0 | O74: 0 | Q74: 0
I75: 0 | J75: Other | M75: 0 | N75: 0 | O75: 0 | Q75: 0
I76: 0 | J76: Other | M76: 0 | N76: 0 | O76: 0 | Q76: 0
I77: 0 | J77: Other | M77: 0 | N77: 0 | O77: 0 | Q77: 0
I78: 0 | J78: Other | M78: 0 | N78: 0 | O78: 0 | Q78: 0
I79: 0 | J79: Other | M79: 0 | N79: 0 | O79: 0 | Q79: 0
I80: 0 | J80: Other | M80: 0 | N80: 0 | O80: 0 | Q80: 0
I81: 0 | J81: Other | M81: 0 | N81: 0 | O81: 0 | Q81: 0
J82: Total | O82: =SUM(O68:O81) -> 39.7375
J84: Insecticide Detail
J85: Name, Brand | K85: Information | L85: Unit | M85: Price | N85: Quantity/Ac | O85: Costs | P85: Ounces
I86: =IF($A$1=2,I81+1,0) -> 0 | J86: Other | M86: 0 | N86: 0 | O86: =M86*N86 -> 0 | Q86: =Q68 -> 0
I87: =IF($A$1=2,I86+1,0) -> 0 | J87: Other | M87: 0 | N87: 0 | O87: 0 | Q87: =Q86 -> 0
I88: 0 | J88: Other | M88: 0 | N88: 0 | O88: 0 | Q88: =Q87 -> 0
I89: 0 | J89: Other | M89: 0 | N89: 0 | O89: 0 | Q89: 0
I90: 0 | J90: Other | M90: 0 | N90: 0 | O90: 0 | Q90: 0
I91: 0 | J91: Other | M91: 0 | N91: 0 | O91: 0 | Q91: 0
I92: 0 | J92: Other | M92: 0 | N92: 0 | O92: 0 | Q92: 0
I93: 0 | J93: Other | M93: 0 | N93: 0 | O93: 0 | Q93: 0
I94: 0 | J94: Other | M94: 0 | N94: 0 | O94: 0 | Q94: 0
I95: 0 | J95: Other | M95: 0 | N95: 0 | O95: 0 | Q95: 0
J96: Total | O96: =SUM(O86:O95) -> 0
J98: =IF(OR(A2_Budget_Look_Up!$B$7=1,A2_Budget_Look_Up!$B$13=1),"Nematicide Detail", "Fungicide Detail") -> Fungicide Detail
J99: Name, Brand | K99: Information | L99: Unit | M99: Price | N99: Quantity/Ac | O99: Costs | P99: Ounces
I100: =IF($A$1=2,I95+1,0) -> 0 | J100: Other | M100: 0 | N100: 0 | O100: =M100*N100 -> 0 | Q100: =Q95 -> 0
I101: =IF($A$1=2,I100+1,0) -> 0 | J101: Other | M101: 0 | N101: 0 | O101: =M101*N101 -> 0 | Q101: =Q100 -> 0
J102: Total | O102: =SUM(O100:O101) -> 0
J104: =IF(A2_Budget_Look_Up!$B$7=1,"Growth Regulator Detail", IF(A2_Budget_Look_Up!$B$13=1,"Fungicide Detail","Other Chemical Detail")) -> Other Chemical Detail
J105: Name, Brand | K105: Information | L105: Unit | M105: Price | N105: Quantity/Ac | O105: Costs | P105: Ounces
I106: =IF($A$1=2,I101+1,0) -> 0 | J106: Other | M106: 0 | N106: 0 | O106: =M106*N106 -> 0 | Q106: =Q101 -> 0
I107: =IF($A$1=2,I106+1,0) -> 0 | J107: Other | M107: 0 | N107: 0 | O107: 0 | Q107: =Q106 -> 0
I108: 0 | J108: Other | M108: 0 | N108: 0 | O108: 0 | Q108: =Q107 -> 0
I109: 0 | J109: Other | M109: 0 | N109: 0 | O109: 0 | Q109: 0
I110: 0 | J110: Other | M110: 0 | N110: 0 | O110: 0 | Q110: 0
I111: 0 | J111: Other | M111: 0 | N111: 0 | O111: 0 | Q111: 0
I112: 0 | J112: Other | M112: 0 | N112: 0 | O112: 0 | Q112: 0
J113: Total | O113: =SUM(O106:O112) -> 0
J115: =IF(A2_Budget_Look_Up!$B$7=1,"Defoliant Detail", "Other Chemical Detail") -> Other Chemical Detail
J116: Name, Brand | K116: Information | L116: Unit | M116: Price | N116: Quantity/Ac | O116: Costs | P116: Ounces
I117: =IF($A$1=2,I112+1,0) -> 0 | J117: Other | M117: 0 | N117: 0 | O117: =M117*N117 -> 0 | Q117: =Q112 -> 0
I118: =IF($A$1=2,I117+1,0) -> 0 | J118: Other | M118: 0 | N118: 0 | O118: 0 | Q118: =Q117 -> 0
I119: 0 | J119: Other | M119: 0 | N119: 0 | O119: 0 | Q119: =Q118 -> 0
I120: 0 | J120: Other | M120: 0 | N120: 0 | O120: 0 | Q120: 0
I121: 0 | J121: Other | M121: 0 | N121: 0 | O121: 0 | Q121: 0
I122: 0 | J122: Other | M122: 0 | N122: 0 | O122: 0 | Q122: 0
I123: 0 | J123: Other | M123: 0 | N123: 0 | O123: 0 | Q123: 0
J124: Total | O124: =SUM(O117:O123) -> 0
J126: =A2_Budget_Look_Up!H5 -> Corn, No Irrigation | L126: =A2_Budget_Look_Up!F5 -> 3
J128: Herbicide Detail
J129: Name, Brand | K129: Information | L129: Unit | M129: Price | N129: Quantity/Ac | O129: Costs | P129: Ounces
I130: =IF($A$1=3,1,0) -> 0 | J130: =A4_Chem_Prices!B$2 -> Glyphosate | L130: =A4_Chem_Prices!C$2 -> pt | M130: =A4_Chem_Prices!D$2 -> 2.46875 | N130: 2 | O130: =M130*N130 -> 4.9375 | P130: =N130*16 -> 32 | Q130: =IF(SUM(I130:I185)=820,L126,0) -> 0
I131: =IF($A$1=3,I130+1,0) -> 0 | J131: =A4_Chem_Prices!B$4 -> Metolachlor | L131: =A4_Chem_Prices!C$4 -> pt | M131: =A4_Chem_Prices!D$4 -> 5 | N131: 1.3 | O131: 6.5 | P131: =N131*16 -> 20.8 | Q131: =Q130 -> 0
I132: 0 | J132: =A4_Chem_Prices!B$6 -> Halex GT | L132: =A4_Chem_Prices!C$6 -> pt | M132: =A4_Chem_Prices!D$6 -> 6.125 | N132: 3.6 | O132: 22.05 | P132: 57.6 | Q132: =Q131 -> 0
I133: 0 | J133: =A4_Chem_Prices!B$3 -> Atrazine | L133: =A4_Chem_Prices!C$3 -> qt | M133: =A4_Chem_Prices!D$3 -> 3.125 | N133: 2 | O133: 6.25 | P133: =N133*32 -> 64 | Q133: 0
I134: 0 | J134: Other | M134: 0 | N134: 0 | O134: 0 | Q134: 0
I135: 0 | J135: Other | M135: 0 | N135: 0 | O135: 0 | Q135: 0
I136: 0 | J136: Other | M136: 0 | N136: 0 | O136: 0 | Q136: 0
I137: 0 | J137: Other | M137: 0 | N137: 0 | O137: 0 | Q137: 0
I138: 0 | J138: Other | M138: 0 | N138: 0 | O138: 0 | Q138: 0
I139: 0 | J139: Other | M139: 0 | N139: 0 | O139: 0 | Q139: 0
I140: 0 | J140: Other | M140: 0 | N140: 0 | O140: 0 | Q140: 0
I141: 0 | J141: Other | M141: 0 | N141: 0 | O141: 0 | Q141: 0
I142: 0 | J142: Other | M142: 0 | N142: 0 | O142: 0 | Q142: 0
I143: 0 | J143: Other | M143: 0 | N143: 0 | O143: 0 | Q143: 0
J144: Total | O144: =SUM(O130:O143) -> 39.7375
J146: Insecticide Detail
J147: Name, Brand | K147: Information | L147: Unit | M147: Price | N147: Quantity/Ac | O147: Costs | P147: Ounces
I148: =IF($A$1=3,I143+1,0) -> 0 | J148: Other | M148: 0 | N148: 0 | O148: =M148*N148 -> 0 | Q148: =Q130 -> 0
I149: =IF($A$1=3,I148+1,0) -> 0 | J149: Other | M149: 0 | N149: 0 | O149: 0 | Q149: =Q148 -> 0
I150: 0 | J150: Other | M150: 0 | N150: 0 | O150: 0 | Q150: =Q149 -> 0
I151: 0 | J151: Other | M151: 0 | N151: 0 | O151: 0 | Q151: 0
I152: 0 | J152: Other | M152: 0 | N152: 0 | O152: 0 | Q152: 0
I153: 0 | J153: Other | M153: 0 | N153: 0 | O153: 0 | Q153: 0
I154: 0 | J154: Other | M154: 0 | N154: 0 | O154: 0 | Q154: 0
I155: 0 | J155: Other | M155: 0 | N155: 0 | O155: 0 | Q155: 0
I156: 0 | J156: Other | M156: 0 | N156: 0 | O156: 0 | Q156: 0
I157: 0 | J157: Other | M157: 0 | N157: 0 | O157: 0 | Q157: 0
J158: Total | O158: =SUM(O148:O157) -> 0
J160: =IF(OR(A2_Budget_Look_Up!$B$7=1,A2_Budget_Look_Up!$B$13=1),"Nematicide Detail", "Fungicide Detail") -> Fungicide Detail
J161: Name, Brand | K161: Information | L161: Unit | M161: Price | N161: Quantity/Ac | O161: Costs | P161: Ounces
I162: =IF($A$1=3,I157+1,0) -> 0 | J162: Other | M162: 0 | N162: 0 | O162: =M162*N162 -> 0 | Q162: =Q157 -> 0
I163: =IF($A$1=3,I162+1,0) -> 0 | J163: Other | M163: 0 | N163: 0 | O163: =M163*N163 -> 0 | Q163: =Q162 -> 0
J164: Total | O164: =SUM(O162:O163) -> 0
J166: =IF(A2_Budget_Look_Up!$B$7=1,"Growth Regulator Detail", IF(A2_Budget_Look_Up!$B$13=1,"Fungicide Detail","Other Chemical Detail")) -> Other Chemical Detail
J167: Name, Brand | K167: Information | L167: Unit | M167: Price | N167: Quantity/Ac | O167: Costs | P167: Ounces
I168: =IF($A$1=3,I163+1,0) -> 0 | J168: Other | M168: 0 | N168: 0 | O168: =M168*N168 -> 0 | Q168: =Q163 -> 0
I169: =IF($A$1=3,I168+1,0) -> 0 | J169: Other | M169: 0 | N169: 0 | O169: 0 | Q169: =Q168 -> 0
I170: 0 | J170: Other | M170: 0 | N170: 0 | O170: 0 | Q170: =Q169 -> 0
I171: 0 | J171: Other | M171: 0 | N171: 0 | O171: 0 | Q171: 0
I172: 0 | J172: Other | M172: 0 | N172: 0 | O172: 0 | Q172: 0
I173: 0 | J173: Other | M173: 0 | N173: 0 | O173: 0 | Q173: 0
I174: 0 | J174: Other | M174: 0 | N174: 0 | O174: 0 | Q174: 0
J175: Total | O175: =SUM(O168:O174) -> 0
J177: =IF(A2_Budget_Look_Up!$B$7=1,"Defoliant Detail", "Other Chemical Detail") -> Other Chemical Detail
J178: Name, Brand | K178: Information | L178: Unit | M178: Price | N178: Quantity/Ac | O178: Costs | P178: Ounces
I179: =IF($A$1=3,I174+1,0) -> 0 | J179: Other | M179: 0 | N179: 0 | O179: =M179*N179 -> 0 | Q179: =Q174 -> 0
I180: =IF($A$1=3,I179+1,0) -> 0 | J180: Other | M180: 0 | N180: 0 | O180: 0 | Q180: =Q179 -> 0
I181: 0 | J181: Other | M181: 0 | N181: 0 | O181: 0 | Q181: =Q180 -> 0
I182: 0 | J182: Other | M182: 0 | N182: 0 | O182: 0 | Q182: 0
I183: 0 | J183: Other | M183: 0 | N183: 0 | O183: 0 | Q183: 0
I184: 0 | J184: Other | M184: 0 | N184: 0 | O184: 0 | Q184: 0
I185: 0 | J185: Other | M185: 0 | N185: 0 | O185: 0 | Q185: 0
J186: Total | O186: =SUM(O179:O185) -> 0
J188: =A2_Budget_Look_Up!H6 -> B2XF Cotton, Furrow | L188: =A2_Budget_Look_Up!F6 -> 4
J190: Herbicide Detail
J191: Name, Brand | K191: Information | L191: Unit | M191: Price | N191: Quantity/Ac | O191: Costs | P191: Ounces
I192: =IF($A$1=4,1,0) -> 0 | J192: Glyphosate | L192: pt | M192: =A4_Chem_Prices!G$2 -> 2.46875 | N192: 2 | O192: =M192*N192 -> 4.9375 | P192: =N192*16 -> 32 | Q192: =IF(SUM(I192:I247)=820,L188,0) -> 0
I193: =IF($A$1=4,I192+1,0) -> 0 | J193: Banvel | L193: oz | M193: =A4_Chem_Prices!G$3 -> 0.37890625 | N193: 8 | O193: 3.03125 | P193: =N193 -> 8 | Q193: =Q192 -> 0
I194: 0 | J194: Cotoran | L194: pt | M194: =A4_Chem_Prices!G$5 -> 5.9375 | N194: 1.6 | O194: 9.5 | P194: =N194*16 -> 25.6 | Q194: =Q193 -> 0
I195: 0 | J195: Gramoxone | L195: oz | M195: =A4_Chem_Prices!G$6 -> 0.14453125 | N195: 32 | O195: 4.625 | P195: =N195 -> 32 | Q195: 0
I196: 0 | J196: Liberty | L196: oz | M196: =A4_Chem_Prices!G$10 -> 0.26953125 | N196: 32 | O196: 8.625 | P196: =N196 -> 32 | Q196: 0
I197: 0 | J197: Dual | L197: pt | M197: =A4_Chem_Prices!G$7 -> 5 | N197: 1 | O197: 5 | P197: =N197*16 -> 16 | Q197: 0
I198: 0 | J198: Liberty | L198: oz | M198: =A4_Chem_Prices!G$10 -> 0.26953125 | N198: 32 | O198: 8.625 | P198: =N198 -> 32 | Q198: 0
I199: 0 | J199: Dual | L199: pt | M199: =A4_Chem_Prices!G$7 -> 5 | N199: 1 | O199: 5 | P199: =N199*16 -> 16 | Q199: 0
I200: 0 | J200: Glyphosate | L200: pt | M200: =A4_Chem_Prices!G$2 -> 2.46875 | N200: 1.5 | O200: =M200*N200 -> 3.703125 | P200: =N200*16 -> 24 | Q200: 0
I201: 0 | J201: Valor | L201: oz | M201: =A4_Chem_Prices!G$8 -> 2.625 | N201: 2 | O201: 5.25 | P201: =N201 -> 2 | Q201: 0
I202: 0 | J202: MSMA 6 | L202: qt | M202: =A4_Chem_Prices!G$9 -> 7.94 | N202: 1.5 | O202: 11.91 | P202: =N202*32 -> 48 | Q202: 0
I203: 0 | J203: Other | M203: 0 | N203: 0 | O203: 0 | Q203: 0
I204: 0 | J204: Other | M204: 0 | N204: 0 | O204: 0 | Q204: 0
I205: 0 | J205: Other | M205: 0 | N205: 0 | O205: 0 | Q205: 0
J206: Total | O206: =SUM(O192:O205) -> 70.206875
J208: Insecticide Detail
J209: Name, Brand | K209: Information | L209: Unit | M209: Price | N209: Quantity/Ac | O209: Costs | P209: Ounces
I210: =IF($A$1=4,I205+1,0) -> 0 | J210: =A4_Chem_Prices!E$18 -> Thiamethoxam | L210: =A4_Chem_Prices!F$18 -> oz | M210: =A4_Chem_Prices!G$18 -> 6.28 | N210: 2 | O210: =M210*N210 -> 12.56 | P210: =N210 -> 2 | Q210: =Q192 -> 0
I211: =IF($A$1=4,I210+1,0) -> 0 | J211: =A4_Chem_Prices!E$19 -> Diamond | L211: =A4_Chem_Prices!F$19 -> oz | M211: =A4_Chem_Prices!G$19 -> 1.31 | N211: 6 | O211: 7.86 | P211: =N211 -> 6 | Q211: =Q210 -> 0
I212: 0 | J212: =A4_Chem_Prices!E$18 -> Thiamethoxam | L212: =A4_Chem_Prices!F$18 -> oz | M212: =A4_Chem_Prices!G$18 -> 6.28 | N212: 2 | O212: 12.56 | P212: 2 | Q212: =Q211 -> 0
I213: 0 | J213: =A4_Chem_Prices!E$19 -> Diamond | L213: =A4_Chem_Prices!F$19 -> oz | M213: =A4_Chem_Prices!G$19 -> 1.31 | N213: 6 | O213: 7.86 | P213: 6 | Q213: 0
I214: 0 | J214: =A4_Chem_Prices!E$20 -> Transform | L214: =A4_Chem_Prices!F$20 -> oz | M214: =A4_Chem_Prices!G$20 -> 7.38 | N214: 2 | O214: 14.76 | P214: 2 | Q214: 0
I215: 0 | J215: =A4_Chem_Prices!E$21 -> Chlorantraniliprole | L215: =A4_Chem_Prices!F$21 -> oz | M215: =A4_Chem_Prices!G$21 -> 1.12 | N215: 20 | O215: 22.4 | P215: 20 | Q215: 0
I216: 0 | J216: =A4_Chem_Prices!E$20 -> Transform | L216: =A4_Chem_Prices!F$20 -> oz | M216: =A4_Chem_Prices!G$20 -> 7.38 | N216: 2 | O216: 14.76 | P216: 2 | Q216: 0
I217: 0 | J217: Other | M217: 0 | N217: 0 | O217: 0 | Q217: 0
I218: 0 | J218: Other | M218: 0 | N218: 0 | O218: 0 | Q218: 0
I219: 0 | J219: Other | M219: 0 | N219: 0 | O219: 0 | Q219: 0
J220: Total | O220: =SUM(O210:O219) -> 92.76
... 2601 more rows

Sheet A6_Machine_Look_Up (hidden)
A7: Select Equipment List Here
A8: 1 | B8: ='C1_Messages_Indicators'!B62 -> Lookup OK
O9: Equipment List 1 | P9: 1
H10: Implements/Self-Propelled | K10: Tractors | V10: Implements/Self-Propelled | Y10: Tractors | AB10: Implements/ | AG10: Implements/
B11: New Unit | D11: Ground | E11: New Tractor | F11: No.Wheel | G11: HP | J11: Expected | L11: Expected | P11: New Unit | R11: Ground | S11: New Tractor | T11: No.Wheel | U11: HP | X11: Expected | Z11: Expected | AB11: Self-Propelled | AG11: Self-Propelled
B12: Price, | C12: Width | D12: Speed | E12: Price, | F12: Drive of | G12: Power | H12: Hours | I12: Field | J12: No. Years | K12: Hours | L12: No. Years | P12: Price, | Q12: Width | R12: Speed | S12: Price, | T12: Drive of | U12: Power | V12: Hours | W12: Field | X12: No. Years | Y12: Hours | Z12: No. Years | AB12: Repair | AC12: Repair | AD12: Labor | AE12: Salvage Value | AG12: Repair | AH12: Repair | AI12: Labor
A13: Name, Description | B13: Current $ | C13: in Feet | D13: MPH | E13: Current $ | F13: Power Unit | G13: Unit | H13: per Year | I13: Efficiency | J13: to Use | K13: per Year | L13: to Use | O13: Name, Description | P13: Current $ | Q13: in Feet | R13: MPH | S13: Current $ | T13: Power Unit | U13: Unit | V13: per Year | W13: Efficiency | X13: to Use | Y13: per Year | Z13: to Use | AB13: Factor 1 | AC13: Factor 2 | AD13: Factor | AE13: Category | AG13: Factor 1 | AH13: Factor 2 | AI13: Factor
A14: =VLOOKUP(1,$N$14:$O$303,2,FALSE) -> Paratill | B14: =VLOOKUP(1,$N$14:$Z$303,3,FALSE) -> 17250 | C14: =VLOOKUP(1,$N$14:$Z$303,4,FALSE) -> 19 | D14: =VLOOKUP(1,$N$14:$Z$303,5,FALSE) -> 4 | E14: =VLOOKUP(1,$N$14:$Z$303,6,FALSE) -> 227000 | F14: =VLOOKUP(1,$N$14:$Z$303,7,FALSE) -> 4 | G14: =VLOOKUP(1,$N$14:$Z$303,8,FALSE) -> 230 | H14: =VLOOKUP(1,$N$14:$Z$303,9,FALSE) -> 160 | I14: =VLOOKUP(1,$N$14:$Z$303,10,FALSE) -> 0.85 | J14: =VLOOKUP(1,$N$14:$Z$303,11,FALSE) -> 8 | K14: =VLOOKUP(1,$N$14:$Z$303,12,FALSE) -> 600 | L14: =VLOOKUP(1,$N$14:$Z$303,13,FALSE) -> 8 | M14: =VLOOKUP(1,$N$14:$AA$303,14,FALSE) -> 1 | N14: =IF($A$8=1,1,0) -> 1 | O14: Paratill | P14: 17250 | Q14: 19 | R14: 4 | S14: 227000 | T14: 4 | U14: 230 | V14: 160 | W14: 0.85 | X14: 8 | Y14: 600 | Z14: 8 | AA14: =IF(SUM(N14:N81)=1953,P9,0) -> 1 | AB14: 0.29 | AC14: 1.8 | AD14: 1.04 | AE14: Plows | AG14: =VLOOKUP(1,$N$14:$AD$303,15,FALSE) -> 0.29 | AH14: =VLOOKUP(1,$N$14:$AD$303,16,FALSE) -> 1.8 | AI14: =VLOOKUP(1,$N$14:$AD$303,17,FALSE) -> 1.04
A15: =VLOOKUP(2,$N$14:$O$303,2,FALSE) -> Subsoiler, 25 ft. | B15: =VLOOKUP(2,$N$14:$Z$303,3,FALSE) -> 22000 | C15: =VLOOKUP(2,$N$14:$Z$303,4,FALSE) -> 25 | D15: =VLOOKUP(2,$N$14:$Z$303,5,FALSE) -> 4 | E15: =VLOOKUP(2,$N$14:$Z$303,6,FALSE) -> 227000 | F15: =VLOOKUP(2,$N$14:$Z$303,7,FALSE) -> 4 | G15: =VLOOKUP(2,$N$14:$Z$303,8,FALSE) -> 230 | H15: =VLOOKUP(2,$N$14:$Z$303,9,FALSE) -> 160 | I15: =VLOOKUP(2,$N$14:$Z$303,10,FALSE) -> 0.85 | J15: =VLOOKUP(2,$N$14:$Z$303,11,FALSE) -> 8 | K15: =VLOOKUP(2,$N$14:$Z$303,12,FALSE) -> 600 | L15: =VLOOKUP(2,$N$14:$Z$303,13,FALSE) -> 8 | M15: =VLOOKUP(2,$N$14:$AA$303,14,FALSE) -> 1 | N15: =IF($A$8=1,N14+1,0) -> 2 | O15: Subsoiler, 25 ft. | P15: 22000 | Q15: 25 | R15: 4 | S15: 227000 | T15: 4 | U15: 230 | V15: 160 | W15: 0.85 | X15: 8 | Y15: 600 | Z15: 8 | AA15: =AA14 -> 1 | AB15: 0.29 | AC15: 1.8 | AD15: 1.04 | AE15: Plows | AG15: =VLOOKUP(2,$N$14:$AD$303,15,FALSE) -> 0.29 | AH15: =VLOOKUP(2,$N$14:$AD$303,16,FALSE) -> 1.8 | AI15: =VLOOKUP(2,$N$14:$AD$303,17,FALSE) -> 1.04
A16: =VLOOKUP(3,$N$14:$O$303,2,FALSE) -> Subsoiler, 5 shank | B16: =VLOOKUP(3,$N$14:$Z$303,3,FALSE) -> 13900 | C16: =VLOOKUP(3,$N$14:$Z$303,4,FALSE) -> 12 | D16: =VLOOKUP(3,$N$14:$Z$303,5,FALSE) -> 4 | E16: =VLOOKUP(3,$N$14:$Z$303,6,FALSE) -> 227000 | F16: =VLOOKUP(3,$N$14:$Z$303,7,FALSE) -> 4 | G16: =VLOOKUP(3,$N$14:$Z$303,8,FALSE) -> 230 | H16: =VLOOKUP(3,$N$14:$Z$303,9,FALSE) -> 160 | I16: =VLOOKUP(3,$N$14:$Z$303,10,FALSE) -> 0.85 | J16: =VLOOKUP(3,$N$14:$Z$303,11,FALSE) -> 8 | K16: =VLOOKUP(3,$N$14:$Z$303,12,FALSE) -> 600 | L16: =VLOOKUP(3,$N$14:$Z$303,13,FALSE) -> 8 | M16: =VLOOKUP(3,$N$14:$AA$303,14,FALSE) -> 1 | N16: 3 | O16: Subsoiler, 5 shank | P16: 13900 | Q16: 12 | R16: 4 | S16: 227000 | T16: 4 | U16: 230 | V16: 160 | W16: 0.85 | X16: 8 | Y16: 600 | Z16: 8 | AA16: =AA15 -> 1 | AB16: 0.29 | AC16: 1.8 | AD16: 1.04 | AE16: Plows | AG16: =VLOOKUP(3,$N$14:$AD$303,15,FALSE) -> 0.29 | AH16: =VLOOKUP(3,$N$14:$AD$303,16,FALSE) -> 1.8 | AI16: =VLOOKUP(3,$N$14:$AD$303,17,FALSE) -> 1.04
A17: =VLOOKUP(4,$N$14:$O$303,2,FALSE) -> Bedder, Rip/Disk | B17: =VLOOKUP(4,$N$14:$Z$303,3,FALSE) -> 67900 | C17: =VLOOKUP(4,$N$14:$Z$303,4,FALSE) -> 38 | D17: =VLOOKUP(4,$N$14:$Z$303,5,FALSE) -> 4 | E17: =VLOOKUP(4,$N$14:$Z$303,6,FALSE) -> 227000 | F17: =VLOOKUP(4,$N$14:$Z$303,7,FALSE) -> 4 | G17: =VLOOKUP(4,$N$14:$Z$303,8,FALSE) -> 230 | H17: =VLOOKUP(4,$N$14:$Z$303,9,FALSE) -> 160 | I17: =VLOOKUP(4,$N$14:$Z$303,10,FALSE) -> 0.85 | J17: =VLOOKUP(4,$N$14:$Z$303,11,FALSE) -> 8 | K17: =VLOOKUP(4,$N$14:$Z$303,12,FALSE) -> 600 | L17: =VLOOKUP(4,$N$14:$Z$303,13,FALSE) -> 8 | M17: =VLOOKUP(4,$N$14:$AA$303,14,FALSE) -> 1 | N17: 4 | O17: Bedder, Rip/Disk | P17: 67900 | Q17: 38 | R17: 4 | S17: 227000 | T17: 4 | U17: 230 | V17: 160 | W17: 0.85 | X17: 8 | Y17: 600 | Z17: 8 | AA17: 1 | AB17: 0.18 | AC17: 1.7 | AD17: 1.04 | AE17: Plows | AG17: =VLOOKUP(4,$N$14:$AD$303,15,FALSE) -> 0.18 | AH17: =VLOOKUP(4,$N$14:$AD$303,16,FALSE) -> 1.7 | AI17: =VLOOKUP(4,$N$14:$AD$303,17,FALSE) -> 1.04
A18: =VLOOKUP(5,$N$14:$O$303,2,FALSE) -> Bedder, Lister | B18: =VLOOKUP(5,$N$14:$Z$303,3,FALSE) -> 35700 | C18: =VLOOKUP(5,$N$14:$Z$303,4,FALSE) -> 38 | D18: =VLOOKUP(5,$N$14:$Z$303,5,FALSE) -> 4 | E18: =VLOOKUP(5,$N$14:$Z$303,6,FALSE) -> 227000 | F18: =VLOOKUP(5,$N$14:$Z$303,7,FALSE) -> 4 | G18: =VLOOKUP(5,$N$14:$Z$303,8,FALSE) -> 230 | H18: =VLOOKUP(5,$N$14:$Z$303,9,FALSE) -> 160 | I18: =VLOOKUP(5,$N$14:$Z$303,10,FALSE) -> 0.85 | J18: =VLOOKUP(5,$N$14:$Z$303,11,FALSE) -> 8 | K18: =VLOOKUP(5,$N$14:$Z$303,12,FALSE) -> 600 | L18: =VLOOKUP(5,$N$14:$Z$303,13,FALSE) -> 8 | M18: =VLOOKUP(5,$N$14:$AA$303,14,FALSE) -> 1 | N18: 5 | O18: Bedder, Lister | P18: 35700 | Q18: 38 | R18: 4 | S18: 227000 | T18: 4 | U18: 230 | V18: 160 | W18: 0.85 | X18: 8 | Y18: 600 | Z18: 8 | AA18: 1 | AB18: 0.29 | AC18: 1.8 | AD18: 1.04 | AE18: Plows | AG18: =VLOOKUP(5,$N$14:$AD$303,15,FALSE) -> 0.29 | AH18: =VLOOKUP(5,$N$14:$AD$303,16,FALSE) -> 1.8 | AI18: =VLOOKUP(5,$N$14:$AD$303,17,FALSE) -> 1.04
A19: =VLOOKUP(6,$N$14:$O$303,2,FALSE) -> Disk | B19: =VLOOKUP(6,$N$14:$Z$303,3,FALSE) -> 66900 | C19: =VLOOKUP(6,$N$14:$Z$303,4,FALSE) -> 32 | D19: =VLOOKUP(6,$N$14:$Z$303,5,FALSE) -> 5.5 | E19: =VLOOKUP(6,$N$14:$Z$303,6,FALSE) -> 227000 | F19: =VLOOKUP(6,$N$14:$Z$303,7,FALSE) -> 4 | G19: =VLOOKUP(6,$N$14:$Z$303,8,FALSE) -> 230 | H19: =VLOOKUP(6,$N$14:$Z$303,9,FALSE) -> 160 | I19: =VLOOKUP(6,$N$14:$Z$303,10,FALSE) -> 0.85 | J19: =VLOOKUP(6,$N$14:$Z$303,11,FALSE) -> 8 | K19: =VLOOKUP(6,$N$14:$Z$303,12,FALSE) -> 600 | L19: =VLOOKUP(6,$N$14:$Z$303,13,FALSE) -> 8 | M19: =VLOOKUP(6,$N$14:$AA$303,14,FALSE) -> 1 | N19: 6 | O19: Disk | P19: 66900 | Q19: 32 | R19: 5.5 | S19: 227000 | T19: 4 | U19: 230 | V19: 160 | W19: 0.85 | X19: 8 | Y19: 600 | Z19: 8 | AA19: 1 | AB19: 0.18 | AC19: 1.7 | AD19: 1.04 | AE19: Plows | AG19: =VLOOKUP(6,$N$14:$AD$303,15,FALSE) -> 0.18 | AH19: =VLOOKUP(6,$N$14:$AD$303,16,FALSE) -> 1.7 | AI19: =VLOOKUP(6,$N$14:$AD$303,17,FALSE) -> 1.04
A20: =VLOOKUP(7,$N$14:$O$303,2,FALSE) -> Bedder, Hipper | B20: =VLOOKUP(7,$N$14:$Z$303,3,FALSE) -> 21000 | C20: =VLOOKUP(7,$N$14:$Z$303,4,FALSE) -> 38 | D20: =VLOOKUP(7,$N$14:$Z$303,5,FALSE) -> 4.5 | E20: =VLOOKUP(7,$N$14:$Z$303,6,FALSE) -> 227000 | F20: =VLOOKUP(7,$N$14:$Z$303,7,FALSE) -> 4 | G20: =VLOOKUP(7,$N$14:$Z$303,8,FALSE) -> 230 | H20: =VLOOKUP(7,$N$14:$Z$303,9,FALSE) -> 160 | I20: =VLOOKUP(7,$N$14:$Z$303,10,FALSE) -> 0.8 | J20: =VLOOKUP(7,$N$14:$Z$303,11,FALSE) -> 8 | K20: =VLOOKUP(7,$N$14:$Z$303,12,FALSE) -> 600 | L20: =VLOOKUP(7,$N$14:$Z$303,13,FALSE) -> 8 | M20: =VLOOKUP(7,$N$14:$AA$303,14,FALSE) -> 1 | N20: 7 | O20: Bedder, Hipper | P20: 21000 | Q20: 38 | R20: 4.5 | S20: 227000 | T20: 4 | U20: 230 | V20: 160 | W20: 0.8 | X20: 8 | Y20: 600 | Z20: 8 | AA20: 1 | AB20: 0.18 | AC20: 1.7 | AD20: 1.04 | AE20: Plows | AG20: =VLOOKUP(7,$N$14:$AD$303,15,FALSE) -> 0.18 | AH20: =VLOOKUP(7,$N$14:$AD$303,16,FALSE) -> 1.7 | AI20: =VLOOKUP(7,$N$14:$AD$303,17,FALSE) -> 1.04
A21: =VLOOKUP(8,$N$14:$O$303,2,FALSE) -> Chisel Plow | B21: =VLOOKUP(8,$N$14:$Z$303,3,FALSE) -> 54200 | C21: =VLOOKUP(8,$N$14:$Z$303,4,FALSE) -> 32 | D21: =VLOOKUP(8,$N$14:$Z$303,5,FALSE) -> 5 | E21: =VLOOKUP(8,$N$14:$Z$303,6,FALSE) -> 227000 | F21: =VLOOKUP(8,$N$14:$Z$303,7,FALSE) -> 4 | G21: =VLOOKUP(8,$N$14:$Z$303,8,FALSE) -> 230 | H21: =VLOOKUP(8,$N$14:$Z$303,9,FALSE) -> 160 | I21: =VLOOKUP(8,$N$14:$Z$303,10,FALSE) -> 0.85 | J21: =VLOOKUP(8,$N$14:$Z$303,11,FALSE) -> 8 | K21: =VLOOKUP(8,$N$14:$Z$303,12,FALSE) -> 600 | L21: =VLOOKUP(8,$N$14:$Z$303,13,FALSE) -> 8 | M21: =VLOOKUP(8,$N$14:$AA$303,14,FALSE) -> 1 | N21: 8 | O21: Chisel Plow | P21: 54200 | Q21: 32 | R21: 5 | S21: 227000 | T21: 4 | U21: 230 | V21: 160 | W21: 0.85 | X21: 8 | Y21: 600 | Z21: 8 | AA21: 1 | AB21: 0.28 | AC21: 1.4 | AD21: 1.04 | AE21: Plows | AG21: =VLOOKUP(8,$N$14:$AD$303,15,FALSE) -> 0.28 | AH21: =VLOOKUP(8,$N$14:$AD$303,16,FALSE) -> 1.4 | AI21: =VLOOKUP(8,$N$14:$AD$303,17,FALSE) -> 1.04
A22: =VLOOKUP(9,$N$14:$O$303,2,FALSE) -> Harrow | B22: =VLOOKUP(9,$N$14:$Z$303,3,FALSE) -> 20200 | C22: =VLOOKUP(9,$N$14:$Z$303,4,FALSE) -> 40 | D22: =VLOOKUP(9,$N$14:$Z$303,5,FALSE) -> 7 | E22: =VLOOKUP(9,$N$14:$Z$303,6,FALSE) -> 189000 | F22: =VLOOKUP(9,$N$14:$Z$303,7,FALSE) -> 4 | G22: =VLOOKUP(9,$N$14:$Z$303,8,FALSE) -> 195 | H22: =VLOOKUP(9,$N$14:$Z$303,9,FALSE) -> 160 | I22: =VLOOKUP(9,$N$14:$Z$303,10,FALSE) -> 0.85 | J22: =VLOOKUP(9,$N$14:$Z$303,11,FALSE) -> 8 | K22: =VLOOKUP(9,$N$14:$Z$303,12,FALSE) -> 600 | L22: =VLOOKUP(9,$N$14:$Z$303,13,FALSE) -> 8 | M22: =VLOOKUP(9,$N$14:$AA$303,14,FALSE) -> 1 | N22: 9 | O22: Harrow | P22: 20200 | Q22: 40 | R22: 7 | S22: 189000 | T22: 4 | U22: 195 | V22: 160 | W22: 0.85 | X22: 8 | Y22: 600 | Z22: 8 | AA22: 1 | AB22: 0.27 | AC22: 1.4 | AD22: 1.04 | AE22: Plows | AG22: =VLOOKUP(9,$N$14:$AD$303,15,FALSE) -> 0.27 | AH22: =VLOOKUP(9,$N$14:$AD$303,16,FALSE) -> 1.4 | AI22: =VLOOKUP(9,$N$14:$AD$303,17,FALSE) -> 1.04
A23: =VLOOKUP(10,$N$14:$O$303,2,FALSE) -> Roller | B23: =VLOOKUP(10,$N$14:$Z$303,3,FALSE) -> 23300 | C23: =VLOOKUP(10,$N$14:$Z$303,4,FALSE) -> 38 | D23: =VLOOKUP(10,$N$14:$Z$303,5,FALSE) -> 6 | E23: =VLOOKUP(10,$N$14:$Z$303,6,FALSE) -> 227000 | F23: =VLOOKUP(10,$N$14:$Z$303,7,FALSE) -> 4 | G23: =VLOOKUP(10,$N$14:$Z$303,8,FALSE) -> 230 | H23: =VLOOKUP(10,$N$14:$Z$303,9,FALSE) -> 120 | I23: =VLOOKUP(10,$N$14:$Z$303,10,FALSE) -> 0.85 | J23: =VLOOKUP(10,$N$14:$Z$303,11,FALSE) -> 8 | K23: =VLOOKUP(10,$N$14:$Z$303,12,FALSE) -> 600 | L23: =VLOOKUP(10,$N$14:$Z$303,13,FALSE) -> 8 | M23: =VLOOKUP(10,$N$14:$AA$303,14,FALSE) -> 1 | N23: 10 | O23: Roller | P23: 23300 | Q23: 38 | R23: 6 | S23: 227000 | T23: 4 | U23: 230 | V23: 120 | W23: 0.85 | X23: 8 | Y23: 600 | Z23: 8 | AA23: 1 | AB23: 0.16 | AC23: 1.3 | AD23: 1.04 | AE23: Other Tillage | AG23: =VLOOKUP(10,$N$14:$AD$303,15,FALSE) -> 0.16 | AH23: =VLOOKUP(10,$N$14:$AD$303,16,FALSE) -> 1.3 | AI23: =VLOOKUP(10,$N$14:$AD$303,17,FALSE) -> 1.04
A24: =VLOOKUP(11,$N$14:$O$303,2,FALSE) -> Bedder-Roller | B24: =VLOOKUP(11,$N$14:$Z$303,3,FALSE) -> 35700 | C24: =VLOOKUP(11,$N$14:$Z$303,4,FALSE) -> 38 | D24: =VLOOKUP(11,$N$14:$Z$303,5,FALSE) -> 5 | E24: =VLOOKUP(11,$N$14:$Z$303,6,FALSE) -> 227000 | F24: =VLOOKUP(11,$N$14:$Z$303,7,FALSE) -> 4 | G24: =VLOOKUP(11,$N$14:$Z$303,8,FALSE) -> 230 | H24: =VLOOKUP(11,$N$14:$Z$303,9,FALSE) -> 120 | I24: =VLOOKUP(11,$N$14:$Z$303,10,FALSE) -> 0.85 | J24: =VLOOKUP(11,$N$14:$Z$303,11,FALSE) -> 8 | K24: =VLOOKUP(11,$N$14:$Z$303,12,FALSE) -> 600 | L24: =VLOOKUP(11,$N$14:$Z$303,13,FALSE) -> 8 | M24: =VLOOKUP(11,$N$14:$AA$303,14,FALSE) -> 1 | N24: 11 | O24: Bedder-Roller | P24: 35700 | Q24: 38 | R24: 5 | S24: 227000 | T24: 4 | U24: 230 | V24: 120 | W24: 0.85 | X24: 8 | Y24: 600 | Z24: 8 | AA24: 1 | AB24: 0.16 | AC24: 1.3 | AD24: 1.04 | AE24: Plows | AG24: =VLOOKUP(11,$N$14:$AD$303,15,FALSE) -> 0.16 | AH24: =VLOOKUP(11,$N$14:$AD$303,16,FALSE) -> 1.3 | AI24: =VLOOKUP(11,$N$14:$AD$303,17,FALSE) -> 1.04
A25: =VLOOKUP(12,$N$14:$O$303,2,FALSE) -> Ditcher | B25: =VLOOKUP(12,$N$14:$Z$303,3,FALSE) -> 6100 | C25: =VLOOKUP(12,$N$14:$Z$303,4,FALSE) -> 1 | D25: =VLOOKUP(12,$N$14:$Z$303,5,FALSE) -> 10 | E25: =VLOOKUP(12,$N$14:$Z$303,6,FALSE) -> 155000 | F25: =VLOOKUP(12,$N$14:$Z$303,7,FALSE) -> 4 | G25: =VLOOKUP(12,$N$14:$Z$303,8,FALSE) -> 175 | H25: =VLOOKUP(12,$N$14:$Z$303,9,FALSE) -> 50 | I25: =VLOOKUP(12,$N$14:$Z$303,10,FALSE) -> 0.95 | J25: =VLOOKUP(12,$N$14:$Z$303,11,FALSE) -> 8 | K25: =VLOOKUP(12,$N$14:$Z$303,12,FALSE) -> 600 | L25: =VLOOKUP(12,$N$14:$Z$303,13,FALSE) -> 8 | M25: =VLOOKUP(12,$N$14:$AA$303,14,FALSE) -> 1 | N25: 12 | O25: Ditcher | P25: 6100 | Q25: 1 | R25: 10 | S25: 155000 | T25: 4 | U25: 175 | V25: 50 | W25: 0.95 | X25: 8 | Y25: 600 | Z25: 8 | AA25: 1 | AB25: 0.28 | AC25: 1.4 | AD25: 1.04 | AE25: Plows | AG25: =VLOOKUP(12,$N$14:$AD$303,15,FALSE) -> 0.28 | AH25: =VLOOKUP(12,$N$14:$AD$303,16,FALSE) -> 1.4 | AI25: =VLOOKUP(12,$N$14:$AD$303,17,FALSE) -> 1.04
A26: =VLOOKUP(13,$N$14:$O$303,2,FALSE) -> Turbo Tiller | B26: =VLOOKUP(13,$N$14:$Z$303,3,FALSE) -> 53800 | C26: =VLOOKUP(13,$N$14:$Z$303,4,FALSE) -> 30 | D26: =VLOOKUP(13,$N$14:$Z$303,5,FALSE) -> 7 | E26: =VLOOKUP(13,$N$14:$Z$303,6,FALSE) -> 227000 | F26: =VLOOKUP(13,$N$14:$Z$303,7,FALSE) -> 4 | G26: =VLOOKUP(13,$N$14:$Z$303,8,FALSE) -> 230 | H26: =VLOOKUP(13,$N$14:$Z$303,9,FALSE) -> 160 | I26: =VLOOKUP(13,$N$14:$Z$303,10,FALSE) -> 0.8 | J26: =VLOOKUP(13,$N$14:$Z$303,11,FALSE) -> 8 | K26: =VLOOKUP(13,$N$14:$Z$303,12,FALSE) -> 600 | L26: =VLOOKUP(13,$N$14:$Z$303,13,FALSE) -> 8 | M26: =VLOOKUP(13,$N$14:$AA$303,14,FALSE) -> 1 | N26: 13 | O26: Turbo Tiller | P26: 53800 | Q26: 30 | R26: 7 | S26: 227000 | T26: 4 | U26: 230 | V26: 160 | W26: 0.8 | X26: 8 | Y26: 600 | Z26: 8 | AA26: 1 | AB26: 0.23 | AC26: 1.4 | AD26: 1.04 | AE26: Plows | AG26: =VLOOKUP(13,$N$14:$AD$303,15,FALSE) -> 0.23 | AH26: =VLOOKUP(13,$N$14:$AD$303,16,FALSE) -> 1.4 | AI26: =VLOOKUP(13,$N$14:$AD$303,17,FALSE) -> 1.04
A27: =VLOOKUP(14,$N$14:$O$303,2,FALSE) -> Rotary Harrow (ex. Phillips) | B27: =VLOOKUP(14,$N$14:$Z$303,3,FALSE) -> 42000 | C27: =VLOOKUP(14,$N$14:$Z$303,4,FALSE) -> 45 | D27: =VLOOKUP(14,$N$14:$Z$303,5,FALSE) -> 7 | E27: =VLOOKUP(14,$N$14:$Z$303,6,FALSE) -> 227000 | F27: =VLOOKUP(14,$N$14:$Z$303,7,FALSE) -> 4 | G27: =VLOOKUP(14,$N$14:$Z$303,8,FALSE) -> 230 | H27: =VLOOKUP(14,$N$14:$Z$303,9,FALSE) -> 120 | I27: =VLOOKUP(14,$N$14:$Z$303,10,FALSE) -> 0.8 | J27: =VLOOKUP(14,$N$14:$Z$303,11,FALSE) -> 8 | K27: =VLOOKUP(14,$N$14:$Z$303,12,FALSE) -> 600 | L27: =VLOOKUP(14,$N$14:$Z$303,13,FALSE) -> 8 | M27: =VLOOKUP(14,$N$14:$AA$303,14,FALSE) -> 1 | N27: 14 | O27: Rotary Harrow (ex. Phillips) | P27: 42000 | Q27: 45 | R27: 7 | S27: 227000 | T27: 4 | U27: 230 | V27: 120 | W27: 0.8 | X27: 8 | Y27: 600 | Z27: 8 | AA27: 1 | AB27: 0.23 | AC27: 1.4 | AD27: 1.04 | AE27: Plows | AG27: =VLOOKUP(14,$N$14:$AD$303,15,FALSE) -> 0.23 | AH27: =VLOOKUP(14,$N$14:$AD$303,16,FALSE) -> 1.4 | AI27: =VLOOKUP(14,$N$14:$AD$303,17,FALSE) -> 1.04
A28: =VLOOKUP(15,$N$14:$O$303,2,FALSE) -> Field Cultivator | B28: =VLOOKUP(15,$N$14:$Z$303,3,FALSE) -> 58400 | C28: =VLOOKUP(15,$N$14:$Z$303,4,FALSE) -> 42 | D28: =VLOOKUP(15,$N$14:$Z$303,5,FALSE) -> 7 | E28: =VLOOKUP(15,$N$14:$Z$303,6,FALSE) -> 227000 | F28: =VLOOKUP(15,$N$14:$Z$303,7,FALSE) -> 4 | G28: =VLOOKUP(15,$N$14:$Z$303,8,FALSE) -> 230 | H28: =VLOOKUP(15,$N$14:$Z$303,9,FALSE) -> 160 | I28: =VLOOKUP(15,$N$14:$Z$303,10,FALSE) -> 0.85 | J28: =VLOOKUP(15,$N$14:$Z$303,11,FALSE) -> 8 | K28: =VLOOKUP(15,$N$14:$Z$303,12,FALSE) -> 600 | L28: =VLOOKUP(15,$N$14:$Z$303,13,FALSE) -> 8 | M28: =VLOOKUP(15,$N$14:$AA$303,14,FALSE) -> 1 | N28: =IF($A$8=1,N27+1,0) -> 15 | O28: Field Cultivator | P28: 58400 | Q28: 42 | R28: 7 | S28: 227000 | T28: 4 | U28: 230 | V28: 160 | W28: 0.85 | X28: 8 | Y28: 600 | Z28: 8 | AA28: =AA14 -> 1 | AB28: 0.27 | AC28: 1.4 | AD28: 1.04 | AE28: Plows | AG28: =VLOOKUP(15,$N$14:$AD$303,15,FALSE) -> 0.27 | AH28: =VLOOKUP(15,$N$14:$AD$303,16,FALSE) -> 1.4 | AI28: =VLOOKUP(15,$N$14:$AD$303,17,FALSE) -> 1.04
A29: =VLOOKUP(16,$N$14:$O$303,2,FALSE) -> Row Crop Cultivator, Irrigation Middles | B29: =VLOOKUP(16,$N$14:$Z$303,3,FALSE) -> 27300 | C29: =VLOOKUP(16,$N$14:$Z$303,4,FALSE) -> 38 | D29: =VLOOKUP(16,$N$14:$Z$303,5,FALSE) -> 7 | E29: =VLOOKUP(16,$N$14:$Z$303,6,FALSE) -> 227000 | F29: =VLOOKUP(16,$N$14:$Z$303,7,FALSE) -> 4 | G29: =VLOOKUP(16,$N$14:$Z$303,8,FALSE) -> 230 | H29: =VLOOKUP(16,$N$14:$Z$303,9,FALSE) -> 120 | I29: =VLOOKUP(16,$N$14:$Z$303,10,FALSE) -> 0.8 | J29: =VLOOKUP(16,$N$14:$Z$303,11,FALSE) -> 8 | K29: =VLOOKUP(16,$N$14:$Z$303,12,FALSE) -> 600 | L29: =VLOOKUP(16,$N$14:$Z$303,13,FALSE) -> 8 | M29: =VLOOKUP(16,$N$14:$AA$303,14,FALSE) -> 1 | N29: =IF($A$8=1,N28+1,0) -> 16 | O29: Row Crop Cultivator, Irrigation Middles | P29: 27300 | Q29: 38 | R29: 7 | S29: 227000 | T29: 4 | U29: 230 | V29: 120 | W29: 0.8 | X29: 8 | Y29: 600 | Z29: 8 | AA29: =AA28 -> 1 | AB29: 0.17 | AC29: 2.2 | AD29: 1.04 | AE29: Plows | AG29: =VLOOKUP(16,$N$14:$AD$303,15,FALSE) -> 0.17 | AH29: =VLOOKUP(16,$N$14:$AD$303,16,FALSE) -> 2.2 | AI29: =VLOOKUP(16,$N$14:$AD$303,17,FALSE) -> 1.04
A30: =VLOOKUP(17,$N$14:$O$303,2,FALSE) -> Sprayer, Tractor Mounted (ft) | B30: =VLOOKUP(17,$N$14:$Z$303,3,FALSE) -> 15600 | C30: =VLOOKUP(17,$N$14:$Z$303,4,FALSE) -> 60 | D30: =VLOOKUP(17,$N$14:$Z$303,5,FALSE) -> 12 | E30: =VLOOKUP(17,$N$14:$Z$303,6,FALSE) -> 155000 | F30: =VLOOKUP(17,$N$14:$Z$303,7,FALSE) -> 4 | G30: =VLOOKUP(17,$N$14:$Z$303,8,FALSE) -> 175 | H30: =VLOOKUP(17,$N$14:$Z$303,9,FALSE) -> 120 | I30: =VLOOKUP(17,$N$14:$Z$303,10,FALSE) -> 0.65 | J30: =VLOOKUP(17,$N$14:$Z$303,11,FALSE) -> 8 | K30: =VLOOKUP(17,$N$14:$Z$303,12,FALSE) -> 600 | L30: =VLOOKUP(17,$N$14:$Z$303,13,FALSE) -> 8 | M30: =VLOOKUP(17,$N$14:$AA$303,14,FALSE) -> 1 | N30: 17 | O30: Sprayer, Tractor Mounted (ft) | P30: 15600 | Q30: 60 | R30: 12 | S30: 155000 | T30: 4 | U30: 175 | V30: 120 | W30: 0.65 | X30: 8 | Y30: 600 | Z30: 8 | AA30: =AA29 -> 1 | AB30: 0.41 | AC30: 1.3 | AD30: 1.04 | AE30: Sprayer | AG30: =VLOOKUP(17,$N$14:$AD$303,15,FALSE) -> 0.41 | AH30: =VLOOKUP(17,$N$14:$AD$303,16,FALSE) -> 1.3 | AI30: =VLOOKUP(17,$N$14:$AD$303,17,FALSE) -> 1.04
A31: =VLOOKUP(18,$N$14:$O$303,2,FALSE) -> Sprayer, Tractor Mounted (row) | B31: =VLOOKUP(18,$N$14:$Z$303,3,FALSE) -> 14900 | C31: =VLOOKUP(18,$N$14:$Z$303,4,FALSE) -> 38 | D31: =VLOOKUP(18,$N$14:$Z$303,5,FALSE) -> 12 | E31: =VLOOKUP(18,$N$14:$Z$303,6,FALSE) -> 155000 | F31: =VLOOKUP(18,$N$14:$Z$303,7,FALSE) -> 4 | G31: =VLOOKUP(18,$N$14:$Z$303,8,FALSE) -> 175 | H31: =VLOOKUP(18,$N$14:$Z$303,9,FALSE) -> 120 | I31: =VLOOKUP(18,$N$14:$Z$303,10,FALSE) -> 0.65 | J31: =VLOOKUP(18,$N$14:$Z$303,11,FALSE) -> 8 | K31: =VLOOKUP(18,$N$14:$Z$303,12,FALSE) -> 600 | L31: =VLOOKUP(18,$N$14:$Z$303,13,FALSE) -> 8 | M31: =VLOOKUP(18,$N$14:$AA$303,14,FALSE) -> 1 | N31: 18 | O31: Sprayer, Tractor Mounted (row) | P31: 14900 | Q31: 38 | R31: 12 | S31: 155000 | T31: 4 | U31: 175 | V31: 120 | W31: 0.65 | X31: 8 | Y31: 600 | Z31: 8 | AA31: 1 | AB31: 0.41 | AC31: 1.3 | AD31: 1.04 | AE31: Sprayer | AG31: =VLOOKUP(18,$N$14:$AD$303,15,FALSE) -> 0.41 | AH31: =VLOOKUP(18,$N$14:$AD$303,16,FALSE) -> 1.3 | AI31: =VLOOKUP(18,$N$14:$AD$303,17,FALSE) -> 1.04
A32: =VLOOKUP(19,$N$14:$O$303,2,FALSE) -> Land Plane | B32: =VLOOKUP(19,$N$14:$Z$303,3,FALSE) -> 10800 | C32: =VLOOKUP(19,$N$14:$Z$303,4,FALSE) -> 17 | D32: =VLOOKUP(19,$N$14:$Z$303,5,FALSE) -> 8.5 | E32: =VLOOKUP(19,$N$14:$Z$303,6,FALSE) -> 189000 | F32: =VLOOKUP(19,$N$14:$Z$303,7,FALSE) -> 4 | G32: =VLOOKUP(19,$N$14:$Z$303,8,FALSE) -> 195 | H32: =VLOOKUP(19,$N$14:$Z$303,9,FALSE) -> 160 | I32: =VLOOKUP(19,$N$14:$Z$303,10,FALSE) -> 0.85 | J32: =VLOOKUP(19,$N$14:$Z$303,11,FALSE) -> 8 | K32: =VLOOKUP(19,$N$14:$Z$303,12,FALSE) -> 600 | L32: =VLOOKUP(19,$N$14:$Z$303,13,FALSE) -> 8 | M32: =VLOOKUP(19,$N$14:$AA$303,14,FALSE) -> 1 | N32: 19 | O32: Land Plane | P32: 10800 | Q32: 17 | R32: 8.5 | S32: 189000 | T32: 4 | U32: 195 | V32: 160 | W32: 0.85 | X32: 8 | Y32: 600 | Z32: 8 | AA32: 1 | AB32: 0.16 | AC32: 1.3 | AD32: 1.04 | AE32: Other Tillage | AG32: =VLOOKUP(19,$N$14:$AD$303,15,FALSE) -> 0.16 | AH32: =VLOOKUP(19,$N$14:$AD$303,16,FALSE) -> 1.3 | AI32: =VLOOKUP(19,$N$14:$AD$303,17,FALSE) -> 1.04
A33: =VLOOKUP(20,$N$14:$O$303,2,FALSE) -> Fertilizer, Broadcast Spreader | B33: =VLOOKUP(20,$N$14:$Z$303,3,FALSE) -> 12900 | C33: =VLOOKUP(20,$N$14:$Z$303,4,FALSE) -> 30 | D33: =VLOOKUP(20,$N$14:$Z$303,5,FALSE) -> 10 | E33: =VLOOKUP(20,$N$14:$Z$303,6,FALSE) -> 189000 | F33: =VLOOKUP(20,$N$14:$Z$303,7,FALSE) -> 4 | G33: =VLOOKUP(20,$N$14:$Z$303,8,FALSE) -> 195 | H33: =VLOOKUP(20,$N$14:$Z$303,9,FALSE) -> 100 | I33: =VLOOKUP(20,$N$14:$Z$303,10,FALSE) -> 0.7 | J33: =VLOOKUP(20,$N$14:$Z$303,11,FALSE) -> 8 | K33: =VLOOKUP(20,$N$14:$Z$303,12,FALSE) -> 600 | L33: =VLOOKUP(20,$N$14:$Z$303,13,FALSE) -> 8 | M33: =VLOOKUP(20,$N$14:$AA$303,14,FALSE) -> 1 | N33: 20 | O33: Fertilizer, Broadcast Spreader | P33: 12900 | Q33: 30 | R33: 10 | S33: 189000 | T33: 4 | U33: 195 | V33: 100 | W33: 0.7 | X33: 8 | Y33: 600 | Z33: 8 | AA33: 1 | AB33: 0.63 | AC33: 1.3 | AD33: 1.33 | AE33: Others | AG33: =VLOOKUP(20,$N$14:$AD$303,15,FALSE) -> 0.63 | AH33: =VLOOKUP(20,$N$14:$AD$303,16,FALSE) -> 1.3 | AI33: =VLOOKUP(20,$N$14:$AD$303,17,FALSE) -> 1.33
A34: =VLOOKUP(21,$N$14:$O$303,2,FALSE) -> Do All, Seedbed Finisher | B34: =VLOOKUP(21,$N$14:$Z$303,3,FALSE) -> 25500 | C34: =VLOOKUP(21,$N$14:$Z$303,4,FALSE) -> 38 | D34: =VLOOKUP(21,$N$14:$Z$303,5,FALSE) -> 7 | E34: =VLOOKUP(21,$N$14:$Z$303,6,FALSE) -> 227000 | F34: =VLOOKUP(21,$N$14:$Z$303,7,FALSE) -> 4 | G34: =VLOOKUP(21,$N$14:$Z$303,8,FALSE) -> 230 | H34: =VLOOKUP(21,$N$14:$Z$303,9,FALSE) -> 160 | I34: =VLOOKUP(21,$N$14:$Z$303,10,FALSE) -> 0.85 | J34: =VLOOKUP(21,$N$14:$Z$303,11,FALSE) -> 8 | K34: =VLOOKUP(21,$N$14:$Z$303,12,FALSE) -> 600 | L34: =VLOOKUP(21,$N$14:$Z$303,13,FALSE) -> 8 | M34: =VLOOKUP(21,$N$14:$AA$303,14,FALSE) -> 1 | N34: 21 | O34: Do All, Seedbed Finisher | P34: 25500 | Q34: 38 | R34: 7 | S34: 227000 | T34: 4 | U34: 230 | V34: 160 | W34: 0.85 | X34: 8 | Y34: 600 | Z34: 8 | AA34: 1 | AB34: 0.27 | AC34: 1.4 | AD34: 1.04 | AE34: Other Tillage | AG34: =VLOOKUP(21,$N$14:$AD$303,15,FALSE) -> 0.27 | AH34: =VLOOKUP(21,$N$14:$AD$303,16,FALSE) -> 1.4 | AI34: =VLOOKUP(21,$N$14:$AD$303,17,FALSE) -> 1.04
A35: =VLOOKUP(22,$N$14:$O$303,2,FALSE) -> Planter | B35: =VLOOKUP(22,$N$14:$Z$303,3,FALSE) -> 80200 | C35: =VLOOKUP(22,$N$14:$Z$303,4,FALSE) -> 38 | D35: =VLOOKUP(22,$N$14:$Z$303,5,FALSE) -> 6 | E35: =VLOOKUP(22,$N$14:$Z$303,6,FALSE) -> 189000 | F35: =VLOOKUP(22,$N$14:$Z$303,7,FALSE) -> 4 | G35: =VLOOKUP(22,$N$14:$Z$303,8,FALSE) -> 195 | H35: =VLOOKUP(22,$N$14:$Z$303,9,FALSE) -> 160 | I35: =VLOOKUP(22,$N$14:$Z$303,10,FALSE) -> 0.65 | J35: =VLOOKUP(22,$N$14:$Z$303,11,FALSE) -> 8 | K35: =VLOOKUP(22,$N$14:$Z$303,12,FALSE) -> 600 | L35: =VLOOKUP(22,$N$14:$Z$303,13,FALSE) -> 8 | M35: =VLOOKUP(22,$N$14:$AA$303,14,FALSE) -> 1 | N35: 22 | O35: Planter | P35: 80200 | Q35: 38 | R35: 6 | S35: 189000 | T35: 4 | U35: 195 | V35: 160 | W35: 0.65 | X35: 8 | Y35: 600 | Z35: 8 | AA35: 1 | AB35: 0.32 | AC35: 2.1 | AD35: 1.16 | AE35: Planter, Drill | AG35: =VLOOKUP(22,$N$14:$AD$303,15,FALSE) -> 0.32 | AH35: =VLOOKUP(22,$N$14:$AD$303,16,FALSE) -> 2.1 | AI35: =VLOOKUP(22,$N$14:$AD$303,17,FALSE) -> 1.16
A36: =VLOOKUP(23,$N$14:$O$303,2,FALSE) -> Planter Twin Row | B36: =VLOOKUP(23,$N$14:$Z$303,3,FALSE) -> 143000 | C36: =VLOOKUP(23,$N$14:$Z$303,4,FALSE) -> 38 | D36: =VLOOKUP(23,$N$14:$Z$303,5,FALSE) -> 6 | E36: =VLOOKUP(23,$N$14:$Z$303,6,FALSE) -> 227000 | F36: =VLOOKUP(23,$N$14:$Z$303,7,FALSE) -> 4 | G36: =VLOOKUP(23,$N$14:$Z$303,8,FALSE) -> 230 | H36: =VLOOKUP(23,$N$14:$Z$303,9,FALSE) -> 160 | I36: =VLOOKUP(23,$N$14:$Z$303,10,FALSE) -> 0.65 | J36: =VLOOKUP(23,$N$14:$Z$303,11,FALSE) -> 8 | K36: =VLOOKUP(23,$N$14:$Z$303,12,FALSE) -> 600 | L36: =VLOOKUP(23,$N$14:$Z$303,13,FALSE) -> 8 | M36: =VLOOKUP(23,$N$14:$AA$303,14,FALSE) -> 1 | N36: 23 | O36: Planter Twin Row | P36: 143000 | Q36: 38 | R36: 6 | S36: 227000 | T36: 4 | U36: 230 | V36: 160 | W36: 0.65 | X36: 8 | Y36: 600 | Z36: 8 | AA36: 1 | AB36: 0.32 | AC36: 2.1 | AD36: 1.16 | AE36: Planter, Drill | AG36: =VLOOKUP(23,$N$14:$AD$303,15,FALSE) -> 0.32 | AH36: =VLOOKUP(23,$N$14:$AD$303,16,FALSE) -> 2.1 | AI36: =VLOOKUP(23,$N$14:$AD$303,17,FALSE) -> 1.16
A37: =VLOOKUP(24,$N$14:$O$303,2,FALSE) -> Plant Grain Drill | B37: =VLOOKUP(24,$N$14:$Z$303,3,FALSE) -> 63800 | C37: =VLOOKUP(24,$N$14:$Z$303,4,FALSE) -> 30 | D37: =VLOOKUP(24,$N$14:$Z$303,5,FALSE) -> 5.5 | E37: =VLOOKUP(24,$N$14:$Z$303,6,FALSE) -> 227000 | F37: =VLOOKUP(24,$N$14:$Z$303,7,FALSE) -> 4 | G37: =VLOOKUP(24,$N$14:$Z$303,8,FALSE) -> 230 | H37: =VLOOKUP(24,$N$14:$Z$303,9,FALSE) -> 160 | I37: =VLOOKUP(24,$N$14:$Z$303,10,FALSE) -> 0.7 | J37: =VLOOKUP(24,$N$14:$Z$303,11,FALSE) -> 8 | K37: =VLOOKUP(24,$N$14:$Z$303,12,FALSE) -> 600 | L37: =VLOOKUP(24,$N$14:$Z$303,13,FALSE) -> 8 | M37: =VLOOKUP(24,$N$14:$AA$303,14,FALSE) -> 1 | N37: 24 | O37: Plant Grain Drill | P37: 63800 | Q37: 30 | R37: 5.5 | S37: 227000 | T37: 4 | U37: 230 | V37: 160 | W37: 0.7 | X37: 8 | Y37: 600 | Z37: 8 | AA37: 1 | AB37: 0.32 | AC37: 2.1 | AD37: 1.11 | AE37: Planter, Drill | AG37: =VLOOKUP(24,$N$14:$AD$303,15,FALSE) -> 0.32 | AH37: =VLOOKUP(24,$N$14:$AD$303,16,FALSE) -> 2.1 | AI37: =VLOOKUP(24,$N$14:$AD$303,17,FALSE) -> 1.11
A38: =VLOOKUP(25,$N$14:$O$303,2,FALSE) -> Plant No-Till Air Drill | B38: =VLOOKUP(25,$N$14:$Z$303,3,FALSE) -> 110700 | C38: =VLOOKUP(25,$N$14:$Z$303,4,FALSE) -> 30 | D38: =VLOOKUP(25,$N$14:$Z$303,5,FALSE) -> 7 | E38: =VLOOKUP(25,$N$14:$Z$303,6,FALSE) -> 227000 | F38: =VLOOKUP(25,$N$14:$Z$303,7,FALSE) -> 4 | G38: =VLOOKUP(25,$N$14:$Z$303,8,FALSE) -> 230 | H38: =VLOOKUP(25,$N$14:$Z$303,9,FALSE) -> 160 | I38: =VLOOKUP(25,$N$14:$Z$303,10,FALSE) -> 0.7 | J38: =VLOOKUP(25,$N$14:$Z$303,11,FALSE) -> 8 | K38: =VLOOKUP(25,$N$14:$Z$303,12,FALSE) -> 600 | L38: =VLOOKUP(25,$N$14:$Z$303,13,FALSE) -> 8 | M38: =VLOOKUP(25,$N$14:$AA$303,14,FALSE) -> 1 | N38: =IF($A$8=1,N37+1,0) -> 25 | O38: Plant No-Till Air Drill | P38: 110700 | Q38: 30 | R38: 7 | S38: 227000 | T38: 4 | U38: 230 | V38: 160 | W38: 0.7 | X38: 8 | Y38: 600 | Z38: 8 | AA38: =AA37 -> 1 | AB38: 0.32 | AC38: 2.1 | AD38: 1.11 | AE38: Planter, Drill | AG38: =VLOOKUP(25,$N$14:$AD$303,15,FALSE) -> 0.32 | AH38: =VLOOKUP(25,$N$14:$AD$303,16,FALSE) -> 2.1 | AI38: =VLOOKUP(25,$N$14:$AD$303,17,FALSE) -> 1.11
A39: =VLOOKUP(26,$N$14:$O$303,2,FALSE) -> Liquid Fertilizer Applicator | B39: =VLOOKUP(26,$N$14:$Z$303,3,FALSE) -> 19000 | C39: =VLOOKUP(26,$N$14:$Z$303,4,FALSE) -> 38 | D39: =VLOOKUP(26,$N$14:$Z$303,5,FALSE) -> 10 | E39: =VLOOKUP(26,$N$14:$Z$303,6,FALSE) -> 227000 | F39: =VLOOKUP(26,$N$14:$Z$303,7,FALSE) -> 4 | G39: =VLOOKUP(26,$N$14:$Z$303,8,FALSE) -> 230 | H39: =VLOOKUP(26,$N$14:$Z$303,9,FALSE) -> 120 | I39: =VLOOKUP(26,$N$14:$Z$303,10,FALSE) -> 0.65 | J39: =VLOOKUP(26,$N$14:$Z$303,11,FALSE) -> 8 | K39: =VLOOKUP(26,$N$14:$Z$303,12,FALSE) -> 600 | L39: =VLOOKUP(26,$N$14:$Z$303,13,FALSE) -> 8 | M39: =VLOOKUP(26,$N$14:$AA$303,14,FALSE) -> 1 | N39: =IF($A$8=1,N38+1,0) -> 26 | O39: Liquid Fertilizer Applicator | P39: 19000 | Q39: 38 | R39: 10 | S39: 227000 | T39: 4 | U39: 230 | V39: 120 | W39: 0.65 | X39: 8 | Y39: 600 | Z39: 8 | AA39: =AA38 -> 1 | AB39: 0.41 | AC39: 1.3 | AD39: 1.33 | AE39: Sprayer | AG39: =VLOOKUP(26,$N$14:$AD$303,15,FALSE) -> 0.41 | AH39: =VLOOKUP(26,$N$14:$AD$303,16,FALSE) -> 1.3 | AI39: =VLOOKUP(26,$N$14:$AD$303,17,FALSE) -> 1.33
A40: =VLOOKUP(27,$N$14:$O$303,2,FALSE) -> Fertilizer, Knife Rig 12 Row | B40: =VLOOKUP(27,$N$14:$Z$303,3,FALSE) -> 46000 | C40: =VLOOKUP(27,$N$14:$Z$303,4,FALSE) -> 38 | D40: =VLOOKUP(27,$N$14:$Z$303,5,FALSE) -> 7 | E40: =VLOOKUP(27,$N$14:$Z$303,6,FALSE) -> 227000 | F40: =VLOOKUP(27,$N$14:$Z$303,7,FALSE) -> 4 | G40: =VLOOKUP(27,$N$14:$Z$303,8,FALSE) -> 230 | H40: =VLOOKUP(27,$N$14:$Z$303,9,FALSE) -> 120 | I40: =VLOOKUP(27,$N$14:$Z$303,10,FALSE) -> 0.65 | J40: =VLOOKUP(27,$N$14:$Z$303,11,FALSE) -> 8 | K40: =VLOOKUP(27,$N$14:$Z$303,12,FALSE) -> 600 | L40: =VLOOKUP(27,$N$14:$Z$303,13,FALSE) -> 8 | M40: =VLOOKUP(27,$N$14:$AA$303,14,FALSE) -> 1 | N40: =IF($A$8=1,N39+1,0) -> 27 | O40: Fertilizer, Knife Rig 12 Row | P40: 46000 | Q40: 38 | R40: 7 | S40: 227000 | T40: 4 | U40: 230 | V40: 120 | W40: 0.65 | X40: 8 | Y40: 600 | Z40: 8 | AA40: =AA39 -> 1 | AB40: 0.41 | AC40: 1.3 | AD40: 1.33 | AE40: Plows | AG40: =VLOOKUP(27,$N$14:$AD$303,15,FALSE) -> 0.41 | AH40: =VLOOKUP(27,$N$14:$AD$303,16,FALSE) -> 1.3 | AI40: =VLOOKUP(27,$N$14:$AD$303,17,FALSE) -> 1.33
A41: =VLOOKUP(28,$N$14:$O$303,2,FALSE) -> Polypipe; Roll Out, Punch, Take Up | B41: =VLOOKUP(28,$N$14:$Z$303,3,FALSE) -> 5400 | C41: =VLOOKUP(28,$N$14:$Z$303,4,FALSE) -> 1 | D41: =VLOOKUP(28,$N$14:$Z$303,5,FALSE) -> 2.5 | E41: =VLOOKUP(28,$N$14:$Z$303,6,FALSE) -> 155000 | F41: =VLOOKUP(28,$N$14:$Z$303,7,FALSE) -> 4 | G41: =VLOOKUP(28,$N$14:$Z$303,8,FALSE) -> 175 | H41: =VLOOKUP(28,$N$14:$Z$303,9,FALSE) -> 25 | I41: =VLOOKUP(28,$N$14:$Z$303,10,FALSE) -> 0.95 | J41: =VLOOKUP(28,$N$14:$Z$303,11,FALSE) -> 8 | K41: =VLOOKUP(28,$N$14:$Z$303,12,FALSE) -> 600 | L41: =VLOOKUP(28,$N$14:$Z$303,13,FALSE) -> 8 | M41: =VLOOKUP(28,$N$14:$AA$303,14,FALSE) -> 1 | N41: =IF($A$8=1,N40+1,0) -> 28 | O41: Polypipe; Roll Out, Punch, Take Up | P41: 5400 | Q41: 1 | R41: 2.5 | S41: 155000 | T41: 4 | U41: 175 | V41: 25 | W41: 0.95 | X41: 8 | Y41: 600 | Z41: 8 | AA41: =AA40 -> 1 | AB41: 0.16 | AC41: 1.3 | AD41: 3.12 | AE41: Others | AG41: =VLOOKUP(28,$N$14:$AD$303,15,FALSE) -> 0.16 | AH41: =VLOOKUP(28,$N$14:$AD$303,16,FALSE) -> 1.3 | AI41: =VLOOKUP(28,$N$14:$AD$303,17,FALSE) -> 3.12
A42: =VLOOKUP(29,$N$14:$O$303,2,FALSE) -> Hooded Sprayer | B42: =VLOOKUP(29,$N$14:$Z$303,3,FALSE) -> 27100 | C42: =VLOOKUP(29,$N$14:$Z$303,4,FALSE) -> 38 | D42: =VLOOKUP(29,$N$14:$Z$303,5,FALSE) -> 7 | E42: =VLOOKUP(29,$N$14:$Z$303,6,FALSE) -> 155000 | F42: =VLOOKUP(29,$N$14:$Z$303,7,FALSE) -> 4 | G42: =VLOOKUP(29,$N$14:$Z$303,8,FALSE) -> 175 | H42: =VLOOKUP(29,$N$14:$Z$303,9,FALSE) -> 120 | I42: =VLOOKUP(29,$N$14:$Z$303,10,FALSE) -> 0.65 | J42: =VLOOKUP(29,$N$14:$Z$303,11,FALSE) -> 8 | K42: =VLOOKUP(29,$N$14:$Z$303,12,FALSE) -> 600 | L42: =VLOOKUP(29,$N$14:$Z$303,13,FALSE) -> 8 | M42: =VLOOKUP(29,$N$14:$AA$303,14,FALSE) -> 1 | N42: 29 | O42: Hooded Sprayer | P42: 27100 | Q42: 38 | R42: 7 | S42: 155000 | T42: 4 | U42: 175 | V42: 120 | W42: 0.65 | X42: 8 | Y42: 600 | Z42: 8 | AA42: =AA41 -> 1 | AB42: 0.41 | AC42: 1.3 | AD42: 1.04 | AE42: Sprayer | AG42: =VLOOKUP(29,$N$14:$AD$303,15,FALSE) -> 0.41 | AH42: =VLOOKUP(29,$N$14:$AD$303,16,FALSE) -> 1.3 | AI42: =VLOOKUP(29,$N$14:$AD$303,17,FALSE) -> 1.04
A43: =VLOOKUP(30,$N$14:$O$303,2,FALSE) -> Levee Pull | B43: =VLOOKUP(30,$N$14:$Z$303,3,FALSE) -> 8160 | C43: =VLOOKUP(30,$N$14:$Z$303,4,FALSE) -> 1 | D43: =VLOOKUP(30,$N$14:$Z$303,5,FALSE) -> 2.5 | E43: =VLOOKUP(30,$N$14:$Z$303,6,FALSE) -> 155000 | F43: =VLOOKUP(30,$N$14:$Z$303,7,FALSE) -> 4 | G43: =VLOOKUP(30,$N$14:$Z$303,8,FALSE) -> 175 | H43: =VLOOKUP(30,$N$14:$Z$303,9,FALSE) -> 100 | I43: =VLOOKUP(30,$N$14:$Z$303,10,FALSE) -> 0.25 | J43: =VLOOKUP(30,$N$14:$Z$303,11,FALSE) -> 8 | K43: =VLOOKUP(30,$N$14:$Z$303,12,FALSE) -> 600 | L43: =VLOOKUP(30,$N$14:$Z$303,13,FALSE) -> 8 | M43: =VLOOKUP(30,$N$14:$AA$303,14,FALSE) -> 1 | N43: 30 | O43: Levee Pull | P43: 8160 | Q43: 1 | R43: 2.5 | S43: 155000 | T43: 4 | U43: 175 | V43: 100 | W43: 0.25 | X43: 8 | Y43: 600 | Z43: 8 | AA43: 1 | AB43: 0.28 | AC43: 1.4 | AD43: 1.04 | AE43: Plows | AG43: =VLOOKUP(30,$N$14:$AD$303,15,FALSE) -> 0.28 | AH43: =VLOOKUP(30,$N$14:$AD$303,16,FALSE) -> 1.4 | AI43: =VLOOKUP(30,$N$14:$AD$303,17,FALSE) -> 1.04
A44: =VLOOKUP(31,$N$14:$O$303,2,FALSE) -> Levee Pull, Planter/Incorporate | B44: =VLOOKUP(31,$N$14:$Z$303,3,FALSE) -> 9000 | C44: =VLOOKUP(31,$N$14:$Z$303,4,FALSE) -> 1 | D44: =VLOOKUP(31,$N$14:$Z$303,5,FALSE) -> 2.5 | E44: =VLOOKUP(31,$N$14:$Z$303,6,FALSE) -> 155000 | F44: =VLOOKUP(31,$N$14:$Z$303,7,FALSE) -> 4 | G44: =VLOOKUP(31,$N$14:$Z$303,8,FALSE) -> 175 | H44: =VLOOKUP(31,$N$14:$Z$303,9,FALSE) -> 100 | I44: =VLOOKUP(31,$N$14:$Z$303,10,FALSE) -> 0.23 | J44: =VLOOKUP(31,$N$14:$Z$303,11,FALSE) -> 8 | K44: =VLOOKUP(31,$N$14:$Z$303,12,FALSE) -> 600 | L44: =VLOOKUP(31,$N$14:$Z$303,13,FALSE) -> 8 | M44: =VLOOKUP(31,$N$14:$AA$303,14,FALSE) -> 1 | N44: 31 | O44: Levee Pull, Planter/Incorporate | P44: 9000 | Q44: 1 | R44: 2.5 | S44: 155000 | T44: 4 | U44: 175 | V44: 100 | W44: 0.23 | X44: 8 | Y44: 600 | Z44: 8 | AA44: 1 | AB44: 0.28 | AC44: 1.4 | AD44: 1.04 | AE44: Plows | AG44: =VLOOKUP(31,$N$14:$AD$303,15,FALSE) -> 0.28 | AH44: =VLOOKUP(31,$N$14:$AD$303,16,FALSE) -> 1.4 | AI44: =VLOOKUP(31,$N$14:$AD$303,17,FALSE) -> 1.04
A45: =VLOOKUP(32,$N$14:$O$303,2,FALSE) -> Levee Roller-Packer-Shaper | B45: =VLOOKUP(32,$N$14:$Z$303,3,FALSE) -> 7000 | C45: =VLOOKUP(32,$N$14:$Z$303,4,FALSE) -> 1 | D45: =VLOOKUP(32,$N$14:$Z$303,5,FALSE) -> 2.5 | E45: =VLOOKUP(32,$N$14:$Z$303,6,FALSE) -> 155000 | F45: =VLOOKUP(32,$N$14:$Z$303,7,FALSE) -> 4 | G45: =VLOOKUP(32,$N$14:$Z$303,8,FALSE) -> 175 | H45: =VLOOKUP(32,$N$14:$Z$303,9,FALSE) -> 100 | I45: =VLOOKUP(32,$N$14:$Z$303,10,FALSE) -> 0.5 | J45: =VLOOKUP(32,$N$14:$Z$303,11,FALSE) -> 8 | K45: =VLOOKUP(32,$N$14:$Z$303,12,FALSE) -> 600 | L45: =VLOOKUP(32,$N$14:$Z$303,13,FALSE) -> 8 | M45: =VLOOKUP(32,$N$14:$AA$303,14,FALSE) -> 1 | N45: 32 | O45: Levee Roller-Packer-Shaper | P45: 7000 | Q45: 1 | R45: 2.5 | S45: 155000 | T45: 4 | U45: 175 | V45: 100 | W45: 0.5 | X45: 8 | Y45: 600 | Z45: 8 | AA45: 1 | AB45: 0.28 | AC45: 1.4 | AD45: 1.04 | AE45: Plows | AG45: =VLOOKUP(32,$N$14:$AD$303,15,FALSE) -> 0.28 | AH45: =VLOOKUP(32,$N$14:$AD$303,16,FALSE) -> 1.4 | AI45: =VLOOKUP(32,$N$14:$AD$303,17,FALSE) -> 1.04
A46: =VLOOKUP(33,$N$14:$O$303,2,FALSE) -> Install Gates & Remove | B46: =VLOOKUP(33,$N$14:$Z$303,3,FALSE) -> 3830 | C46: =VLOOKUP(33,$N$14:$Z$303,4,FALSE) -> 1 | D46: =VLOOKUP(33,$N$14:$Z$303,5,FALSE) -> 2.5 | E46: =VLOOKUP(33,$N$14:$Z$303,6,FALSE) -> 155000 | F46: =VLOOKUP(33,$N$14:$Z$303,7,FALSE) -> 4 | G46: =VLOOKUP(33,$N$14:$Z$303,8,FALSE) -> 175 | H46: =VLOOKUP(33,$N$14:$Z$303,9,FALSE) -> 100 | I46: =VLOOKUP(33,$N$14:$Z$303,10,FALSE) -> 0.25 | J46: =VLOOKUP(33,$N$14:$Z$303,11,FALSE) -> 8 | K46: =VLOOKUP(33,$N$14:$Z$303,12,FALSE) -> 600 | L46: =VLOOKUP(33,$N$14:$Z$303,13,FALSE) -> 8 | M46: =VLOOKUP(33,$N$14:$AA$303,14,FALSE) -> 1 | N46: 33 | O46: Install Gates & Remove | P46: 3830 | Q46: 1 | R46: 2.5 | S46: 155000 | T46: 4 | U46: 175 | V46: 100 | W46: 0.25 | X46: 8 | Y46: 600 | Z46: 8 | AA46: 1 | AB46: 0.18 | AC46: 1.7 | AD46: 3.12 | AE46: Plows | AG46: =VLOOKUP(33,$N$14:$AD$303,15,FALSE) -> 0.18 | AH46: =VLOOKUP(33,$N$14:$AD$303,16,FALSE) -> 1.7 | AI46: =VLOOKUP(33,$N$14:$AD$303,17,FALSE) -> 3.12
A47: =VLOOKUP(34,$N$14:$O$303,2,FALSE) -> Take Down Levees | B47: =VLOOKUP(34,$N$14:$Z$303,3,FALSE) -> 8160 | C47: =VLOOKUP(34,$N$14:$Z$303,4,FALSE) -> 1 | D47: =VLOOKUP(34,$N$14:$Z$303,5,FALSE) -> 2.5 | E47: =VLOOKUP(34,$N$14:$Z$303,6,FALSE) -> 155000 | F47: =VLOOKUP(34,$N$14:$Z$303,7,FALSE) -> 4 | G47: =VLOOKUP(34,$N$14:$Z$303,8,FALSE) -> 175 | H47: =VLOOKUP(34,$N$14:$Z$303,9,FALSE) -> 100 | I47: =VLOOKUP(34,$N$14:$Z$303,10,FALSE) -> 0.25 | J47: =VLOOKUP(34,$N$14:$Z$303,11,FALSE) -> 8 | K47: =VLOOKUP(34,$N$14:$Z$303,12,FALSE) -> 600 | L47: =VLOOKUP(34,$N$14:$Z$303,13,FALSE) -> 8 | M47: =VLOOKUP(34,$N$14:$AA$303,14,FALSE) -> 1 | N47: =IF($A$8=1,N46+1,0) -> 34 | O47: Take Down Levees | P47: 8160 | Q47: 1 | R47: 2.5 | S47: 155000 | T47: 4 | U47: 175 | V47: 100 | W47: 0.25 | X47: 8 | Y47: 600 | Z47: 8 | AA47: =AA46 -> 1 | AB47: 0.28 | AC47: 1.4 | AD47: 1.04 | AE47: Plows | AG47: =VLOOKUP(34,$N$14:$AD$303,15,FALSE) -> 0.28 | AH47: =VLOOKUP(34,$N$14:$AD$303,16,FALSE) -> 1.4 | AI47: =VLOOKUP(34,$N$14:$AD$303,17,FALSE) -> 1.04
A48: =VLOOKUP(35,$N$14:$O$303,2,FALSE) -> Peanut Digger/Inverter | B48: =VLOOKUP(35,$N$14:$Z$303,3,FALSE) -> 46500 | C48: =VLOOKUP(35,$N$14:$Z$303,4,FALSE) -> 19 | D48: =VLOOKUP(35,$N$14:$Z$303,5,FALSE) -> 3 | E48: =VLOOKUP(35,$N$14:$Z$303,6,FALSE) -> 189000 | F48: =VLOOKUP(35,$N$14:$Z$303,7,FALSE) -> 4 | G48: =VLOOKUP(35,$N$14:$Z$303,8,FALSE) -> 195 | H48: =VLOOKUP(35,$N$14:$Z$303,9,FALSE) -> 200 | I48: =VLOOKUP(35,$N$14:$Z$303,10,FALSE) -> 0.65 | J48: =VLOOKUP(35,$N$14:$Z$303,11,FALSE) -> 8 | K48: =VLOOKUP(35,$N$14:$Z$303,12,FALSE) -> 600 | L48: =VLOOKUP(35,$N$14:$Z$303,13,FALSE) -> 8 | M48: =VLOOKUP(35,$N$14:$AA$303,14,FALSE) -> 1 | N48: =IF($A$8=1,N47+1,0) -> 35 | O48: Peanut Digger/Inverter | P48: 46500 | Q48: 19 | R48: 3 | S48: 189000 | T48: 4 | U48: 195 | V48: 200 | W48: 0.65 | X48: 8 | Y48: 600 | Z48: 8 | AA48: =AA47 -> 1 | AB48: 0.28 | AC48: 1.4 | AD48: 1.04 | AE48: Plows | AG48: =VLOOKUP(35,$N$14:$AD$303,15,FALSE) -> 0.28 | AH48: =VLOOKUP(35,$N$14:$AD$303,16,FALSE) -> 1.4 | AI48: =VLOOKUP(35,$N$14:$AD$303,17,FALSE) -> 1.04
A49: =VLOOKUP(36,$N$14:$O$303,2,FALSE) -> Peanut Conditioner | B49: =VLOOKUP(36,$N$14:$Z$303,3,FALSE) -> 16900 | C49: =VLOOKUP(36,$N$14:$Z$303,4,FALSE) -> 19 | D49: =VLOOKUP(36,$N$14:$Z$303,5,FALSE) -> 3 | E49: =VLOOKUP(36,$N$14:$Z$303,6,FALSE) -> 189000 | F49: =VLOOKUP(36,$N$14:$Z$303,7,FALSE) -> 4 | G49: =VLOOKUP(36,$N$14:$Z$303,8,FALSE) -> 195 | H49: =VLOOKUP(36,$N$14:$Z$303,9,FALSE) -> 200 | I49: =VLOOKUP(36,$N$14:$Z$303,10,FALSE) -> 0.65 | J49: =VLOOKUP(36,$N$14:$Z$303,11,FALSE) -> 8 | K49: =VLOOKUP(36,$N$14:$Z$303,12,FALSE) -> 600 | L49: =VLOOKUP(36,$N$14:$Z$303,13,FALSE) -> 8 | M49: =VLOOKUP(36,$N$14:$AA$303,14,FALSE) -> 1 | N49: 36 | O49: Peanut Conditioner | P49: 16900 | Q49: 19 | R49: 3 | S49: 189000 | T49: 4 | U49: 195 | V49: 200 | W49: 0.65 | X49: 8 | Y49: 600 | Z49: 8 | AA49: =AA48 -> 1 | AB49: 0.27 | AC49: 1.4 | AD49: 1.04 | AE49: Plows | AG49: =VLOOKUP(36,$N$14:$AD$303,15,FALSE) -> 0.27 | AH49: =VLOOKUP(36,$N$14:$AD$303,16,FALSE) -> 1.4 | AI49: =VLOOKUP(36,$N$14:$AD$303,17,FALSE) -> 1.04
A50: =VLOOKUP(37,$N$14:$O$303,2,FALSE) -> Peanut Conditioner & Lifter | B50: =VLOOKUP(37,$N$14:$Z$303,3,FALSE) -> 14400 | C50: =VLOOKUP(37,$N$14:$Z$303,4,FALSE) -> 19 | D50: =VLOOKUP(37,$N$14:$Z$303,5,FALSE) -> 3 | E50: =VLOOKUP(37,$N$14:$Z$303,6,FALSE) -> 189000 | F50: =VLOOKUP(37,$N$14:$Z$303,7,FALSE) -> 4 | G50: =VLOOKUP(37,$N$14:$Z$303,8,FALSE) -> 195 | H50: =VLOOKUP(37,$N$14:$Z$303,9,FALSE) -> 200 | I50: =VLOOKUP(37,$N$14:$Z$303,10,FALSE) -> 0.65 | J50: =VLOOKUP(37,$N$14:$Z$303,11,FALSE) -> 8 | K50: =VLOOKUP(37,$N$14:$Z$303,12,FALSE) -> 600 | L50: =VLOOKUP(37,$N$14:$Z$303,13,FALSE) -> 8 | M50: =VLOOKUP(37,$N$14:$AA$303,14,FALSE) -> 1 | N50: 37 | O50: Peanut Conditioner & Lifter | P50: 14400 | Q50: 19 | R50: 3 | S50: 189000 | T50: 4 | U50: 195 | V50: 200 | W50: 0.65 | X50: 8 | Y50: 600 | Z50: 8 | AA50: 1 | AB50: 0.27 | AC50: 1.4 | AD50: 1.04 | AE50: Plows | AG50: =VLOOKUP(37,$N$14:$AD$303,15,FALSE) -> 0.27 | AH50: =VLOOKUP(37,$N$14:$AD$303,16,FALSE) -> 1.4 | AI50: =VLOOKUP(37,$N$14:$AD$303,17,FALSE) -> 1.04
A51: =VLOOKUP(38,$N$14:$O$303,2,FALSE) -> Mower, Stalk Shredder | B51: =VLOOKUP(38,$N$14:$Z$303,3,FALSE) -> 30100 | C51: =VLOOKUP(38,$N$14:$Z$303,4,FALSE) -> 20 | D51: =VLOOKUP(38,$N$14:$Z$303,5,FALSE) -> 7 | E51: =VLOOKUP(38,$N$14:$Z$303,6,FALSE) -> 189000 | F51: =VLOOKUP(38,$N$14:$Z$303,7,FALSE) -> 4 | G51: =VLOOKUP(38,$N$14:$Z$303,8,FALSE) -> 195 | H51: =VLOOKUP(38,$N$14:$Z$303,9,FALSE) -> 160 | I51: =VLOOKUP(38,$N$14:$Z$303,10,FALSE) -> 0.8 | J51: =VLOOKUP(38,$N$14:$Z$303,11,FALSE) -> 8 | K51: =VLOOKUP(38,$N$14:$Z$303,12,FALSE) -> 600 | L51: =VLOOKUP(38,$N$14:$Z$303,13,FALSE) -> 8 | M51: =VLOOKUP(38,$N$14:$AA$303,14,FALSE) -> 1 | N51: 38 | O51: Mower, Stalk Shredder | P51: 30100 | Q51: 20 | R51: 7 | S51: 189000 | T51: 4 | U51: 195 | V51: 160 | W51: 0.8 | X51: 8 | Y51: 600 | Z51: 8 | AA51: 1 | AB51: 0.44 | AC51: 2 | AD51: 1.1 | AE51: Mower | AG51: =VLOOKUP(38,$N$14:$AD$303,15,FALSE) -> 0.44 | AH51: =VLOOKUP(38,$N$14:$AD$303,16,FALSE) -> 2 | AI51: =VLOOKUP(38,$N$14:$AD$303,17,FALSE) -> 1.1
A52: =VLOOKUP(39,$N$14:$O$303,2,FALSE) -> Stubble Roller | B52: =VLOOKUP(39,$N$14:$Z$303,3,FALSE) -> 23300 | C52: =VLOOKUP(39,$N$14:$Z$303,4,FALSE) -> 32 | D52: =VLOOKUP(39,$N$14:$Z$303,5,FALSE) -> 6 | E52: =VLOOKUP(39,$N$14:$Z$303,6,FALSE) -> 227000 | F52: =VLOOKUP(39,$N$14:$Z$303,7,FALSE) -> 4 | G52: =VLOOKUP(39,$N$14:$Z$303,8,FALSE) -> 230 | H52: =VLOOKUP(39,$N$14:$Z$303,9,FALSE) -> 120 | I52: =VLOOKUP(39,$N$14:$Z$303,10,FALSE) -> 0.85 | J52: =VLOOKUP(39,$N$14:$Z$303,11,FALSE) -> 8 | K52: =VLOOKUP(39,$N$14:$Z$303,12,FALSE) -> 600 | L52: =VLOOKUP(39,$N$14:$Z$303,13,FALSE) -> 8 | M52: =VLOOKUP(39,$N$14:$AA$303,14,FALSE) -> 1 | N52: 39 | O52: Stubble Roller | P52: 23300 | Q52: 32 | R52: 6 | S52: 227000 | T52: 4 | U52: 230 | V52: 120 | W52: 0.85 | X52: 8 | Y52: 600 | Z52: 8 | AA52: 1 | AB52: 0.16 | AC52: 1.3 | AD52: 1.04 | AE52: Other Tillage | AG52: =VLOOKUP(39,$N$14:$AD$303,15,FALSE) -> 0.16 | AH52: =VLOOKUP(39,$N$14:$AD$303,16,FALSE) -> 1.3 | AI52: =VLOOKUP(39,$N$14:$AD$303,17,FALSE) -> 1.04
A53: =VLOOKUP(40,$N$14:$O$303,2,FALSE) -> Other Equipment | B53: =VLOOKUP(40,$N$14:$Z$303,3,FALSE) -> 0 | C53: =VLOOKUP(40,$N$14:$Z$303,4,FALSE) -> 1 | D53: =VLOOKUP(40,$N$14:$Z$303,5,FALSE) -> 1 | E53: =VLOOKUP(40,$N$14:$Z$303,6,FALSE) -> 227000 | F53: =VLOOKUP(40,$N$14:$Z$303,7,FALSE) -> 4 | G53: =VLOOKUP(40,$N$14:$Z$303,8,FALSE) -> 230 | H53: =VLOOKUP(40,$N$14:$Z$303,9,FALSE) -> 100 | I53: =VLOOKUP(40,$N$14:$Z$303,10,FALSE) -> 0.7 | J53: =VLOOKUP(40,$N$14:$Z$303,11,FALSE) -> 8 | K53: =VLOOKUP(40,$N$14:$Z$303,12,FALSE) -> 600 | L53: =VLOOKUP(40,$N$14:$Z$303,13,FALSE) -> 8 | M53: =VLOOKUP(40,$N$14:$AA$303,14,FALSE) -> 1 | N53: 40 | O53: Other Equipment | Q53: 1 | R53: 1 | S53: 227000 | T53: 4 | U53: 230 | V53: 100 | W53: 0.7 | X53: 8 | Y53: 600 | Z53: 8 | AA53: 1 | AB53: 0.63 | AC53: 1.3 | AD53: 1.33 | AE53: Others | AG53: =VLOOKUP(40,$N$14:$AD$303,15,FALSE) -> 0.63 | AH53: =VLOOKUP(40,$N$14:$AD$303,16,FALSE) -> 1.3 | AI53: =VLOOKUP(40,$N$14:$AD$303,17,FALSE) -> 1.33
A54: =VLOOKUP(41,$N$14:$O$303,2,FALSE) -> Other Equipment | B54: =VLOOKUP(41,$N$14:$Z$303,3,FALSE) -> 0 | C54: =VLOOKUP(41,$N$14:$Z$303,4,FALSE) -> 1 | D54: =VLOOKUP(41,$N$14:$Z$303,5,FALSE) -> 1 | E54: =VLOOKUP(41,$N$14:$Z$303,6,FALSE) -> 227000 | F54: =VLOOKUP(41,$N$14:$Z$303,7,FALSE) -> 4 | G54: =VLOOKUP(41,$N$14:$Z$303,8,FALSE) -> 230 | H54: =VLOOKUP(41,$N$14:$Z$303,9,FALSE) -> 100 | I54: =VLOOKUP(41,$N$14:$Z$303,10,FALSE) -> 0.7 | J54: =VLOOKUP(41,$N$14:$Z$303,11,FALSE) -> 8 | K54: =VLOOKUP(41,$N$14:$Z$303,12,FALSE) -> 600 | L54: =VLOOKUP(41,$N$14:$Z$303,13,FALSE) -> 8 | M54: =VLOOKUP(41,$N$14:$AA$303,14,FALSE) -> 1 | N54: 41 | O54: Other Equipment | Q54: 1 | R54: 1 | S54: 227000 | T54: 4 | U54: 230 | V54: 100 | W54: 0.7 | X54: 8 | Y54: 600 | Z54: 8 | AA54: 1 | AB54: 0.63 | AC54: 1.3 | AD54: 1.33 | AE54: Others | AG54: =VLOOKUP(41,$N$14:$AD$303,15,FALSE) -> 0.63 | AH54: =VLOOKUP(41,$N$14:$AD$303,16,FALSE) -> 1.3 | AI54: =VLOOKUP(41,$N$14:$AD$303,17,FALSE) -> 1.33
A57: Self-Propelled Pre-Harvest | O57: Self-Propelled Pre-Harvest
A58: =VLOOKUP(42,$N$14:$O$303,2,FALSE) -> Self-Propelled Sprayer | B58: =VLOOKUP(42,$N$14:$Z$303,3,FALSE) -> 316000 | C58: =VLOOKUP(42,$N$14:$Z$303,4,FALSE) -> 90 | D58: =VLOOKUP(42,$N$14:$Z$303,5,FALSE) -> 12 | E58: =VLOOKUP(42,$N$14:$Z$303,6,FALSE) -> 0 | F58: =VLOOKUP(42,$N$14:$Z$303,7,FALSE) -> 0 | G58: =VLOOKUP(42,$N$14:$Z$303,8,FALSE) -> 250 | H58: =VLOOKUP(42,$N$14:$Z$303,9,FALSE) -> 120 | I58: =VLOOKUP(42,$N$14:$Z$303,10,FALSE) -> 0.65 | J58: =VLOOKUP(42,$N$14:$Z$303,11,FALSE) -> 8 | K58: =VLOOKUP(42,$N$14:$Z$303,12,FALSE) -> 0 | L58: =VLOOKUP(42,$N$14:$Z$303,13,FALSE) -> 0 | M58: =VLOOKUP(42,$N$14:$AA$303,14,FALSE) -> 1 | N58: =IF($A$8=1,N54+1,0) -> 42 | O58: Self-Propelled Sprayer | P58: 316000 | Q58: 90 | R58: 12 | U58: 250 | V58: 120 | W58: 0.65 | X58: 8 | AA58: =AA54 -> 1 | AB58: 0.11 | AC58: 1.8 | AD58: 1.25 | AE58: Sprayer | AG58: =VLOOKUP(42,$N$14:$AD$303,15,FALSE) -> 0.11 | AH58: =VLOOKUP(42,$N$14:$AD$303,16,FALSE) -> 1.8 | AI58: =VLOOKUP(42,$N$14:$AD$303,17,FALSE) -> 1.25
A59: =VLOOKUP(43,$N$14:$O$303,2,FALSE) -> ATV with Spot, Levee Sprayer | B59: =VLOOKUP(43,$N$14:$Z$303,3,FALSE) -> 17490 | C59: =VLOOKUP(43,$N$14:$Z$303,4,FALSE) -> 1 | D59: =VLOOKUP(43,$N$14:$Z$303,5,FALSE) -> 2.5 | E59: =VLOOKUP(43,$N$14:$Z$303,6,FALSE) -> 0 | F59: =VLOOKUP(43,$N$14:$Z$303,7,FALSE) -> 0 | G59: =VLOOKUP(43,$N$14:$Z$303,8,FALSE) -> 50 | H59: =VLOOKUP(43,$N$14:$Z$303,9,FALSE) -> 80 | I59: =VLOOKUP(43,$N$14:$Z$303,10,FALSE) -> 0.25 | J59: =VLOOKUP(43,$N$14:$Z$303,11,FALSE) -> 8 | K59: =VLOOKUP(43,$N$14:$Z$303,12,FALSE) -> 0 | L59: =VLOOKUP(43,$N$14:$Z$303,13,FALSE) -> 0 | M59: =VLOOKUP(43,$N$14:$AA$303,14,FALSE) -> 1 | N59: =IF($A$8=1,N58+1,0) -> 43 | O59: ATV with Spot, Levee Sprayer | P59: 17490 | Q59: 1 | R59: 2.5 | U59: 50 | V59: 80 | W59: 0.25 | X59: 8 | AA59: =AA58 -> 1 | AB59: 0.28 | AC59: 1.4 | AD59: 1.04 | AE59: Vehicle | AG59: =VLOOKUP(43,$N$14:$AD$303,15,FALSE) -> 0.28 | AH59: =VLOOKUP(43,$N$14:$AD$303,16,FALSE) -> 1.4 | AI59: =VLOOKUP(43,$N$14:$AD$303,17,FALSE) -> 1.04
A60: =VLOOKUP(44,$N$14:$O$303,2,FALSE) -> Dry Box Spreader | B60: =VLOOKUP(44,$N$14:$Z$303,3,FALSE) -> 344000 | C60: =VLOOKUP(44,$N$14:$Z$303,4,FALSE) -> 80 | D60: =VLOOKUP(44,$N$14:$Z$303,5,FALSE) -> 12 | E60: =VLOOKUP(44,$N$14:$Z$303,6,FALSE) -> 0 | F60: =VLOOKUP(44,$N$14:$Z$303,7,FALSE) -> 0 | G60: =VLOOKUP(44,$N$14:$Z$303,8,FALSE) -> 250 | H60: =VLOOKUP(44,$N$14:$Z$303,9,FALSE) -> 120 | I60: =VLOOKUP(44,$N$14:$Z$303,10,FALSE) -> 0.65 | J60: =VLOOKUP(44,$N$14:$Z$303,11,FALSE) -> 8 | K60: =VLOOKUP(44,$N$14:$Z$303,12,FALSE) -> 0 | L60: =VLOOKUP(44,$N$14:$Z$303,13,FALSE) -> 0 | M60: =VLOOKUP(44,$N$14:$AA$303,14,FALSE) -> 1 | N60: =IF($A$8=1,N59+1,0) -> 44 | O60: Dry Box Spreader | P60: 344000 | Q60: 80 | R60: 12 | U60: 250 | V60: 120 | W60: 0.65 | X60: 8 | AA60: =AA59 -> 1 | AB60: 0.11 | AC60: 1.8 | AD60: 1.25 | AE60: Sprayer | AG60: =VLOOKUP(44,$N$14:$AD$303,15,FALSE) -> 0.11 | AH60: =VLOOKUP(44,$N$14:$AD$303,16,FALSE) -> 1.8 | AI60: =VLOOKUP(44,$N$14:$AD$303,17,FALSE) -> 1.25
A63: Self-Propelled and Other Harvest | O63: Self-Propelled and Other Harvest
A64: =VLOOKUP(45,$N$14:$O$303,2,FALSE) -> Cotton Picker | B64: =VLOOKUP(45,$N$14:$Z$303,3,FALSE) -> 465000 | C64: =VLOOKUP(45,$N$14:$Z$303,4,FALSE) -> 19 | D64: =VLOOKUP(45,$N$14:$Z$303,5,FALSE) -> 3.5 | E64: =VLOOKUP(45,$N$14:$Z$303,6,FALSE) -> 0 | F64: =VLOOKUP(45,$N$14:$Z$303,7,FALSE) -> 0 | G64: =VLOOKUP(45,$N$14:$Z$303,8,FALSE) -> 355 | H64: =VLOOKUP(45,$N$14:$Z$303,9,FALSE) -> 200 | I64: =VLOOKUP(45,$N$14:$Z$303,10,FALSE) -> 0.7 | J64: =VLOOKUP(45,$N$14:$Z$303,11,FALSE) -> 8 | K64: =VLOOKUP(45,$N$14:$Z$303,12,FALSE) -> 0 | L64: =VLOOKUP(45,$N$14:$Z$303,13,FALSE) -> 0 | M64: =VLOOKUP(45,$N$14:$AA$303,14,FALSE) -> 1 | N64: =IF($A$8=1,N60+1,0) -> 45 | O64: Cotton Picker | P64: 465000 | Q64: 19 | R64: 3.5 | U64: 355 | V64: 200 | W64: 0.7 | X64: 8 | AA64: =AA60 -> 1 | AB64: 0.11 | AC64: 1.8 | AD64: 1.11 | AE64: Combine, 300 hrs | AG64: =VLOOKUP(45,$N$14:$AD$303,15,FALSE) -> 0.11 | AH64: =VLOOKUP(45,$N$14:$AD$303,16,FALSE) -> 1.8 | AI64: =VLOOKUP(45,$N$14:$AD$303,17,FALSE) -> 1.11
A65: =VLOOKUP(46,$N$14:$O$303,2,FALSE) -> Boll Buggy with Tractor | B65: =VLOOKUP(46,$N$14:$Z$303,3,FALSE) -> 30500 | C65: =VLOOKUP(46,$N$14:$Z$303,4,FALSE) -> 19 | D65: =VLOOKUP(46,$N$14:$Z$303,5,FALSE) -> 3.5 | E65: =VLOOKUP(46,$N$14:$Z$303,6,FALSE) -> 189000 | F65: =VLOOKUP(46,$N$14:$Z$303,7,FALSE) -> 4 | G65: =VLOOKUP(46,$N$14:$Z$303,8,FALSE) -> 195 | H65: =VLOOKUP(46,$N$14:$Z$303,9,FALSE) -> 200 | I65: =VLOOKUP(46,$N$14:$Z$303,10,FALSE) -> 0.7 | J65: =VLOOKUP(46,$N$14:$Z$303,11,FALSE) -> 8 | K65: =VLOOKUP(46,$N$14:$Z$303,12,FALSE) -> 600 | L65: =VLOOKUP(46,$N$14:$Z$303,13,FALSE) -> 8 | M65: =VLOOKUP(46,$N$14:$AA$303,14,FALSE) -> 1 | N65: =IF($A$8=1,N64+1,0) -> 46 | O65: Boll Buggy with Tractor | P65: 30500 | Q65: =Q64 -> 19 | R65: =R64 -> 3.5 | S65: 189000 | T65: 4 | U65: 195 | V65: 200 | W65: 0.7 | X65: 8 | Y65: 600 | Z65: 8 | AA65: =AA64 -> 1 | AB65: 0.19 | AC65: 1.3 | AD65: 1.11 | AE65: Others | AG65: =VLOOKUP(46,$N$14:$AD$303,15,FALSE) -> 0.19 | AH65: =VLOOKUP(46,$N$14:$AD$303,16,FALSE) -> 1.3 | AI65: =VLOOKUP(46,$N$14:$AD$303,17,FALSE) -> 1.11
A66: =VLOOKUP(47,$N$14:$O$303,2,FALSE) -> Module Builder with Tractor | B66: =VLOOKUP(47,$N$14:$Z$303,3,FALSE) -> 34700 | C66: =VLOOKUP(47,$N$14:$Z$303,4,FALSE) -> 19 | D66: =VLOOKUP(47,$N$14:$Z$303,5,FALSE) -> 3.5 | E66: =VLOOKUP(47,$N$14:$Z$303,6,FALSE) -> 189000 | F66: =VLOOKUP(47,$N$14:$Z$303,7,FALSE) -> 4 | G66: =VLOOKUP(47,$N$14:$Z$303,8,FALSE) -> 195 | H66: =VLOOKUP(47,$N$14:$Z$303,9,FALSE) -> 200 | I66: =VLOOKUP(47,$N$14:$Z$303,10,FALSE) -> 0.7 | J66: =VLOOKUP(47,$N$14:$Z$303,11,FALSE) -> 8 | K66: =VLOOKUP(47,$N$14:$Z$303,12,FALSE) -> 600 | L66: =VLOOKUP(47,$N$14:$Z$303,13,FALSE) -> 8 | M66: =VLOOKUP(47,$N$14:$AA$303,14,FALSE) -> 1 | N66: =IF($A$8=1,N65+1,0) -> 47 | O66: Module Builder with Tractor | P66: 34700 | Q66: =Q64 -> 19 | R66: =R64 -> 3.5 | S66: 189000 | T66: 4 | U66: 195 | V66: 200 | W66: 0.7 | X66: 8 | Y66: 600 | Z66: 8 | AA66: =AA65 -> 1 | AB66: 0.19 | AC66: 1.3 | AD66: 3.33 | AE66: Others | AG66: =VLOOKUP(47,$N$14:$AD$303,15,FALSE) -> 0.19 | AH66: =VLOOKUP(47,$N$14:$AD$303,16,FALSE) -> 1.3 | AI66: =VLOOKUP(47,$N$14:$AD$303,17,FALSE) -> 3.33
A67: =VLOOKUP(48,$N$14:$O$303,2,FALSE) -> Cotton Picker: Module-Building | B67: =VLOOKUP(48,$N$14:$Z$303,3,FALSE) -> 808000 | C67: =VLOOKUP(48,$N$14:$Z$303,4,FALSE) -> 19 | D67: =VLOOKUP(48,$N$14:$Z$303,5,FALSE) -> 3.7 | E67: =VLOOKUP(48,$N$14:$Z$303,6,FALSE) -> 0 | F67: =VLOOKUP(48,$N$14:$Z$303,7,FALSE) -> 0 | G67: =VLOOKUP(48,$N$14:$Z$303,8,FALSE) -> 500 | H67: =VLOOKUP(48,$N$14:$Z$303,9,FALSE) -> 200 | I67: =VLOOKUP(48,$N$14:$Z$303,10,FALSE) -> 0.85 | J67: =VLOOKUP(48,$N$14:$Z$303,11,FALSE) -> 8 | K67: =VLOOKUP(48,$N$14:$Z$303,12,FALSE) -> 0 | L67: =VLOOKUP(48,$N$14:$Z$303,13,FALSE) -> 0 | M67: =VLOOKUP(48,$N$14:$AA$303,14,FALSE) -> 1 | N67: 48 | O67: Cotton Picker: Module-Building | P67: 808000 | Q67: 19 | R67: 3.7 | U67: 500 | V67: 200 | W67: 0.85 | X67: 8 | AA67: 1 | AB67: 0.11 | AC67: 1.8 | AD67: 1.11 | AE67: Combine, 300 hrs | AG67: =VLOOKUP(48,$N$14:$AD$303,15,FALSE) -> 0.11 | AH67: =VLOOKUP(48,$N$14:$AD$303,16,FALSE) -> 1.8 | AI67: =VLOOKUP(48,$N$14:$AD$303,17,FALSE) -> 1.11
A68: =VLOOKUP(49,$N$14:$O$303,2,FALSE) -> Module Handler with Tractor | B68: =VLOOKUP(49,$N$14:$Z$303,3,FALSE) -> 13750 | C68: =VLOOKUP(49,$N$14:$Z$303,4,FALSE) -> 1 | D68: =VLOOKUP(49,$N$14:$Z$303,5,FALSE) -> 3.7 | E68: =VLOOKUP(49,$N$14:$Z$303,6,FALSE) -> 189000 | F68: =VLOOKUP(49,$N$14:$Z$303,7,FALSE) -> 4 | G68: =VLOOKUP(49,$N$14:$Z$303,8,FALSE) -> 195 | H68: =VLOOKUP(49,$N$14:$Z$303,9,FALSE) -> 10 | I68: =VLOOKUP(49,$N$14:$Z$303,10,FALSE) -> 0.9 | J68: =VLOOKUP(49,$N$14:$Z$303,11,FALSE) -> 8 | K68: =VLOOKUP(49,$N$14:$Z$303,12,FALSE) -> 600 | L68: =VLOOKUP(49,$N$14:$Z$303,13,FALSE) -> 8 | M68: =VLOOKUP(49,$N$14:$AA$303,14,FALSE) -> 1 | N68: 49 | O68: Module Handler with Tractor | P68: 13750 | Q68: 1 | R68: =R67 -> 3.7 | S68: 189000 | T68: 4 | U68: 195 | V68: 10 | W68: 0.9 | X68: 8 | Y68: 600 | Z68: 8 | AA68: 1 | AB68: 0.19 | AC68: 1.3 | AD68: 1.11 | AE68: Others | AG68: =VLOOKUP(49,$N$14:$AD$303,15,FALSE) -> 0.19 | AH68: =VLOOKUP(49,$N$14:$AD$303,16,FALSE) -> 1.3 | AI68: =VLOOKUP(49,$N$14:$AD$303,17,FALSE) -> 1.11
A69: =VLOOKUP(50,$N$14:$O$303,2,FALSE) -> Combine | B69: =VLOOKUP(50,$N$14:$Z$303,3,FALSE) -> 383000 | C69: =VLOOKUP(50,$N$14:$Z$303,4,FALSE) -> 38 | D69: =VLOOKUP(50,$N$14:$Z$303,5,FALSE) -> 3.5 | E69: =VLOOKUP(50,$N$14:$Z$303,6,FALSE) -> 0 | F69: =VLOOKUP(50,$N$14:$Z$303,7,FALSE) -> 0 | G69: =VLOOKUP(50,$N$14:$Z$303,8,FALSE) -> 325 | H69: =VLOOKUP(50,$N$14:$Z$303,9,FALSE) -> 300 | I69: =VLOOKUP(50,$N$14:$Z$303,10,FALSE) -> 0.7 | J69: =VLOOKUP(50,$N$14:$Z$303,11,FALSE) -> 8 | K69: =VLOOKUP(50,$N$14:$Z$303,12,FALSE) -> 0 | L69: =VLOOKUP(50,$N$14:$Z$303,13,FALSE) -> 0 | M69: =VLOOKUP(50,$N$14:$AA$303,14,FALSE) -> 1 | N69: 50 | O69: Combine | P69: 383000 | Q69: =MAX(IF([1]Machine!$B$70>0,1,[1]Machine!$B$70)*[1]Machine!$D$70,IF([1]Machine!$B$71>0,1,[1]Machine!$B$71)*[1]Machine!$D$71,IF([1]Machine!$B$72>0,1,[1]Machine!$B$72)*[1]Machine!$D$72,IF([1]Machine!$B$73>0,1,[1]Machine!$B$73)*[1]Machine!$D$73,1) -> 38 | R69: =MAX(IF([1]Machine!$B$70>0,1,[1]Machine!$B$70)*[1]Machine!$E$70,IF([1]Machine!$B$71>0,1,[1]Machine!$B$71)*[1]Machine!$E$71,IF([1]Machine!$B$72>0,1,[1]Machine!$B$72)*[1]Machine!$E$72,IF([1]Machine!$B$73>0,1,[1]Machine!$B$73)*[1]Machine!$E$73,1) -> 3.5 | U69: 325 | V69: 300 | W69: 0.7 | X69: 8 | AA69: 1 | AB69: 0.04 | AC69: 2.1 | AD69: 1.11 | AE69: Combine, 300 hrs | AG69: =VLOOKUP(50,$N$14:$AD$303,15,FALSE) -> 0.04 | AH69: =VLOOKUP(50,$N$14:$AD$303,16,FALSE) -> 2.1 | AI69: =VLOOKUP(50,$N$14:$AD$303,17,FALSE) -> 1.11
A70: =VLOOKUP(51,$N$14:$O$303,2,FALSE) -> Corn Head | B70: =VLOOKUP(51,$N$14:$Z$303,3,FALSE) -> 67000 | C70: =VLOOKUP(51,$N$14:$Z$303,4,FALSE) -> 38 | D70: =VLOOKUP(51,$N$14:$Z$303,5,FALSE) -> 3.5 | E70: =VLOOKUP(51,$N$14:$Z$303,6,FALSE) -> 0 | F70: =VLOOKUP(51,$N$14:$Z$303,7,FALSE) -> 0 | G70: =VLOOKUP(51,$N$14:$Z$303,8,FALSE) -> 0 | H70: =VLOOKUP(51,$N$14:$Z$303,9,FALSE) -> 300 | I70: =VLOOKUP(51,$N$14:$Z$303,10,FALSE) -> 0.7 | J70: =VLOOKUP(51,$N$14:$Z$303,11,FALSE) -> 8 | K70: =VLOOKUP(51,$N$14:$Z$303,12,FALSE) -> 0 | L70: =VLOOKUP(51,$N$14:$Z$303,13,FALSE) -> 0 | M70: =VLOOKUP(51,$N$14:$AA$303,14,FALSE) -> 1 | N70: 51 | O70: Corn Head | P70: 67000 | Q70: 38 | R70: 3.5 | V70: 300 | W70: 0.7 | X70: 8 | AA70: 1 | AB70: 0.12 | AC70: 2.3 | AE70: Combine, 300 hrs | AG70: =VLOOKUP(51,$N$14:$AD$303,15,FALSE) -> 0.12 | AH70: =VLOOKUP(51,$N$14:$AD$303,16,FALSE) -> 2.3 | AI70: =VLOOKUP(51,$N$14:$AD$303,17,FALSE) -> 0
A71: =VLOOKUP(52,$N$14:$O$303,2,FALSE) -> Soybean Head | B71: =VLOOKUP(52,$N$14:$Z$303,3,FALSE) -> 42400 | C71: =VLOOKUP(52,$N$14:$Z$303,4,FALSE) -> 30 | D71: =VLOOKUP(52,$N$14:$Z$303,5,FALSE) -> 4.5 | E71: =VLOOKUP(52,$N$14:$Z$303,6,FALSE) -> 0 | F71: =VLOOKUP(52,$N$14:$Z$303,7,FALSE) -> 0 | G71: =VLOOKUP(52,$N$14:$Z$303,8,FALSE) -> 0 | H71: =VLOOKUP(52,$N$14:$Z$303,9,FALSE) -> 300 | I71: =VLOOKUP(52,$N$14:$Z$303,10,FALSE) -> 0.7 | J71: =VLOOKUP(52,$N$14:$Z$303,11,FALSE) -> 8 | K71: =VLOOKUP(52,$N$14:$Z$303,12,FALSE) -> 0 | L71: =VLOOKUP(52,$N$14:$Z$303,13,FALSE) -> 0 | M71: =VLOOKUP(52,$N$14:$AA$303,14,FALSE) -> 1 | N71: 52 | O71: Soybean Head | P71: 42400 | Q71: 30 | R71: 4.5 | V71: 300 | W71: 0.7 | X71: 8 | AA71: 1 | AB71: 0.12 | AC71: 2.3 | AE71: Combine, 300 hrs | AG71: =VLOOKUP(52,$N$14:$AD$303,15,FALSE) -> 0.12 | AH71: =VLOOKUP(52,$N$14:$AD$303,16,FALSE) -> 2.3 | AI71: =VLOOKUP(52,$N$14:$AD$303,17,FALSE) -> 0
A72: =VLOOKUP(53,$N$14:$O$303,2,FALSE) -> Rice Head | B72: =VLOOKUP(53,$N$14:$Z$303,3,FALSE) -> 71500 | C72: =VLOOKUP(53,$N$14:$Z$303,4,FALSE) -> 30 | D72: =VLOOKUP(53,$N$14:$Z$303,5,FALSE) -> 2.5 | E72: =VLOOKUP(53,$N$14:$Z$303,6,FALSE) -> 0 | F72: =VLOOKUP(53,$N$14:$Z$303,7,FALSE) -> 0 | G72: =VLOOKUP(53,$N$14:$Z$303,8,FALSE) -> 0 | H72: =VLOOKUP(53,$N$14:$Z$303,9,FALSE) -> 300 | I72: =VLOOKUP(53,$N$14:$Z$303,10,FALSE) -> 0.7 | J72: =VLOOKUP(53,$N$14:$Z$303,11,FALSE) -> 8 | K72: =VLOOKUP(53,$N$14:$Z$303,12,FALSE) -> 0 | L72: =VLOOKUP(53,$N$14:$Z$303,13,FALSE) -> 0 | M72: =VLOOKUP(53,$N$14:$AA$303,14,FALSE) -> 1 | N72: 53 | O72: Rice Head | P72: 71500 | Q72: 30 | R72: 2.5 | V72: 300 | W72: 0.7 | X72: 8 | AA72: 1 | AB72: 0.12 | AC72: 2.3 | AE72: Combine, 300 hrs | AG72: =VLOOKUP(53,$N$14:$AD$303,15,FALSE) -> 0.12 | AH72: =VLOOKUP(53,$N$14:$AD$303,16,FALSE) -> 2.3 | AI72: =VLOOKUP(53,$N$14:$AD$303,17,FALSE) -> 0
A73: =VLOOKUP(54,$N$14:$O$303,2,FALSE) -> Wheat/Sorghum Head | B73: =VLOOKUP(54,$N$14:$Z$303,3,FALSE) -> 25700 | C73: =VLOOKUP(54,$N$14:$Z$303,4,FALSE) -> 30 | D73: =VLOOKUP(54,$N$14:$Z$303,5,FALSE) -> 3.5 | E73: =VLOOKUP(54,$N$14:$Z$303,6,FALSE) -> 0 | F73: =VLOOKUP(54,$N$14:$Z$303,7,FALSE) -> 0 | G73: =VLOOKUP(54,$N$14:$Z$303,8,FALSE) -> 0 | H73: =VLOOKUP(54,$N$14:$Z$303,9,FALSE) -> 300 | I73: =VLOOKUP(54,$N$14:$Z$303,10,FALSE) -> 0.7 | J73: =VLOOKUP(54,$N$14:$Z$303,11,FALSE) -> 8 | K73: =VLOOKUP(54,$N$14:$Z$303,12,FALSE) -> 0 | L73: =VLOOKUP(54,$N$14:$Z$303,13,FALSE) -> 0 | M73: =VLOOKUP(54,$N$14:$AA$303,14,FALSE) -> 1 | N73: 54 | O73: Wheat/Sorghum Head | P73: 25700 | Q73: 30 | R73: 3.5 | V73: 300 | W73: 0.7 | X73: 8 | AA73: 1 | AB73: 0.12 | AC73: 2.3 | AE73: Combine, 300 hrs | AG73: =VLOOKUP(54,$N$14:$AD$303,15,FALSE) -> 0.12 | AH73: =VLOOKUP(54,$N$14:$AD$303,16,FALSE) -> 2.3 | AI73: =VLOOKUP(54,$N$14:$AD$303,17,FALSE) -> 0
A74: =VLOOKUP(55,$N$14:$O$303,2,FALSE) -> Grain Cart with Tractor | B74: =VLOOKUP(55,$N$14:$Z$303,3,FALSE) -> 37300 | C74: =VLOOKUP(55,$N$14:$Z$303,4,FALSE) -> 38 | D74: =VLOOKUP(55,$N$14:$Z$303,5,FALSE) -> 3.5 | E74: =VLOOKUP(55,$N$14:$Z$303,6,FALSE) -> 189000 | F74: =VLOOKUP(55,$N$14:$Z$303,7,FALSE) -> 4 | G74: =VLOOKUP(55,$N$14:$Z$303,8,FALSE) -> 195 | H74: =VLOOKUP(55,$N$14:$Z$303,9,FALSE) -> 300 | I74: =VLOOKUP(55,$N$14:$Z$303,10,FALSE) -> 0.7 | J74: =VLOOKUP(55,$N$14:$Z$303,11,FALSE) -> 8 | K74: =VLOOKUP(55,$N$14:$Z$303,12,FALSE) -> 600 | L74: =VLOOKUP(55,$N$14:$Z$303,13,FALSE) -> 8 | M74: =VLOOKUP(55,$N$14:$AA$303,14,FALSE) -> 1 | N74: 55 | O74: Grain Cart with Tractor | P74: 37300 | Q74: =Q69 -> 38 | R74: =R69 -> 3.5 | S74: 189000 | T74: 4 | U74: 195 | V74: 300 | W74: 0.7 | X74: 8 | Y74: 600 | Z74: 8 | AA74: 1 | AB74: 0.19 | AC74: 1.3 | AD74: 1.11 | AE74: Others | AG74: =VLOOKUP(55,$N$14:$AD$303,15,FALSE) -> 0.19 | AH74: =VLOOKUP(55,$N$14:$AD$303,16,FALSE) -> 1.3 | AI74: =VLOOKUP(55,$N$14:$AD$303,17,FALSE) -> 1.11
A75: =VLOOKUP(56,$N$14:$O$303,2,FALSE) -> Other Harvest | B75: =VLOOKUP(56,$N$14:$Z$303,3,FALSE) -> 0 | C75: =VLOOKUP(56,$N$14:$Z$303,4,FALSE) -> 19 | D75: =VLOOKUP(56,$N$14:$Z$303,5,FALSE) -> 2.5 | E75: =VLOOKUP(56,$N$14:$Z$303,6,FALSE) -> 0 | F75: =VLOOKUP(56,$N$14:$Z$303,7,FALSE) -> 0 | G75: =VLOOKUP(56,$N$14:$Z$303,8,FALSE) -> 230 | H75: =VLOOKUP(56,$N$14:$Z$303,9,FALSE) -> 200 | I75: =VLOOKUP(56,$N$14:$Z$303,10,FALSE) -> 0.65 | J75: =VLOOKUP(56,$N$14:$Z$303,11,FALSE) -> 8 | K75: =VLOOKUP(56,$N$14:$Z$303,12,FALSE) -> 0 | L75: =VLOOKUP(56,$N$14:$Z$303,13,FALSE) -> 0 | M75: =VLOOKUP(56,$N$14:$AA$303,14,FALSE) -> 1 | N75: 56 | O75: Other Harvest | P75: 0 | Q75: 19 | R75: 2.5 | U75: 230 | V75: 200 | W75: 0.65 | X75: 8 | AA75: 1 | AB75: 0.04 | AC75: 2.1 | AD75: 1.11 | AE75: Combine, 300 hrs | AG75: =VLOOKUP(56,$N$14:$AD$303,15,FALSE) -> 0.04 | AH75: =VLOOKUP(56,$N$14:$AD$303,16,FALSE) -> 2.1 | AI75: =VLOOKUP(56,$N$14:$AD$303,17,FALSE) -> 1.11
A76: =VLOOKUP(57,$N$14:$O$303,2,FALSE) -> Peanut Harvester, with Tractor | B76: =VLOOKUP(57,$N$14:$Z$303,3,FALSE) -> 150000 | C76: =VLOOKUP(57,$N$14:$Z$303,4,FALSE) -> 19 | D76: =VLOOKUP(57,$N$14:$Z$303,5,FALSE) -> 2 | E76: =VLOOKUP(57,$N$14:$Z$303,6,FALSE) -> 227000 | F76: =VLOOKUP(57,$N$14:$Z$303,7,FALSE) -> 4 | G76: =VLOOKUP(57,$N$14:$Z$303,8,FALSE) -> 230 | H76: =VLOOKUP(57,$N$14:$Z$303,9,FALSE) -> 200 | I76: =VLOOKUP(57,$N$14:$Z$303,10,FALSE) -> 0.65 | J76: =VLOOKUP(57,$N$14:$Z$303,11,FALSE) -> 8 | K76: =VLOOKUP(57,$N$14:$Z$303,12,FALSE) -> 600 | L76: =VLOOKUP(57,$N$14:$Z$303,13,FALSE) -> 8 | M76: =VLOOKUP(57,$N$14:$AA$303,14,FALSE) -> 1 | N76: 57 | O76: Peanut Harvester, with Tractor | P76: 150000 | Q76: 19 | R76: 2 | S76: 227000 | T76: 4 | U76: 230 | V76: 200 | W76: 0.65 | X76: 8 | Y76: 600 | Z76: 8 | AA76: 1 | AB76: 0.04 | AC76: 2.1 | AD76: 1.11 | AE76: Combine, 300 hrs | AG76: =VLOOKUP(57,$N$14:$AD$303,15,FALSE) -> 0.04 | AH76: =VLOOKUP(57,$N$14:$AD$303,16,FALSE) -> 2.1 | AI76: =VLOOKUP(57,$N$14:$AD$303,17,FALSE) -> 1.11
A77: =VLOOKUP(58,$N$14:$O$303,2,FALSE) -> Peanut Dump Cart with Tractor | B77: =VLOOKUP(58,$N$14:$Z$303,3,FALSE) -> 52400 | C77: =VLOOKUP(58,$N$14:$Z$303,4,FALSE) -> 19 | D77: =VLOOKUP(58,$N$14:$Z$303,5,FALSE) -> 2 | E77: =VLOOKUP(58,$N$14:$Z$303,6,FALSE) -> 189000 | F77: =VLOOKUP(58,$N$14:$Z$303,7,FALSE) -> 4 | G77: =VLOOKUP(58,$N$14:$Z$303,8,FALSE) -> 195 | H77: =VLOOKUP(58,$N$14:$Z$303,9,FALSE) -> 200 | I77: =VLOOKUP(58,$N$14:$Z$303,10,FALSE) -> 0.65 | J77: =VLOOKUP(58,$N$14:$Z$303,11,FALSE) -> 8 | K77: =VLOOKUP(58,$N$14:$Z$303,12,FALSE) -> 600 | L77: =VLOOKUP(58,$N$14:$Z$303,13,FALSE) -> 8 | M77: =VLOOKUP(58,$N$14:$AA$303,14,FALSE) -> 1 | N77: 58 | O77: Peanut Dump Cart with Tractor | P77: 52400 | Q77: =IF([1]Machine!$B$75>0,Q75,Q76) -> 19 | R77: =IF([1]Machine!$B$75>0,R75,R76) -> 2 | S77: 189000 | T77: 4 | U77: 195 | V77: 200 | W77: 0.65 | X77: 8 | Y77: 600 | Z77: 8 | AA77: 1 | AB77: 0.19 | AC77: 1.3 | AD77: 1.11 | AE77: Others | AG77: =VLOOKUP(58,$N$14:$AD$303,15,FALSE) -> 0.19 | AH77: =VLOOKUP(58,$N$14:$AD$303,16,FALSE) -> 1.3 | AI77: =VLOOKUP(58,$N$14:$AD$303,17,FALSE) -> 1.11
A78: =VLOOKUP(59,$N$14:$O$303,2,FALSE) -> Peanut Wagon, 28 ft., with Tractor | B78: =VLOOKUP(59,$N$14:$Z$303,3,FALSE) -> 6500 | C78: =VLOOKUP(59,$N$14:$Z$303,4,FALSE) -> 19 | D78: =VLOOKUP(59,$N$14:$Z$303,5,FALSE) -> 2 | E78: =VLOOKUP(59,$N$14:$Z$303,6,FALSE) -> 189000 | F78: =VLOOKUP(59,$N$14:$Z$303,7,FALSE) -> 4 | G78: =VLOOKUP(59,$N$14:$Z$303,8,FALSE) -> 195 | H78: =VLOOKUP(59,$N$14:$Z$303,9,FALSE) -> 200 | I78: =VLOOKUP(59,$N$14:$Z$303,10,FALSE) -> 0.65 | J78: =VLOOKUP(59,$N$14:$Z$303,11,FALSE) -> 8 | K78: =VLOOKUP(59,$N$14:$Z$303,12,FALSE) -> 600 | L78: =VLOOKUP(59,$N$14:$Z$303,13,FALSE) -> 8 | M78: =VLOOKUP(59,$N$14:$AA$303,14,FALSE) -> 1 | N78: 59 | O78: Peanut Wagon, 28 ft., with Tractor | P78: 6500 | Q78: =Q77 -> 19 | R78: =R77 -> 2 | S78: 189000 | T78: 4 | U78: 195 | V78: 200 | W78: 0.65 | X78: 8 | Y78: 600 | Z78: 8 | AA78: 1 | AB78: 0.19 | AC78: 1.3 | AD78: 1.11 | AE78: Others | AG78: =VLOOKUP(59,$N$14:$AD$303,15,FALSE) -> 0.19 | AH78: =VLOOKUP(59,$N$14:$AD$303,16,FALSE) -> 1.3 | AI78: =VLOOKUP(59,$N$14:$AD$303,17,FALSE) -> 1.11
A79: =VLOOKUP(60,$N$14:$O$303,2,FALSE) -> Other Harvest | B79: =VLOOKUP(60,$N$14:$Z$303,3,FALSE) -> 0 | C79: =VLOOKUP(60,$N$14:$Z$303,4,FALSE) -> 1 | D79: =VLOOKUP(60,$N$14:$Z$303,5,FALSE) -> 1 | E79: =VLOOKUP(60,$N$14:$Z$303,6,FALSE) -> 0 | F79: =VLOOKUP(60,$N$14:$Z$303,7,FALSE) -> 0 | G79: =VLOOKUP(60,$N$14:$Z$303,8,FALSE) -> 325 | H79: =VLOOKUP(60,$N$14:$Z$303,9,FALSE) -> 200 | I79: =VLOOKUP(60,$N$14:$Z$303,10,FALSE) -> 0.7 | J79: =VLOOKUP(60,$N$14:$Z$303,11,FALSE) -> 8 | K79: =VLOOKUP(60,$N$14:$Z$303,12,FALSE) -> 0 | L79: =VLOOKUP(60,$N$14:$Z$303,13,FALSE) -> 0 | M79: =VLOOKUP(60,$N$14:$AA$303,14,FALSE) -> 1 | N79: 60 | O79: Other Harvest | Q79: 1 | R79: 1 | U79: 325 | V79: 200 | W79: 0.7 | X79: 8 | AA79: 1 | AB79: 0.11 | AC79: 1.8 | AD79: 1.11 | AE79: Combine, 300 hrs | AG79: =VLOOKUP(60,$N$14:$AD$303,15,FALSE) -> 0.11 | AH79: =VLOOKUP(60,$N$14:$AD$303,16,FALSE) -> 1.8 | AI79: =VLOOKUP(60,$N$14:$AD$303,17,FALSE) -> 1.11
A80: =VLOOKUP(61,$N$14:$O$303,2,FALSE) -> Other Harvest | B80: =VLOOKUP(61,$N$14:$Z$303,3,FALSE) -> 0 | C80: =VLOOKUP(61,$N$14:$Z$303,4,FALSE) -> 1 | D80: =VLOOKUP(61,$N$14:$Z$303,5,FALSE) -> 1 | E80: =VLOOKUP(61,$N$14:$Z$303,6,FALSE) -> 189000 | F80: =VLOOKUP(61,$N$14:$Z$303,7,FALSE) -> 4 | G80: =VLOOKUP(61,$N$14:$Z$303,8,FALSE) -> 195 | H80: =VLOOKUP(61,$N$14:$Z$303,9,FALSE) -> 200 | I80: =VLOOKUP(61,$N$14:$Z$303,10,FALSE) -> 0.7 | J80: =VLOOKUP(61,$N$14:$Z$303,11,FALSE) -> 8 | K80: =VLOOKUP(61,$N$14:$Z$303,12,FALSE) -> 600 | L80: =VLOOKUP(61,$N$14:$Z$303,13,FALSE) -> 8 | M80: =VLOOKUP(61,$N$14:$AA$303,14,FALSE) -> 1 | N80: 61 | O80: Other Harvest | Q80: =Q79 -> 1 | R80: =R79 -> 1 | S80: 189000 | T80: 4 | U80: 195 | V80: 200 | W80: 0.7 | X80: 8 | Y80: 600 | Z80: 8 | AA80: 1 | AB80: 0.19 | AC80: 1.3 | AD80: 1.11 | AE80: Others | AG80: =VLOOKUP(61,$N$14:$AD$303,15,FALSE) -> 0.19 | AH80: =VLOOKUP(61,$N$14:$AD$303,16,FALSE) -> 1.3 | AI80: =VLOOKUP(61,$N$14:$AD$303,17,FALSE) -> 1.11
A81: =VLOOKUP(62,$N$14:$O$303,2,FALSE) -> Other Harvest | B81: =VLOOKUP(62,$N$14:$Z$303,3,FALSE) -> 0 | C81: =VLOOKUP(62,$N$14:$Z$303,4,FALSE) -> 1 | D81: =VLOOKUP(62,$N$14:$Z$303,5,FALSE) -> 1 | E81: =VLOOKUP(62,$N$14:$Z$303,6,FALSE) -> 189000 | F81: =VLOOKUP(62,$N$14:$Z$303,7,FALSE) -> 4 | G81: =VLOOKUP(62,$N$14:$Z$303,8,FALSE) -> 195 | H81: =VLOOKUP(62,$N$14:$Z$303,9,FALSE) -> 200 | I81: =VLOOKUP(62,$N$14:$Z$303,10,FALSE) -> 0.7 | J81: =VLOOKUP(62,$N$14:$Z$303,11,FALSE) -> 8 | K81: =VLOOKUP(62,$N$14:$Z$303,12,FALSE) -> 600 | L81: =VLOOKUP(62,$N$14:$Z$303,13,FALSE) -> 8 | M81: =VLOOKUP(62,$N$14:$AA$303,14,FALSE) -> 1 | N81: 62 | O81: Other Harvest | Q81: =Q79 -> 1 | R81: =R79 -> 1 | S81: 189000 | T81: 4 | U81: 195 | V81: 200 | W81: 0.7 | X81: 8 | Y81: 600 | Z81: 8 | AA81: 1 | AB81: 0.19 | AC81: 1.3 | AD81: 1.11 | AE81: Others | AG81: =VLOOKUP(62,$N$14:$AD$303,15,FALSE) -> 0.19 | AH81: =VLOOKUP(62,$N$14:$AD$303,16,FALSE) -> 1.3 | AI81: =VLOOKUP(62,$N$14:$AD$303,17,FALSE) -> 1.11
O83: Equipment List 2 | P83: 2
V84: Implements/Self-Propelled | Y84: Tractors | AB84: Implements/
P85: New Unit | R85: Ground | S85: New Tractor | T85: No.Wheel | U85: HP | X85: Expected | Z85: Expected | AB85: Self-Propelled
P86: Price, | Q86: Width | R86: Speed | S86: Price, | T86: Drive of | U86: Power | V86: Hours | W86: Field | X86: No. Years | Y86: Hours | Z86: No. Years | AB86: Repair | AC86: Repair | AD86: Labor | AE86: Salvage Value
O87: Name, Description | P87: Current $ | Q87: in Feet | R87: MPH | S87: Current $ | T87: Power Unit | U87: Unit | V87: per Year | W87: Efficiency | X87: to Use | Y87: per Year | Z87: to Use | AB87: Factor 1 | AC87: Factor 2 | AD87: Factor | AE87: Category
N88: =IF($A$8=2,1,0) -> 0 | O88: =O14 -> Paratill | P88: =P14 -> 17250 | Q88: 19 | R88: 4 | S88: 227000 | T88: 4 | U88: 230 | V88: =V14 -> 160 | W88: 0.85 | X88: 8 | Y88: 600 | Z88: 8 | AA88: =IF(SUM(N88:N155)=1953,P83,0) -> 0 | AB88: =AB14 -> 0.29 | AC88: 1.8 | AD88: 1.04 | AE88: Plows
N89: =IF($A$8=2,N88+1,0) -> 0 | O89: =O15 -> Subsoiler, 25 ft. | P89: 22000 | Q89: 25 | R89: 4 | S89: 227000 | T89: 4 | U89: 230 | V89: =V15 -> 160 | W89: 0.85 | X89: 8 | Y89: 600 | Z89: 8 | AA89: =AA88 -> 0 | AB89: =AB15 -> 0.29 | AC89: 1.8 | AD89: 1.04 | AE89: Plows
N90: 0 | O90: Subsoiler, 5 shank | P90: 13900 | Q90: 12 | R90: 4 | S90: 227000 | T90: 4 | U90: 230 | V90: =V16 -> 160 | W90: 0.85 | X90: 8 | Y90: 600 | Z90: 8 | AA90: =AA89 -> 0 | AB90: =AB16 -> 0.29 | AC90: 1.8 | AD90: 1.04 | AE90: Plows
N91: 0 | O91: Bedder, Rip/Disk | P91: 67900 | Q91: 38 | R91: 4 | S91: 227000 | T91: 4 | U91: 230 | V91: =V17 -> 160 | W91: 0.85 | X91: 8 | Y91: 600 | Z91: 8 | AA91: 0 | AB91: =AB17 -> 0.18 | AC91: 1.7 | AD91: 1.04 | AE91: Plows
N92: 0 | O92: Bedder, Lister | P92: 35700 | Q92: 38 | R92: 4 | S92: 227000 | T92: 4 | U92: 230 | V92: =V18 -> 160 | W92: 0.85 | X92: 8 | Y92: 600 | Z92: 8 | AA92: 0 | AB92: =AB18 -> 0.29 | AC92: 1.8 | AD92: 1.04 | AE92: Plows
N93: 0 | O93: Disk | P93: 66900 | Q93: 32 | R93: 5.5 | S93: 227000 | T93: 4 | U93: 230 | V93: =V19 -> 160 | W93: 0.85 | X93: 8 | Y93: 600 | Z93: 8 | AA93: 0 | AB93: =AB19 -> 0.18 | AC93: 1.7 | AD93: 1.04 | AE93: Plows
N94: 0 | O94: Bedder, Hipper | P94: 21000 | Q94: 38 | R94: 4.5 | S94: 227000 | T94: 4 | U94: 230 | V94: =V20 -> 160 | W94: 0.8 | X94: 8 | Y94: 600 | Z94: 8 | AA94: 0 | AB94: =AB20 -> 0.18 | AC94: 1.7 | AD94: 1.04 | AE94: Plows
N95: 0 | O95: Chisel Plow | P95: 54200 | Q95: 32 | R95: 5 | S95: 227000 | T95: 4 | U95: 230 | V95: =V21 -> 160 | W95: 0.85 | X95: 8 | Y95: 600 | Z95: 8 | AA95: 0 | AB95: =AB21 -> 0.28 | AC95: 1.4 | AD95: 1.04 | AE95: Plows
N96: 0 | O96: Harrow | P96: 20200 | Q96: 40 | R96: 7 | S96: 189000 | T96: 4 | U96: 195 | V96: =V22 -> 160 | W96: 0.85 | X96: 8 | Y96: 600 | Z96: 8 | AA96: 0 | AB96: =AB22 -> 0.27 | AC96: 1.4 | AD96: 1.04 | AE96: Plows
N97: 0 | O97: Roller | P97: 23300 | Q97: 38 | R97: 6 | S97: 227000 | T97: 4 | U97: 230 | V97: =V23 -> 120 | W97: 0.85 | X97: 8 | Y97: 600 | Z97: 8 | AA97: 0 | AB97: =AB23 -> 0.16 | AC97: 1.3 | AD97: 1.04 | AE97: Other Tillage
N98: 0 | O98: Bedder-Roller | P98: 35700 | Q98: 38 | R98: 5 | S98: 227000 | T98: 4 | U98: 230 | V98: =V24 -> 120 | W98: 0.85 | X98: 8 | Y98: 600 | Z98: 8 | AA98: 0 | AB98: =AB24 -> 0.16 | AC98: 1.3 | AD98: 1.04 | AE98: Plows
N99: 0 | O99: Ditcher | P99: 6100 | Q99: 1 | R99: 10 | S99: 155000 | T99: 4 | U99: 175 | V99: =V25 -> 50 | W99: 0.95 | X99: 8 | Y99: 600 | Z99: 8 | AA99: 0 | AB99: =AB25 -> 0.28 | AC99: 1.4 | AD99: 1.04 | AE99: Plows
N100: 0 | O100: Turbo Tiller | P100: 53800 | Q100: 30 | R100: 7 | S100: 227000 | T100: 4 | U100: 230 | V100: =V26 -> 160 | W100: 0.8 | X100: 8 | Y100: 600 | Z100: 8 | AA100: 0 | AB100: =AB26 -> 0.23 | AC100: 1.4 | AD100: 1.04 | AE100: Plows
N101: 0 | O101: Rotary Harrow (ex. Phillips) | P101: 42000 | Q101: 45 | R101: 7 | S101: 227000 | T101: 4 | U101: 230 | V101: =V27 -> 120 | W101: 0.8 | X101: 8 | Y101: 600 | Z101: 8 | AA101: 0 | AB101: =AB27 -> 0.23 | AC101: 1.4 | AD101: 1.04 | AE101: Plows
N102: 0 | O102: Field Cultivator | P102: 58400 | Q102: 42 | R102: 7 | S102: 227000 | T102: 4 | U102: 230 | V102: =V28 -> 160 | W102: 0.85 | X102: 8 | Y102: 600 | Z102: 8 | AA102: =AA88 -> 0 | AB102: =AB28 -> 0.27 | AC102: 1.4 | AD102: 1.04 | AE102: Plows
N103: 0 | O103: Row Crop Cultivator, Irrigation Middles | P103: 27300 | Q103: 38 | R103: 7 | S103: 227000 | T103: 4 | U103: 230 | V103: =V29 -> 120 | W103: 0.8 | X103: 8 | Y103: 600 | Z103: 8 | AA103: =AA102 -> 0 | AB103: =AB29 -> 0.17 | AC103: 2.2 | AD103: 1.04 | AE103: Plows
N104: 0 | O104: Sprayer, Tractor Mounted (ft) | P104: 15600 | Q104: 60 | R104: 12 | S104: 155000 | T104: 4 | U104: 175 | V104: =V30 -> 120 | W104: 0.65 | X104: 8 | Y104: 600 | Z104: 8 | AA104: =AA103 -> 0 | AB104: =AB30 -> 0.41 | AC104: 1.3 | AD104: 1.04 | AE104: Sprayer
N105: 0 | O105: =O31 -> Sprayer, Tractor Mounted (row) | P105: 14900 | Q105: 38 | R105: 12 | S105: 155000 | T105: 4 | U105: 175 | V105: =V31 -> 120 | W105: 0.65 | X105: 8 | Y105: 600 | Z105: 8 | AA105: 0 | AB105: =AB31 -> 0.41 | AC105: 1.3 | AD105: 1.04 | AE105: Sprayer
N106: 0 | O106: Land Plane | P106: 10800 | Q106: 17 | R106: 8.5 | S106: 189000 | T106: 4 | U106: 195 | V106: =V32 -> 160 | W106: 0.85 | X106: 8 | Y106: 600 | Z106: 8 | AA106: 0 | AB106: =AB32 -> 0.16 | AC106: 1.3 | AD106: 1.04 | AE106: Other Tillage
N107: 0 | O107: Fertilizer, Broadcast Spreader | P107: 12900 | Q107: 30 | R107: 10 | S107: 189000 | T107: 4 | U107: 195 | V107: =V33 -> 100 | W107: 0.7 | X107: 8 | Y107: 600 | Z107: 8 | AA107: 0 | AB107: =AB33 -> 0.63 | AC107: 1.3 | AD107: 1.33 | AE107: Others
N108: 0 | O108: Do All, Seedbed Finisher | P108: 25500 | Q108: 38 | R108: 7 | S108: 227000 | T108: 4 | U108: 230 | V108: =V34 -> 160 | W108: 0.85 | X108: 8 | Y108: 600 | Z108: 8 | AA108: 0 | AB108: =AB34 -> 0.27 | AC108: 1.4 | AD108: 1.04 | AE108: Other Tillage
N109: 0 | O109: Planter | P109: 80200 | Q109: 38 | R109: 6 | S109: 189000 | T109: 4 | U109: 195 | V109: =V35 -> 160 | W109: 0.65 | X109: 8 | Y109: 600 | Z109: 8 | AA109: 0 | AB109: =AB35 -> 0.32 | AC109: 2.1 | AD109: 1.16 | AE109: Planter, Drill
N110: 0 | O110: Planter Twin Row | P110: 143000 | Q110: 38 | R110: 6 | S110: 227000 | T110: 4 | U110: 230 | V110: =V36 -> 160 | W110: 0.65 | X110: 8 | Y110: 600 | Z110: 8 | AA110: 0 | AB110: =AB36 -> 0.32 | AC110: 2.1 | AD110: 1.16 | AE110: Planter, Drill
N111: 0 | O111: Plant Grain Drill | P111: 63800 | Q111: 30 | R111: 5.5 | S111: 227000 | T111: 4 | U111: 230 | V111: =V37 -> 160 | W111: 0.7 | X111: 8 | Y111: 600 | Z111: 8 | AA111: 0 | AB111: =AB37 -> 0.32 | AC111: 2.1 | AD111: 1.11 | AE111: Planter, Drill
N112: 0 | O112: Plant No-Till Air Drill | P112: 110700 | Q112: 30 | R112: 7 | S112: 227000 | T112: 4 | U112: 230 | V112: =V38 -> 160 | W112: 0.7 | X112: 8 | Y112: 600 | Z112: 8 | AA112: =AA111 -> 0 | AB112: =AB38 -> 0.32 | AC112: 2.1 | AD112: 1.11 | AE112: Planter, Drill
N113: 0 | O113: Liquid Fertilizer Applicator | P113: 19000 | Q113: 38 | R113: 10 | S113: 227000 | T113: 4 | U113: 230 | V113: =V39 -> 120 | W113: 0.65 | X113: 8 | Y113: 600 | Z113: 8 | AA113: =AA112 -> 0 | AB113: =AB39 -> 0.41 | AC113: 1.3 | AD113: 1.33 | AE113: Sprayer
N114: 0 | O114: Fertilizer, Knife Rig 12 Row | P114: 46000 | Q114: 38 | R114: 7 | S114: 227000 | T114: 4 | U114: 230 | V114: =V40 -> 120 | W114: 0.65 | X114: 8 | Y114: 600 | Z114: 8 | AA114: =AA113 -> 0 | AB114: =AB40 -> 0.41 | AC114: 1.3 | AD114: 1.33 | AE114: Plows
N115: 0 | O115: Polypipe; Roll Out, Punch, Take Up | P115: 5400 | Q115: 1 | R115: 2.5 | S115: 155000 | T115: 4 | U115: 175 | V115: =V41 -> 25 | W115: 0.95 | X115: 8 | Y115: 600 | Z115: 8 | AA115: =AA114 -> 0 | AB115: =AB41 -> 0.16 | AC115: 1.3 | AD115: 3.12 | AE115: Others
N116: 0 | O116: Hooded Sprayer | P116: 27100 | Q116: 38 | R116: 7 | S116: 155000 | T116: 4 | U116: 175 | V116: =V42 -> 120 | W116: 0.65 | X116: 8 | Y116: 600 | Z116: 8 | AA116: =AA115 -> 0 | AB116: =AB42 -> 0.41 | AC116: 1.3 | AD116: 1.04 | AE116: Sprayer
N117: 0 | O117: Levee Pull | P117: 8160 | Q117: 1 | R117: 2.5 | S117: 155000 | T117: 4 | U117: 175 | V117: =V43 -> 100 | W117: 0.25 | X117: 8 | Y117: 600 | Z117: 8 | AA117: 0 | AB117: =AB43 -> 0.28 | AC117: 1.4 | AD117: 1.04 | AE117: Plows
N118: 0 | O118: Levee Pull, Planter/Incorporate | P118: 9000 | Q118: 1 | R118: 2.5 | S118: 155000 | T118: 4 | U118: 175 | V118: =V44 -> 100 | W118: 0.23 | X118: 8 | Y118: 600 | Z118: 8 | AA118: 0 | AB118: =AB44 -> 0.28 | AC118: 1.4 | AD118: 1.04 | AE118: Plows
N119: 0 | O119: Levee Roller-Packer-Shaper | P119: 7000 | Q119: 1 | R119: 2.5 | S119: 155000 | T119: 4 | U119: 175 | V119: =V45 -> 100 | W119: 0.5 | X119: 8 | Y119: 600 | Z119: 8 | AA119: 0 | AB119: =AB45 -> 0.28 | AC119: 1.4 | AD119: 1.04 | AE119: Plows
N120: 0 | O120: Install Gates & Remove | P120: 3830 | Q120: 1 | R120: 2.5 | S120: 155000 | T120: 4 | U120: 175 | V120: =V46 -> 100 | W120: 0.25 | X120: 8 | Y120: 600 | Z120: 8 | AA120: 0 | AB120: =AB46 -> 0.18 | AC120: 1.7 | AD120: 3.12 | AE120: Plows
N121: 0 | O121: =O47 -> Take Down Levees | P121: 8160 | Q121: 1 | R121: 2.5 | S121: 155000 | T121: 4 | U121: 175 | V121: =V47 -> 100 | W121: 0.25 | X121: 8 | Y121: 600 | Z121: 8 | AA121: =AA120 -> 0 | AB121: =AB47 -> 0.28 | AC121: 1.4 | AD121: 1.04 | AE121: Plows
N122: 0 | O122: Peanut Digger/Inverter | P122: 46500 | Q122: 19 | R122: 3 | S122: 189000 | T122: 4 | U122: 195 | V122: =V48 -> 200 | W122: 0.65 | X122: 8 | Y122: 600 | Z122: 8 | AA122: =AA121 -> 0 | AB122: =AB48 -> 0.28 | AC122: 1.4 | AD122: 1.04 | AE122: Plows
N123: 0 | O123: Peanut Conditioner | P123: 16900 | Q123: 19 | R123: 3 | S123: 189000 | T123: 4 | U123: 195 | V123: =V49 -> 200 | W123: 0.65 | X123: 8 | Y123: 600 | Z123: 8 | AA123: =AA122 -> 0 | AB123: =AB49 -> 0.27 | AC123: 1.4 | AD123: 1.04 | AE123: Plows
N124: 0 | O124: Peanut Conditioner & Lifter | P124: 14400 | Q124: 19 | R124: 3 | S124: 189000 | T124: 4 | U124: 195 | V124: =V50 -> 200 | W124: 0.65 | X124: 8 | Y124: 600 | Z124: 8 | AA124: 0 | AB124: =AB50 -> 0.27 | AC124: 1.4 | AD124: 1.04 | AE124: Plows
N125: 0 | O125: Mower, Stalk Shredder | P125: 30100 | Q125: 20 | R125: 7 | S125: 189000 | T125: 4 | U125: 195 | V125: =V51 -> 160 | W125: 0.8 | X125: 8 | Y125: 600 | Z125: 8 | AA125: 0 | AB125: =AB51 -> 0.44 | AC125: 2 | AD125: 1.1 | AE125: Mower
N126: 0 | O126: Stubble Roller | P126: 23300 | Q126: 32 | R126: 6 | S126: 227000 | T126: 4 | U126: 230 | V126: =V52 -> 120 | W126: 0.85 | X126: 8 | Y126: 600 | Z126: 8 | AA126: 0 | AB126: =AB52 -> 0.16 | AC126: 1.3 | AD126: 1.04 | AE126: Other Tillage
N127: 0 | O127: Other Equipment | P127: 0 | Q127: 1 | R127: 1 | S127: 227000 | T127: 4 | U127: 230 | V127: =V53 -> 100 | W127: 0.7 | X127: 8 | Y127: 600 | Z127: 8 | AA127: 0 | AB127: =AB53 -> 0.63 | AC127: 1.3 | AD127: 1.33 | AE127: Others
N128: 0 | O128: Other Equipment | P128: 0 | Q128: 1 | R128: 1 | S128: 227000 | T128: 4 | U128: 230 | V128: =V54 -> 100 | W128: 0.7 | X128: 8 | Y128: 600 | Z128: 8 | AA128: 0 | AB128: =AB54 -> 0.63 | AC128: 1.3 | AD128: 1.33 | AE128: Others
O131: Self-Propelled Pre-Harvest
N132: =IF($A$8=2,N128+1,0) -> 0 | O132: =O58 -> Self-Propelled Sprayer | P132: 316000 | Q132: 90 | R132: 12 | S132: 0 | T132: 0 | U132: 250 | V132: =V58 -> 120 | W132: 0.65 | X132: 8 | Y132: 0 | Z132: 0 | AA132: =AA128 -> 0 | AB132: =AB58 -> 0.11 | AC132: 1.8 | AD132: 1.25 | AE132: Sprayer
N133: =IF($A$8=2,N132+1,0) -> 0 | O133: ATV with Spot, Levee Sprayer | P133: 17490 | Q133: 1 | R133: 2.5 | S133: 0 | T133: 0 | U133: 50 | V133: =V59 -> 80 | W133: 0.25 | X133: 8 | Y133: 0 | Z133: 0 | AA133: =AA132 -> 0 | AB133: =AB59 -> 0.28 | AC133: 1.4 | AD133: 1.04 | AE133: Vehicle
N134: =IF($A$8=2,N133+1,0) -> 0 | O134: Dry Box Spreader | P134: 344000 | Q134: 80 | R134: 12 | S134: 0 | T134: 0 | U134: 250 | V134: =V60 -> 120 | W134: 0.65 | X134: 8 | Y134: 0 | Z134: 0 | AA134: =AA133 -> 0 | AB134: =AB60 -> 0.11 | AC134: 1.8 | AD134: 1.25 | AE134: Sprayer
O137: Self-Propelled and Other Harvest
N138: =IF($A$8=2,N134+1,0) -> 0 | O138: =O64 -> Cotton Picker | P138: 465000 | Q138: 19 | R138: 3.5 | S138: 0 | T138: 0 | U138: 355 | V138: =V64 -> 200 | W138: 0.7 | X138: 8 | Y138: 0 | Z138: 0 | AA138: =AA134 -> 0 | AB138: =AB64 -> 0.11 | AC138: 1.8 | AD138: 1.11 | AE138: Combine, 300 hrs
N139: =IF($A$8=2,N138+1,0) -> 0 | O139: Boll Buggy with Tractor | P139: 30500 | Q139: 19 | R139: 3.5 | S139: 189000 | T139: 4 | U139: 195 | V139: =V65 -> 200 | W139: 0.7 | X139: 8 | Y139: 600 | Z139: 8 | AA139: =AA138 -> 0 | AB139: =AB65 -> 0.19 | AC139: 1.3 | AD139: 1.11 | AE139: Others
N140: 0 | O140: Module Builder with Tractor | P140: 34700 | Q140: 19 | R140: 3.5 | S140: 189000 | T140: 4 | U140: 195 | V140: =V66 -> 200 | W140: 0.7 | X140: 8 | Y140: 600 | Z140: 8 | AA140: =AA139 -> 0 | AB140: =AB66 -> 0.19 | AC140: 1.3 | AD140: 3.33 | AE140: Others
N141: 0 | O141: Cotton Picker: Module-Building | P141: 808000 | Q141: 19 | R141: 3.7 | S141: 0 | T141: 0 | U141: 500 | V141: =V67 -> 200 | W141: 0.85 | X141: 8 | Y141: 0 | Z141: 0 | AA141: 0 | AB141: =AB67 -> 0.11 | AC141: 1.8 | AD141: 1.11 | AE141: Combine, 300 hrs
N142: 0 | O142: Module Handler with Tractor | P142: 13750 | Q142: 1 | R142: 3.7 | S142: 189000 | T142: 4 | U142: 195 | V142: =V68 -> 10 | W142: 0.9 | X142: 8 | Y142: 600 | Z142: 8 | AA142: 0 | AB142: =AB68 -> 0.19 | AC142: 1.3 | AD142: 1.11 | AE142: Others
N143: 0 | O143: Combine | P143: 383000 | Q143: 38 | R143: 3.5 | S143: 0 | T143: 0 | U143: 325 | V143: =V69 -> 300 | W143: 0.7 | X143: 8 | Y143: 0 | Z143: 0 | AA143: 0 | AB143: =AB69 -> 0.04 | AC143: 2.1 | AD143: 1.11 | AE143: Combine, 300 hrs
N144: 0 | O144: Corn Head | P144: 67000 | Q144: 38 | R144: 3.5 | S144: 0 | T144: 0 | U144: 0 | V144: =V70 -> 300 | W144: 0.7 | X144: 8 | Y144: 0 | Z144: 0 | AA144: 0 | AB144: =AB70 -> 0.12 | AC144: 2.3 | AD144: 0 | AE144: Combine, 300 hrs
N145: 0 | O145: Soybean Head | P145: 42400 | Q145: 30 | R145: 4.5 | S145: 0 | T145: 0 | U145: 0 | V145: =V71 -> 300 | W145: 0.7 | X145: 8 | Y145: 0 | Z145: 0 | AA145: 0 | AB145: =AB71 -> 0.12 | AC145: 2.3 | AD145: 0 | AE145: Combine, 300 hrs
N146: 0 | O146: Rice Head | P146: 71500 | Q146: 30 | R146: 2.5 | S146: 0 | T146: 0 | U146: 0 | V146: =V72 -> 300 | W146: 0.7 | X146: 8 | Y146: 0 | Z146: 0 | AA146: 0 | AB146: =AB72 -> 0.12 | AC146: 2.3 | AD146: 0 | AE146: Combine, 300 hrs
N147: 0 | O147: Wheat/Sorghum Head | P147: 25700 | Q147: 30 | R147: 3.5 | S147: 0 | T147: 0 | U147: 0 | V147: =V73 -> 300 | W147: 0.7 | X147: 8 | Y147: 0 | Z147: 0 | AA147: 0 | AB147: =AB73 -> 0.12 | AC147: 2.3 | AD147: 0 | AE147: Combine, 300 hrs
N148: 0 | O148: Grain Cart with Tractor | P148: 37300 | Q148: 38 | R148: 3.5 | S148: 189000 | T148: 4 | U148: 195 | V148: =V74 -> 300 | W148: 0.7 | X148: 8 | Y148: 600 | Z148: 8 | AA148: 0 | AB148: =AB74 -> 0.19 | AC148: 1.3 | AD148: 1.11 | AE148: Others
N149: 0 | O149: Other Harvest | P149: 0 | Q149: 19 | R149: 2.5 | S149: 0 | T149: 0 | U149: 230 | V149: =V75 -> 200 | W149: 0.65 | X149: 8 | Y149: 0 | Z149: 0 | AA149: 0 | AB149: =AB75 -> 0.04 | AC149: 2.1 | AD149: 1.11 | AE149: Combine, 300 hrs
N150: 0 | O150: Peanut Harvester, with Tractor | P150: 150000 | Q150: 19 | R150: 2 | S150: 227000 | T150: 4 | U150: 230 | V150: =V76 -> 200 | W150: 0.65 | X150: 8 | Y150: 600 | Z150: 8 | AA150: 0 | AB150: =AB76 -> 0.04 | AC150: 2.1 | AD150: 1.11 | AE150: Combine, 300 hrs
N151: 0 | O151: Peanut Dump Cart with Tractor | P151: 52400 | Q151: 19 | R151: 2 | S151: 189000 | T151: 4 | U151: 195 | V151: =V77 -> 200 | W151: 0.65 | X151: 8 | Y151: 600 | Z151: 8 | AA151: 0 | AB151: =AB77 -> 0.19 | AC151: 1.3 | AD151: 1.11 | AE151: Others
N152: 0 | O152: Peanut Wagon, 28 ft., with Tractor | P152: 6500 | Q152: 19 | R152: 2 | S152: 189000 | T152: 4 | U152: 195 | V152: =V78 -> 200 | W152: 0.65 | X152: 8 | Y152: 600 | Z152: 8 | AA152: 0 | AB152: =AB78 -> 0.19 | AC152: 1.3 | AD152: 1.11 | AE152: Others
N153: 0 | O153: Other Harvest | P153: 0 | Q153: 1 | R153: 1 | S153: 0 | T153: 0 | U153: 325 | V153: =V79 -> 200 | W153: 0.7 | X153: 8 | Y153: 0 | Z153: 0 | AA153: 0 | AB153: =AB79 -> 0.11 | AC153: 1.8 | AD153: 1.11 | AE153: Combine, 300 hrs
N154: 0 | O154: =O80 -> Other Harvest | P154: 0 | Q154: 1 | R154: 1 | S154: 189000 | T154: 4 | U154: 195 | V154: =V80 -> 200 | W154: 0.7 | X154: 8 | Y154: 600 | Z154: 8 | AA154: 0 | AB154: =AB80 -> 0.19 | AC154: 1.3 | AD154: 1.11 | AE154: Others
N155: 0 | O155: Other Harvest | P155: 0 | Q155: 1 | R155: 1 | S155: 189000 | T155: 4 | U155: 195 | V155: =V81 -> 200 | W155: 0.7 | X155: 8 | Y155: 600 | Z155: 8 | AA155: 0 | AB155: =AB81 -> 0.19 | AC155: 1.3 | AD155: 1.11 | AE155: Others
O157: Equipment List 3 | P157: 3
V158: Implements/Self-Propelled | Y158: Tractors | AB158: Implements/
P159: New Unit | R159: Ground | S159: New Tractor | T159: No.Wheel | U159: HP | X159: Expected | Z159: Expected | AB159: Self-Propelled
P160: Price, | Q160: Width | R160: Speed | S160: Price, | T160: Drive of | U160: Power | V160: Hours | W160: Field | X160: No. Years | Y160: Hours | Z160: No. Years | AB160: Repair | AC160: Repair | AD160: Labor | AE160: Salvage Value
O161: Name, Description | P161: Current $ | Q161: in Feet | R161: MPH | S161: Current $ | T161: Power Unit | U161: Unit | V161: per Year | W161: Efficiency | X161: to Use | Y161: per Year | Z161: to Use | AB161: Factor 1 | AC161: Factor 2 | AD161: Factor | AE161: Category
N162: =IF($A$8=3,1,0) -> 0 | O162: =O88 -> Paratill | P162: 17250 | Q162: 19 | R162: 4 | S162: 227000 | T162: 4 | U162: 230 | V162: 160 | W162: 0.85 | X162: 8 | Y162: 600 | Z162: 8 | AA162: =IF(SUM(N162:N229)=1953,P157,0) -> 0 | AB162: =AB88 -> 0.29 | AC162: 1.8 | AD162: 1.04 | AE162: Plows
N163: =IF($A$8=3,N162+1,0) -> 0 | O163: =O89 -> Subsoiler, 25 ft. | P163: 22000 | Q163: 25 | R163: 4 | S163: 227000 | T163: 4 | U163: 230 | V163: 160 | W163: 0.85 | X163: 8 | Y163: 600 | Z163: 8 | AA163: =AA162 -> 0 | AB163: =AB89 -> 0.29 | AC163: 1.8 | AD163: 1.04 | AE163: Plows
N164: 0 | O164: =O90 -> Subsoiler, 5 shank | P164: 13900 | Q164: 12 | R164: 4 | S164: 227000 | T164: 4 | U164: 230 | V164: 160 | W164: 0.85 | X164: 8 | Y164: 600 | Z164: 8 | AA164: =AA163 -> 0 | AB164: =AB90 -> 0.29 | AC164: 1.8 | AD164: 1.04 | AE164: Plows
N165: 0 | O165: =O91 -> Bedder, Rip/Disk | P165: 67900 | Q165: 38 | R165: 4 | S165: 227000 | T165: 4 | U165: 230 | V165: 160 | W165: 0.85 | X165: 8 | Y165: 600 | Z165: 8 | AA165: 0 | AB165: =AB91 -> 0.18 | AC165: 1.7 | AD165: 1.04 | AE165: Plows
N166: 0 | O166: =O92 -> Bedder, Lister | P166: 35700 | Q166: 38 | R166: 4 | S166: 227000 | T166: 4 | U166: 230 | V166: 160 | W166: 0.85 | X166: 8 | Y166: 600 | Z166: 8 | AA166: 0 | AB166: =AB92 -> 0.29 | AC166: 1.8 | AD166: 1.04 | AE166: Plows
N167: 0 | O167: =O93 -> Disk | P167: 66900 | Q167: 32 | R167: 5.5 | S167: 227000 | T167: 4 | U167: 230 | V167: 160 | W167: 0.85 | X167: 8 | Y167: 600 | Z167: 8 | AA167: 0 | AB167: =AB93 -> 0.18 | AC167: 1.7 | AD167: 1.04 | AE167: Plows
N168: 0 | O168: =O94 -> Bedder, Hipper | P168: 21000 | Q168: 38 | R168: 4.5 | S168: 227000 | T168: 4 | U168: 230 | V168: 160 | W168: 0.8 | X168: 8 | Y168: 600 | Z168: 8 | AA168: 0 | AB168: =AB94 -> 0.18 | AC168: 1.7 | AD168: 1.04 | AE168: Plows
N169: 0 | O169: =O95 -> Chisel Plow | P169: 54200 | Q169: 32 | R169: 5 | S169: 227000 | T169: 4 | U169: 230 | V169: 160 | W169: 0.85 | X169: 8 | Y169: 600 | Z169: 8 | AA169: 0 | AB169: =AB95 -> 0.28 | AC169: 1.4 | AD169: 1.04 | AE169: Plows
N170: 0 | O170: =O96 -> Harrow | P170: 20200 | Q170: 40 | R170: 7 | S170: 189000 | T170: 4 | U170: 195 | V170: 160 | W170: 0.85 | X170: 8 | Y170: 600 | Z170: 8 | AA170: 0 | AB170: =AB96 -> 0.27 | AC170: 1.4 | AD170: 1.04 | AE170: Plows
N171: 0 | O171: =O97 -> Roller | P171: 23300 | Q171: 38 | R171: 6 | S171: 227000 | T171: 4 | U171: 230 | V171: 120 | W171: 0.85 | X171: 8 | Y171: 600 | Z171: 8 | AA171: 0 | AB171: =AB97 -> 0.16 | AC171: 1.3 | AD171: 1.04 | AE171: Other Tillage
N172: 0 | O172: =O98 -> Bedder-Roller | P172: 35700 | Q172: 38 | R172: 5 | S172: 227000 | T172: 4 | U172: 230 | V172: 120 | W172: 0.85 | X172: 8 | Y172: 600 | Z172: 8 | AA172: 0 | AB172: =AB98 -> 0.16 | AC172: 1.3 | AD172: 1.04 | AE172: Plows
N173: 0 | O173: =O99 -> Ditcher | P173: 6100 | Q173: 1 | R173: 10 | S173: 155000 | T173: 4 | U173: 175 | V173: 50 | W173: 0.95 | X173: 8 | Y173: 600 | Z173: 8 | AA173: 0 | AB173: =AB99 -> 0.28 | AC173: 1.4 | AD173: 1.04 | AE173: Plows
N174: 0 | O174: =O100 -> Turbo Tiller | P174: 53800 | Q174: 30 | R174: 7 | S174: 227000 | T174: 4 | U174: 230 | V174: 160 | W174: 0.8 | X174: 8 | Y174: 600 | Z174: 8 | AA174: 0 | AB174: =AB100 -> 0.23 | AC174: 1.4 | AD174: 1.04 | AE174: Plows
N175: 0 | O175: =O101 -> Rotary Harrow (ex. Phillips) | P175: 42000 | Q175: 45 | R175: 7 | S175: 227000 | T175: 4 | U175: 230 | V175: 120 | W175: 0.8 | X175: 8 | Y175: 600 | Z175: 8 | AA175: 0 | AB175: =AB101 -> 0.23 | AC175: 1.4 | AD175: 1.04 | AE175: Plows
N176: 0 | O176: =O102 -> Field Cultivator | P176: 58400 | Q176: 42 | R176: 7 | S176: 227000 | T176: 4 | U176: 230 | V176: 160 | W176: 0.85 | X176: 8 | Y176: 600 | Z176: 8 | AA176: =AA162 -> 0 | AB176: =AB102 -> 0.27 | AC176: 1.4 | AD176: 1.04 | AE176: Plows
N177: 0 | O177: =O103 -> Row Crop Cultivator, Irrigation Middles | P177: 27300 | Q177: 38 | R177: 7 | S177: 227000 | T177: 4 | U177: 230 | V177: 120 | W177: 0.8 | X177: 8 | Y177: 600 | Z177: 8 | AA177: =AA176 -> 0 | AB177: =AB103 -> 0.17 | AC177: 2.2 | AD177: 1.04 | AE177: Plows
N178: 0 | O178: =O104 -> Sprayer, Tractor Mounted (ft) | P178: 15600 | Q178: 60 | R178: 12 | S178: 155000 | T178: 4 | U178: 175 | V178: 120 | W178: 0.65 | X178: 8 | Y178: 600 | Z178: 8 | AA178: =AA177 -> 0 | AB178: =AB104 -> 0.41 | AC178: 1.3 | AD178: 1.04 | AE178: Sprayer
N179: 0 | O179: =O105 -> Sprayer, Tractor Mounted (row) | P179: 14900 | Q179: 38 | R179: 12 | S179: 155000 | T179: 4 | U179: 175 | V179: 120 | W179: 0.65 | X179: 8 | Y179: 600 | Z179: 8 | AA179: 0 | AB179: =AB105 -> 0.41 | AC179: 1.3 | AD179: 1.04 | AE179: Sprayer
N180: 0 | O180: =O106 -> Land Plane | P180: 10800 | Q180: 17 | R180: 8.5 | S180: 189000 | T180: 4 | U180: 195 | V180: 160 | W180: 0.85 | X180: 8 | Y180: 600 | Z180: 8 | AA180: 0 | AB180: =AB106 -> 0.16 | AC180: 1.3 | AD180: 1.04 | AE180: Other Tillage
N181: 0 | O181: =O107 -> Fertilizer, Broadcast Spreader | P181: 12900 | Q181: 30 | R181: 10 | S181: 189000 | T181: 4 | U181: 195 | V181: 100 | W181: 0.7 | X181: 8 | Y181: 600 | Z181: 8 | AA181: 0 | AB181: =AB107 -> 0.63 | AC181: 1.3 | AD181: 1.33 | AE181: Others
N182: 0 | O182: =O108 -> Do All, Seedbed Finisher | P182: 25500 | Q182: 38 | R182: 7 | S182: 227000 | T182: 4 | U182: 230 | V182: 160 | W182: 0.85 | X182: 8 | Y182: 600 | Z182: 8 | AA182: 0 | AB182: =AB108 -> 0.27 | AC182: 1.4 | AD182: 1.04 | AE182: Other Tillage
N183: 0 | O183: =O109 -> Planter | P183: 80200 | Q183: 38 | R183: 6 | S183: 189000 | T183: 4 | U183: 195 | V183: 160 | W183: 0.65 | X183: 8 | Y183: 600 | Z183: 8 | AA183: 0 | AB183: =AB109 -> 0.32 | AC183: 2.1 | AD183: 1.16 | AE183: Planter, Drill
N184: 0 | O184: =O110 -> Planter Twin Row | P184: 143000 | Q184: 38 | R184: 6 | S184: 227000 | T184: 4 | U184: 230 | V184: 160 | W184: 0.65 | X184: 8 | Y184: 600 | Z184: 8 | AA184: 0 | AB184: =AB110 -> 0.32 | AC184: 2.1 | AD184: 1.16 | AE184: Planter, Drill
N185: 0 | O185: =O111 -> Plant Grain Drill | P185: 63800 | Q185: 30 | R185: 5.5 | S185: 227000 | T185: 4 | U185: 230 | V185: 160 | W185: 0.7 | X185: 8 | Y185: 600 | Z185: 8 | AA185: 0 | AB185: =AB111 -> 0.32 | AC185: 2.1 | AD185: 1.11 | AE185: Planter, Drill
N186: 0 | O186: =O112 -> Plant No-Till Air Drill | P186: 110700 | Q186: 30 | R186: 7 | S186: 227000 | T186: 4 | U186: 230 | V186: 160 | W186: 0.7 | X186: 8 | Y186: 600 | Z186: 8 | AA186: =AA185 -> 0 | AB186: =AB112 -> 0.32 | AC186: 2.1 | AD186: 1.11 | AE186: Planter, Drill
N187: 0 | O187: =O113 -> Liquid Fertilizer Applicator | P187: 19000 | Q187: 38 | R187: 10 | S187: 227000 | T187: 4 | U187: 230 | V187: 120 | W187: 0.65 | X187: 8 | Y187: 600 | Z187: 8 | AA187: =AA186 -> 0 | AB187: =AB113 -> 0.41 | AC187: 1.3 | AD187: 1.33 | AE187: Sprayer
N188: 0 | O188: =O114 -> Fertilizer, Knife Rig 12 Row | P188: 46000 | Q188: 38 | R188: 7 | S188: 227000 | T188: 4 | U188: 230 | V188: 120 | W188: 0.65 | X188: 8 | Y188: 600 | Z188: 8 | AA188: =AA187 -> 0 | AB188: =AB114 -> 0.41 | AC188: 1.3 | AD188: 1.33 | AE188: Plows
N189: 0 | O189: =O115 -> Polypipe; Roll Out, Punch, Take Up | P189: 5400 | Q189: 1 | R189: 2.5 | S189: 155000 | T189: 4 | U189: 175 | V189: 25 | W189: 0.95 | X189: 8 | Y189: 600 | Z189: 8 | AA189: =AA188 -> 0 | AB189: =AB115 -> 0.16 | AC189: 1.3 | AD189: 3.12 | AE189: Others
N190: 0 | O190: =O116 -> Hooded Sprayer | P190: 27100 | Q190: 38 | R190: 7 | S190: 155000 | T190: 4 | U190: 175 | V190: 120 | W190: 0.65 | X190: 8 | Y190: 600 | Z190: 8 | AA190: =AA189 -> 0 | AB190: =AB116 -> 0.41 | AC190: 1.3 | AD190: 1.04 | AE190: Sprayer
N191: 0 | O191: =O117 -> Levee Pull | P191: 8160 | Q191: 1 | R191: 2.5 | S191: 155000 | T191: 4 | U191: 175 | V191: 100 | W191: 0.25 | X191: 8 | Y191: 600 | Z191: 8 | AA191: 0 | AB191: =AB117 -> 0.28 | AC191: 1.4 | AD191: 1.04 | AE191: Plows
N192: 0 | O192: =O118 -> Levee Pull, Planter/Incorporate | P192: 9000 | Q192: 1 | R192: 2.5 | S192: 155000 | T192: 4 | U192: 175 | V192: 100 | W192: 0.23 | X192: 8 | Y192: 600 | Z192: 8 | AA192: 0 | AB192: =AB118 -> 0.28 | AC192: 1.4 | AD192: 1.04 | AE192: Plows
N193: 0 | O193: =O119 -> Levee Roller-Packer-Shaper | P193: 7000 | Q193: 1 | R193: 2.5 | S193: 155000 | T193: 4 | U193: 175 | V193: 100 | W193: 0.5 | X193: 8 | Y193: 600 | Z193: 8 | AA193: 0 | AB193: =AB119 -> 0.28 | AC193: 1.4 | AD193: 1.04 | AE193: Plows
N194: 0 | O194: =O120 -> Install Gates & Remove | P194: 3830 | Q194: 1 | R194: 2.5 | S194: 155000 | T194: 4 | U194: 175 | V194: 100 | W194: 0.25 | X194: 8 | Y194: 600 | Z194: 8 | AA194: 0 | AB194: =AB120 -> 0.18 | AC194: 1.7 | AD194: 3.12 | AE194: Plows
N195: 0 | O195: =O121 -> Take Down Levees | P195: 8160 | Q195: 1 | R195: 2.5 | S195: 155000 | T195: 4 | U195: 175 | V195: 100 | W195: 0.25 | X195: 8 | Y195: 600 | Z195: 8 | AA195: =AA194 -> 0 | AB195: =AB121 -> 0.28 | AC195: 1.4 | AD195: 1.04 | AE195: Plows
N196: 0 | O196: =O122 -> Peanut Digger/Inverter | P196: 46500 | Q196: 19 | R196: 3 | S196: 189000 | T196: 4 | U196: 195 | V196: 200 | W196: 0.65 | X196: 8 | Y196: 600 | Z196: 8 | AA196: =AA195 -> 0 | AB196: =AB122 -> 0.28 | AC196: 1.4 | AD196: 1.04 | AE196: Plows
N197: 0 | O197: =O123 -> Peanut Conditioner | P197: 16900 | Q197: 19 | R197: 3 | S197: 189000 | T197: 4 | U197: 195 | V197: 200 | W197: 0.65 | X197: 8 | Y197: 600 | Z197: 8 | AA197: =AA196 -> 0 | AB197: =AB123 -> 0.27 | AC197: 1.4 | AD197: 1.04 | AE197: Plows
N198: 0 | O198: =O124 -> Peanut Conditioner & Lifter | P198: 14400 | Q198: 19 | R198: 3 | S198: 189000 | T198: 4 | U198: 195 | V198: 200 | W198: 0.65 | X198: 8 | Y198: 600 | Z198: 8 | AA198: 0 | AB198: =AB124 -> 0.27 | AC198: 1.4 | AD198: 1.04 | AE198: Plows
N199: 0 | O199: =O125 -> Mower, Stalk Shredder | P199: 30100 | Q199: 20 | R199: 7 | S199: 189000 | T199: 4 | U199: 195 | V199: 160 | W199: 0.8 | X199: 8 | Y199: 600 | Z199: 8 | AA199: 0 | AB199: =AB125 -> 0.44 | AC199: 2 | AD199: 1.1 | AE199: Mower
N200: 0 | O200: =O126 -> Stubble Roller | P200: 23300 | Q200: 32 | R200: 6 | S200: 227000 | T200: 4 | U200: 230 | V200: 120 | W200: 0.85 | X200: 8 | Y200: 600 | Z200: 8 | AA200: 0 | AB200: =AB126 -> 0.16 | AC200: 1.3 | AD200: 1.04 | AE200: Other Tillage
N201: 0 | O201: =O127 -> Other Equipment | P201: 0 | Q201: 1 | R201: 1 | S201: 227000 | T201: 4 | U201: 230 | V201: 100 | W201: 0.7 | X201: 8 | Y201: 600 | Z201: 8 | AA201: 0 | AB201: =AB127 -> 0.63 | AC201: 1.3 | AD201: 1.33 | AE201: Others
N202: 0 | O202: =O128 -> Other Equipment | P202: 0 | Q202: 1 | R202: 1 | S202: 227000 | T202: 4 | U202: 230 | V202: 100 | W202: 0.7 | X202: 8 | Y202: 600 | Z202: 8 | AA202: 0 | AB202: =AB128 -> 0.63 | AC202: 1.3 | AD202: 1.33 | AE202: Others
O205: Self-Propelled Pre-Harvest
N206: =IF($A$8=3,N202+1,0) -> 0 | O206: =O132 -> Self-Propelled Sprayer | P206: 316000 | Q206: 90 | R206: 12 | S206: 0 | T206: 0 | U206: 250 | V206: 120 | W206: 0.65 | X206: 8 | Y206: 0 | Z206: 0 | AA206: =AA202 -> 0 | AB206: =AB132 -> 0.11 | AC206: 1.8 | AD206: 1.25 | AE206: Sprayer
N207: =IF($A$8=3,N206+1,0) -> 0 | O207: =O133 -> ATV with Spot, Levee Sprayer | P207: 17490 | Q207: 1 | R207: 2.5 | S207: 0 | T207: 0 | U207: 50 | V207: 80 | W207: 0.25 | X207: 8 | Y207: 0 | Z207: 0 | AA207: =AA206 -> 0 | AB207: =AB133 -> 0.28 | AC207: 1.4 | AD207: 1.04 | AE207: Vehicle
N208: =IF($A$8=3,N207+1,0) -> 0 | O208: =O134 -> Dry Box Spreader | P208: 344000 | Q208: 80 | R208: 12 | S208: 0 | T208: 0 | U208: 250 | V208: 120 | W208: 0.65 | X208: 8 | Y208: 0 | Z208: 0 | AA208: =AA207 -> 0 | AB208: =AB134 -> 0.11 | AC208: 1.8 | AD208: 1.25 | AE208: Sprayer
O211: Self-Propelled and Other Harvest
N212: =IF($A$8=3,N208+1,0) -> 0 | O212: =O138 -> Cotton Picker | P212: 465000 | Q212: 19 | R212: 3.5 | S212: 0 | T212: 0 | U212: 355 | V212: 200 | W212: 0.7 | X212: 8 | Y212: 0 | Z212: 0 | AA212: =AA208 -> 0 | AB212: =AB138 -> 0.11 | AC212: 1.8 | AD212: 1.11 | AE212: Combine, 300 hrs
N213: =IF($A$8=3,N212+1,0) -> 0 | O213: =O139 -> Boll Buggy with Tractor | P213: 30500 | Q213: 19 | R213: 3.5 | S213: 189000 | T213: 4 | U213: 195 | V213: 200 | W213: 0.7 | X213: 8 | Y213: 600 | Z213: 8 | AA213: =AA212 -> 0 | AB213: =AB139 -> 0.19 | AC213: 1.3 | AD213: 1.11 | AE213: Others
N214: 0 | O214: =O140 -> Module Builder with Tractor | P214: 34700 | Q214: 19 | R214: 3.5 | S214: 189000 | T214: 4 | U214: 195 | V214: 200 | W214: 0.7 | X214: 8 | Y214: 600 | Z214: 8 | AA214: =AA213 -> 0 | AB214: =AB140 -> 0.19 | AC214: 1.3 | AD214: 3.33 | AE214: Others
N215: 0 | O215: =O141 -> Cotton Picker: Module-Building | P215: 808000 | Q215: 19 | R215: 3.7 | S215: 0 | T215: 0 | U215: 500 | V215: 200 | W215: 0.85 | X215: 8 | Y215: 0 | Z215: 0 | AA215: 0 | AB215: =AB141 -> 0.11 | AC215: 1.8 | AD215: 1.11 | AE215: Combine, 300 hrs
N216: 0 | O216: =O142 -> Module Handler with Tractor | P216: 13750 | Q216: 1 | R216: 3.7 | S216: 189000 | T216: 4 | U216: 195 | V216: 10 | W216: 0.9 | X216: 8 | Y216: 600 | Z216: 8 | AA216: 0 | AB216: =AB142 -> 0.19 | AC216: 1.3 | AD216: 1.11 | AE216: Others
N217: 0 | O217: =O143 -> Combine | P217: 383000 | Q217: 38 | R217: 3.5 | S217: 0 | T217: 0 | U217: 325 | V217: 300 | W217: 0.7 | X217: 8 | Y217: 0 | Z217: 0 | AA217: 0 | AB217: =AB143 -> 0.04 | AC217: 2.1 | AD217: 1.11 | AE217: Combine, 300 hrs
N218: 0 | O218: =O144 -> Corn Head | P218: 67000 | Q218: 38 | R218: 3.5 | S218: 0 | T218: 0 | U218: 0 | V218: 300 | W218: 0.7 | X218: 8 | Y218: 0 | Z218: 0 | AA218: 0 | AB218: =AB144 -> 0.12 | AC218: 2.3 | AD218: 0 | AE218: Combine, 300 hrs
N219: 0 | O219: =O145 -> Soybean Head | P219: 42400 | Q219: 30 | R219: 4.5 | S219: 0 | T219: 0 | U219: 0 | V219: 300 | W219: 0.7 | X219: 8 | Y219: 0 | Z219: 0 | AA219: 0 | AB219: =AB145 -> 0.12 | AC219: 2.3 | AD219: 0 | AE219: Combine, 300 hrs
N220: 0 | O220: =O146 -> Rice Head | P220: 71500 | Q220: 30 | R220: 2.5 | S220: 0 | T220: 0 | U220: 0 | V220: 300 | W220: 0.7 | X220: 8 | Y220: 0 | Z220: 0 | AA220: 0 | AB220: =AB146 -> 0.12 | AC220: 2.3 | AD220: 0 | AE220: Combine, 300 hrs
... 78 more rows

Sheet EquipmentSpecs (hidden)
A2: =Machine!F3 -> 0.06 | B2: Farm Equipment & Machinery Interest Rate
A3: 0 | B3: Inflation Rate, GDP Price Deflator
A4: =IF(AND(SUM(M14:M81)<1,SUM(BD14:BD81)<1),A2-A3,1/0) -> 0.06 | B4: Rate Applied to Capital Recovery
A5: =Machine!F4 -> 0.2 | B5: Personal Property Tax Assessment
A6: =Machine!F5 -> 46 | B6: Millage Rate
A9: ='C1_Messages_Indicators'!B49 ->  | F9: ='C1_Messages_Indicators'!B50 -> 
B10: Implements/Self-Propelled Equipment | F10: Tractors | J10: Implements/
D11: Expected | E11: Salvage | G11: Expected | H11: Salvage | J11: Self-Propelled | O11: Implements and Self-Propelled | BF11: Tractors
A12: Implement | B12: Hours | C12: Field | D12: No. Years | E12: Value | F12: Hours | G12: No. Years | H12: Value | J12: Repair | K12: Repair | L12: Labor | T12: Selected Number of Years | AJ12: From ASAE, 1997 Table in Iowa State Publication, % by Years | BK12: Selected Number of Years | CA12: From ASAE, 1997 Table in Iowa State Publication, % by Years
A13: Name, Description | B13: per Year | C13: Efficiency | D13: to Use | E13: Percent | F13: per Year | G13: to Use | H13: Percent | I13: HP | J13: Factor 1 | K13: Factor 2 | L13: Factor | M13: Check | N13: Category | O13: Trade/Sell % | P13: 1 | Q13: 2 | R13: 3 | S13: 4 | T13: 5 | U13: 6 | V13: 7 | W13: 8 | X13: 9 | Y13: 10 | Z13: 11 | AA13: 12 | AB13: 13 | AC13: 14 | AD13: 15 | AE13: 16 | AF13: 17 | AG13: 18 | AH13: 19 | AI13: 20 | AJ13: 1 | AK13: 2 | AL13: 3 | AM13: 4 | AN13: 5 | AO13: 6 | AP13: 7 | AQ13: 8 | AR13: 9 | AS13: 10 | AT13: 11 | AU13: 12 | AV13: 13 | AW13: 14 | AX13: 15 | AY13: 16 | AZ13: 17 | BA13: 18 | BB13: 19 | BC13: 20 | BD13: Check | BE13: Category | BF13: Trade/Sell % | BG13: 1 | BH13: 2 | BI13: 3 | BJ13: 4 | BK13: 5 | BL13: 6 | BM13: 7 | BN13: 8 | BO13: 9 | BP13: 10 | BQ13: 11 | BR13: 12 | BS13: 13 | BT13: 14 | BU13: 15 | BV13: 16 | BW13: 17 | BX13: 18 | BY13: 19 | BZ13: 20 | CA13: 1 | CB13: 2 | CC13: 3 | CD13: 4 | CE13: 5 | CF13: 6 | CG13: 7 | CH13: 8 | CI13: 9 | CJ13: 10 | CK13: 11 | CL13: 12 | CM13: 13 | CN13: 14 | CO13: 15 | CP13: 16 | CQ13: 17 | CR13: 18 | CS13: 19 | CT13: 20
A14: =A6_Machine_Look_Up!A14 -> Paratill | B14: =A6_Machine_Look_Up!H14 -> 160 | C14: =A6_Machine_Look_Up!I14 -> 0.85 | D14: =A6_Machine_Look_Up!J14 -> 8 | E14: =O14 -> 0.35 | F14: =A6_Machine_Look_Up!K14 -> 600 | G14: =A6_Machine_Look_Up!L14 -> 8 | H14: =BF14 -> 0.36 | I14: =A6_Machine_Look_Up!G14 -> 230 | J14: =A6_Machine_Look_Up!AG14 -> 0.29 | K14: =A6_Machine_Look_Up!AH14 -> 1.8 | L14: =A6_Machine_Look_Up!AI14 -> 1.04 | M14: =IF(OR(D14<1,D14>20),1,0) -> 0 | N14: =A6_Machine_Look_Up!AE14 -> Plows | O14: =SUM(P14:AI14) -> 0.35 | P14: =IF($D14=1,AJ14,0) -> 0 | Q14: =IF($D14=2,AK14,0) -> 0 | R14: =IF($D14=3,AL14,0) -> 0 | S14: =IF($D14=4,AM14,0) -> 0 | T14: =IF($D14=5,AN14,0) -> 0 | U14: =IF($D14=6,AO14,0) -> 0 | V14: =IF($D14=7,AP14,0) -> 0 | W14: =IF($D14=8,AQ14,0) -> 0.35 | X14: =IF($D14=9,AR14,0) -> 0 | Y14: =IF($D14=10,AS14,0) -> 0 | Z14: =IF($D14=11,AT14,0) -> 0 | AA14: =IF($D14=12,AU14,0) -> 0 | AB14: =IF($D14=13,AV14,0) -> 0 | AC14: =IF($D14=14,AW14,0) -> 0 | AD14: =IF($D14=15,AX14,0) -> 0 | AE14: =IF($D14=16,AY14,0) -> 0 | AF14: =IF($D14=17,AZ14,0) -> 0 | AG14: =IF($D14=18,BA14,0) -> 0 | AH14: =IF($D14=19,BB14,0) -> 0 | AI14: =IF($D14=20,BC14,0) -> 0 | AJ14: 0.47 | AK14: 0.44 | AL14: 0.42 | AM14: 0.4 | AN14: 0.39 | AO14: 0.38 | AP14: 0.36 | AQ14: 0.35 | AR14: 0.34 | AS14: 0.33 | AT14: 0.32 | AU14: 0.32 | AV14: 0.31 | AW14: 0.3 | AX14: 0.29 | AY14: 0.29 | AZ14: 0.28 | BA14: 0.27 | BB14: 0.27 | BC14: 0.26 | BD14: =IF(OR(G14<1,G14>20),1,0) -> 0 | BE14: 150+, 400 hrs | BF14: =SUM(BG14:BZ14) -> 0.36 | BG14: =IF($G14=1,CA14,0) -> 0 | BH14: =IF($G14=2,CB14,0) -> 0 | BI14: =IF($G14=3,CC14,0) -> 0 | BJ14: =IF($G14=4,CD14,0) -> 0 | BK14: =IF($G14=5,CE14,0) -> 0 | BL14: =IF($G14=6,CF14,0) -> 0 | BM14: =IF($G14=7,CG14,0) -> 0 | BN14: =IF($G14=8,CH14,0) -> 0.36 | BO14: =IF($G14=9,CI14,0) -> 0 | BP14: =IF($G14=10,CJ14,0) -> 0 | BQ14: =IF($G14=11,CK14,0) -> 0 | BR14: =IF($G14=12,CL14,0) -> 0 | BS14: =IF($G14=13,CM14,0) -> 0 | BT14: =IF($G14=14,CN14,0) -> 0 | BU14: =IF($G14=15,CO14,0) -> 0 | BV14: =IF($G14=16,CP14,0) -> 0 | BW14: =IF($G14=17,CQ14,0) -> 0 | BX14: =IF($G14=18,CR14,0) -> 0 | BY14: =IF($G14=19,CS14,0) -> 0 | BZ14: =IF($G14=20,CT14,0) -> 0 | CA14: 0.67 | CB14: 0.59 | CC14: 0.54 | CD14: 0.49 | CE14: 0.45 | CF14: 0.42 | CG14: 0.39 | CH14: 0.36 | CI14: 0.34 | CJ14: 0.32 | CK14: 0.3 | CL14: 0.28 | CM14: 0.26 | CN14: 0.24 | CO14: 0.23 | CP14: 0.21 | CQ14: 0.2 | CR14: 0.19 | CS14: 0.18 | CT14: 0.17
A15: =A6_Machine_Look_Up!A15 -> Subsoiler, 25 ft. | B15: =A6_Machine_Look_Up!H15 -> 160 | C15: =A6_Machine_Look_Up!I15 -> 0.85 | D15: =A6_Machine_Look_Up!J15 -> 8 | E15: =O15 -> 0.35 | F15: =A6_Machine_Look_Up!K15 -> 600 | G15: =A6_Machine_Look_Up!L15 -> 8 | H15: =BF15 -> 0.36 | I15: =A6_Machine_Look_Up!G15 -> 230 | J15: =A6_Machine_Look_Up!AG15 -> 0.29 | K15: =A6_Machine_Look_Up!AH15 -> 1.8 | L15: =A6_Machine_Look_Up!AI15 -> 1.04 | M15: =IF(OR(D15<1,D15>20),1,0) -> 0 | N15: =A6_Machine_Look_Up!AE15 -> Plows | O15: =SUM(P15:AI15) -> 0.35 | P15: =IF($D15=1,AJ15,0) -> 0 | Q15: =IF($D15=2,AK15,0) -> 0 | R15: =IF($D15=3,AL15,0) -> 0 | S15: =IF($D15=4,AM15,0) -> 0 | T15: =IF($D15=5,AN15,0) -> 0 | U15: =IF($D15=6,AO15,0) -> 0 | V15: =IF($D15=7,AP15,0) -> 0 | W15: =IF($D15=8,AQ15,0) -> 0.35 | X15: =IF($D15=9,AR15,0) -> 0 | Y15: =IF($D15=10,AS15,0) -> 0 | Z15: =IF($D15=11,AT15,0) -> 0 | AA15: =IF($D15=12,AU15,0) -> 0 | AB15: =IF($D15=13,AV15,0) -> 0 | AC15: =IF($D15=14,AW15,0) -> 0 | AD15: =IF($D15=15,AX15,0) -> 0 | AE15: =IF($D15=16,AY15,0) -> 0 | AF15: =IF($D15=17,AZ15,0) -> 0 | AG15: =IF($D15=18,BA15,0) -> 0 | AH15: =IF($D15=19,BB15,0) -> 0 | AI15: =IF($D15=20,BC15,0) -> 0 | AJ15: 0.47 | AK15: 0.44 | AL15: 0.42 | AM15: 0.4 | AN15: 0.39 | AO15: 0.38 | AP15: 0.36 | AQ15: 0.35 | AR15: 0.34 | AS15: 0.33 | AT15: 0.32 | AU15: 0.32 | AV15: 0.31 | AW15: 0.3 | AX15: 0.29 | AY15: 0.29 | AZ15: 0.28 | BA15: 0.27 | BB15: 0.27 | BC15: 0.26 | BD15: =IF(OR(G15<1,G15>20),1,0) -> 0 | BE15: 150+, 400 hrs | BF15: =SUM(BG15:BZ15) -> 0.36 | BG15: =IF($G15=1,CA15,0) -> 0 | BH15: =IF($G15=2,CB15,0) -> 0 | BI15: =IF($G15=3,CC15,0) -> 0 | BJ15: =IF($G15=4,CD15,0) -> 0 | BK15: =IF($G15=5,CE15,0) -> 0 | BL15: =IF($G15=6,CF15,0) -> 0 | BM15: =IF($G15=7,CG15,0) -> 0 | BN15: =IF($G15=8,CH15,0) -> 0.36 | BO15: =IF($G15=9,CI15,0) -> 0 | BP15: =IF($G15=10,CJ15,0) -> 0 | BQ15: =IF($G15=11,CK15,0) -> 0 | BR15: =IF($G15=12,CL15,0) -> 0 | BS15: =IF($G15=13,CM15,0) -> 0 | BT15: =IF($G15=14,CN15,0) -> 0 | BU15: =IF($G15=15,CO15,0) -> 0 | BV15: =IF($G15=16,CP15,0) -> 0 | BW15: =IF($G15=17,CQ15,0) -> 0 | BX15: =IF($G15=18,CR15,0) -> 0 | BY15: =IF($G15=19,CS15,0) -> 0 | BZ15: =IF($G15=20,CT15,0) -> 0 | CA15: 0.67 | CB15: 0.59 | CC15: 0.54 | CD15: 0.49 | CE15: 0.45 | CF15: 0.42 | CG15: 0.39 | CH15: 0.36 | CI15: 0.34 | CJ15: 0.32 | CK15: 0.3 | CL15: 0.28 | CM15: 0.26 | CN15: 0.24 | CO15: 0.23 | CP15: 0.21 | CQ15: 0.2 | CR15: 0.19 | CS15: 0.18 | CT15: 0.17
A16: =A6_Machine_Look_Up!A16 -> Subsoiler, 5 shank | B16: =A6_Machine_Look_Up!H16 -> 160 | C16: =A6_Machine_Look_Up!I16 -> 0.85 | D16: =A6_Machine_Look_Up!J16 -> 8 | E16: 0.35 | F16: =A6_Machine_Look_Up!K16 -> 600 | G16: =A6_Machine_Look_Up!L16 -> 8 | H16: 0.36 | I16: =A6_Machine_Look_Up!G16 -> 230 | J16: =A6_Machine_Look_Up!AG16 -> 0.29 | K16: =A6_Machine_Look_Up!AH16 -> 1.8 | L16: =A6_Machine_Look_Up!AI16 -> 1.04 | M16: 0 | N16: =A6_Machine_Look_Up!AE16 -> Plows | O16: 0.35 | P16: 0 | Q16: 0 | R16: 0 | S16: 0 | T16: 0 | U16: 0 | V16: 0 | W16: 0.35 | X16: 0 | Y16: 0 | Z16: 0 | AA16: 0 | AB16: 0 | AC16: 0 | AD16: 0 | AE16: 0 | AF16: 0 | AG16: 0 | AH16: 0 | AI16: 0 | AJ16: 0.47 | AK16: 0.44 | AL16: 0.42 | AM16: 0.4 | AN16: 0.39 | AO16: 0.38 | AP16: 0.36 | AQ16: 0.35 | AR16: 0.34 | AS16: 0.33 | AT16: 0.32 | AU16: 0.32 | AV16: 0.31 | AW16: 0.3 | AX16: 0.29 | AY16: 0.29 | AZ16: 0.28 | BA16: 0.27 | BB16: 0.27 | BC16: 0.26 | BD16: 0 | BE16: 150+, 400 hrs | BF16: 0.36 | BG16: 0 | BH16: 0 | BI16: 0 | BJ16: 0 | BK16: 0 | BL16: 0 | BM16: 0 | BN16: 0.36 | BO16: 0 | BP16: 0 | BQ16: 0 | BR16: 0 | BS16: 0 | BT16: 0 | BU16: 0 | BV16: 0 | BW16: 0 | BX16: 0 | BY16: 0 | BZ16: 0 | CA16: 0.67 | CB16: 0.59 | CC16: 0.54 | CD16: 0.49 | CE16: 0.45 | CF16: 0.42 | CG16: 0.39 | CH16: 0.36 | CI16: 0.34 | CJ16: 0.32 | CK16: 0.3 | CL16: 0.28 | CM16: 0.26 | CN16: 0.24 | CO16: 0.23 | CP16: 0.21 | CQ16: 0.2 | CR16: 0.19 | CS16: 0.18 | CT16: 0.17
A17: =A6_Machine_Look_Up!A17 -> Bedder, Rip/Disk | B17: =A6_Machine_Look_Up!H17 -> 160 | C17: =A6_Machine_Look_Up!I17 -> 0.85 | D17: =A6_Machine_Look_Up!J17 -> 8 | E17: 0.35 | F17: =A6_Machine_Look_Up!K17 -> 600 | G17: =A6_Machine_Look_Up!L17 -> 8 | H17: 0.36 | I17: =A6_Machine_Look_Up!G17 -> 230 | J17: =A6_Machine_Look_Up!AG17 -> 0.18 | K17: =A6_Machine_Look_Up!AH17 -> 1.7 | L17: =A6_Machine_Look_Up!AI17 -> 1.04 | M17: 0 | N17: =A6_Machine_Look_Up!AE17 -> Plows | O17: 0.35 | P17: 0 | Q17: 0 | R17: 0 | S17: 0 | T17: 0 | U17: 0 | V17: 0 | W17: 0.35 | X17: 0 | Y17: 0 | Z17: 0 | AA17: 0 | AB17: 0 | AC17: 0 | AD17: 0 | AE17: 0 | AF17: 0 | AG17: 0 | AH17: 0 | AI17: 0 | AJ17: 0.47 | AK17: 0.44 | AL17: 0.42 | AM17: 0.4 | AN17: 0.39 | AO17: 0.38 | AP17: 0.36 | AQ17: 0.35 | AR17: 0.34 | AS17: 0.33 | AT17: 0.32 | AU17: 0.32 | AV17: 0.31 | AW17: 0.3 | AX17: 0.29 | AY17: 0.29 | AZ17: 0.28 | BA17: 0.27 | BB17: 0.27 | BC17: 0.26 | BD17: 0 | BE17: 150+, 400 hrs | BF17: 0.36 | BG17: 0 | BH17: 0 | BI17: 0 | BJ17: 0 | BK17: 0 | BL17: 0 | BM17: 0 | BN17: 0.36 | BO17: 0 | BP17: 0 | BQ17: 0 | BR17: 0 | BS17: 0 | BT17: 0 | BU17: 0 | BV17: 0 | BW17: 0 | BX17: 0 | BY17: 0 | BZ17: 0 | CA17: 0.67 | CB17: 0.59 | CC17: 0.54 | CD17: 0.49 | CE17: 0.45 | CF17: 0.42 | CG17: 0.39 | CH17: 0.36 | CI17: 0.34 | CJ17: 0.32 | CK17: 0.3 | CL17: 0.28 | CM17: 0.26 | CN17: 0.24 | CO17: 0.23 | CP17: 0.21 | CQ17: 0.2 | CR17: 0.19 | CS17: 0.18 | CT17: 0.17
A18: =A6_Machine_Look_Up!A18 -> Bedder, Lister | B18: =A6_Machine_Look_Up!H18 -> 160 | C18: =A6_Machine_Look_Up!I18 -> 0.85 | D18: =A6_Machine_Look_Up!J18 -> 8 | E18: 0.35 | F18: =A6_Machine_Look_Up!K18 -> 600 | G18: =A6_Machine_Look_Up!L18 -> 8 | H18: 0.36 | I18: =A6_Machine_Look_Up!G18 -> 230 | J18: =A6_Machine_Look_Up!AG18 -> 0.29 | K18: =A6_Machine_Look_Up!AH18 -> 1.8 | L18: =A6_Machine_Look_Up!AI18 -> 1.04 | M18: 0 | N18: =A6_Machine_Look_Up!AE18 -> Plows | O18: 0.35 | P18: 0 | Q18: 0 | R18: 0 | S18: 0 | T18: 0 | U18: 0 | V18: 0 | W18: 0.35 | X18: 0 | Y18: 0 | Z18: 0 | AA18: 0 | AB18: 0 | AC18: 0 | AD18: 0 | AE18: 0 | AF18: 0 | AG18: 0 | AH18: 0 | AI18: 0 | AJ18: 0.47 | AK18: 0.44 | AL18: 0.42 | AM18: 0.4 | AN18: 0.39 | AO18: 0.38 | AP18: 0.36 | AQ18: 0.35 | AR18: 0.34 | AS18: 0.33 | AT18: 0.32 | AU18: 0.32 | AV18: 0.31 | AW18: 0.3 | AX18: 0.29 | AY18: 0.29 | AZ18: 0.28 | BA18: 0.27 | BB18: 0.27 | BC18: 0.26 | BD18: 0 | BE18: 150+, 400 hrs | BF18: 0.36 | BG18: 0 | BH18: 0 | BI18: 0 | BJ18: 0 | BK18: 0 | BL18: 0 | BM18: 0 | BN18: 0.36 | BO18: 0 | BP18: 0 | BQ18: 0 | BR18: 0 | BS18: 0 | BT18: 0 | BU18: 0 | BV18: 0 | BW18: 0 | BX18: 0 | BY18: 0 | BZ18: 0 | CA18: 0.67 | CB18: 0.59 | CC18: 0.54 | CD18: 0.49 | CE18: 0.45 | CF18: 0.42 | CG18: 0.39 | CH18: 0.36 | CI18: 0.34 | CJ18: 0.32 | CK18: 0.3 | CL18: 0.28 | CM18: 0.26 | CN18: 0.24 | CO18: 0.23 | CP18: 0.21 | CQ18: 0.2 | CR18: 0.19 | CS18: 0.18 | CT18: 0.17
A19: =A6_Machine_Look_Up!A19 -> Disk | B19: =A6_Machine_Look_Up!H19 -> 160 | C19: =A6_Machine_Look_Up!I19 -> 0.85 | D19: =A6_Machine_Look_Up!J19 -> 8 | E19: 0.35 | F19: =A6_Machine_Look_Up!K19 -> 600 | G19: =A6_Machine_Look_Up!L19 -> 8 | H19: 0.36 | I19: =A6_Machine_Look_Up!G19 -> 230 | J19: =A6_Machine_Look_Up!AG19 -> 0.18 | K19: =A6_Machine_Look_Up!AH19 -> 1.7 | L19: =A6_Machine_Look_Up!AI19 -> 1.04 | M19: 0 | N19: =A6_Machine_Look_Up!AE19 -> Plows | O19: 0.35 | P19: 0 | Q19: 0 | R19: 0 | S19: 0 | T19: 0 | U19: 0 | V19: 0 | W19: 0.35 | X19: 0 | Y19: 0 | Z19: 0 | AA19: 0 | AB19: 0 | AC19: 0 | AD19: 0 | AE19: 0 | AF19: 0 | AG19: 0 | AH19: 0 | AI19: 0 | AJ19: 0.47 | AK19: 0.44 | AL19: 0.42 | AM19: 0.4 | AN19: 0.39 | AO19: 0.38 | AP19: 0.36 | AQ19: 0.35 | AR19: 0.34 | AS19: 0.33 | AT19: 0.32 | AU19: 0.32 | AV19: 0.31 | AW19: 0.3 | AX19: 0.29 | AY19: 0.29 | AZ19: 0.28 | BA19: 0.27 | BB19: 0.27 | BC19: 0.26 | BD19: 0 | BE19: 150+, 400 hrs | BF19: 0.36 | BG19: 0 | BH19: 0 | BI19: 0 | BJ19: 0 | BK19: 0 | BL19: 0 | BM19: 0 | BN19: 0.36 | BO19: 0 | BP19: 0 | BQ19: 0 | BR19: 0 | BS19: 0 | BT19: 0 | BU19: 0 | BV19: 0 | BW19: 0 | BX19: 0 | BY19: 0 | BZ19: 0 | CA19: 0.67 | CB19: 0.59 | CC19: 0.54 | CD19: 0.49 | CE19: 0.45 | CF19: 0.42 | CG19: 0.39 | CH19: 0.36 | CI19: 0.34 | CJ19: 0.32 | CK19: 0.3 | CL19: 0.28 | CM19: 0.26 | CN19: 0.24 | CO19: 0.23 | CP19: 0.21 | CQ19: 0.2 | CR19: 0.19 | CS19: 0.18 | CT19: 0.17
A20: =A6_Machine_Look_Up!A20 -> Bedder, Hipper | B20: =A6_Machine_Look_Up!H20 -> 160 | C20: =A6_Machine_Look_Up!I20 -> 0.8 | D20: =A6_Machine_Look_Up!J20 -> 8 | E20: 0.35 | F20: =A6_Machine_Look_Up!K20 -> 600 | G20: =A6_Machine_Look_Up!L20 -> 8 | H20: 0.36 | I20: =A6_Machine_Look_Up!G20 -> 230 | J20: =A6_Machine_Look_Up!AG20 -> 0.18 | K20: =A6_Machine_Look_Up!AH20 -> 1.7 | L20: =A6_Machine_Look_Up!AI20 -> 1.04 | M20: 0 | N20: =A6_Machine_Look_Up!AE20 -> Plows | O20: 0.35 | P20: 0 | Q20: 0 | R20: 0 | S20: 0 | T20: 0 | U20: 0 | V20: 0 | W20: 0.35 | X20: 0 | Y20: 0 | Z20: 0 | AA20: 0 | AB20: 0 | AC20: 0 | AD20: 0 | AE20: 0 | AF20: 0 | AG20: 0 | AH20: 0 | AI20: 0 | AJ20: 0.47 | AK20: 0.44 | AL20: 0.42 | AM20: 0.4 | AN20: 0.39 | AO20: 0.38 | AP20: 0.36 | AQ20: 0.35 | AR20: 0.34 | AS20: 0.33 | AT20: 0.32 | AU20: 0.32 | AV20: 0.31 | AW20: 0.3 | AX20: 0.29 | AY20: 0.29 | AZ20: 0.28 | BA20: 0.27 | BB20: 0.27 | BC20: 0.26 | BD20: 0 | BE20: 150+, 400 hrs | BF20: 0.36 | BG20: 0 | BH20: 0 | BI20: 0 | BJ20: 0 | BK20: 0 | BL20: 0 | BM20: 0 | BN20: 0.36 | BO20: 0 | BP20: 0 | BQ20: 0 | BR20: 0 | BS20: 0 | BT20: 0 | BU20: 0 | BV20: 0 | BW20: 0 | BX20: 0 | BY20: 0 | BZ20: 0 | CA20: 0.67 | CB20: 0.59 | CC20: 0.54 | CD20: 0.49 | CE20: 0.45 | CF20: 0.42 | CG20: 0.39 | CH20: 0.36 | CI20: 0.34 | CJ20: 0.32 | CK20: 0.3 | CL20: 0.28 | CM20: 0.26 | CN20: 0.24 | CO20: 0.23 | CP20: 0.21 | CQ20: 0.2 | CR20: 0.19 | CS20: 0.18 | CT20: 0.17
A21: =A6_Machine_Look_Up!A21 -> Chisel Plow | B21: =A6_Machine_Look_Up!H21 -> 160 | C21: =A6_Machine_Look_Up!I21 -> 0.85 | D21: =A6_Machine_Look_Up!J21 -> 8 | E21: 0.35 | F21: =A6_Machine_Look_Up!K21 -> 600 | G21: =A6_Machine_Look_Up!L21 -> 8 | H21: 0.36 | I21: =A6_Machine_Look_Up!G21 -> 230 | J21: =A6_Machine_Look_Up!AG21 -> 0.28 | K21: =A6_Machine_Look_Up!AH21 -> 1.4 | L21: =A6_Machine_Look_Up!AI21 -> 1.04 | M21: 0 | N21: =A6_Machine_Look_Up!AE21 -> Plows | O21: 0.35 | P21: 0 | Q21: 0 | R21: 0 | S21: 0 | T21: 0 | U21: 0 | V21: 0 | W21: 0.35 | X21: 0 | Y21: 0 | Z21: 0 | AA21: 0 | AB21: 0 | AC21: 0 | AD21: 0 | AE21: 0 | AF21: 0 | AG21: 0 | AH21: 0 | AI21: 0 | AJ21: 0.47 | AK21: 0.44 | AL21: 0.42 | AM21: 0.4 | AN21: 0.39 | AO21: 0.38 | AP21: 0.36 | AQ21: 0.35 | AR21: 0.34 | AS21: 0.33 | AT21: 0.32 | AU21: 0.32 | AV21: 0.31 | AW21: 0.3 | AX21: 0.29 | AY21: 0.29 | AZ21: 0.28 | BA21: 0.27 | BB21: 0.27 | BC21: 0.26 | BD21: 0 | BE21: 150+, 400 hrs | BF21: 0.36 | BG21: 0 | BH21: 0 | BI21: 0 | BJ21: 0 | BK21: 0 | BL21: 0 | BM21: 0 | BN21: 0.36 | BO21: 0 | BP21: 0 | BQ21: 0 | BR21: 0 | BS21: 0 | BT21: 0 | BU21: 0 | BV21: 0 | BW21: 0 | BX21: 0 | BY21: 0 | BZ21: 0 | CA21: 0.67 | CB21: 0.59 | CC21: 0.54 | CD21: 0.49 | CE21: 0.45 | CF21: 0.42 | CG21: 0.39 | CH21: 0.36 | CI21: 0.34 | CJ21: 0.32 | CK21: 0.3 | CL21: 0.28 | CM21: 0.26 | CN21: 0.24 | CO21: 0.23 | CP21: 0.21 | CQ21: 0.2 | CR21: 0.19 | CS21: 0.18 | CT21: 0.17
A22: =A6_Machine_Look_Up!A22 -> Harrow | B22: =A6_Machine_Look_Up!H22 -> 160 | C22: =A6_Machine_Look_Up!I22 -> 0.85 | D22: =A6_Machine_Look_Up!J22 -> 8 | E22: 0.35 | F22: =A6_Machine_Look_Up!K22 -> 600 | G22: =A6_Machine_Look_Up!L22 -> 8 | H22: 0.36 | I22: =A6_Machine_Look_Up!G22 -> 195 | J22: =A6_Machine_Look_Up!AG22 -> 0.27 | K22: =A6_Machine_Look_Up!AH22 -> 1.4 | L22: =A6_Machine_Look_Up!AI22 -> 1.04 | M22: 0 | N22: =A6_Machine_Look_Up!AE22 -> Plows | O22: 0.35 | P22: 0 | Q22: 0 | R22: 0 | S22: 0 | T22: 0 | U22: 0 | V22: 0 | W22: 0.35 | X22: 0 | Y22: 0 | Z22: 0 | AA22: 0 | AB22: 0 | AC22: 0 | AD22: 0 | AE22: 0 | AF22: 0 | AG22: 0 | AH22: 0 | AI22: 0 | AJ22: 0.47 | AK22: 0.44 | AL22: 0.42 | AM22: 0.4 | AN22: 0.39 | AO22: 0.38 | AP22: 0.36 | AQ22: 0.35 | AR22: 0.34 | AS22: 0.33 | AT22: 0.32 | AU22: 0.32 | AV22: 0.31 | AW22: 0.3 | AX22: 0.29 | AY22: 0.29 | AZ22: 0.28 | BA22: 0.27 | BB22: 0.27 | BC22: 0.26 | BD22: 0 | BE22: 150+, 400 hrs | BF22: 0.36 | BG22: 0 | BH22: 0 | BI22: 0 | BJ22: 0 | BK22: 0 | BL22: 0 | BM22: 0 | BN22: 0.36 | BO22: 0 | BP22: 0 | BQ22: 0 | BR22: 0 | BS22: 0 | BT22: 0 | BU22: 0 | BV22: 0 | BW22: 0 | BX22: 0 | BY22: 0 | BZ22: 0 | CA22: 0.67 | CB22: 0.59 | CC22: 0.54 | CD22: 0.49 | CE22: 0.45 | CF22: 0.42 | CG22: 0.39 | CH22: 0.36 | CI22: 0.34 | CJ22: 0.32 | CK22: 0.3 | CL22: 0.28 | CM22: 0.26 | CN22: 0.24 | CO22: 0.23 | CP22: 0.21 | CQ22: 0.2 | CR22: 0.19 | CS22: 0.18 | CT22: 0.17
A23: =A6_Machine_Look_Up!A23 -> Roller | B23: =A6_Machine_Look_Up!H23 -> 120 | C23: =A6_Machine_Look_Up!I23 -> 0.85 | D23: =A6_Machine_Look_Up!J23 -> 8 | E23: 0.34 | F23: =A6_Machine_Look_Up!K23 -> 600 | G23: =A6_Machine_Look_Up!L23 -> 8 | H23: 0.36 | I23: =A6_Machine_Look_Up!G23 -> 230 | J23: =A6_Machine_Look_Up!AG23 -> 0.16 | K23: =A6_Machine_Look_Up!AH23 -> 1.3 | L23: =A6_Machine_Look_Up!AI23 -> 1.04 | M23: 0 | N23: =A6_Machine_Look_Up!AE23 -> Other Tillage | O23: 0.34 | P23: 0 | Q23: 0 | R23: 0 | S23: 0 | T23: 0 | U23: 0 | V23: 0 | W23: 0.34 | X23: 0 | Y23: 0 | Z23: 0 | AA23: 0 | AB23: 0 | AC23: 0 | AD23: 0 | AE23: 0 | AF23: 0 | AG23: 0 | AH23: 0 | AI23: 0 | AJ23: 0.61 | AK23: 0.54 | AL23: 0.49 | AM23: 0.45 | AN23: 0.42 | AO23: 0.39 | AP23: 0.36 | AQ23: 0.34 | AR23: 0.31 | AS23: 0.3 | AT23: 0.28 | AU23: 0.26 | AV23: 0.24 | AW23: 0.23 | AX23: 0.22 | AY23: 0.2 | AZ23: 0.19 | BA23: 0.18 | BB23: 0.17 | BC23: 0.16 | BD23: 0 | BE23: 150+, 400 hrs | BF23: 0.36 | BG23: 0 | BH23: 0 | BI23: 0 | BJ23: 0 | BK23: 0 | BL23: 0 | BM23: 0 | BN23: 0.36 | BO23: 0 | BP23: 0 | BQ23: 0 | BR23: 0 | BS23: 0 | BT23: 0 | BU23: 0 | BV23: 0 | BW23: 0 | BX23: 0 | BY23: 0 | BZ23: 0 | CA23: 0.67 | CB23: 0.59 | CC23: 0.54 | CD23: 0.49 | CE23: 0.45 | CF23: 0.42 | CG23: 0.39 | CH23: 0.36 | CI23: 0.34 | CJ23: 0.32 | CK23: 0.3 | CL23: 0.28 | CM23: 0.26 | CN23: 0.24 | CO23: 0.23 | CP23: 0.21 | CQ23: 0.2 | CR23: 0.19 | CS23: 0.18 | CT23: 0.17
A24: =A6_Machine_Look_Up!A24 -> Bedder-Roller | B24: =A6_Machine_Look_Up!H24 -> 120 | C24: =A6_Machine_Look_Up!I24 -> 0.85 | D24: =A6_Machine_Look_Up!J24 -> 8 | E24: 0.35 | F24: =A6_Machine_Look_Up!K24 -> 600 | G24: =A6_Machine_Look_Up!L24 -> 8 | H24: 0.36 | I24: =A6_Machine_Look_Up!G24 -> 230 | J24: =A6_Machine_Look_Up!AG24 -> 0.16 | K24: =A6_Machine_Look_Up!AH24 -> 1.3 | L24: =A6_Machine_Look_Up!AI24 -> 1.04 | M24: 0 | N24: =A6_Machine_Look_Up!AE24 -> Plows | O24: 0.35 | P24: 0 | Q24: 0 | R24: 0 | S24: 0 | T24: 0 | U24: 0 | V24: 0 | W24: 0.35 | X24: 0 | Y24: 0 | Z24: 0 | AA24: 0 | AB24: 0 | AC24: 0 | AD24: 0 | AE24: 0 | AF24: 0 | AG24: 0 | AH24: 0 | AI24: 0 | AJ24: 0.47 | AK24: 0.44 | AL24: 0.42 | AM24: 0.4 | AN24: 0.39 | AO24: 0.38 | AP24: 0.36 | AQ24: 0.35 | AR24: 0.34 | AS24: 0.33 | AT24: 0.32 | AU24: 0.32 | AV24: 0.31 | AW24: 0.3 | AX24: 0.29 | AY24: 0.29 | AZ24: 0.28 | BA24: 0.27 | BB24: 0.27 | BC24: 0.26 | BD24: 0 | BE24: 150+, 400 hrs | BF24: 0.36 | BG24: 0 | BH24: 0 | BI24: 0 | BJ24: 0 | BK24: 0 | BL24: 0 | BM24: 0 | BN24: 0.36 | BO24: 0 | BP24: 0 | BQ24: 0 | BR24: 0 | BS24: 0 | BT24: 0 | BU24: 0 | BV24: 0 | BW24: 0 | BX24: 0 | BY24: 0 | BZ24: 0 | CA24: 0.67 | CB24: 0.59 | CC24: 0.54 | CD24: 0.49 | CE24: 0.45 | CF24: 0.42 | CG24: 0.39 | CH24: 0.36 | CI24: 0.34 | CJ24: 0.32 | CK24: 0.3 | CL24: 0.28 | CM24: 0.26 | CN24: 0.24 | CO24: 0.23 | CP24: 0.21 | CQ24: 0.2 | CR24: 0.19 | CS24: 0.18 | CT24: 0.17
A25: =A6_Machine_Look_Up!A25 -> Ditcher | B25: =A6_Machine_Look_Up!H25 -> 50 | C25: =A6_Machine_Look_Up!I25 -> 0.95 | D25: =A6_Machine_Look_Up!J25 -> 8 | E25: 0.35 | F25: =A6_Machine_Look_Up!K25 -> 600 | G25: =A6_Machine_Look_Up!L25 -> 8 | H25: 0.36 | I25: =A6_Machine_Look_Up!G25 -> 175 | J25: =A6_Machine_Look_Up!AG25 -> 0.28 | K25: =A6_Machine_Look_Up!AH25 -> 1.4 | L25: =A6_Machine_Look_Up!AI25 -> 1.04 | M25: 0 | N25: =A6_Machine_Look_Up!AE25 -> Plows | O25: 0.35 | P25: 0 | Q25: 0 | R25: 0 | S25: 0 | T25: 0 | U25: 0 | V25: 0 | W25: 0.35 | X25: 0 | Y25: 0 | Z25: 0 | AA25: 0 | AB25: 0 | AC25: 0 | AD25: 0 | AE25: 0 | AF25: 0 | AG25: 0 | AH25: 0 | AI25: 0 | AJ25: 0.47 | AK25: 0.44 | AL25: 0.42 | AM25: 0.4 | AN25: 0.39 | AO25: 0.38 | AP25: 0.36 | AQ25: 0.35 | AR25: 0.34 | AS25: 0.33 | AT25: 0.32 | AU25: 0.32 | AV25: 0.31 | AW25: 0.3 | AX25: 0.29 | AY25: 0.29 | AZ25: 0.28 | BA25: 0.27 | BB25: 0.27 | BC25: 0.26 | BD25: 0 | BE25: 150+, 400 hrs | BF25: 0.36 | BG25: 0 | BH25: 0 | BI25: 0 | BJ25: 0 | BK25: 0 | BL25: 0 | BM25: 0 | BN25: 0.36 | BO25: 0 | BP25: 0 | BQ25: 0 | BR25: 0 | BS25: 0 | BT25: 0 | BU25: 0 | BV25: 0 | BW25: 0 | BX25: 0 | BY25: 0 | BZ25: 0 | CA25: 0.67 | CB25: 0.59 | CC25: 0.54 | CD25: 0.49 | CE25: 0.45 | CF25: 0.42 | CG25: 0.39 | CH25: 0.36 | CI25: 0.34 | CJ25: 0.32 | CK25: 0.3 | CL25: 0.28 | CM25: 0.26 | CN25: 0.24 | CO25: 0.23 | CP25: 0.21 | CQ25: 0.2 | CR25: 0.19 | CS25: 0.18 | CT25: 0.17
A26: =A6_Machine_Look_Up!A26 -> Turbo Tiller | B26: =A6_Machine_Look_Up!H26 -> 160 | C26: =A6_Machine_Look_Up!I26 -> 0.8 | D26: =A6_Machine_Look_Up!J26 -> 8 | E26: 0.35 | F26: =A6_Machine_Look_Up!K26 -> 600 | G26: =A6_Machine_Look_Up!L26 -> 8 | H26: 0.36 | I26: =A6_Machine_Look_Up!G26 -> 230 | J26: =A6_Machine_Look_Up!AG26 -> 0.23 | K26: =A6_Machine_Look_Up!AH26 -> 1.4 | L26: =A6_Machine_Look_Up!AI26 -> 1.04 | M26: 0 | N26: =A6_Machine_Look_Up!AE26 -> Plows | O26: 0.35 | P26: 0 | Q26: 0 | R26: 0 | S26: 0 | T26: 0 | U26: 0 | V26: 0 | W26: 0.35 | X26: 0 | Y26: 0 | Z26: 0 | AA26: 0 | AB26: 0 | AC26: 0 | AD26: 0 | AE26: 0 | AF26: 0 | AG26: 0 | AH26: 0 | AI26: 0 | AJ26: 0.47 | AK26: 0.44 | AL26: 0.42 | AM26: 0.4 | AN26: 0.39 | AO26: 0.38 | AP26: 0.36 | AQ26: 0.35 | AR26: 0.34 | AS26: 0.33 | AT26: 0.32 | AU26: 0.32 | AV26: 0.31 | AW26: 0.3 | AX26: 0.29 | AY26: 0.29 | AZ26: 0.28 | BA26: 0.27 | BB26: 0.27 | BC26: 0.26 | BD26: 0 | BE26: 150+, 400 hrs | BF26: 0.36 | BG26: 0 | BH26: 0 | BI26: 0 | BJ26: 0 | BK26: 0 | BL26: 0 | BM26: 0 | BN26: 0.36 | BO26: 0 | BP26: 0 | BQ26: 0 | BR26: 0 | BS26: 0 | BT26: 0 | BU26: 0 | BV26: 0 | BW26: 0 | BX26: 0 | BY26: 0 | BZ26: 0 | CA26: 0.67 | CB26: 0.59 | CC26: 0.54 | CD26: 0.49 | CE26: 0.45 | CF26: 0.42 | CG26: 0.39 | CH26: 0.36 | CI26: 0.34 | CJ26: 0.32 | CK26: 0.3 | CL26: 0.28 | CM26: 0.26 | CN26: 0.24 | CO26: 0.23 | CP26: 0.21 | CQ26: 0.2 | CR26: 0.19 | CS26: 0.18 | CT26: 0.17
A27: =A6_Machine_Look_Up!A27 -> Rotary Harrow (ex. Phillips) | B27: =A6_Machine_Look_Up!H27 -> 120 | C27: =A6_Machine_Look_Up!I27 -> 0.8 | D27: =A6_Machine_Look_Up!J27 -> 8 | E27: 0.35 | F27: =A6_Machine_Look_Up!K27 -> 600 | G27: =A6_Machine_Look_Up!L27 -> 8 | H27: 0.36 | I27: =A6_Machine_Look_Up!G27 -> 230 | J27: =A6_Machine_Look_Up!AG27 -> 0.23 | K27: =A6_Machine_Look_Up!AH27 -> 1.4 | L27: =A6_Machine_Look_Up!AI27 -> 1.04 | M27: 0 | N27: =A6_Machine_Look_Up!AE27 -> Plows | O27: 0.35 | P27: 0 | Q27: 0 | R27: 0 | S27: 0 | T27: 0 | U27: 0 | V27: 0 | W27: 0.35 | X27: 0 | Y27: 0 | Z27: 0 | AA27: 0 | AB27: 0 | AC27: 0 | AD27: 0 | AE27: 0 | AF27: 0 | AG27: 0 | AH27: 0 | AI27: 0 | AJ27: 0.47 | AK27: 0.44 | AL27: 0.42 | AM27: 0.4 | AN27: 0.39 | AO27: 0.38 | AP27: 0.36 | AQ27: 0.35 | AR27: 0.34 | AS27: 0.33 | AT27: 0.32 | AU27: 0.32 | AV27: 0.31 | AW27: 0.3 | AX27: 0.29 | AY27: 0.29 | AZ27: 0.28 | BA27: 0.27 | BB27: 0.27 | BC27: 0.26 | BD27: 0 | BE27: 150+, 400 hrs | BF27: 0.36 | BG27: 0 | BH27: 0 | BI27: 0 | BJ27: 0 | BK27: 0 | BL27: 0 | BM27: 0 | BN27: 0.36 | BO27: 0 | BP27: 0 | BQ27: 0 | BR27: 0 | BS27: 0 | BT27: 0 | BU27: 0 | BV27: 0 | BW27: 0 | BX27: 0 | BY27: 0 | BZ27: 0 | CA27: 0.67 | CB27: 0.59 | CC27: 0.54 | CD27: 0.49 | CE27: 0.45 | CF27: 0.42 | CG27: 0.39 | CH27: 0.36 | CI27: 0.34 | CJ27: 0.32 | CK27: 0.3 | CL27: 0.28 | CM27: 0.26 | CN27: 0.24 | CO27: 0.23 | CP27: 0.21 | CQ27: 0.2 | CR27: 0.19 | CS27: 0.18 | CT27: 0.17
A28: =A6_Machine_Look_Up!A28 -> Field Cultivator | B28: =A6_Machine_Look_Up!H28 -> 160 | C28: =A6_Machine_Look_Up!I28 -> 0.85 | D28: =A6_Machine_Look_Up!J28 -> 8 | E28: 0.35 | F28: =A6_Machine_Look_Up!K28 -> 600 | G28: =A6_Machine_Look_Up!L28 -> 8 | H28: 0.36 | I28: =A6_Machine_Look_Up!G28 -> 230 | J28: =A6_Machine_Look_Up!AG28 -> 0.27 | K28: =A6_Machine_Look_Up!AH28 -> 1.4 | L28: =A6_Machine_Look_Up!AI28 -> 1.04 | M28: 0 | N28: =A6_Machine_Look_Up!AE28 -> Plows | O28: 0.35 | P28: 0 | Q28: 0 | R28: 0 | S28: 0 | T28: 0 | U28: 0 | V28: 0 | W28: 0.35 | X28: 0 | Y28: 0 | Z28: 0 | AA28: 0 | AB28: 0 | AC28: 0 | AD28: 0 | AE28: 0 | AF28: 0 | AG28: 0 | AH28: 0 | AI28: 0 | AJ28: 0.47 | AK28: 0.44 | AL28: 0.42 | AM28: 0.4 | AN28: 0.39 | AO28: 0.38 | AP28: 0.36 | AQ28: 0.35 | AR28: 0.34 | AS28: 0.33 | AT28: 0.32 | AU28: 0.32 | AV28: 0.31 | AW28: 0.3 | AX28: 0.29 | AY28: 0.29 | AZ28: 0.28 | BA28: 0.27 | BB28: 0.27 | BC28: 0.26 | BD28: 0 | BE28: 150+, 400 hrs | BF28: 0.36 | BG28: 0 | BH28: 0 | BI28: 0 | BJ28: 0 | BK28: 0 | BL28: 0 | BM28: 0 | BN28: 0.36 | BO28: 0 | BP28: 0 | BQ28: 0 | BR28: 0 | BS28: 0 | BT28: 0 | BU28: 0 | BV28: 0 | BW28: 0 | BX28: 0 | BY28: 0 | BZ28: 0 | CA28: 0.67 | CB28: 0.59 | CC28: 0.54 | CD28: 0.49 | CE28: 0.45 | CF28: 0.42 | CG28: 0.39 | CH28: 0.36 | CI28: 0.34 | CJ28: 0.32 | CK28: 0.3 | CL28: 0.28 | CM28: 0.26 | CN28: 0.24 | CO28: 0.23 | CP28: 0.21 | CQ28: 0.2 | CR28: 0.19 | CS28: 0.18 | CT28: 0.17
A29: =A6_Machine_Look_Up!A29 -> Row Crop Cultivator, Irrigation Middles | B29: =A6_Machine_Look_Up!H29 -> 120 | C29: =A6_Machine_Look_Up!I29 -> 0.8 | D29: =A6_Machine_Look_Up!J29 -> 8 | E29: 0.35 | F29: =A6_Machine_Look_Up!K29 -> 600 | G29: =A6_Machine_Look_Up!L29 -> 8 | H29: 0.36 | I29: =A6_Machine_Look_Up!G29 -> 230 | J29: =A6_Machine_Look_Up!AG29 -> 0.17 | K29: =A6_Machine_Look_Up!AH29 -> 2.2 | L29: =A6_Machine_Look_Up!AI29 -> 1.04 | M29: 0 | N29: =A6_Machine_Look_Up!AE29 -> Plows | O29: 0.35 | P29: 0 | Q29: 0 | R29: 0 | S29: 0 | T29: 0 | U29: 0 | V29: 0 | W29: 0.35 | X29: 0 | Y29: 0 | Z29: 0 | AA29: 0 | AB29: 0 | AC29: 0 | AD29: 0 | AE29: 0 | AF29: 0 | AG29: 0 | AH29: 0 | AI29: 0 | AJ29: 0.47 | AK29: 0.44 | AL29: 0.42 | AM29: 0.4 | AN29: 0.39 | AO29: 0.38 | AP29: 0.36 | AQ29: 0.35 | AR29: 0.34 | AS29: 0.33 | AT29: 0.32 | AU29: 0.32 | AV29: 0.31 | AW29: 0.3 | AX29: 0.29 | AY29: 0.29 | AZ29: 0.28 | BA29: 0.27 | BB29: 0.27 | BC29: 0.26 | BD29: 0 | BE29: 150+, 400 hrs | BF29: 0.36 | BG29: 0 | BH29: 0 | BI29: 0 | BJ29: 0 | BK29: 0 | BL29: 0 | BM29: 0 | BN29: 0.36 | BO29: 0 | BP29: 0 | BQ29: 0 | BR29: 0 | BS29: 0 | BT29: 0 | BU29: 0 | BV29: 0 | BW29: 0 | BX29: 0 | BY29: 0 | BZ29: 0 | CA29: 0.67 | CB29: 0.59 | CC29: 0.54 | CD29: 0.49 | CE29: 0.45 | CF29: 0.42 | CG29: 0.39 | CH29: 0.36 | CI29: 0.34 | CJ29: 0.32 | CK29: 0.3 | CL29: 0.28 | CM29: 0.26 | CN29: 0.24 | CO29: 0.23 | CP29: 0.21 | CQ29: 0.2 | CR29: 0.19 | CS29: 0.18 | CT29: 0.17
A30: =A6_Machine_Look_Up!A30 -> Sprayer, Tractor Mounted (ft) | B30: =A6_Machine_Look_Up!H30 -> 120 | C30: =A6_Machine_Look_Up!I30 -> 0.65 | D30: =A6_Machine_Look_Up!J30 -> 8 | E30: 0.44 | F30: =A6_Machine_Look_Up!K30 -> 600 | G30: =A6_Machine_Look_Up!L30 -> 8 | H30: 0.36 | I30: =A6_Machine_Look_Up!G30 -> 175 | J30: =A6_Machine_Look_Up!AG30 -> 0.41 | K30: =A6_Machine_Look_Up!AH30 -> 1.3 | L30: =A6_Machine_Look_Up!AI30 -> 1.04 | M30: 0 | N30: =A6_Machine_Look_Up!AE30 -> Sprayer | O30: 0.44 | P30: 0 | Q30: 0 | R30: 0 | S30: 0 | T30: 0 | U30: 0 | V30: 0 | W30: 0.44 | X30: 0 | Y30: 0 | Z30: 0 | AA30: 0 | AB30: 0 | AC30: 0 | AD30: 0 | AE30: 0 | AF30: 0 | AG30: 0 | AH30: 0 | AI30: 0 | AJ30: 0.65 | AK30: 0.6 | AL30: 0.56 | AM30: 0.53 | AN30: 0.5 | AO30: 0.48 | AP30: 0.46 | AQ30: 0.44 | AR30: 0.42 | AS30: 0.4 | AT30: 0.39 | AU30: 0.38 | AV30: 0.36 | AW30: 0.35 | AX30: 0.34 | AY30: 0.33 | AZ30: 0.32 | BA30: 0.3 | BB30: 0.29 | BC30: 0.29 | BD30: 0 | BE30: 150+, 400 hrs | BF30: 0.36 | BG30: 0 | BH30: 0 | BI30: 0 | BJ30: 0 | BK30: 0 | BL30: 0 | BM30: 0 | BN30: 0.36 | BO30: 0 | BP30: 0 | BQ30: 0 | BR30: 0 | BS30: 0 | BT30: 0 | BU30: 0 | BV30: 0 | BW30: 0 | BX30: 0 | BY30: 0 | BZ30: 0 | CA30: 0.67 | CB30: 0.59 | CC30: 0.54 | CD30: 0.49 | CE30: 0.45 | CF30: 0.42 | CG30: 0.39 | CH30: 0.36 | CI30: 0.34 | CJ30: 0.32 | CK30: 0.3 | CL30: 0.28 | CM30: 0.26 | CN30: 0.24 | CO30: 0.23 | CP30: 0.21 | CQ30: 0.2 | CR30: 0.19 | CS30: 0.18 | CT30: 0.17
A31: =A6_Machine_Look_Up!A31 -> Sprayer, Tractor Mounted (row) | B31: =A6_Machine_Look_Up!H31 -> 120 | C31: =A6_Machine_Look_Up!I31 -> 0.65 | D31: =A6_Machine_Look_Up!J31 -> 8 | E31: =O31 -> 0.44 | F31: =A6_Machine_Look_Up!K31 -> 600 | G31: =A6_Machine_Look_Up!L31 -> 8 | H31: =BF31 -> 0.36 | I31: =A6_Machine_Look_Up!G31 -> 175 | J31: =A6_Machine_Look_Up!AG31 -> 0.41 | K31: =A6_Machine_Look_Up!AH31 -> 1.3 | L31: =A6_Machine_Look_Up!AI31 -> 1.04 | M31: 0 | N31: =A6_Machine_Look_Up!AE31 -> Sprayer | O31: 0.44 | P31: 0 | Q31: 0 | R31: 0 | S31: 0 | T31: =IF($D31=5,AN31,0) -> 0 | U31: =IF($D31=6,AO31,0) -> 0 | V31: =IF($D31=7,AP31,0) -> 0 | W31: =IF($D31=8,AQ31,0) -> 0.44 | X31: =IF($D31=9,AR31,0) -> 0 | Y31: =IF($D31=10,AS31,0) -> 0 | Z31: =IF($D31=11,AT31,0) -> 0 | AA31: =IF($D31=12,AU31,0) -> 0 | AB31: =IF($D31=13,AV31,0) -> 0 | AC31: =IF($D31=14,AW31,0) -> 0 | AD31: =IF($D31=15,AX31,0) -> 0 | AE31: =IF($D31=16,AY31,0) -> 0 | AF31: =IF($D31=17,AZ31,0) -> 0 | AG31: =IF($D31=18,BA31,0) -> 0 | AH31: =IF($D31=19,BB31,0) -> 0 | AI31: =IF($D31=20,BC31,0) -> 0 | AJ31: 0.65 | AK31: 0.6 | AL31: 0.56 | AM31: 0.53 | AN31: 0.5 | AO31: 0.48 | AP31: 0.46 | AQ31: 0.44 | AR31: 0.42 | AS31: 0.4 | AT31: 0.39 | AU31: 0.38 | AV31: 0.36 | AW31: 0.35 | AX31: 0.34 | AY31: 0.33 | AZ31: 0.32 | BA31: 0.3 | BB31: 0.29 | BC31: 0.29 | BD31: 0 | BE31: 150+, 400 hrs | BF31: 0.36 | BG31: 0 | BH31: 0 | BI31: 0 | BJ31: 0 | BK31: =IF($G31=5,CE31,0) -> 0 | BL31: =IF($G31=6,CF31,0) -> 0 | BM31: =IF($G31=7,CG31,0) -> 0 | BN31: =IF($G31=8,CH31,0) -> 0.36 | BO31: =IF($G31=9,CI31,0) -> 0 | BP31: =IF($G31=10,CJ31,0) -> 0 | BQ31: =IF($G31=11,CK31,0) -> 0 | BR31: =IF($G31=12,CL31,0) -> 0 | BS31: =IF($G31=13,CM31,0) -> 0 | BT31: =IF($G31=14,CN31,0) -> 0 | BU31: =IF($G31=15,CO31,0) -> 0 | BV31: =IF($G31=16,CP31,0) -> 0 | BW31: =IF($G31=17,CQ31,0) -> 0 | BX31: =IF($G31=18,CR31,0) -> 0 | BY31: =IF($G31=19,CS31,0) -> 0 | BZ31: =IF($G31=20,CT31,0) -> 0 | CA31: 0.67 | CB31: 0.59 | CC31: 0.54 | CD31: 0.49 | CE31: 0.45 | CF31: 0.42 | CG31: 0.39 | CH31: 0.36 | CI31: 0.34 | CJ31: 0.32 | CK31: 0.3 | CL31: 0.28 | CM31: 0.26 | CN31: 0.24 | CO31: 0.23 | CP31: 0.21 | CQ31: 0.2 | CR31: 0.19 | CS31: 0.18 | CT31: 0.17
A32: =A6_Machine_Look_Up!A32 -> Land Plane | B32: =A6_Machine_Look_Up!H32 -> 160 | C32: =A6_Machine_Look_Up!I32 -> 0.85 | D32: =A6_Machine_Look_Up!J32 -> 8 | E32: 0.34 | F32: =A6_Machine_Look_Up!K32 -> 600 | G32: =A6_Machine_Look_Up!L32 -> 8 | H32: 0.36 | I32: =A6_Machine_Look_Up!G32 -> 195 | J32: =A6_Machine_Look_Up!AG32 -> 0.16 | K32: =A6_Machine_Look_Up!AH32 -> 1.3 | L32: =A6_Machine_Look_Up!AI32 -> 1.04 | M32: 0 | N32: =A6_Machine_Look_Up!AE32 -> Other Tillage | O32: 0.34 | P32: 0 | Q32: 0 | R32: 0 | S32: 0 | T32: 0 | U32: 0 | V32: 0 | W32: 0.34 | X32: 0 | Y32: 0 | Z32: 0 | AA32: 0 | AB32: 0 | AC32: 0 | AD32: 0 | AE32: 0 | AF32: 0 | AG32: 0 | AH32: 0 | AI32: 0 | AJ32: 0.61 | AK32: 0.54 | AL32: 0.49 | AM32: 0.45 | AN32: 0.42 | AO32: 0.39 | AP32: 0.36 | AQ32: 0.34 | AR32: 0.31 | AS32: 0.3 | AT32: 0.28 | AU32: 0.26 | AV32: 0.24 | AW32: 0.23 | AX32: 0.22 | AY32: 0.2 | AZ32: 0.19 | BA32: 0.18 | BB32: 0.17 | BC32: 0.16 | BD32: 0 | BE32: 150+, 400 hrs | BF32: 0.36 | BG32: 0 | BH32: 0 | BI32: 0 | BJ32: 0 | BK32: 0 | BL32: 0 | BM32: 0 | BN32: 0.36 | BO32: 0 | BP32: 0 | BQ32: 0 | BR32: 0 | BS32: 0 | BT32: 0 | BU32: 0 | BV32: 0 | BW32: 0 | BX32: 0 | BY32: 0 | BZ32: 0 | CA32: 0.67 | CB32: 0.59 | CC32: 0.54 | CD32: 0.49 | CE32: 0.45 | CF32: 0.42 | CG32: 0.39 | CH32: 0.36 | CI32: 0.34 | CJ32: 0.32 | CK32: 0.3 | CL32: 0.28 | CM32: 0.26 | CN32: 0.24 | CO32: 0.23 | CP32: 0.21 | CQ32: 0.2 | CR32: 0.19 | CS32: 0.18 | CT32: 0.17
A33: =A6_Machine_Look_Up!A33 -> Fertilizer, Broadcast Spreader | B33: =A6_Machine_Look_Up!H33 -> 100 | C33: =A6_Machine_Look_Up!I33 -> 0.7 | D33: =A6_Machine_Look_Up!J33 -> 8 | E33: 0.4 | F33: =A6_Machine_Look_Up!K33 -> 600 | G33: =A6_Machine_Look_Up!L33 -> 8 | H33: 0.36 | I33: =A6_Machine_Look_Up!G33 -> 195 | J33: =A6_Machine_Look_Up!AG33 -> 0.63 | K33: =A6_Machine_Look_Up!AH33 -> 1.3 | L33: =A6_Machine_Look_Up!AI33 -> 1.33 | M33: 0 | N33: =A6_Machine_Look_Up!AE33 -> Others | O33: 0.4 | P33: 0 | Q33: 0 | R33: 0 | S33: 0 | T33: 0 | U33: 0 | V33: 0 | W33: 0.4 | X33: 0 | Y33: 0 | Z33: 0 | AA33: 0 | AB33: 0 | AC33: 0 | AD33: 0 | AE33: 0 | AF33: 0 | AG33: 0 | AH33: 0 | AI33: 0 | AJ33: 0.69 | AK33: 0.62 | AL33: 0.56 | AM33: 0.52 | AN33: 0.48 | AO33: 0.45 | AP33: 0.42 | AQ33: 0.4 | AR33: 0.37 | AS33: 0.35 | AT33: 0.33 | AU33: 0.31 | AV33: 0.29 | AW33: 0.28 | AX33: 0.26 | AY33: 0.25 | AZ33: 0.24 | BA33: 0.22 | BB33: 0.21 | BC33: 0.2 | BD33: 0 | BE33: 150+, 400 hrs | BF33: 0.36 | BG33: 0 | BH33: 0 | BI33: 0 | BJ33: 0 | BK33: 0 | BL33: 0 | BM33: 0 | BN33: 0.36 | BO33: 0 | BP33: 0 | BQ33: 0 | BR33: 0 | BS33: 0 | BT33: 0 | BU33: 0 | BV33: 0 | BW33: 0 | BX33: 0 | BY33: 0 | BZ33: 0 | CA33: 0.67 | CB33: 0.59 | CC33: 0.54 | CD33: 0.49 | CE33: 0.45 | CF33: 0.42 | CG33: 0.39 | CH33: 0.36 | CI33: 0.34 | CJ33: 0.32 | CK33: 0.3 | CL33: 0.28 | CM33: 0.26 | CN33: 0.24 | CO33: 0.23 | CP33: 0.21 | CQ33: 0.2 | CR33: 0.19 | CS33: 0.18 | CT33: 0.17
A34: =A6_Machine_Look_Up!A34 -> Do All, Seedbed Finisher | B34: =A6_Machine_Look_Up!H34 -> 160 | C34: =A6_Machine_Look_Up!I34 -> 0.85 | D34: =A6_Machine_Look_Up!J34 -> 8 | E34: 0.34 | F34: =A6_Machine_Look_Up!K34 -> 600 | G34: =A6_Machine_Look_Up!L34 -> 8 | H34: 0.36 | I34: =A6_Machine_Look_Up!G34 -> 230 | J34: =A6_Machine_Look_Up!AG34 -> 0.27 | K34: =A6_Machine_Look_Up!AH34 -> 1.4 | L34: =A6_Machine_Look_Up!AI34 -> 1.04 | M34: 0 | N34: =A6_Machine_Look_Up!AE34 -> Other Tillage | O34: 0.34 | P34: 0 | Q34: 0 | R34: 0 | S34: 0 | T34: 0 | U34: 0 | V34: 0 | W34: 0.34 | X34: 0 | Y34: 0 | Z34: 0 | AA34: 0 | AB34: 0 | AC34: 0 | AD34: 0 | AE34: 0 | AF34: 0 | AG34: 0 | AH34: 0 | AI34: 0 | AJ34: 0.61 | AK34: 0.54 | AL34: 0.49 | AM34: 0.45 | AN34: 0.42 | AO34: 0.39 | AP34: 0.36 | AQ34: 0.34 | AR34: 0.31 | AS34: 0.3 | AT34: 0.28 | AU34: 0.26 | AV34: 0.24 | AW34: 0.23 | AX34: 0.22 | AY34: 0.2 | AZ34: 0.19 | BA34: 0.18 | BB34: 0.17 | BC34: 0.16 | BD34: 0 | BE34: 150+, 400 hrs | BF34: 0.36 | BG34: 0 | BH34: 0 | BI34: 0 | BJ34: 0 | BK34: 0 | BL34: 0 | BM34: 0 | BN34: 0.36 | BO34: 0 | BP34: 0 | BQ34: 0 | BR34: 0 | BS34: 0 | BT34: 0 | BU34: 0 | BV34: 0 | BW34: 0 | BX34: 0 | BY34: 0 | BZ34: 0 | CA34: 0.67 | CB34: 0.59 | CC34: 0.54 | CD34: 0.49 | CE34: 0.45 | CF34: 0.42 | CG34: 0.39 | CH34: 0.36 | CI34: 0.34 | CJ34: 0.32 | CK34: 0.3 | CL34: 0.28 | CM34: 0.26 | CN34: 0.24 | CO34: 0.23 | CP34: 0.21 | CQ34: 0.2 | CR34: 0.19 | CS34: 0.18 | CT34: 0.17
A35: =A6_Machine_Look_Up!A35 -> Planter | B35: =A6_Machine_Look_Up!H35 -> 160 | C35: =A6_Machine_Look_Up!I35 -> 0.65 | D35: =A6_Machine_Look_Up!J35 -> 8 | E35: 0.44 | F35: =A6_Machine_Look_Up!K35 -> 600 | G35: =A6_Machine_Look_Up!L35 -> 8 | H35: 0.36 | I35: =A6_Machine_Look_Up!G35 -> 195 | J35: =A6_Machine_Look_Up!AG35 -> 0.32 | K35: =A6_Machine_Look_Up!AH35 -> 2.1 | L35: =A6_Machine_Look_Up!AI35 -> 1.16 | M35: 0 | N35: =A6_Machine_Look_Up!AE35 -> Planter, Drill | O35: 0.44 | P35: 0 | Q35: 0 | R35: 0 | S35: 0 | T35: 0 | U35: 0 | V35: 0 | W35: 0.44 | X35: 0 | Y35: 0 | Z35: 0 | AA35: 0 | AB35: 0 | AC35: 0 | AD35: 0 | AE35: 0 | AF35: 0 | AG35: 0 | AH35: 0 | AI35: 0 | AJ35: 0.65 | AK35: 0.6 | AL35: 0.56 | AM35: 0.53 | AN35: 0.5 | AO35: 0.48 | AP35: 0.46 | AQ35: 0.44 | AR35: 0.42 | AS35: 0.4 | AT35: 0.39 | AU35: 0.38 | AV35: 0.36 | AW35: 0.35 | AX35: 0.34 | AY35: 0.33 | AZ35: 0.32 | BA35: 0.3 | BB35: 0.29 | BC35: 0.29 | BD35: 0 | BE35: 150+, 400 hrs | BF35: 0.36 | BG35: 0 | BH35: 0 | BI35: 0 | BJ35: 0 | BK35: 0 | BL35: 0 | BM35: 0 | BN35: 0.36 | BO35: 0 | BP35: 0 | BQ35: 0 | BR35: 0 | BS35: 0 | BT35: 0 | BU35: 0 | BV35: 0 | BW35: 0 | BX35: 0 | BY35: 0 | BZ35: 0 | CA35: 0.67 | CB35: 0.59 | CC35: 0.54 | CD35: 0.49 | CE35: 0.45 | CF35: 0.42 | CG35: 0.39 | CH35: 0.36 | CI35: 0.34 | CJ35: 0.32 | CK35: 0.3 | CL35: 0.28 | CM35: 0.26 | CN35: 0.24 | CO35: 0.23 | CP35: 0.21 | CQ35: 0.2 | CR35: 0.19 | CS35: 0.18 | CT35: 0.17
A36: =A6_Machine_Look_Up!A36 -> Planter Twin Row | B36: =A6_Machine_Look_Up!H36 -> 160 | C36: =A6_Machine_Look_Up!I36 -> 0.65 | D36: =A6_Machine_Look_Up!J36 -> 8 | E36: 0.44 | F36: =A6_Machine_Look_Up!K36 -> 600 | G36: =A6_Machine_Look_Up!L36 -> 8 | H36: 0.36 | I36: =A6_Machine_Look_Up!G36 -> 230 | J36: =A6_Machine_Look_Up!AG36 -> 0.32 | K36: =A6_Machine_Look_Up!AH36 -> 2.1 | L36: =A6_Machine_Look_Up!AI36 -> 1.16 | M36: 0 | N36: =A6_Machine_Look_Up!AE36 -> Planter, Drill | O36: 0.44 | P36: 0 | Q36: 0 | R36: 0 | S36: 0 | T36: 0 | U36: 0 | V36: 0 | W36: 0.44 | X36: 0 | Y36: 0 | Z36: 0 | AA36: 0 | AB36: 0 | AC36: 0 | AD36: 0 | AE36: 0 | AF36: 0 | AG36: 0 | AH36: 0 | AI36: 0 | AJ36: 0.65 | AK36: 0.6 | AL36: 0.56 | AM36: 0.53 | AN36: 0.5 | AO36: 0.48 | AP36: 0.46 | AQ36: 0.44 | AR36: 0.42 | AS36: 0.4 | AT36: 0.39 | AU36: 0.38 | AV36: 0.36 | AW36: 0.35 | AX36: 0.34 | AY36: 0.33 | AZ36: 0.32 | BA36: 0.3 | BB36: 0.29 | BC36: 0.29 | BD36: 0 | BE36: 150+, 400 hrs | BF36: 0.36 | BG36: 0 | BH36: 0 | BI36: 0 | BJ36: 0 | BK36: 0 | BL36: 0 | BM36: 0 | BN36: 0.36 | BO36: 0 | BP36: 0 | BQ36: 0 | BR36: 0 | BS36: 0 | BT36: 0 | BU36: 0 | BV36: 0 | BW36: 0 | BX36: 0 | BY36: 0 | BZ36: 0 | CA36: 0.67 | CB36: 0.59 | CC36: 0.54 | CD36: 0.49 | CE36: 0.45 | CF36: 0.42 | CG36: 0.39 | CH36: 0.36 | CI36: 0.34 | CJ36: 0.32 | CK36: 0.3 | CL36: 0.28 | CM36: 0.26 | CN36: 0.24 | CO36: 0.23 | CP36: 0.21 | CQ36: 0.2 | CR36: 0.19 | CS36: 0.18 | CT36: 0.17
A37: =A6_Machine_Look_Up!A37 -> Plant Grain Drill | B37: =A6_Machine_Look_Up!H37 -> 160 | C37: =A6_Machine_Look_Up!I37 -> 0.7 | D37: =A6_Machine_Look_Up!J37 -> 8 | E37: 0.44 | F37: =A6_Machine_Look_Up!K37 -> 600 | G37: =A6_Machine_Look_Up!L37 -> 8 | H37: 0.36 | I37: =A6_Machine_Look_Up!G37 -> 230 | J37: =A6_Machine_Look_Up!AG37 -> 0.32 | K37: =A6_Machine_Look_Up!AH37 -> 2.1 | L37: =A6_Machine_Look_Up!AI37 -> 1.11 | M37: 0 | N37: =A6_Machine_Look_Up!AE37 -> Planter, Drill | O37: 0.44 | P37: 0 | Q37: 0 | R37: 0 | S37: 0 | T37: 0 | U37: 0 | V37: 0 | W37: 0.44 | X37: 0 | Y37: 0 | Z37: 0 | AA37: 0 | AB37: 0 | AC37: 0 | AD37: 0 | AE37: 0 | AF37: 0 | AG37: 0 | AH37: 0 | AI37: 0 | AJ37: 0.65 | AK37: 0.6 | AL37: 0.56 | AM37: 0.53 | AN37: 0.5 | AO37: 0.48 | AP37: 0.46 | AQ37: 0.44 | AR37: 0.42 | AS37: 0.4 | AT37: 0.39 | AU37: 0.38 | AV37: 0.36 | AW37: 0.35 | AX37: 0.34 | AY37: 0.33 | AZ37: 0.32 | BA37: 0.3 | BB37: 0.29 | BC37: 0.29 | BD37: 0 | BE37: 150+, 400 hrs | BF37: 0.36 | BG37: 0 | BH37: 0 | BI37: 0 | BJ37: 0 | BK37: 0 | BL37: 0 | BM37: 0 | BN37: 0.36 | BO37: 0 | BP37: 0 | BQ37: 0 | BR37: 0 | BS37: 0 | BT37: 0 | BU37: 0 | BV37: 0 | BW37: 0 | BX37: 0 | BY37: 0 | BZ37: 0 | CA37: 0.67 | CB37: 0.59 | CC37: 0.54 | CD37: 0.49 | CE37: 0.45 | CF37: 0.42 | CG37: 0.39 | CH37: 0.36 | CI37: 0.34 | CJ37: 0.32 | CK37: 0.3 | CL37: 0.28 | CM37: 0.26 | CN37: 0.24 | CO37: 0.23 | CP37: 0.21 | CQ37: 0.2 | CR37: 0.19 | CS37: 0.18 | CT37: 0.17
